{"text_format":"1","workbook":"xlsx","n_sheets":9,"sheets":["Details","Wk Summary","Groups","Weekly","Tee Times","Bday","Rules","New GHIN","email list"],"not_rendered":{"charts":0,"images":20,"macros":1,"external_links":0,"defined_names":7,"comments":0,"pivot_tables":0},"unopened":[],"bounds":{"document_bytes":16777216,"sheet_cells":100000,"rows_first":2000,"rows_last":500,"rows_between":2000,"halvings":0,"cell_chars":16384,"cell_head_chars":4096},"cells_cut":0,"cells_raw":0,"read":"whole","date_system":"1900"}

{"sheet":"Details","index":0,"n_rows":440,"n_cols":151,"rows_kept":440,"cut":false,"hidden":false,"merged":[[26,121,28,121],[29,121,32,121],[33,121,36,121],[37,121,40,121],[41,121,44,121],[26,122,28,122],[29,122,32,122],[33,122,36,122],[37,122,40,122],[41,122,44,122],[2,59,4,59],[2,76,4,76],[20,46,20,47],[20,48,20,49],[2,54,4,54],[2,55,4,55],[2,57,4,57],[15,46,15,49],[17,46,17,49],[13,46,13,47],[13,48,13,49],[2,56,4,56],[2,58,4,58],[2,67,4,67],[20,93,20,96],[53,93,53,96],[20,85,20,88],[2,79,4,79],[2,62,4,62],[2,63,4,63],[2,64,4,64],[2,70,4,70],[2,66,4,66],[2,68,4,68],[2,80,4,80],[2,82,4,82],[2,73,4,73],[2,74,4,74],[2,81,4,81],[2,77,4,77],[2,78,4,78],[2,75,4,75],[2,61,4,61],[2,60,4,60],[2,65,4,65],[2,71,4,71],[2,69,4,69],[2,72,4,72]]}
[null,null,null,null,null,null,null,null,null,7,8,9,10,11,12,13,14,15,16,17,18,19,20,21,22,23,24,25,26,27,28,29,30,31,32,33,null,null,"Guest Partner"]
[null,null,null,null,"Balance",{"$f":"F23+F3","v":250},null,null,null,"011760",null,null,"101010","111980","K0270","L0178",null,null,null,null,null,null,null,"181280",null,null,null,null,null,"192360",null,"X1049","233290","W0027",null,null,"Britt",null,"Guest First",null,null,null,null,null,null,null,null,null,null,null,null,null,null,null,{"$f":"+BC23","v":0},{"$f":"+BD23","v":0},{"$f":"+BE23","v":0},0,0,0,0,{"$f":"+BJ23","v":0},0,0,0,0,0,0,0,0,0,0,0,{"$f":"+BV23","v":0},0,0,0,0,0,0,0,0,0,null,null,null,null,null,"Player","Palmer","Tour",null,null,null,"Oaks","Panther",null,"L Windcrst",null,null,null,null,null,null,null,null,134130,"032830"]
[null,null,null,null,"Start",80,null,null,"Avg","0284389","6433451",1952705,"8505540","..5583","..5613","..5649","..5667","…5653","2102801","6353615","0003188","1484835","3088085","..5970","1078775","2020045","..6106",7967386,"0153649","..6052",1635148,"6462888","..6290","..6225","..6279",8505225,"Rice",null,"Guest Last",null,null,null,null,null,null,null,null,null,null,null,null,null,null,null,{"$f":"+J5","v":"GerryA"},"BobE","JohnH","JesseJ g","JimK g","JohnK","BobL","WaltL","BobLx","WallisM","CraigM","DanM","TimM","GaryP","AlR","TimR","KenR","RoyS g","MurrayS","JeffS","LarryS",{"$f":"+AK5","v":"Guest1"},{"$f":"+AE5","v":"BobW w"},"Waylan g","BillW","MikeW","JimW g ","RobertD",{"$f":"+AL5","v":"Guest2"},null,null,null,null,"Gold",128,124,126,null,"White",null,117,113,"White",115,null,null,null,null,null,null,null,null,"..5744","8505168",4000231,"0337384","787341","3871052","6198599","…6091","…6279","2565906","1437249"]
[null,"Index",null,null,"2020-05-01",null,null,null,{"$f":"AVERAGE(J4:AH4)","v":18.167999999999999},10.8,21,22.4,25.4,26.8,14.4,19.5,22.5,17,19.399999999999999,10.1,14.5,19,8.1,21.1,17.5,11.1,21.5,16.5,22,19.600000000000001,11.9,22.4,20.9,18.8,21.9,17.8,null,null,"Guest index",null,null,null,null,null,null,null,null,null,null,null,null,null,"GHIN","Name",null,null,null,null,null,null,null,null,null,null,null,null,null,null,null,null,null,null,null,null,null,null,null,null,null,null,null,null,null,null,null,null,null,"White",137,126,129,null,"Blue",null,126,118,"Gold",121,null,null,null,null,null,null,null,null,16.8,"25.4/22",16.7,23.3,6.9,15.1,11.4,10.9,19.2,12.2,14.2]
[null,"Date","Day","Course","Time","$","Rds","$Rds","Tl","GerryA","BobE","JohnH","JesseJ g","JimK g","JohnK","BobL","WaltL","BobLx","WallisM","CraigM","DanM","TimM","GaryP","AlR","TimR","KenR","RoyS g","MurrayS","JeffS","LarryS","BobW w","Waylan g","BillW","MikeW","JimW g ","RobertD","Guest1","Guest2",null,null,"Date","Day","Course","#","Mdl","Team",null,null,null,null,null,"Club #","GHIN","Name",null,null,null,null,null,null,null,null,null,null,null,null,null,null,null,null,null,null,null,null,null,null,null,null,null,null,null,null,null,null,null,null,null,"Rating",null,null,null,null,null,null,null,null,null,null,null,null,null,null,null,null,null,null,"GeneM","JoeC","CharlieC","ColinM","Friesen","CharlieB","ArtG","CarltonS","JimW","JohnT","BillWeb"]
[null,"2020-05-04","Mon","Player","10:39:00",null,null,null,{"$f":"SUM(J6:AL6)","v":11},0,0,0,1,0,1,1,0,0,1,1,1,0,1,0,1,0,1,0,0,0,0,0,1,1,0,0,null,null,null,"Jerry Cardillo (Steimer)",{"$f":"B6","v":"2020-05-04"},"Mon",{"$f":"+D6","v":"Player"},{"$f":"+I6","v":11},null,null,null,null,null,null,1,"032830",8505168,"Cloessner, Joe",null,null,null,null,null,null,null,null,null,null,null,null,null,null,null,null,null,null,null,null,null,null,null,null,null,null,null,null,null,null,null,null,null,null,null,null,null,null,null,null,null,null,null,null,null,null,null,null,null,null,null,0,null,0,0,0,0,0,null,null,0,0,null,null,null,null,null,null,null,null,null,null,null,null,null,null,null,null,null,null,"Player","Palmer","Tourney","Palmer D/K","Palmer G/D","Oaks","Windcrest","Panther"]
[null,"2020-05-06","Wed","Tourney","10:21:00",null,null,null,{"$f":"SUM(J7:AL7)","v":12},0,0,0,1,0,1,1,0,1,1,1,1,0,1,0,1,0,1,0,0,1,0,0,0,1,0,0,null,null,null,"Jerry Cardillo (Steimer)","2020-05-06","Wed",{"$f":"+D7","v":"Tourney"},{"$f":"+I7","v":12},null,null,null,null,null,null,2,101010,"8505540","Johnson, Jesse",null,null,null,null,null,null,null,null,null,null,null,null,null,null,null,null,null,null,null,null,null,null,null,null,null,null,null,null,null,null,null,null,null,null,null,null,null,null,null,null,null,null,null,null,null,null,null,null,null,null,null,0,null,0,0,0,0,0,null,null,0,0]
[null,"2020-05-08","Fri","Palmer","10:21:00",null,null,null,{"$f":"SUM(J8:AL8)","v":13},0,0,0,1,0,1,1,0,1,1,1,1,1,0,0,1,0,1,0,0,1,0,0,0,1,1,0,null,null,null,null,"2020-05-08","Fri",{"$f":"+D8","v":"Palmer"},{"$f":"+I8","v":13},null,null,null,null,null,null,3,111980,"8505583","Kenney, Jim",null,null,null,null,null,null,null,null,null,null,null,null,null,null,null,null,null,null,null,null,null,null,null,null,null,null,null,null,null,null,null,null,null,null,null,null,null,null,null,null,null,null,null,null,null,null,null,null,null,null,null,0,null,0,0,0,0,0,null,null,0,0]
[null,"Next Week",null,null,null,"Off Names",null,null,null,null,null,null,null,null,null,null,null,null,null,null," ",null,null,null,null,null,null,null,null,null,null,null,null,null,null,null,null,null,null,null,null,null,null,null,null,null,null,null,null,null,4,112700,"8505613","Keyes, John",null,null,null,null,null,null,null,null,null,null,null,null,null,null,null,null,null,null,null,null,null,null,null,null,null,null,null,null,null,null,null,null,null,null,null,null,null,null,null,null,null,null,null,null,null,null,null,null,null,null,null,null,null,"Open","open",null,null,null,"Open",null,null,null,null,null,null,null,null,null,null,null,null,null,null,null,null,null,null,null,null,null,"Player"]
[null,{"$f":"B6+7","v":"2020-05-11"},"Mon","Player","10:21:00","Player",null,null,{"$f":"SUM(J10:AH10)","v":0},"0",null,"0",null,"0",null,null,"0",null,null,null,null,null,null,"0",null,"0",null,null,null,null,"0","0",null,null,null,"0",null,null,null,null,{"$f":"B10","v":"2020-05-11"},"Mon",{"$f":"+D10","v":"Player"},0,null,null,null,null,null,null,5,121780,"8505649","Lewis, Bob",null,null,null,null,null,null,null,null,null,null,null,null,null,null,null,null,null,null,null,null,null,null,null,null,null,null,null,null,null,null,null,null,null,null,null,null,null,null,null,null,null,null,null,null,null,null,null,null,null,null,null,null,null,null,null,null,null,null,null,null,"0","0",null,null,null,null,null,null,null,null,null,null,null,null,null,null,null,null,null,null,"Palmer"]
[null,{"$f":"B7+7","v":"2020-05-13"},"Wed","Palmer","10:21:00","Palmer",null,null,0,"0",null,"0",null,"0",null,null,"0",null,null,null,null,null,null,"0",null,"0",null,null,null,null,"0","0",null,null,null,"0",null,null,null,null,"2020-05-13","Wed",{"$f":"+D11","v":"Palmer"},0,null,null,null,null,null,null,6,null,"6353615","Mellington, Craig",null,null,null,null,null,null,null,null,null,null,null,null,null,null,null,null,null,null,null,null,null,null,null,null,null,null,null,null,null,null,null,null,null,null,null,null,null,null,null,null,null,null,null,null,null,null,null,null,null,null,null,null,null,null,null,null,null,null,null,null,"0","0",null,null,null,null,null,null,null,null,null,null,null,null,null,null,null,null,null,null,"Tourney"]
[null,{"$f":"B8+7","v":"2020-05-15"},"Fri","Tourney","10:21:00","Tourney",null,null,0,"0",null,"0",null,"0",null,null,"0",null,null,null,null,null,null,"0",null,"0",null,null,null,null,"0","0",null,null,null,"0",null,null,null,null,"2020-05-15","Fri",{"$f":"+D12","v":"Tourney"},0,null,null,null,null,null,null,7,134130,"8505744","Miller, Gene",null,null,null,null,null,null,null,null,null,null,null,null,null,null,null,null,null,null,null,null,null,null,null,null,null,null,null,null,null,null,null,null,null,null,null,null,null,null,null,null,null,null,null,null,null,null,null,null,null,null,null,null,null,null,null,null,null,null,null,null,"0","0",null,null,null,null,null,null,null,null,null,null,null,null,null,null,null,null,null,null,"Palmer D/K"]
[null,null,"Mon","Player","10:21:00","Palmer D/K",null,null,25,1,1,1,1,1,1,1,1,1,1,1,1,1,1,1,1,1,1,1,1,1,1,1,1,1,1,1,1,null,null,null,null,null,null,null,null,null,null,null,null,null,8,181280,"8505970","Roeder, Al",null,null,null,null,null,null,null,null,null,null,null,null,null,null,null,null,null,null,null,null,null,null,null,null,null,null,null,null,null,null,null,null,null,null,null,null,null,null,null,null,null,null,null,null,null,null,null,null,null,null,null,null,null,null,1,null,1,1,null,null,1,1,null,null,null,null,null,null,null,null,null,null,null,null,null,null,null,null,null,null,"Palmer G/D"]
[null,null,"Wed","Tourney ","10:21:00","Palmer G/D",null,null,0,null,null,null,null,null,null,null,null,null,null,null,null,null,null,null,null,null,null,null,null,null,null,null,null,null,null,null,null,null,null,null,null,null,null,null,null,null,"Stroke",null,"Stableford",null,null,null,null,null,null,null,null,null,null,null,null,null,null,null,null,null,null,null,null,null,null,null,null,null,null,null,null,null,null,null,null,null,null,null,null,null,null,null,null,null,null,null,null,null,null,null,null,null,null,null,null,null,null,null,null,null,null,null,null,1,null,null,"Open",null,null,null,null,null,null,null,null,null,null,null,null,null,null,null,null,null,null,null,null,null,"Oaks"]
[null,null,"Fri","Palmer","10:21:00","Oaks",null,null,0,null,null,null,null,null,null,null,null,null,null,null,null,null,null,null,null,null,null,null,null,null,null,null,null,null,null,null,null,null,null,null,null,null,null,null,null,null,"Indiv","Team","Ind","Team",null,null,null,null,null,null,null,null,null,null,null,null,null,null,null,null,null,null,null,null,null,null,null,null,null,null,null,null,null,null,null,null,null,null,null,null,null,null,null,null,null,null,null,null,null,null,null,null,null,null,null,null,null,null,null,null,null,null,1,null,null,null,null,null,null,null,null,null,null,null,null,null,null,null,null,null,null,null,null,null,null,null,null,null,"Windcrest"]
[null,null,"Mon","Player","10:21:00","Windcrest",null,null,0,null,null,null,null,null,null,null,null,null,null,null,null,null,null,null,null,null,null,null,null,null,null,null,null,null,null,null,null,null,null,null,null,null,null,null,null,null,"Min:",null,null,null,null,null,null,null,"k","l","ai","n","o","p","q","ag","r","s","t","u","v",null,"x","y","aj","ah","z","ab","aa","m","ad","ae","af","am","ac",null,null,null,null,null,null,null,null,null,null,null,null,null,null,null,null,null,null,null,null,null,null,null,null,null,null,null,null,null,null,null,"Open",null,"open",null,null,null,null,null,null,null,null,null,null,null,null,null,null,null,null,null,null,null,"Panther"]
[null,null,"Wed","Palmer","10:21:00","Panther",null,null,0,null,null,null,null,null,null,null,null,null,null,null,null,null,null,null,null,null,null,null,null,null,null,null,null,null,null,null,null,null,null,null,null,null,null,null,null,"min",{"$f":"MIN(AU24:AU179)","v":0},{"$f":"MIN(AV24:AV179)","v":0},{"$f":"MIN(AW24:AW179)","v":0},{"$f":"MIN(AX24:AX179)","v":0}]
[null,null,"Fri","Tourney","10:21:00",null,null,null,0,null,null,null,null,null,null,null,null,null,null,null,null,null,null,null,null,null,null,null,null,null,null,null,null,null,null,null,null,null,null,null,null,null,null,null,null,null,"Max:"]
[null,null,null,null,null,null,null,null,0,null,null,null,null,null,null,null,null,null,null,null,null,null,null,null,null,null,null,null,null,null,null,null,null,null,null,null,null,null,null,null,null,null,null,null,null,"max",{"$f":"MAX(AU24:AU179)","v":0},{"$f":"MAX(AV24:AV179)","v":0},{"$f":"MAX(AW24:AW179)","v":0},{"$f":"MAX(AX24:AX179)","v":0},null,null,null,null,null,null,null,null,null,null,null,null,null,null,null,null,null,null,null,null,null,null,null,null,null,null,null,null,null,null,null,null,null,null,null,"FORMULAS:",null,null,null,null,null,null,null,"Data Only:"]
[null,null,null,null,null,{"$f":"COUNT(G24:G180)","v":53},"Rds","$Rds","Tl Rds ",null,null,null,null,null,null,null,null,null,null,null,null,null,null,null,null,null,null,null,null,null,null,null,null,null,null,null,null,null,null,null,null,null,null,null,null,null,null,null,null,null,null,null,null,null,{"$f":"+J5","v":"GerryA"},"BobE","JohnH","JesseJ g","JimK g","JohnK","BobL","WaltL","BobLx","WallisM","CraigM","DanM","TimM","GaryP","AlR","TimR","KenR","RoyS g","MurrayS","JeffS","LarryS",{"$f":"+AK5","v":"Guest1"},{"$f":"+AE5","v":"BobW w"},"Waylan g","BillW","MikeW","JimW g ","RobertD",null,null,null,null,null,null,null,null,null,null,null,null,null,null,null,null,null,null,null,null,null,null,null,null,null,"ae","ah","aj","l"]
[null,"Rounds Played Totals",null,null,"Avg -->",{"$f":"AVERAGE(J21:AH21)","v":15.58},{"$f":"SUM(G24:G179)","v":46},{"$f":"SUM(H24:H179)","v":17},{"$f":"SUM(I24:I182)","v":403.5},11,{"$f":"SUM(K24:K182)","v":11},{"$f":"SUM(L24:L182)","v":3},21.5,0,17,23,{"$f":"SUM(Q24:Q182)","v":2},{"$f":"SUM(R24:R182)","v":23},22,28.5,34,15.5,{"$f":"SUM(W24:W182)","v":17},0,37.5,15,{"$f":"SUM(AA24:AA182)","v":18},{"$f":"SUM(AB24:AB182)","v":30},{"$f":"SUM(AC24:AC182)","v":10},11,{"$f":"SUM(AE24:AE182)","v":0},10,0,29.5,{"$f":"SUM(AI24:AI182)","v":10},{"$f":"SUM(AJ24:AJ182)","v":0},{"$f":"SUM(AK24:AK182)","v":4},{"$f":"SUM(AL24:AL182)","v":0},null,null,null,null,null,null,null,null,"Stroke",null,"Stableford",null,9,190930,"8506042","Socher, Don",{"$f":"+J21","v":11},11,3,21.5,0,17,23,2,23,22,28.5,34,15.5,17,0,37.5,15,18,30,10,11,{"$f":"+AK21","v":4},{"$f":"+AE21","v":0},{"$f":"+AF21","v":10},{"$f":"+AG21","v":0},{"$f":"+AH21","v":29.5},{"$f":"+AI21","v":10},{"$f":"+AJ21","v":0},null,null,null,"By Name ",null,null,null,null,null,null,null,"By % Wins",null,null,null,null,null,null,null,null,null,null,null,{"$f":"SUM(DB24:DB182)","v":0},4,0,0,3,10,{"$f":"SUM(DH24:DH182)","v":24},{"$f":"SUM(DI24:DI182)","v":0},null,{"$f":"SUM(DK24:DK182)","v":0},{"$f":"SUM(DL24:DL182)","v":0}]
[null,"2018-01-01",null,null,null,null,null,null,null,null,null,null,null,null,null,null,null,null,null,null,null,null,null,null,null,null,null,null,null,null,null,null,null,null,null,null,null,null,null,null,null,null,null,null,null,null,"Indiv","Team","Ind","Team",10,192360,"8506052","Stick, Larry",null,null,null,null,null,null,null,null,null,null,null,null,null,null,null,null,null,null,null,null,null,null,null,null,null,null,null,null,null,null,null,null,null,null,null,null,null,null,null,null,null,null,null,null,null,null,null,null,null,null,null,null,null,null,null,null,null,null,null,null,null,null,null,null,null,null,61,21.5,null,15,null,80,9,60,61,8,34,31,51,28,41.5,31,1,71,56,57,62,47,38,33,11,24,10,69.5,10,3,13]
[null,"Date","Day","Course","Time",{"$f":"SUM(F24:F188)","v":170},"Rds","$Rds","Tl","GerryA","BobE","JohnH","JesseJ","JimK","JohnK","BobL","Walt","BobLx","WallisM","CraigM","DanM","TimM","GaryP","AlR","TimR","KenR","RoyS","MurrayS","JeffS","LarryS","BobW","WaylanW","BillW","MikeW","JimW ","RobertD","Guest1","Guest2",null,null,"Date2","Day2","Course2","#","Mdl","Team",{"$f":"AVERAGE(AU24:AU182)","v":{"$error":"#DIV/0!"}},{"$f":"AVERAGE(AV24:AV182)","v":{"$error":"#DIV/0!"}},{"$f":"AVERAGE(AW24:AW182)","v":{"$error":"#DIV/0!"}},{"$f":"AVERAGE(AX24:AX182)","v":{"$error":"#DIV/0!"}},11,193770,"8506075","Strasburger,Chuck",{"$f":"SUM(BC24:BC190)","v":0},0,{"$f":"SUM(BE24:BE190)","v":0},0,0,0,0,{"$f":"SUM(BJ24:BJ190)","v":0},0,0,0,0,0,0,0,0,{"$f":"SUM(BS24:BS190)","v":0},{"$f":"SUM(BT24:BT190)","v":0},0,{"$f":"SUM(BV24:BV190)","v":0},0,{"$f":"SUM(BX24:BX190)","v":0},0,0,0,{"$f":"SUM(CB24:CB190)","v":0},{"$f":"SUM(CC24:CC190)","v":0},0,null,"Order",null,"Name","Wins","Rounds","% Wins",null,null,"Order",null,"Name","Wins","Rounds","% Wins",null,null,"Min Indx","Max Indx","Avg Indx","JoeC",133,null,"GeneM","JoeC","CharlieC","ColinM","JohnF","CharlieB","ArtG","CarltonS",null,"BillWeb","JohnT"]
[1,"2019-12-30","Mon","See 2019",null,null,null,null,{"$f":"SUM(J24:AL24)","v":0},null,null,null,null,null,null,null,null,null,null,null,null,null,null,null,null,null,null,null,null,null,null,null,null,null,null,null,null,null,null,null,{"$f":"B24","v":"2019-12-30"},{"$f":"C24","v":"Mon"},{"$f":"+D24","v":"See 2019"},{"$f":"I24","v":0},"ng","ng",null,null,null,null,null,null,null,null,null,null,null,null,null,null,null,null,null,null,null,null,null,null,null,null,null,null,null,null,null,null,null,null,null,null,null,null,null,1,null,"GerryAnderson",{"$f":"BC$23","v":0},{"$f":"+BC21","v":11},{"$f":"IF(CJ24=0,0,(CI24/CJ24))","v":0},null,null,1,null,"GerryAnderson",28,63,0.44444444444444442,null,null,11,13.9,12.354545454545452,"JJ",115.00001,null,null,0,0,0,0,1,1,null,null,0,null,null,null,null,null,"GerryA","BobE",null,"JohnH",null,"JesseJ","JimK","JohnK","BobL","Walt","BobLx","WallisM","CraigM","DanM","TimM","GaryP","AlR","TimR","KenR","RoyS","MurrayS","JeffS","LarryS","JohnT","BobW","WaylanW","BillW","MikeW","JimW ","RobertD","Guest4"]
[2,{"$f":"B24+2","v":"2020-01-01"},"Wed","Palmer","10:21:00","ng",1,0,2,0,0,0,0,0,0,0,0,1,0,0,0,0,0,0,0,0,0,1,0,0,0,0,0,0,0,0,null,null,null,null,"2020-01-01","Wed","Palmer",2,"ng","ng",null,null,null,null,null,null,null,null,null,null,null,null,null,null,null,null,null,null,null,null,null,null,null,null,null,null,null,null,null,null,null,null,null,null,null,null,null,2,null,"BobEdwards",{"$f":"BD$23","v":0},{"$f":"+BD21","v":11},0,null,null,2,null,"BobEdwards",10,23,0.43478260869565216,null,null,11.5,16.7,13.545454545454543,"AlR",90,null,0,1,0,0,0,0,0,null,null,0,0]
[3,{"$f":"B25+2","v":"2020-01-03"},"Fri","Tourney","10:21:00","ng",1,0,4,0,0,0,0,0,0,1,0,0,0,0,0,0,0,0,1,0,0,1,0,0,0,0,0,1,0,0,null,null,null,null,"2020-01-03","Fri","Tourney",4,"ng","ng",null,null,null,null,null,null,null,null,null,null,null,null,null,null,null,null,null,null,null,null,null,null,null,null,null,null,null,null,null,null,null,null,null,null,null,null,null,3,null,"JohnHeg",{"$f":"+BE23","v":0},{"$f":"+BE21","v":3},0,null,null,3,null,"JohnHeg",7,15,0.46666666666666667,null,null,7.9,12.2,9.6090909090909111,"BillW",112,null,0,"wd",0,0,1,0,0,null,null,0,0,null,null,null,null,"Count","Group","TeeTm","Player","SF HC","Rds Played","Notes/Rank"]
[4,{"$f":"B26+3","v":"2020-01-06"},"Mon","Player","10:03:00",10,1,1,14,0,1,0,1,0,1,1,0,1,0,1,0,0,1,0,1,0,1,1,0,1,0,1,0,1,0,0,1,null,null,"Charlotte Stick","2020-01-06","Mon","Player",14,"BobLux @ 68","Waylan & Larry  -1",null,null,null,null,null,null,null,null,null,null,null,null,null,null,null,null,null,null,null,null,null,null,null,null,null,null,null,null,null,null,null,null,null,null,null,null,null,4,null,"JesseJohnson",{"$f":"BF$23","v":0},{"$f":"+BF21","v":21.5},0,null,null,4,null,"JesseJohnson",13,87,0.14942528735632185,null,null,20.2,23.1,21.259090909090911,"MikeW",89,null,0,0,0,0,0,0,0,null,null,0,0,null,null,null,null,1,1,"10:03:00","KenR",13,56,"8 - Host"]
[5,{"$f":"B27+2","v":"2020-01-08"},"Wed","Tourney ","10:21:00",10,1,1,16,0,0,1,1,0,1,1,0,1,1,0,1,1,1,0,1,1,0,1,0,1,0,1,0,0,1,0,1,null,null,"Matt West","2020-01-08","Wed","Tourney ",16,"BobLux @ 70","Waylan & Bob  -1",null,null,null,null,null,null,null,null,null,null,null,null,null,null,null,null,null,null,null,null,null,null,null,null,null,null,null,null,null,null,null,null,null,null,null,null,null,5,null,"JimKenney",{"$f":"BG$23","v":0},{"$f":"+BG21","v":0},0,null,null,5,null,"JimKenney",1,9,0.1111111111111111,null,null,null,null,null,"CraigM",77,null,0,"wd",0,0,1,0,1,null,null,0,0,null,null,null,null,2,null,null,"CraigM",9,51,"9 - Host"]
[6,{"$f":"B28+2","v":"2020-01-10"},"Fri","Palmer","10:21:00",10,1,1,9,0,0,1,1,0,0,1,1,0,0,1,1,0,0,0,0,0,0,1,0,0,0,1,0,0,1,0,null,null,null,null,"2020-01-10","Fri","Palmer",9,"Dan @ 69","Dan & Bob  -2",null,null,null,null,null,null,null,null,null,null,null,null,null,null,null,null,null,null,null,null,null,null,null,null,null,null,null,null,null,null,null,null,null,null,null,null,null,6,null,"JohnKeyes",{"$f":"BH$23","v":0},{"$f":"+BH21","v":17},0,null,null,6,null,"JohnKeyes",18,66,0.27272727272727271,null,null,10,13.4,11.586363636363636,"JohnK",49,null,0,1,0,0,0,0,0,null,null,0,0,null,null,null,null,3,null,null,"BobL",18,61,"T4 - Host"]
[7,{"$f":"B29+3","v":"2020-01-13"},"Mon","Player","10:21:00","ng",1,0,9,1,0,0,1,0,0,1,0,0,0,1,1,0,0,0,1,1,1,1,0,0,0,0,0,0,0,0,null,null,null,null,"2020-01-13","Mon","Player",9,"ng","ng",null,null,null,null,null,null,null,null,null,null,null,null,null,null,null,null,null,null,null,null,null,null,null,null,null,null,null,null,null,null,null,null,null,null,null,null,null,7,null,"BobLewis",{"$f":"BI$23","v":0},{"$f":"+BI21","v":23},{"$f":"IF(CJ30=0,0,(CI30/CJ30))","v":0},null,null,7,null,"BobLewis",30,67,0.44776119402985076,null,null,null,null,null,"ColinM",18,null,0,1,null,0,0,1,1,null,null,0,0,null,null,null,null,4,2,"10:12:00","JesseJ","15gr",80,1]
[8,{"$f":"B30+2","v":"2020-01-15"},"Wed","Palmer","10:21:00","ng",1,0,6,1,0,0,0,0,0,0,0,0,0,0,1,1,0,0,1,1,0,1,0,0,0,0,0,0,0,0,null,null,null,null,"2020-01-15","Wed","Palmer",6,"ng","ng",null,null,null,null,null,null,null,null,null,null,null,null,null,null,null,null,null,null,null,null,null,null,null,null,null,null,null,null,null,null,null,null,null,null,null,null,null,8,null,"WaltLisiewski",{"$f":"BJ$23","v":0},{"$f":"+BJ21","v":2},{"$f":"IF(CJ31=0,0,(CI31/CJ31))","v":0},null,null,8,null,"WaltLisiewski",0,10,0,null,null,6.6,10.6,8.4045454545454543,"WW",79,null,0,1,null,0,0,0,0,null,null,0,0,null,null,null,null,5,null,null,"TimR",22,71,2]
[9,{"$f":"B31+2","v":"2020-01-17"},"Fri","Tourney","10:03:00","ng",1,0,6,0,0,0,0,0,0,1,0,0,0,1,1,0,0,0,0,1,1,0,0,1,0,0,0,0,0,0,null,null,null,null,"2020-01-17","Fri","Tourney",6,"ng","Craig, Ken & Dan -1",null,null,null,null,null,null,null,null,null,null,null,null,null,null,null,null,null,null,null,null,null,null,null,null,null,null,null,null,null,null,null,null,null,null,null,null,null,9,null,"BobLux",{"$f":"BK$23","v":0},{"$f":"+BK21","v":23},0,null,null,9,null,"BobLux",11,37,0.29729729729729731,null,null,13.2,17.5,14.961904761904762,"BobL",47,null,0,"wd",null,0,1,0,0,null,null,0,0,null,null,null,null,6,null,null,"MikeW",18,69.5,3]
[10,{"$f":"B32+3","v":"2020-01-20"},"Mon","Player","10:39:00",10,1,1,8,1,0,0,0,0,1,1,0,0,0,1,1,0,0,0,1,1,0,1,0,0,0,0,0,0,0,0,null,null,null,null,"2020-01-20","Mon","Player",8,"TimR @  72","Gerry & Craig  +4",null,null,null,null,null,null,null,null,null,null,null,null,null,null,null,null,null,null,null,null,null,null,null,null,null,null,null,null,null,null,null,null,null,null,null,null,null,10,null,"WallisMcMath",{"$f":"BL$23","v":0},{"$f":"+BL21","v":22},0,null,null,10,null,"WallisMcMath",7,35,0.2,null,null,18,23.2,20.588888888888889,"GerryA",42,null,0,null,null,0,0,0,1,null,null,0,0,null,null,null,null,7,null,null,"GerryA",10,61,4]
[11,{"$f":"B33+2","v":"2020-01-22"},"Wed","Palmer D/K","10:30:00","ng",0,0,0,0,0,0,0,0,0,0,0,0,0,0,0,0,0,0,0,0,0,0,0,0,0,0,0,0,0,0,null,null,null,null,"2020-01-22","Wed","Palmer D/K",0,"ng - rain","ng",null,null,null,null,null,null,null,null,null,null,null,null,null,null,null,null,null,null,null,null,null,null,null,null,null,null,null,null,null,null,null,null,null,null,null,null,null,11,null,"CraigMellington",{"$f":"BM$23","v":0},{"$f":"+BM21","v":28.5},0,null,null,11,null,"CraigMellington",22,55,0.4,null,null,17.8,20.8,18.90909090909091,"LarryS",42,null,0,null,null,0,0,0,0,null,null,0,0,null,null,null,null,8,3,"10:21:00","JohnK",14,60,6]
[12,{"$f":"B34+2","v":"2020-01-24"},"Fri","Tourney","10:12:00",10,1,1,12,1,0,0,0,0,0,1,1,1,0,1,1,1,0,0,1,0,0,1,1,0,0,0,0,1,0,0,1,null,null,"Bob Craig","2020-01-24","Fri","Tourney",12,"Mike @ 70","Dan & BobLux  even",null,null,null,null,null,null,null,null,null,null,null,null,null,null,null,null,null,null,null,null,null,null,null,null,null,null,null,null,null,null,null,null,null,null,null,null,null,12,null,"DanMiracle",{"$f":"BN$23","v":0},{"$f":"+BN21","v":34},0,null,null,12,null,"DanMiracle",11,32,0.34375,null,null,17.2,21.7,19.681818181818176,"TimR",78,null,0,null,null,0,0,0,0,null,null,0,0,null,null,null,null,9,null,null,"RoyS",20,57,7]
[13,{"$f":"B35+3","v":"2020-01-27"},"Mon","Player","10:21:00",10,1,1,9.5,1,0,0,0.5,0,0,1,0,0,1,0,1,0,1,0,1,0,0,1,1,0,0,0,0,1,0,0,null,null,null,null,"2020-01-27","Mon","Player",9.5,"Gary @ 68","Gary & Ken even",null,null,null,null,null,null,null,null,null,null,null,null,null,null,null,null,null,null,null,null,null,null,null,null,null,null,null,null,null,null,null,null,null,null,null,null,null,13,null,"TimMoore",{"$f":"BO$23","v":0},{"$f":"+BO21","v":15.5},0,null,null,13,null,"TimMoore",12,48,0.25,null,null,"na","na","na","GeneM",40,null,0,null,null,null,0,0,0,null,null,0,0,null,null,null,null,10,null,null,"JeffS",22,47,10]
[14,{"$f":"B36+2","v":"2020-01-29"},"Wed","Tourney ","10:39:00","ng",0,0,0,0,0,0,0,0,0,0,0,0,0,0,0,0,0,0,0,0,0,0,0,0,0,0,0,0,0,0,null,null,null,null,"2020-01-29","Wed","Tourney ",0,"ng","ng",null,null,null,null,null,null,null,null,null,null,null,null,null,null,null,null,null,null,null,null,null,null,null,null,null,null,null,null,null,null,null,null,null,null,null,null,null,14,null,"GaryPeterson",{"$f":"BP$23","v":0},{"$f":"+BP21","v":17},{"$f":"IF(CJ37=0,0,(CI37/CJ37))","v":0},null,null,14,null,"GaryPeterson",12,40,0.3,null,null,12.7,16.5,14.818181818181813,"KenS",9,null,0,null,null,null,0,0,1,null,null,0,0,null,null,null,null,11,null,null,"TimM",20,41.5,11]
[15,{"$f":"B37+2","v":"2020-01-31"},"Fri","Tourney ","10:12:00",10,1,1,9,1,0,0,0,0,0,1,0,0,0,0,1,1,0,0,1,1,0,1,1,0,0,0,0,1,0,0,null,null,null,null,"2020-01-31","Fri","Tourney ",9,"Bob @ 71","Ken & Murray Even",null,null,null,null,null,null,null,null,null,null,null,null,null,null,null,null,null,null,null,null,null,null,null,null,null,null,null,null,null,null,null,null,null,null,null,null,null,15,null,"AlRoeder",{"$f":"BQ$23","v":0},{"$f":"+BQ23","v":0},0,null,null,15,null,"AlRoeder",1,1,1,null,null,14.6,18.2,16.459090909090904,"JimK",74,null,0,null,null,null,0,0,0,null,null,0,0,null,null,null,null,12,4,"10:30:00","LarryS",17,38,12]
[16,{"$f":"B38+3","v":"2020-02-03"},"Mon","Player","10:21:00",10,1,1,12,1,0,1,1,0,1,0,0,1,0,1,1,0,1,0,1,1,0,0,1,0,0,0,0,1,0,0,null,null,null,null,"2020-02-03","Mon","Player",12,"Dan @ 68","Dan & Gary +2",null,null,null,null,null,null,null,null,null,null,null,null,null,null,null,null,null,null,null,null,null,null,null,null,null,null,null,null,null,null,null,null,null,null,null,null,null,16,null,"TimRoesler",{"$f":"BR$23","v":0},{"$f":"+BR21","v":37.5},0,null,null,16,null,"TimRoesler",21,83,0.25301204819277107,null,null,15.3,18.100000000000001,16.609090909090909,"WallisM",12,null,0,null,null,null,0,0,0,null,null,0,0,null,null,null,null,13,null,null,"JohnT",11,33,13]
[17,{"$f":"B39+2","v":"2020-02-05"},"Wed","Tourney ","10:21:00","ng",0,0,0,0,0,0,0,0,0,0,0,0,0,0,0,0,0,0,0,0,0,0,0,0,0,0,0,0,0,0,null,null,null,null,"2020-02-05","Wed","Tourney ",0,"ng cold","ng",null,null,null,null,null,null,null,null,null,null,null,null,null,null,null,null,null,null,null,null,null,null,null,null,null,null,null,null,null,null,null,null,null,null,null,null,null,17,null,"KenRowland",{"$f":"+BS23","v":0},{"$f":"+BS21","v":15},0,null,null,17,null,"KenRowland",15,60,0.25,null,null,14.3,15.8,15.077272727272732,"Carlton",11,null,0,null,null,null,0,0,1,null,null,0,0,null,null,null,null,14,null,null,"WallisM",19,31,14]
[18,{"$f":"B40+2","v":"2020-02-07"},"Fri","Palmer ","10:21:00",10,1,1,14,1,1,0,0,0,1,0,0,1,1,1,1,0,0,0,1,1,0,1,0,1,0,1,0,1,0,0,1,null,null,"Matt West","2020-02-07","Fri","Palmer ",14,"Dan @ 74","Dan & BobE  +2",null,null,null,null,null,null,null,null,null,null,null,null,null,null,null,null,null,null,null,null,null,null,null,null,null,null,null,null,null,null,null,null,null,null,null,null,null,18,null,"RoySimmons",{"$f":"BT$23","v":0},{"$f":"+BT21","v":18},0,null,null,null,null,"RoySimmons",11,62,0.17741935483870969,null,null,null,null,null,"Milton",12,null,0,null,null,null,0,1,0,null,null,0,0,null,null,null,null,15,null,null,"GaryP",9,31,15]
[19,{"$f":"B41+3","v":"2020-02-10"},"Mon","Player","10:30:00","ng",1,0,8,1,0,0,0,0,0,1,0,0,0,1,1,0,1,0,1,0,0,1,0,0,0,1,0,0,0,0,null,null,null,null,"2020-02-10","Mon","Player",8,"ng",null,null,null,null,null,null,null,null,null,null,null,null,null,null,null,null,null,null,null,null,null,null,null,null,null,null,null,null,null,null,null,null,null,null,null,null,null,null,19,null,"MurraySmith",{"$f":"BU$23","v":0},{"$f":"+BU21","v":30},0,null,null,18,null,"MurraySmith",21,66,0.31818181818181818,null,null,12.7,16.5,14.818181818181813,null,null,null,0,null,null,null,0,0,"AJGA",null,null,0,0,null,null,null,null,16,5,"10:39:00","DanM",15,28,16]
[20,{"$f":"B42+2","v":"2020-02-12"},"Wed","Palmer D/K","10:21:00","ng",0,0,0,0,0,0,0,0,0,0,0,0,0,0,0,0,0,0,0,0,0,0,0,0,0,0,0,0,0,0,null,null,null,null,"2020-02-12","Wed","Palmer D/K",0,"ng",null,null,null,null,null,null,null,null,null,null,null,null,null,null,null,null,null,null,null,null,null,null,null,null,null,null,null,null,null,null,null,null,null,null,null,null,null,null,20,null,"JeffSteimer ",{"$f":"BW$23","v":0},{"$f":"+BW21","v":11},0,null,null,19,null,"JeffSteimer ",13,45,0.28888888888888886,null,null,12.7,16.5,14.818181818181813,"DanM",9,null,0,null,null,null,0,0,1,null,null,0,0,null,null,null,null,17,null,null,"WaylanW","17gr",24,17]
[21,{"$f":"B43+2","v":"2020-02-14"},"Fri","Tourney","10:21:00","ng",1,0,5,0,0,0,0,0,1,1,0,0,0,0,1,0,1,0,0,0,0,1,0,0,0,0,0,0,0,0,null,null,null,null,"2020-02-14","Fri","Tourney",5,"ng",null,null,null,null,null,null,null,null,null,null,null,null,null,null,null,null,null,null,null,null,null,null,null,null,null,null,null,null,null,null,null,null,null,null,null,null,null,null,21,null,"LarryStick ",{"$f":"BV$23","v":0},{"$f":"+BV21","v":10},0,null,null,20,null,"LarryStick ",12,54,0.22222222222222221,null,null,null,null,null,"BobLx",4,null,0,null,null,null,0,0,0,null,null,0,0,null,null,null,null,18,null,null,"JimW ",19,10,"18- Social"]
[22,{"$f":"B44+3","v":"2020-02-17"},"Mon","Player","10:30:00","ng",1,0,6,1,0,0,0,0,1,0,0,0,0,1,0,0,0,0,1,1,0,0,0,0,0,1,0,0,0,0,null,null,null,null,"2020-02-17","Mon","Player",6,"ng",null,null,null,null,null,null,null,null,null,null,null,null,null,null,null,null,null,null,null,null,null,null,null,null,null,null,null,null,null,null,null,null,null,null,null,null,null,null,22,null,"JohnTruhe",{"$f":"BX$23","v":0},{"$f":"+BX21","v":4},0,null,null,21,null,"JohnTruhe",5,34,0.14705882352941177,null,null,null,null,null,null,null,null,0,null,null,null,0,0,0,null,null,0,0,null,null,null,null,19,null,null,"Walt",22,8,"19- Social"]
[23,{"$f":"B45+2","v":"2020-02-19"},"Wed","Tourney ","10:21:00","ng",0,0,0,0,0,0,0,0,0,0,0,0,0,0,0,0,0,0,0,0,0,0,0,0,0,0,0,0,0,0,null,null,null,null,"2020-02-19","Wed","Tourney ",0,"ng",null,null,null,null,null,null,null,null,null,null,null,null,null,null,null,null,null,null,null,null,null,null,null,null,null,null,null,null,null,null,null,null,null,null,null,null,null,null,23,null,"Bob Watkins",{"$f":"BY$23","v":0},{"$f":"+BY21","v":0},0,null,null,22,null,"Bob Watkins",5,11,0.45454545454545453,null,null,19.899999999999999,24.6,21.545454545454536,null,null,null,0,null,null,null,0,0,0,null,null,0,0]
[24,{"$f":"B46+2","v":"2020-02-21"},"Fri","Palmer","10:21:00",10,1,0,11,1,0,0,0,0,0,1,0,0,1,1,0,1,0,0,1,1,0,1,1,0,0,0,0,1,1,0,null,null,null,null,"2020-02-21","Fri","Palmer",11,"Ken & Murray @ 73","Ken & Mike  +2",null,null,null,null,null,null,null,null,null,null,null,null,null,null,null,null,null,null,null,null,null,null,null,null,null,null,null,null,null,null,null,null,null,null,null,null,null,24,null,"WaylanWest",{"$f":"+BZ23","v":0},{"$f":"+BZ21","v":10},0,null,null,23,null,"WaylanWest",8,29,0.27586206896551724,null,null,35.1,40.4,38.331818181818171,null,null,null,0,null,null,null,0,0,0,null,null,0,0,null,null,null,null,null,null,null,"Not Playing:"]
[25,{"$f":"B47+3","v":"2020-02-24"},"Mon","Player","10:21:00","ng",1,0,4,0,0,0,0,0,0,0,0,0,0,1,0,0,0,0,1,1,1,0,0,0,0,0,0,0,0,0,null,null,null,null,"2020-02-24","Mon","Player",4,"ng rain","ng",null,null,null,null,null,null,null,null,null,null,null,null,null,null,null,null,null,null,null,null,null,null,null,null,null,null,null,null,null,null,null,null,null,null,null,null,null,25,null,"BillWhite",{"$f":"CA$23","v":0},{"$f":"+CA21","v":0},0,null,null,24,null,"BillWhite",1,10,0.1,null,null,null,null,null,null,null,null,0,null,null,null,0,0,0,null,null,0,0,null,null,null,null,null,null,null,"MurrayS",null,62]
[26,{"$f":"B48+2","v":"2020-02-26"},"Wed","Palmer","10:21:00","ng",1,0,1.5,0,0,0,0,0,0,0,0,0,0,0.5,0,0,0,0,0.5,0,0,0,0,0,0,0,0,0.5,0,0,null,null,null,null,"2020-02-26","Wed","Palmer",1.5,"ng cold","ng",null,null,null,null,null,null,null,null,null,null,null,null,null,null,null,null,null,null,null,null,null,null,null,null,null,null,null,null,null,null,null,null,null,null,null,null,null,26,null,"MikeWhyte",{"$f":"CB$23","v":0},{"$f":"+CB21","v":29.5},0,null,null,25,null,"MikeWhyte",26,82,0.31707317073170732,null,null,null,{"$f":"43/88","v":0.48863636363636365},null,null,{"$f":"0.462*2","v":0.92400000000000004},null,0,null,null,null,0,0,1,null,null,0,0,null,null,null,null,null,null,null,"BobLx",null,34]
[27,{"$f":"B49+2","v":"2020-02-28"},"Fri","Palmer","10:21:00",10,1,1,11,0,1,0,0,0,1,1,0,1,1,0,1,0,1,0,0,0,0,1,0,1,0,1,0,1,0,0,null,null,null,null,"2020-02-28","Fri","Palmer",11,"Gary & Mike @ 73","Gary & BobLux  +3",null,null,null,null,null,null,null,null,null,null,null,null,null,null,null,null,null,null,null,null,null,null,null,null,null,null,null,null,null,null,null,null,null,null,null,null,null,27,null,"JimWilliams",{"$f":"CC$23","v":0},{"$f":"+CC21","v":10},0,null,null,26,null,"JimWilliams",1,14,7.1428571428571425E-2,null,null,null,null,{"$f":"44/88","v":0.5},null,null,null,null,0,null,null,0,1,1,null,null,0,0,null,null,null,null,null,null,null,"BobE",null,21.5]
[28,{"$f":"B50+3","v":"2020-03-02"},"Mon","Player","10:21:00",10,1,1,10,0,1,0,1,0,1,1,0,1,0,1,1,0,1,0,1,0,0,1,0,0,0,0,0,0,0,0,null,null,null,null,"2020-03-02","Mon","Player",10,"BobE & John @ 69","BobE & TimR  -3",null,null,null,null,null,null,null,null,null,null,null,null,null,null,null,null,null,null,null,null,null,null,null,null,null,null,null,null,null,null,null,null,null,null,null,null,null,28,null,"RobertDuncan",{"$f":"CD$23","v":0},{"$f":"+CD21","v":0},0,null,null,27,null,"RobertDuncan",0,3,0,null,null,null,null,{"$f":"13/28","v":0.4642857142857143},null,null,null,null,0,null,null,null,1,1,null,null,0,0,null,null,null,null,null,null,null,"JohnH",null,15]
[29,{"$f":"B51+2","v":"2020-03-04"},"Wed","Palmer","10:21:00","ng",0,0,0,0,0,0,0,0,0,0,0,0,0,0,0,0,0,0,0,0,0,0,0,0,0,0,0,0,0,0,null,null,null,null,"2020-03-04","Wed","Palmer",0,"ng rain","ng",null,null,null,null,null,null,null,null,null,null,null,null,null,null,null,null,null,null,null,null,null,null,null,null,null,null,null,null,null,null,null,null,null,null,null,null,null,null,null,null,null,null,null,null,null,null,null,null,null,null,null,null,null,"bj","43/88",{"$f":"14/28","v":0.5},null,null,null,null,0,null,null,null,0,0,null,null,0,0,null,null,null,null,null,null,null,"BobW",null,11]
[30,{"$f":"B52+2","v":"2020-03-06"},"Fri","Tourney","10:12:00",10,1,1,11,0,0,0,0,0,1,1,0,0,0,0,1,1,1,0,1,1,1,1,1,0,0,0,0,0,1,0,null,null,null,null,"2020-03-06","Fri","Tourney",11,"Jeff @ 66","Jeff & Roy  -4",null,null,null,null,null,null,null,null,null,null,null,null,null,null,null,null,null,null,null,null,null,null,null,null,null,null,null,null,null,null,null,null,null,null,null,null,null,null,null,null,null,null,null,null,null,null,null,null,null,null,null,null,null,null,"44/88",{"$f":"13/27","v":0.48148148148148145},null,null,null,null,0,null,null,null,0,0,null,null,0,0,null,null,null,null,null,null,null,"BillW",null,10]
[31,{"$f":"B53+3","v":"2020-03-09"},"Mon","Oaks","10:24:00",10,1,1,8,0,0,0,1,0,0,1,0,0,0,0,0,0,1,0,1,1,0,1,0,0,0,1,0,0,1,0,null,null,null,null,"2020-03-09","Mon","Oaks",8,"Ken @ 69","Bob & Gary -2",null,null,null,null,null,null,null,null,null,null,null,null,null,null,null,null,null,null,null,null,null,null,null,null,null,null,null,null,null,null,null,null,null,null,null,null,null,null,null,"By Wins",null,null,null,null,null,null,null,"By Rounds Played",null,null,null,null,null,"ga","13/28",{"$f":"13/28","v":0.4642857142857143},null,null,null,null,0,null,null,null,1,0,null,null,0,0,null,null,null,null,null,null,null,"JimK",null,9]
[32,{"$f":"B54+2","v":"2020-03-11"},"Wed","Tourney ","10:21:00",10,1,1,9,0,0,0,1,0,1,0,0,1,1,0,1,0,0,0,1,1,0,1,0,0,0,0,0,1,0,0,null,null,null,null,"2020-03-11","Wed","Tourney ",9,"Jesse @ 68","TimR & BobLux  -3",null,null,null,null,null,null,null,null,null,null,null,null,null,null,null,null,null,null,null,null,null,null,null,null,null,null,null,null,null,null,null,null,null,null,null,null,null,null,null,null,null,null,null,null,null,null,null,null,null,null,null,null,null,null,"14/28",{"$f":"15/28","v":0.5357142857142857},null,null,null,null,0,null,null,null,0,1,null,null,0,0,null,null,null,null,null,null,null,"RobertD",null,3]
[33,{"$f":"B55+2","v":"2020-03-13"},"Fri","Palmer ","10:21:00",10,1,1,{"$f":"SUM(J56:AL56)","v":11},0,0,0,1,0,0,1,0,1,0,0,1,1,0,0,1,0,1,1,0,0,0,1,0,1,1,0,null,null,null,null,{"$f":"B56","v":"2020-03-13"},{"$f":"C56","v":"Fri"},{"$f":"+D56","v":"Palmer "},{"$f":"I56","v":11},"BobLux @ 69","BobLux & Mike +7",null,null,null,null,null,null,null,null,null,null,null,null,null,null,null,null,null,null,null,null,null,null,null,null,null,null,null,null,null,null,null,null,null,null,null,null,null,"Order",null,"Name","Wins","Rounds","% Wins",null,null,"Order",null,"Name","Wins","Rounds","% Wins",null,null,null,"13/27",{"$f":"16/28","v":0.5714285714285714},null,null,null,null,0,null,null,null,0,0,null,null,0,0,null,null,null,null,null,null,null,"AlR",null,1]
[34,{"$f":"B56+3","v":"2020-03-16"},"Mon","Player","10:21:00","10 kr",1,1,9,0,0,0,1,0,0,0,0,0,0,1,1,0,1,0,1,1,0,1,0,0,0,1,0,1,0,0,null,null,null,null,"2020-03-16","Mon","Player",9,"Gary @ 70","Gary & Mike -2",null,null,null,null,null,null,null,null,null,null,null,null,null,null,null,null,null,null,null,null,null,null,null,null,null,null,null,null,null,null,null,null,null,null,null,null,null,1,null,"GerryAnderson",28,63,0.44444444444444442,null,null,1,null,"GerryAnderson",28,63,0.44444444444444442,null,null,null,"13/28",null,null,null,null,null,0,null,null,null,0,0,null,null,0,0]
[35,{"$f":"B57+2","v":"2020-03-18"},"Wed","Tourney ","10:21:00",10,1,1,8,0,0,0,0,0,0,0,0,1,1,1,1,0,0,0,1,0,0,1,0,1,0,0,0,1,0,0,null,null,null,null,"2020-03-18","Wed","Tourney ",8,"Crai & BobLux  @68","Wallis & BobLux  -1",null,null,null,null,null,null,null,null,null,null,null,null,null,null,null,null,null,null,null,null,null,null,null,null,null,null,null,null,null,null,null,null,null,null,null,null,null,2,null,"BobEdwards",10,23,0.43478260869565216,null,null,2,null,"BobEdwards",10,23,0.43478260869565216,null,null,null,"15/28",null,null,null,null,null,0,null,null,null,0,0,null,null,0,0]
[36,{"$f":"B58+2","v":"2020-03-20"},"Fri","Palmer","10:21:00","ng",0,0,0,0,0,0,0,0,0,0,0,0,0,0,0,0,0,0,0,0,0,0,0,0,0,0,0,0,0,0,null,null,null,null,"2020-03-20","Fri","Palmer",0,"ng","ng",null,null,null,null,null,null,null,null,null,null,null,null,null,null,null,null,null,null,null,null,null,null,null,null,null,null,null,null,null,null,null,null,null,null,null,null,null,3,null,"JohnHeg",7,15,0.46666666666666667,null,null,3,null,"JohnHeg",7,15,0.46666666666666667,null,null,null,"16/28",null,null,null,null,null,0,null,null,null,1,0,null,null,0,0]
[37,{"$f":"B59+3","v":"2020-03-23"},"Mon","Player","10:21:00","ng",1,0,3,0,0,0,0,0,0,0,0,0,0,0,0,1,0,0,1,0,0,0,0,0,0,0,0,1,0,0,null,null,null,null,"2020-03-23","Mon","Player",3,"ng",null,null,null,null,null,null,null,null,null,null,null,null,null,null,null,null,null,null,null,null,null,null,null,null,null,null,null,null,null,null,null,null,null,null,null,null,null,null,4,null,"JesseJohnson",13,87,0.14942528735632185,null,null,4,null,"JesseJohnson",13,87,0.14942528735632185,null,null,null,null,null,null,null,null,null,0,null,null,null,0,1,null,null,0,0]
[38,{"$f":"B60+2","v":"2020-03-25"},"Wed","Palmer","10:21:00","ng",1,0,8,0,0,0,1,0,0,0,0,1,0,1,0,0,0,0,1,0,1,1,0,1,0,0,0,1,0,0,null,null,null,null,"2020-03-25","Wed","Palmer",8,"ng",null,null,null,null,null,null,null,null,null,null,null,null,null,null,null,null,null,null,null,null,null,null,null,null,null,null,null,null,null,null,null,null,null,null,null,null,null,null,5,null,"JimKenney",1,9,0.1111111111111111,null,null,5,null,"JimKenney",1,9,0.1111111111111111,null,null,null,null,null,null,null,null,null,0,null,null,null,0,0,null,null,0,0]
[39,{"$f":"B61+2","v":"2020-03-27"},"Fri","Tourney","10:21:00","ng",1,0,9,0,0,0,1,0,0,0,0,1,1,1,1,1,0,0,0,0,1,1,0,0,0,0,0,1,0,0,null,null,null,null,"2020-03-27","Fri","Tourney",9,"ng",null,null,null,null,null,null,null,null,null,null,null,null,null,null,null,null,null,null,null,null,null,null,null,null,null,null,null,null,null,null,null,null,null,null,null,null,null,null,6,null,"JohnKeyes",18,66,0.27272727272727271,null,null,6,null,"JohnKeyes",18,66,0.27272727272727271,null,null,null,null,null,null,null,null,null,0,null,null,null,0,0,null,null,0,0]
[40,{"$f":"B62+3","v":"2020-03-30"},"Mon","Panther Trail","10:24:00","ng",1,0,4,0,0,0,0,0,0,0,0,1,1,0,1,0,0,0,0,0,0,0,0,0,0,0,0,1,0,0,null,null,null,null,"2020-03-30","Mon","Panther Trail",4,"ng",null,null,null,null,null,null,null,null,null,null,null,null,null,null,null,null,null,null,null,null,null,null,null,null,null,null,null,null,null,null,null,null,null,null,null,null,null,null,7,null,"BobLewis",30,67,0.44776119402985076,null,null,7,null,"BobLewis",30,67,0.44776119402985076,null,null,null,null,null,null,null,null,null,0,null,null,null,1,0,null,null,0,0]
[41,{"$f":"B63+2","v":"2020-04-01"},"Wed","Palmer","10:21:00","ng",1,0,11,0,1,0,1,0,0,0,0,1,1,1,0,1,0,0,1,0,1,1,0,1,0,0,0,1,0,0,null,null,null,null,"2020-04-01","Wed","Palmer",11,"ng",null,null,null,null,null,null,null,null,null,null,null,null,null,null,null,null,null,null,null,null,null,null,null,null,null,null,null,null,null,null,null,null,null,null,null,null,null,null,8,null,"WaltLisiewski",0,10,0,null,null,8,null,"WaltLisiewski",0,10,0,null,null,null,null,null,null,null,null,null,0,null,null,null,1,0,null,null,0,0]
[42,{"$f":"B64+2","v":"2020-04-03"},"Fri","Tourney","10:21:00","ng",1,0,10,0,1,0,1,0,0,0,0,1,1,1,0,1,0,0,1,0,1,1,0,0,0,0,0,1,0,0,null,null,null,null,"2020-04-03","Fri","Tourney",10,"ng",null,null,null,null,null,null,null,null,null,null,null,null,null,null,null,null,null,null,null,null,null,null,null,null,null,null,null,null,null,null,null,null,null,null,null,null,null,null,9,null,"BobLux",11,37,0.29729729729729731,null,null,9,null,"BobLux",11,37,0.29729729729729731,null,null,null,null,null,null,null,null,null,0,null,null,null,1,0,null,null,0,0]
[43,{"$f":"B65+3","v":"2020-04-06"},"Mon","Player","10:21:00","ng",1,0,3,0,0,0,0,0,0,0,0,0,0,0,1,0,0,0,1,0,0,0,0,0,0,0,0,1,0,0,null,null,null,null,"2020-04-06","Mon","Player",3,null,null,null,null,null,null,null,null,null,null,null,null,null,null,null,null,null,null,null,null,null,null,null,null,null,null,null,null,null,null,null,null,null,null,null,null,null,null,null,10,null,"WallisMcMath",7,35,0.2,null,null,10,null,"WallisMcMath",7,35,0.2,null,null,null,null,null,null,null,null,null,0,null,null,null,0,0,null,null,0,0]
[44,{"$f":"B66+2","v":"2020-04-08"},"Wed","Tourney ","10:21:00","ng",1,0,9,0,0,0,0,0,0,0,0,1,1,0,1,1,0,0,1,0,1,1,0,1,0,0,0,1,0,0,null,null,null,null,"2020-04-08","Wed","Tourney ",9,null,null,null,null,null,null,null,null,null,null,null,null,null,null,null,null,null,null,null,null,null,null,null,null,null,null,null,null,null,null,null,null,null,null,null,null,null,null,null,11,null,"CraigMellington",22,55,0.4,null,null,11,null,"CraigMellington",22,55,0.4,null,null,null,null,null,null,null,null,null,0,null,null,null,0,0,null,null,0,0]
[45,{"$f":"B67+2","v":"2020-04-10"},"Fri","Palmer","10:21:00","ng",1,0,9,0,1,0,0,0,0,0,0,0,1,0,1,1,0,0,1,0,1,1,0,0,0,0,0,1,1,0,null,null,null,"Roy's Grandson","2020-04-10","Fri","Palmer",9,null,null,null,null,null,null,null,null,null,null,null,null,null,null,null,null,null,null,null,null,null,null,null,null,null,null,null,null,null,null,null,null,null,null,null,null,null,null,null,12,null,"DanMiracle",11,32,0.34375,null,null,12,null,"DanMiracle",11,32,0.34375,null,null,null,null,null,null,null,null,null,0,null,null,null,0,0,null,null,0,0]
[46,{"$f":"B68+3","v":"2020-04-13"},"Mon","Player","10:21:00","ng",1,0,8,0,0,0,1,0,0,0,0,0,1,1,1,0,1,0,1,0,1,0,0,1,0,0,0,0,0,0,null,null,null,"Roy's Grandson","2020-04-13","Mon","Player",8,null,null,null,null,null,null,null,null,null,null,null,null,null,null,null,null,null,null,null,null,null,null,null,null,null,null,null,null,null,null,null,null,null,null,null,null,null,null,null,13,null,"TimMoore",12,48,0.25,null,null,13,null,"TimMoore",12,48,0.25,null,null,null,null,null,null,null,null,null,0,null,null,null,0,0,null,null,0,0]
[47,{"$f":"B69+2","v":"2020-04-15"},"Wed","Tourney ","10:21:00","ng",1,0,12,0,1,0,1,0,1,0,0,1,1,1,1,0,1,0,1,0,1,1,0,0,0,0,0,1,0,0,null,null,null,null,"2020-04-15","Wed","Tourney ",12,null,null,null,null,null,null,null,null,null,null,null,null,null,null,null,null,null,null,null,null,null,null,null,null,null,null,null,null,null,null,null,null,null,null,null,null,null,null,null,14,null,"GaryPeterson",12,40,0.3,null,null,14,null,"GaryPeterson",12,40,0.3,null,null,null,null,null,null,null,null,null,0,null,null,null,0,0,null,null,0,0]
[48,{"$f":"B70+2","v":"2020-04-17"},"Fri","Palmer","10:12:00","ng",1,0,11,0,0,0,1,0,1,0,0,1,1,1,1,1,0,0,1,0,1,0,0,0,0,0,0,1,1,0,null,null,null,null,"2020-04-17","Fri","Palmer",11,null,null,null,null,null,null,null,null,null,null,null,null,null,null,null,null,null,null,null,null,null,null,null,null,null,null,null,null,null,null,null,null,null,null,null,null,null,null,null,15,null,"AlRoeder",1,1,1,null,null,15,null,"AlRoeder",1,1,1,null,null,null,null,null,null,null,null,null,0,null,null,null,0,0,null,null,0,0]
[49,{"$f":"B71+3","v":"2020-04-20"},"Mon","Player","10:21:00","ng",1,0,7.5,0,0,0,0,0,1,1,0,0,1,1,1,0.5,1,0,1,0,0,0,0,0,0,0,0,0,0,0,null,null,null,null,"2020-04-20","Mon","Player",7.5,null,null,null,null,null,null,null,null,null,null,null,null,null,null,null,null,null,null,null,null,null,null,null,null,null,null,null,null,null,null,null,null,null,null,null,null,null,null,null,16,null,"TimRoesler",21,83,0.25301204819277107,null,null,16,null,"TimRoesler",21,83,0.25301204819277107,null,null,null,null,null,null,null,null,null,0,null,null,null,0,1,null,null,0,0]
[50,{"$f":"B72+2","v":"2020-04-22"},"Wed","Palmer","10:21:00","ng",1,0,13,0,1,0,1,0,1,1,0,1,1,1,1,0,1,0,1,0,1,0,1,0,0,0,0,1,0,0,null,null,null,null,"2020-04-22","Wed","Palmer",13,null,null,null,null,null,null,null,null,null,null,null,null,null,null,null,null,null,null,null,null,null,null,null,null,null,null,null,null,null,null,null,null,null,null,null,null,null,null,null,17,null,"KenRowland",15,60,0.25,null,null,17,null,"KenRowland",15,60,0.25,null,null,null,null,null,null,null,null,null,0,null,null,null,0,0,null,null,0,0]
[51,{"$f":"B73+2","v":"2020-04-24"},"Fri","Tourney","10:21:00","ng",1,0,13,0,1,0,1,0,0,1,0,1,1,1,1,1,0,0,1,0,1,0,1,0,0,0,0,1,1,0,null,null,null,null,"2020-04-24","Fri","Tourney",13,null,null,null,null,null,null,null,null,null,null,null,null,null,null,null,null,null,null,null,null,null,null,null,null,null,null,null,null,null,null,null,null,null,null,null,null,null,null,null,18,null,"RoySimmons",11,62,0.17741935483870969,null,null,18,null,"RoySimmons",11,62,0.17741935483870969,null,null,null,null,null,null,null,null,null,0,null,null,null,0,0,null,null,0,0]
[52,{"$f":"B74+3","v":"2020-04-27"},"Mon","Oaks","10:08:00","ng",1,0,11,0,0,0,1,0,1,0,0,1,1,1,1,0,1,0,1,0,1,0,1,0,0,0,0,1,0,0,null,null,null,"Jerry Cardillo (Steimer)","2020-04-27","Mon","Oaks",11,null,null,null,null,null,null,null,null,null,null,null,null,null,null,null,null,null,null,null,null,null,null,null,null,null,null,null,null,null,null,null,null,null,null,null,null,null,null,null,19,null,"MurraySmith",21,66,0.31818181818181818,null,null,19,null,"MurraySmith",21,66,0.31818181818181818,null,null,null,null,null,null,null,null,null,0,null,null,null,null,0,null,null,0]
[53,{"$f":"B75+2","v":"2020-04-29"},"Wed","Tourney","10:21:00","ng",1,0,7,0,0,0,0,0,0,1,0,0,1,1,1,0,1,0,0,0,0,0,1,0,0,0,0,1,0,0,null,null,null,"Jerry Cardillo (Steimer)","2020-04-29","Wed","Tourney",7,null,null,null,null,null,null,null,null,null,null,null,null,null,null,null,null,null,null,null,null,null,null,null,null,null,null,null,null,null,null,null,null,null,null,null,null,null,null,null,20,null,"JeffSteimer ",13,45,0.28888888888888886,null,null,20,null,"JeffSteimer ",13,45,0.28888888888888886,null,null,null,null,null,null,null,null,null,0,null,null,null,null,1,null,null,0]
[54,{"$f":"B76+2","v":"2020-05-01"},"Fri","Tourney","10:21:00","ng",1,0,12,0,1,0,1,0,1,1,0,1,1,1,1,0,0,0,1,0,0,0,0,1,0,0,0,1,1,0,null,null,null,null,"2020-05-01","Fri","Tourney",12,null,null,null,null,null,null,null,null,null,null,null,null,null,null,null,null,null,null,null,null,null,null,null,null,null,null,null,null,null,null,null,null,null,null,null,null,null,null,null,21,null,"LarryStick ",12,54,0.22222222222222221,null,null,21,null,"LarryStick ",12,54,0.22222222222222221,null,null,null,null,null,null,null,null,0,null,null,null,null,null,0,null,null,0]
[55,{"$f":"B77+3","v":"2020-05-04"},"Mon",null,null,null,null,null,0,null,null,null,null,null,null,null,null,null,null,null,null,null,null,null,null,null,null,null,null,null,null,null,null,null,null,null,null,null,null,null,"2020-05-04","Mon",0,0,null,null,null,null,null,null,null,null,null,null,null,null,null,null,null,null,null,null,null,null,null,null,null,null,null,null,null,null,null,null,null,null,null,null,null,null,null,null,null,22,null,"JohnTruhe",5,34,0.14705882352941177,null,null,22,null,"JohnTruhe",5,34,0.14705882352941177,null,null,null,null,null,null,null,null,0,null,null,null,null,null,0,null,null,0]
[56,{"$f":"B78+2","v":"2020-05-06"},"Wed",null,null,null,null,null,0,null,null,null,null,null,null,null,null,null,null,null,null,null,null,null,null,null,null,null,null,null,null,null,null,null,null,null,null,null,null,null,"2020-05-06","Wed",0,0,null,null,null,null,null,null,null,null,null,null,null,null,null,null,null,null,null,null,null,null,null,null,null,null,null,null,null,null,null,null,null,null,null,null,null,null,null,null,null,23,null,"Bob Watkins",5,11,0.45454545454545453,null,null,23,null,"Bob Watkins",5,11,0.45454545454545453,null,null,null,null,null,null,null,null,0,null,null,null,null,null,0,null,null,0]
[57,{"$f":"B79+2","v":"2020-05-08"},"Fri",null,null,null,null,null,0,null,null,null,null,null,null,null,null,null,null,null,null,null,null,null,null,null,null,null,null,null,null,null,null,null,null,null,null,null,null,null,"2020-05-08","Fri",0,0,null,null,null,null,null,null,null,null,null,null,null,null,null,null,null,null,null,null,null,null,null,null,null,null,null,null,null,null,null,null,null,null,null,null,null,null,null,null,null,24,null,"WaylanWest",8,29,0.27586206896551724,null,null,24,null,"WaylanWest",8,29,0.27586206896551724,null,null,null,null,null,null,null,null,0,null,null,null,null,null,0,null,null,0]
[58,{"$f":"B80+3","v":"2020-05-11"},"Mon",null,null,null,null,null,0,null,null,null,null,null,null,null,null,null,null,null,null,null,null,null,null,null,null,null,null,null,null,null,null,null,null,null,null,null,null,null,"2020-05-11","Mon",0,0,null,null,null,null,null,null,null,null,null,null,null,null,null,null,null,null,null,null,null,null,null,null,null,null,null,null,null,null,null,null,null,null,null,null,null,null,null,null,null,25,null,"BillWhite",1,10,0.1,null,null,25,null,"BillWhite",1,10,0.1,null,null,null,null,null,null,null,null,0,null,null,null,null,null,0,null,null,0]
[59,{"$f":"B81+2","v":"2020-05-13"},"Wed",null,null,null,null,null,0,null,null,null,null,null,null,null,null,null,null,null,null,null,null,null,null,null,null,null,null,null,null,null,null,null,null,null,null,null,null,null,"2020-05-13","Wed",0,0,null,null,null,null,null,null,null,null,null,null,null,null,null,null,null,null,null,null,null,null,null,null,null,null,null,null,null,null,null,null,null,null,null,null,null,null,null,null,null,26,null,"MikeWhyte",26,82,0.31707317073170732,null,null,26,null,"MikeWhyte",26,82,0.31707317073170732,null,null,null,null,null,null,null,null,0,null,null,null,null,null,0,null,null,0]
[60,{"$f":"B82+2","v":"2020-05-15"},"Fri",null,null,null,null,null,0,null,null,null,null,null,null,null,null,null,null,null,null,null,null,null,null,null,null,null,null,null,null,null,null,null,null,null,null,null,null,null,"2020-05-15","Fri",0,0,null,null,null,null,null,null,null,null,null,null,null,null,null,null,null,null,null,null,null,null,null,null,null,null,null,null,null,null,null,null,null,null,null,null,null,null,null,null,null,27,null,"JimWilliams",1,14,7.1428571428571425E-2,null,null,27,null,"JimWilliams",1,14,7.1428571428571425E-2,null,null,null,null,null,null,null,null,0,null,null,null,null,null,0,null,null,0]
[61,{"$f":"B83+3","v":"2020-05-18"},"Mon",null,null,null,null,null,0,null,null,null,null,null,null,null,null,null,null,null,null,null,null,null,null,null,null,null,null,null,null,null,null,null,null,null,null,null,null,null,"2020-05-18","Mon",0,0,null,null,null,null,null,null,null,null,null,null,null,null,null,null,null,null,null,null,null,null,null,null,null,null,null,null,null,null,null,null,null,null,null,null,null,null,null,null,null,null,null,"RobertDuncan",0,3,0,null,null,null,null,"RobertDuncan",0,3,0,null,null,null,null,null,null,null,null,0,null,null,null,null,null,0,null,null,0]
[62,{"$f":"B84+2","v":"2020-05-20"},"Wed",null,null,null,null,null,0,null,null,null,null,null,null,null,null,null,null,null,null,null,null,null,null,null,null,null,null,null,null,null,null,null,null,null,null,null,null,null,"2020-05-20","Wed",0,0,null,null,null,null,null,null,null,null,null,null,null,null,null,null,null,null,null,null,null,null,null,null,null,null,null,null,null,null,null,null,null,null,null,null,null,null,null,null,null,null,null,null,null,null,null,null,null,null,null,null,null,null,null,null,null,null,null,null,null,null,null,0,null,null,null,null,null,0,null,null,0]
[63,{"$f":"B85+2","v":"2020-05-22"},"Fri",null,null,null,null,null,0,null,null,null,null,null,null,null,null,null,null,null,null,null,null,null,null,null,null,null,null,null,null,null,null,null,null,null,null,null,null,null,"2020-05-22","Fri",0,0,null,null,null,null,null,null,null,null,null,null,null,null,null,null,null,null,null,null,null,null,null,null,null,null,null,null,null,null,null,null,null,null,null,null,null,null,null,null,null,null,null,null,null,null,null,null,null,null,null,null,null,null,null,null,null,null,null,null,null,null,null,0,null,null,null,null,null,0,null,null,0]
[64,{"$f":"B86+3","v":"2020-05-25"},"Mon",null,null,null,null,null,0,null,null,null,null,null,null,null,null,null,null,null,null,null,null,null,null,null,null,null,null,null,null,null,null,null,null,null,null,null,null,null,"2020-05-25","Mon",0,0,null,null,null,null,null,null,null,null,null,null,null,null,null,null,null,null,null,null,null,null,null,null,null,null,null,null,null,null,null,null,null,null,null,null,null,null,null,null,null,null,null,null,null,null,null,null,null,null,null,null,null,null,null,null,null,null,null,null,null,null,null,0,null,null,null,null,null,0,null,null,0]
[65,{"$f":"B87+2","v":"2020-05-27"},"Wed",null,null,null,null,null,{"$f":"SUM(J88:AL88)","v":0},null,null,null,null,null,null,null,null,null,null,null,null,null,null,null,null,null,null,null,null,null,null,null,null,null,null,null,null,null,null,null,{"$f":"B88","v":"2020-05-27"},{"$f":"C88","v":"Wed"},{"$f":"+D88","v":0},{"$f":"I88","v":0},null,null,null,null,null,null,null,null,null,null,null,null,null,null,null,null,null,null,null,null,null,null,null,null,null,null,null,null,null,null,null,null,null,null,null,null,null,null,null,null,null,null,null,null,null,null,null,null,null,null,null,null,null,null,null,null,null,null,null,null,null,0,null,null,null,null,null,0,null,null,0]
[66,{"$f":"B88+2","v":"2020-05-29"},"Fri",null,null,null,null,null,0,null,null,null,null,null,null,null,null,null,null,null,null,null,null,null,null,null,null,null,null,null,null,null,null,null,null,null,null,null,null,null,"2020-05-29","Fri",0,0,null,null,null,null,null,null,null,null,null,null,null,null,null,null,null,null,null,null,null,null,null,null,null,null,null,null,null,null,null,null,null,null,null,null,null,null,null,null,null,null,null,null,null,null,null,null,null,null,null,null,null,null,null,null,null,null,null,null,null,null,null,0,null,null,null,null,null,0,null,null,0]
[67,{"$f":"B89+3","v":"2020-06-01"},"Mon",null,null,null,null,null,0,null,null,null,null,null,null,null,null,null,null,null,null,null,null,null,null,null,null,null,null,null,null,null,null,null,null,null,null,null,null,null,"2020-06-01","Mon",0,0,null,null,null,null,null,null,null,null,null,null,null,null,null,null,null,null,null,null,null,null,null,null,null,null,null,null,null,null,null,null,null,null,null,null,null,null,null,null,null,null,null,"Totals for 6 months",null,null,null,null,null,null,null,null,null,null,null,null,null,null,null,null,null,null,null,0,null,null,null,null,null,0,null,null,0]
[68,{"$f":"B90+2","v":"2020-06-03"},"Wed",null,null,null,null,null,0,null,null,null,null,null,null,null,null,null,null,null,null,null,null,null,null,null,null,null,null,null,null,null,null,null,null,null,null,null,null,null,"2020-06-03","Wed",0,0,null,null,null,null,null,null,null,null,null,null,null,null,null,null,null,null,null,null,null,null,null,null,null,null,null,null,null,null,null,null,null,null,null,null,null,null,null,null,null,"Order",null,"Name","Wins","Rounds","% Wins",null,null,null,null,null,null,null,null,null,null,null,null,null,null,null,null,0,null,null,null,null,null,0,null,null,0]
[69,{"$f":"B91+2","v":"2020-06-05"},"Fri",null,null,null,null,null,0,null,null,null,null,null,null,null,null,null,null,null,null,null,null,null,null,null,null,null,null,null,null,null,null,null,null,null,null,null,null,null,"2020-06-05","Fri",0,0,null,null,null,null,null,null,null,null,null,null,null,null,null,null,null,null,null,null,null,null,null,null,null,null,null,null,null,null,null,null,null,null,null,null,null,null,null,null,null,1,null,null,null,null,null,null,null,null,null,null,null,null,null,null,null,null,null,null,null,null,null,0,null,null,null,null,null,1,null,null,0]
[70,{"$f":"B92+3","v":"2020-06-08"},"Mon",null,null,null,null,null,0,null,null,null,null,null,null,null,null,null,null,null,null,null,null,null,null,null,null,null,null,null,null,null,null,null,null,null,null,null,null,null,"2020-06-08","Mon",0,0,null,null,null,null,null,null,null,null,null,null,null,null,null,null,null,null,null,null,null,null,null,null,null,null,null,null,null,null,null,null,null,null,null,null,null,null,null,null,null,2,null,null,null,null,null,null,null,null,null,null,null,null,null,null,null,null,null,null,null,null,null,0,null,null,null,null,null,1,null,null,0]
[71,{"$f":"B93+2","v":"2020-06-10"},"Wed",null,null,null,null,null,0,null,null,null,null,null,null,null,null,null,null,null,null,null,null,null,null,null,null,null,null,null,null,null,null,null,null,null,null,null,null,null,"2020-06-10","Wed",0,0,null,null,null,null,null,null,null,null,null,null,null,null,null,null,null,null,null,null,null,null,null,null,null,null,null,null,null,null,null,null,null,null,null,null,null,null,null,null,null,3,null,null,null,null,null,null,null,null,null,null,null,null,null,null,null,null,null,null,null,null,null,0,null,null,null,null,null,0,null,null,0]
[72,{"$f":"B94+2","v":"2020-06-12"},"Fri",null,null,null,null,null,0,null,null,null,null,null,null,null,null,null,null,null,null,null,null,null,null,null,null,null,null,null,null,null,null,null,null,null,null,null,null,null,"2020-06-12","Fri",0,0,null,null,null,null,null,null,null,null,null,null,null,null,null,null,null,null,null,null,null,null,null,null,null,null,null,null,null,null,null,null,null,null,null,null,null,null,null,null,null,4,null,null,null,null,null,null,null,null,null,null,null,null,null,null,null,null,null,null,null,null,null,0,null,null,null,null,null,0,null,null,0]
[73,{"$f":"B95+3","v":"2020-06-15"},"Mon",null,null,null,null,null,0,null,null,null,null,null,null,null,null,null,null,null,null,null,null,null,null,null,null,null,null,null,null,null,null,null,null,null,null,null,null,null,"2020-06-15","Mon",0,0,null,null,null,null,null,null,null,null,null,null,null,null,null,null,null,null,null,null,null,null,null,null,null,null,null,null,null,null,null,null,null,null,null,null,null,null,null,null,null,5,null,null,null,null,null,null,null,null,null,null,null,null,null,null,null,null,null,null,null,null,null,0,null,null,null,null,null,0,null,null,0]
[74,{"$f":"B96+2","v":"2020-06-17"},"Wed",null,null,null,null,null,0,null,null,null,null,null,null,null,null,null,null,null,null,null,null,null,null,null,null,null,null,null,null,null,null,null,null,null,null,null,null,null,"2020-06-17","Wed",0,0,null,null,null,null,null,null,null,null,null,null,null,null,null,null,null,null,null,null,null,null,null,null,null,null,null,null,null,null,null,null,null,null,null,null,null,null,null,null,null,6,null,null,null,null,null,null,null,null,null,null,null,null,null,null,null,null,null,null,null,null,null,0,null,null,null,null,null,0,null,null,0]
[75,{"$f":"B97+2","v":"2020-06-19"},"Fri",null,null,null,null,null,0,null,null,null,null,null,null,null,null,null,null,null,null,null,null,null,null,null,null,null,null,null,null,null,null,null,null,null,null,null,null,null,"2020-06-19","Fri",0,0,null,null,null,null,null,null,null,null,null,null,null,null,null,null,null,null,null,null,null,null,null,null,null,null,null,null,null,null,null,null,null,null,null,null,null,null,null,null,null,7,null,null,null,null,null,null,null,null,null,null,null,null,null,null,null,null,null,null,null,null,null,0,null,null,null,null,null,1,null,null,0]
[76,{"$f":"B98+3","v":"2020-06-22"},"Mon",null,null,null,null,null,0,null,null,null,null,null,null,null,null,null,null,null,null,null,null,null,null,null,null,null,null,null,null,null,null,null,null,null,null,null,null,null,"2020-06-22","Mon",0,0,null,null,null,null,null,null,null,null,null,null,null,null,null,null,null,null,null,null,null,null,null,null,null,null,null,null,null,null,null,null,null,null,null,null,null,null,null,null,null,8,null,null,null,null,null,null,null,null,null,null,null,null,null,null,null,null,null,null,null,null,null,0,null,null,null,null,null,0,null,null,0]
[77,{"$f":"B99+2","v":"2020-06-24"},"Wed",null,null,null,null,null,0,null,null,null,null,null,null,null,null,null,null,null,null,null,null,null,null,null,null,null,null,null,null,null,null,null,null,null,null,null,null,null,"2020-06-24","Wed",0,0,null,null,null,null,null,null,null,null,null,null,null,null,null,null,null,null,null,null,null,null,null,null,null,null,null,null,null,null,null,null,null,null,null,null,null,null,null,null,null,9,null,null,null,null,null,null,null,null,null,null,null,null,null,null,null,null,null,null,null,null,null,0,null,null,null,null,null,0,null,null,0]
[78,{"$f":"B100+2","v":"2020-06-26"},"Fri",null,null,null,null,null,0,null,null,null,null,null,null,null,null,null,null,null,null,null,null,null,null,null,null,null,null,null,null,null,null,null,null,null,null,null,null,null,"2020-06-26","Fri",0,0,null,null,null,null,null,null,null,null,null,null,null,null,null,null,null,null,null,null,null,null,null,null,null,null,null,null,null,null,null,null,null,null,null,null,null,null,null,null,null,10,null,null,null,null,null,null,null,null,null,null,null,null,null,null,null,null,null,null,null,null,null,0,null,null,null,null,null,0,null,null,0]
[79,{"$f":"B101+3","v":"2020-06-29"},"Mon",null,null,null,null,null,0,null,null,null,null,null,null,null,null,null,null,null,null,null,null,null,null,null,null,null,null,null,null,null,null,null,null,null,null,null,null,null,"2020-06-29","Mon",0,0,null,null,null,null,null,null,null,null,null,null,null,null,null,null,null,null,null,null,null,null,null,null,null,null,null,null,null,null,null,null,null,null,null,null,null,null,null,null,null,11,null,null,null,null,null,null,null,null,null,null,null,null,null,null,null,null,null,null,null,null,null,0,null,null,null,null,null,0,null,null,0]
[80,{"$f":"B102+2","v":"2020-07-01"},"Wed",null,null,null,null,null,0,null,null,null,null,null,null,null,null,null,null,null,null,null,null,null,null,null,null,null,null,null,null,null,null,null,null,null,null,null,null,null,"2020-07-01","Wed",0,0,null,null,null,null,null,null,null,null,null,null,null,null,null,null,null,null,null,null,null,null,null,null,null,null,null,null,null,null,null,null,null,null,null,null,null,null,null,null,null,12,null,null,null,null,null,null,null,null,null,null,null,null,null,null,null,null,null,null,null,null,null,0,null,null,null,null,null,0,null,null,0]
[81,{"$f":"B103+2","v":"2020-07-03"},"Fri",null,null,null,null,null,0,null,null,null,null,null,null,null,null,null,null,null,null,null,null,null,null,null,null,null,null,null,null,null,null,null,null,null,null,null,null,null,"2020-07-03","Fri",0,0,null,null,null,null,null,null,null,null,null,null,null,null,null,null,null,null,null,null,null,null,null,null,null,null,null,null,null,null,null,null,null,null,null,null,null,null,null,null,null,13,null,null,null,null,null,null,null,null,null,null,null,null,null,null,null,null,null,null,null,null,null,0,null,null,null,null,null,0,null,null,0]
[82,{"$f":"B104+3","v":"2020-07-06"},"Mon",null,null,null,null,null,0,null,null,null,null,null,null,null,null,null,null,null,null,null,null,null,null,null,null,null,null,null,null,null,null,null,null,null,null,null,null,null,"2020-07-06","Mon",0,0,null,null,null,null,null,null,null,null,null,null,null,null,null,null,null,null,null,null,null,null,null,null,null,null,null,null,null,null,null,null,null,null,null,null,null,null,null,null,null,14,null,null,null,null,null,null,null,null,null,null,null,null,null,null,null,null,null,null,null,null,null,0,null,null,null,null,null,0,null,null,0]
[83,{"$f":"B105+2","v":"2020-07-08"},"Wed",null,null,null,null,null,0,null,null,null,null,null,null,null,null,null,null,null,null,null,null,null,null,null,null,null,null,null,null,null,null,null,null,null,null,null,null,null,"2020-07-08","Wed",0,0,null,null,null,null,null,null,null,null,null,null,null,null,null,null,null,null,null,null,null,null,null,null,null,null,null,null,null,null,null,null,null,null,null,null,null,null,null,null,null,15,null,null,null,null,null,null,null,null,null,null,null,null,null,null,null,null,null,null,null,null,null,0,null,null,null,null,null,0,null,null,0]
[84,{"$f":"B106+2","v":"2020-07-10"},"Fri",null,null,null,null,null,0,null,null,null,null,null,null,null,null,null,null,null,null,null,null,null,null,null,null,null,null,null,null,null,null,null,null,null,null,null,null,null,"2020-07-10","Fri",0,0,null,null,null,null,null,null,null,null,null,null,null,null,null,null,null,null,null,null,null,null,null,null,null,null,null,null,null,null,null,null,null,null,null,null,null,null,null,null,null,16,null,null,null,null,null,null,null,null,null,null,null,null,null,null,null,null,null,null,null,null,null,0,null,null,null,null,null,0,null,null,0]
[85,{"$f":"B107+3","v":"2020-07-13"},"Mon",null,null,null,null,null,0,null,null,null,null,null,null,null,null,null,null,null,null,null,null,null,null,null,null,null,null,null,null,null,null,null,null,null,null,null,null,null,"2020-07-13","Mon",0,0,null,null,null,null,null,null,null,null,null,null,null,null,null,null,null,null,null,null,null,null,null,null,null,null,null,null,null,null,null,null,null,null,null,null,null,null,null,null,null,17,null,null,null,null,null,null,null,null,null,null,null,null,null,null,null,null,null,null,null,null,null,0,null,null,null,null,null,0,null,null,0]
[86,{"$f":"B108+2","v":"2020-07-15"},"Wed",null,null,null,null,null,0,null,null,null,null,null,null,null,null,null,null,null,null,null,null,null,null,null,null,null,null,null,null,null,null,null,null,null,null,null,null,null,"2020-07-15","Wed",0,0,null,null,null,null,null,null,null,null,null,null,null,null,null,null,null,null,null,null,null,null,null,null,null,null,null,null,null,null,null,null,null,null,null,null,null,null,null,null,null,18,null,null,null,null,null,null,null,null,null,null,null,null,null,null,null,null,null,null,null,null,null,0,null,null,null,null,null,0,null,null,0]
[87,{"$f":"B109+2","v":"2020-07-17"},"Fri",null,null,null,null,null,0,null,null,null,null,null,null,null,null,null,null,null,null,null,null,null,null,null,null,null,null,null,null,null,null,null,null,null,null,null,null,null,"2020-07-17","Fri",0,0,null,null,null,null,null,null,null,null,null,null,null,null,null,null,null,null,null,null,null,null,null,null,null,null,null,null,null,null,null,null,null,null,null,null,null,null,null,null,null,19,null,null,null,null,null,null,null,null,null,null,null,null,null,null,null,null,null,null,null,null,null,0,null,null,null,null,null,0,null,null,0]
[88,{"$f":"B110+3","v":"2020-07-20"},"Mon",null,null,null,null,null,0,null,null,null,null,null,null,null,null,null,null,null,null,null,null,null,null,null,null,null,null,null,null,null,null,null,null,null,null,null,null,null,"2020-07-20","Mon",0,0,null,null,null,null,null,null,null,null,null,null,null,null,null,null,null,null,null,null,null,null,null,null,null,null,null,null,null,null,null,null,null,null,null,null,null,null,null,null,null,20,null,null,null,null,null,null,null,null,null,null,null,null,null,null,null,null,null,null,null,null,null,0,null,null,null,null,null,0,null,null,0]
[89,{"$f":"B111+2","v":"2020-07-22"},"Wed",null,null,null,null,null,0,null,null,null,null,null,null,null,null,null,null,null,null,null,null,null,null,null,null,null,null,null,null,null,null,null,null,null,null,null,null,null,"2020-07-22","Wed",0,0,null,null,null,null,null,null,null,null,null,null,null,null,null,null,null,null,null,null,null,null,null,null,null,null,null,null,null,null,null,null,null,null,null,null,null,null,null,null,null,21,null,null,null,null,null,null,null,null,null,null,null,null,null,null,null,null,null,null,null,null,null,0,null,null,null,null,null,0,null,null,0]
[90,{"$f":"B112+2","v":"2020-07-24"},"Fri",null,null,null,null,null,0,null,null,null,null,null,null,null,null,null,null,null,null,null,null,null,null,null,null,null,null,null,null,null,null,null,null,null,null,null,null,null,"2020-07-24","Fri",0,0,null,null,null,null,null,null,null,null,null,null,null,null,null,null,null,null,null,null,null,null,null,null,null,null,null,null,null,null,null,null,null,null,null,null,null,null,null,null,1,22,null,null,null,null,null,null,null,null,null,null,null,null,null,null,null,null,null,null,null,null,null,0,null,null,null,null,null,0,null,null,0]
[91,{"$f":"B113+3","v":"2020-07-27"},"Mon",null,null,null,null,null,0,null,null,null,null,null,null,null,null,null,null,null,null,null,null,null,null,null,null,null,null,null,null,null,null,null,null,null,null,null,null,null,"2020-07-27","Mon",0,0,null,null,null,null,null,null,null,null,null,null,null,null,null,null,null,null,null,null,null,null,null,null,null,null,null,null,null,null,null,null,null,null,null,null,null,null,null,null,2,23,null,null,null,null,null,null,null,null,null,null,null,null,null,null,null,null,null,null,null,null,null,0,null,null,null,null,null,0,null,null,0]
[92,{"$f":"B114+2","v":"2020-07-29"},"Wed",null,null,null,null,null,0,null,null,null,null,null,null,null,null,null,null,null,null,null,null,null,null,null,null,null,null,null,null,null,null,null,null,null,null,null,null,null,"2020-07-29","Wed",0,0,null,null,null,null,null,null,null,null,null,null,null,null,null,null,null,null,null,null,null,null,null,null,null,null,null,null,null,null,null,null,null,null,null,null,null,null,null,null,null,24,null,null,null,null,null,null,null,null,null,null,null,null,null,null,null,null,null,null,null,null,null,0,null,null,null,null,null,0,null,null,0]
[93,{"$f":"B115+2","v":"2020-07-31"},"Fri",null,null,null,null,null,0,null,null,null,null,null,null,null,null,null,null,null,null,null,null,null,null,null,null,null,null,null,null,null,null,null,null,null,null,null,null,null,"2020-07-31","Fri",0,0,null,null,null,null,null,null,null,null,null,null,null,null,null,null,null,null,null,null,null,null,null,null,null,null,null,null,null,null,null,null,null,null,null,null,null,null,null,null,null,25,null,null,null,null,null,null,null,null,null,null,null,null,null,null,null,null,null,null,null,null,null,0,null,null,null,null,null,0,null,null,0]
[94,{"$f":"B116+3","v":"2020-08-03"},"Mon",null,null,null,null,null,0,null,null,null,null,null,null,null,null,null,null,null,null,null,null,null,null,null,null,null,null,null,null,null,null,null,null,null,null,null,null,null,"2020-08-03","Mon",0,0,null,null,null,null,null,null,null,null,null,null,null,null,null,null,null,null,null,null,null,null,null,null,null,null,null,null,null,null,null,null,null,null,null,null,null,null,null,null,null,26,null,null,null,null,null,null,null,null,null,null,null,null,null,null,null,null,null,null,null,null,null,0,null,null,null,null,null,0,null,null,0]
[95,{"$f":"B117+2","v":"2020-08-05"},"Wed",null,null,null,null,null,0,null,null,null,null,null,null,null,null,null,null,null,null,null,null,null,null,null,null,null,null,null,null,null,null,null,null,null,null,null,null,null,"2020-08-05","Wed",0,0,null,null,null,null,null,null,null,null,null,null,null,null,null,null,null,null,null,null,null,null,null,null,null,null,null,null,null,null,null,null,null,null,null,null,null,null,null,null,null,27,null,null,null,null,null,null,null,null,null,null,null,null,null,null,null,null,null,null,null,null,null,0,null,null,null,null,null,0,null,null,0]
[96,{"$f":"B118+2","v":"2020-08-07"},"Fri",null,null,null,null,null,0,null,null,null,null,null,null,null,null,null,null,null,null,null,null,null,null,null,null,null,null,null,null,null,null,null,null,null,null,null,null,null,"2020-08-07","Fri",0,0,null,null,null,null,null,null,null,null,null,null,null,null,null,null,null,null,null,null,null,null,null,null,null,null,null,null,null,null,null,null,null,null,null,null,null,null,null,null,null,null,null,null,null,null,null,null,null,null,null,null,null,null,null,null,null,null,null,null,null,null,null,0,null,null,null,null,null,0,null,null,0]
[97,{"$f":"B119+3","v":"2020-08-10"},"Mon",null,null,null,null,null,{"$f":"SUM(J120:AL120)","v":0},null,null,null,null,null,null,null,null,null,null,null,null,null,null,null,null,null,null,null,null,null,null,null,null,null,null,null,null,null,null,null,{"$f":"B120","v":"2020-08-10"},{"$f":"C120","v":"Mon"},{"$f":"+D120","v":0},{"$f":"I120","v":0},null,null,null,null,null,null,null,null,null,null,null,null,null,null,null,null,null,null,null,null,null,null,null,null,null,null,null,null,null,null,null,null,null,null,null,null,null,null,null,null,null,null,null,null,null,null,null,null,null,null,null,null,null,null,null,null,null,null,null,null,null,0,null,null,null,null,null,0,null,null,0]
[98,{"$f":"B120+2","v":"2020-08-12"},"Wed",null,null,null,null,null,0,null,null,null,null,null,null,null,null,null,null,null,null,null,null,null,null,null,null,null,null,null,null,null,null,null,null,null,null,null,null,null,"2020-08-12","Wed",0,0,null,null,null,null,null,null,null,null,null,null,null,null,null,null,null,null,null,null,null,null,null,null,null,null,null,null,null,null,null,null,null,null,null,null,null,null,null,null,null,null,null,null,null,null,null,null,null,null,null,null,null,null,null,null,null,null,null,null,null,null,null,0,null,null,null,null,null,0,null,null,0]
[99,{"$f":"B121+2","v":"2020-08-14"},"Fri",null,null,null,null,null,0,null,null,null,null,null,null,null,null,null,null,null,null,null,null,null,null,null,null,null,null,null,null,null,null,null,null,null,null,null,null,null,"2020-08-14","Fri",0,0,null,null,null,null,null,null,null,null,null,null,null,null,null,null,null,null,null,null,null,null,null,null,null,null,null,null,null,null,null,null,null,null,null,null,null,null,null,null,null,null,null,null,null,null,null,null,null,null,null,null,null,null,null,null,null,null,null,null,null,null,null,0,null,null,null,null,null,0,null,null,0]
[100,{"$f":"B122+3","v":"2020-08-17"},"Mon",null,null,null,null,null,0,null,null,null,null,null,null,null,null,null,null,null,null,null,null,null,null,null,null,null,null,null,null,null,null,null,null,null,null,null,null,null,"2020-08-17","Mon",0,0,null,null,null,null,null,null,null,null,null,null,null,null,null,null,null,null,null,null,null,null,null,null,null,null,null,null,null,null,null,null,null,null,null,null,null,null,null,null,null,null,null,null,null,null,null,null,null,null,null,null,null,null,null,null,null,null,null,null,null,null,null,0,null,null,null,null,null,0,null,null,0]
[101,{"$f":"B123+2","v":"2020-08-19"},"Wed",null,null,null,null,null,0,null,null,null,null,null,null,null,null,null,null,null,null,null,null,null,null,null,null,null,null,null,null,null,null,null,null,null,null,null,null,null,"2020-08-19","Wed",0,0,null,null,null,null,null,null,null,null,null,null,null,null,null,null,null,null,null,null,null,null,null,null,null,null,null,null,null,null,null,null,null,null,null,null,null,null,null,null,null,null,null,null,null,null,null,null,null,null,null,null,null,null,null,null,null,null,null,null,null,null,null,0,null,null,null,null,null,0,null,null,0]
[102,{"$f":"B124+2","v":"2020-08-21"},"Fri",null,null,null,null,null,0,null,null,null,null,null,null,null,null,null,null,null,null,null,null,null,null,null,null,null,null,null,null,null,null,null,null,null,null,null,null,null,"2020-08-21","Fri",0,0,null,null,null,null,null,null,null,null,null,null,null,null,null,null,null,null,null,null,null,null,null,null,null,null,null,null,null,null,null,null,null,null,null,null,null,null,null,null,null,null,null,null,null,null,null,null,null,null,null,null,null,null,null,null,null,null,null,null,null,null,null,0,null,null,null,null,null,0,null,null,0]
[103,{"$f":"B125+3","v":"2020-08-24"},"Mon",null,null,null,null,null,0,null,null,null,null,null,null,null,null,null,null,null,null,null,null,null,null,null,null,null,null,null,null,null,null,null,null,null,null,null,null,null,"2020-08-24","Mon",0,{"$f":"+I126","v":0},null,null,null,null,null,null,null,null,null,null,null,null,null,null,null,null,null,null,null,null,null,null,null,null,null,null,null,null,null,null,null,null,null,null,null,null,null,null,null,null,null,null,null,null,null,null,null,null,null,null,null,null,null,null,null,null,null,null,null,null,null,0,null,null,null,null,null,0,null,null,0]
[104,{"$f":"B126+2","v":"2020-08-26"},"Wed",null,null,null,null,null,0,null,null,null,null,null,null,null,null,null,null,null,null,null,null,null,null,null,null,null,null,null,null,null,null,null,null,null,null,null,null,null,"2020-08-26","Wed",0,{"$f":"+I127","v":0},null,null,null,null,null,null,null,null,null,null,null,null,null,null,null,null,null,null,null,null,null,null,null,null,null,null,null,null,null,null,null,null,null,null,null,null,null,null,null,null,null,null,null,null,null,null,null,null,null,null,null,null,null,null,null,null,null,null,null,null,null,0,null,null,null,null,null,0,null,null,0]
[105,{"$f":"B127+2","v":"2020-08-28"},"Fri",null,null,null,null,null,0,null,null,null,null,null,null,null,null,null,null,null,null,null,null,null,null,null,null,null,null,null,null,null,null,null,null,null,null,null,null,null,"2020-08-28","Fri",0,{"$f":"+I128","v":0},null,null,null,null,null,null,null,null,null,null,null,null,null,null,null,null,null,null,null,null,null,null,null,null,null,null,null,null,null,null,null,null,null,null,null,null,null,null,null,null,null,null,null,null,null,null,null,null,null,null,null,null,null,null,null,null,null,null,null,null,null,0,null,null,null,null,null,0,null,null,0]
[106,{"$f":"B128+3","v":"2020-08-31"},"Mon",null,null,null,null,null,0,null,null,null,null,null,null,null,null,null,null,null,null,null,null,null,null,null,null,null,null,null,null,null,null,null,null,null,null,null,null,null,"2020-08-31","Mon",0,{"$f":"I129","v":0},null,null,null,null,null,null,null,null,null,null,null,null,null,null,null,null,null,null,null,null,null,null,null,null,null,null,null,null,null,null,null,null,null,null,null,null,null,null,null,null,null,null,null,null,null,null,null,null,null,null,null,null,null,null,null,null,null,null,null,null,null,0,null,null,null,null,null,0,null,null,0]
[107,{"$f":"B129+2","v":"2020-09-02"},"Wed",null,null,null,null,null,0,null,null,null,null,null,null,null,null,null,null,null,null,null,null,null,null,null,null,null,null,null,null,null,null,null,null,null,null,null,null,null,"2020-09-02","Wed",0,0,null,null,null,null,null,null,null,null,null,null,null,null,null,null,null,null,null,null,null,null,null,null,null,null,null,null,null,null,null,null,null,null,null,null,null,null,null,null,null,null,null,null,null,null,null,null,null,null,null,null,null,null,null,null,null,null,null,null,null,null,null,0,null,null,null,null,null,0,null,null,0]
[108,{"$f":"B130+2","v":"2020-09-04"},"Fri",null,null,null,null,null,0,null,null,null,null,null,null,null,null,null,null,null,null,null,null,null,null,null,null,null,null,null,null,null,null,null,null,null,null,null,null,null,"2020-09-04","Fri",0,0,null,null,null,null,null,null,null,null,null,null,null,null,null,null,null,null,null,null,null,null,null,null,null,null,null,null,null,null,null,null,null,null,null,null,null,null,null,null,null,null,null,null,null,null,null,null,null,null,null,null,null,null,null,null,null,null,null,null,null,null,null,0,null,null,null,null,null,0,null,null,0]
[109,{"$f":"B131+3","v":"2020-09-07"},"Mon",null,null,null,null,null,0,null,null,null,null,null,null,null,null,null,null,null,null,null,null,null,null,null,null,null,null,null,null,null,null,null,null,null,null,null,null,null,"2020-09-07","Mon",0,0,null,null,null,null,null,null,null,null,null,null,null,null,null,null,null,null,null,null,null,null,null,null,null,null,null,null,null,null,null,null,null,null,null,null,null,null,null,null,null,null,null,null,null,null,null,null,null,null,null,null,null,null,null,null,null,null,null,null,null,null,null,0,null,null,null,null,null,0,null,null,0]
[110,{"$f":"B132+2","v":"2020-09-09"},"Wed",null,null,null,null,null,0,null,null,null,null,null,null,null,null,null,null,null,null,null,null,null,null,null,null,null,null,null,null,null,null,null,null,null,null,null,null,null,"2020-09-09","Wed",0,0,null,null,null,null,null,null,null,null,null,null,null,null,null,null,null,null,null,null,null,null,null,null,null,null,null,null,null,null,null,null,null,null,null,null,null,null,null,null,null,null,null,null,null,null,null,null,null,null,null,null,null,null,null,null,null,null,null,null,null,null,null,0,null,null,null,null,null,0,null,null,0]
[111,{"$f":"B133+2","v":"2020-09-11"},"Fri",null,null,null,null,null,0,null,null,null,null,null,null,null,null,null,null,null,null,null,null,null,null,null,null,null,null,null,null,null,null,null,null,null,null,null,null,null,"2020-09-11","Fri",0,0,null,null,null,null,null,null,null,null,null,null,null,null,null,null,null,null,null,null,null,null,null,null,null,null,null,null,null,null,null,null,null,null,null,null,null,null,null,null,null,null,null,null,null,null,null,null,null,null,null,null,null,null,null,null,null,null,null,null,null,null,null,0,null,null,null,null,null,0,null,null,0]
[112,{"$f":"B134+3","v":"2020-09-14"},"Mon",null,null,null,null,null,0,null,null,null,null,null,null,null,null,null,null,null,null,null,null,null,null,null,null,null,null,null,null,null,null,null,null,null,null,null,null,null,"2020-09-14","Mon",0,0,null,null,null,null,null,null,null,null,null,null,null,null,null,null,null,null,null,null,null,null,null,null,null,null,null,null,null,null,null,null,null,null,null,null,null,null,null,null,null,null,null,null,null,null,null,null,null,null,null,null,null,null,null,null,null,null,null,null,null,null,null,0,null,null,null,null,null,0,null,null,0]
[113,{"$f":"B135+2","v":"2020-09-16"},"Wed",null,null,null,null,null,0,null,null,null,null,null,null,null,null,null,null,null,null,null,null,null,null,null,null,null,null,null,null,null,null,null,null,null,null,null,null,null,"2020-09-16","Wed",0,0,null,null,null,null,null,null,null,null,null,null,null,null,null,null,null,null,null,null,null,null,null,null,null,null,null,null,null,null,null,null,null,null,null,null,null,null,null,null,null,null,null,null,null,null,null,null,null,null,null,null,null,null,null,null,null,null,null,null,null,null,null,0,null,null,null,null,null,0,null,null,0]
[114,{"$f":"B136+2","v":"2020-09-18"},"Fri",null,null,null,null,null,0,null,null,null,null,null,null,null,null,null,null,null,null,null,null,null,null,null,null,null,null,null,null,null,null,null,null,null,null,null,null,null,"2020-09-18","Fri",0,0,null,null,null,null,null,null,null,null,null,null,null,null,null,null,null,null,null,null,null,null,null,null,null,null,null,null,null,null,null,null,null,null,null,null,null,null,null,null,null,null,null,null,null,null,null,null,null,null,null,null,null,null,null,null,null,null,null,null,null,null,null,0,null,null,null,null,null,0,null,null,0]
[115,{"$f":"B137+3","v":"2020-09-21"},"Mon",null,null,null,null,null,0,null,null,null,null,null,null,null,null,null,null,null,null,null,null,null,null,null,null,null,null,null,null,null,null,null,null,null,null,null,null,null,"2020-09-21","Mon",0,0,null,null,null,null,null,null,null,null,null,null,null,null,null,null,null,null,null,null,null,null,null,null,null,null,null,null,null,null,null,null,null,null,null,null,null,null,null,null,null,null,null,null,null,null,null,null,null,null,null,null,null,null,null,null,null,null,null,null,null,null,null,0,null,null,null,null,null,1,null,null,0]
[116,{"$f":"B138+2","v":"2020-09-23"},"Wed",null,null,null,null,null,0,null,null,null,null,null,null,null,null,null,null,null,null,null,null,null,null,null,null,null,null,null,null,null,null,null,null,null,null,null,null,null,"2020-09-23","Wed",0,0,null,null,null,null,null,null,null,null,null,null,null,null,null,null,null,null,null,null,null,null,null,null,null,null,null,null,null,null,null,null,null,null,null,null,null,null,null,null,null,null,null,null,null,null,null,null,null,null,null,null,null,null,null,null,null,null,null,null,null,null,null,0,null,null,null,null,null,0,null,null,0]
[117,{"$f":"B139+2","v":"2020-09-25"},"Fri",null,null,null,null,null,0,null,null,null,null,null,null,null,null,null,null,null,null,null,null,null,null,null,null,null,null,null,null,null,null,null,null,null,null,null,null,null,"2020-09-25","Fri",0,0,null,null,null,null,null,null,null,null,null,null,null,null,null,null,null,null,null,null,null,null,null,null,null,null,null,null,null,null,null,null,null,null,null,null,null,null,null,null,null,null,null,null,null,null,null,null,null,null,null,null,null,null,null,null,null,null,null,null,null,null,null,0,null,null,null,null,null,0,null,null,0]
[118,{"$f":"B140+3","v":"2020-09-28"},"Mon",null,null,null,null,null,0,null,null,null,null,null,null,null,null,null,null,null,null,null,null,null,null,null,null,null,null,null,null,null,null,null,null,null,null,null,null,null,"2020-09-28","Mon",0,{"$f":"+I141","v":0},null,null,null,null,null,null,null,null,null,null,null,null,null,null,null,null,null,null,null,null,null,null,null,null,null,null,null,null,null,null,null,null,null,null,null,null,null,null,null,null,null,null,null,null,null,null,null,null,null,null,null,null,null,null,null,null,null,null,null,null,null,null,null,null,null,null,null,0]
[119,{"$f":"B141+2","v":"2020-09-30"},"Wed",null,null,null,null,null,0,null,null,null,null,null,null,null,null,null,null,null,null,null,null,null,null,null,null,null,null,null,null,null,null,null,null,null,null,null,null,null,"2020-09-30","Wed",0,{"$f":"+I142","v":0},null,null,null,null,null,null,null,null,null,null,null,null,null,null,null,null,null,null,null,null,null,null,null,null,null,null,null,null,null,null,null,null,null,null,null,null,null,null,null,null,null,null,null,null,null,null,null,null,null,null,null,null,null,null,null,null,null,null,null,null,null,null,null,null,null,null,null,1]
[120,{"$f":"B142+2","v":"2020-10-02"},"Fri",null,null,null,null,null,0,null,null,null,null,null,null,null,null,null,null,null,null,null,null,null,null,null,null,null,null,null,null,null,null,null,null,null,null,null,null,null,"2020-10-02","Fri",0,{"$f":"+I143","v":0},null,null,null,null,null,null,null,null,null,null,null,null,null,null,null,null,null,null,null,null,null,null,null,null,null,null,null,null,null,null,null,null,null,null,null,null,null,null,null,null,null,null,null,null,null,null,null,null,null,null,null,null,null,null,null,null,null,null,null,null,null,null,null,null,null,null,null,0]
[121,{"$f":"B143+3","v":"2020-10-05"},"Mon",null,null,null,null,null,0,null,null,null,null,null,null,null,null,null,null,null,null,null,null,null,null,null,null,null,null,null,null,null,null,null,null,null,null,null,null,null,"2020-10-05","Mon",0,{"$f":"I144","v":0},null,null,null,null,null,null,null,null,null,null,null,null,null,null,null,null,null,null,null,null,null,null,null,null,null,null,null,null,null,null,null,null,null,null,null,null,null,null,null,null,null,null,null,null,null,null,null,null,null,null,null,null,null,null,null,null,null,null,null,null,null,null,null,null,null,null,null,0]
[122,{"$f":"B144+2","v":"2020-10-07"},"Wed",null,null,null,null,null,0,null,null,null,null,null,null,null,null,null,null,null,null,null,null,null,null,null,null,null,null,null,null,null,null,null,null,null,null,null,null,null,"2020-10-07","Wed",0,0,null,null,null,null,null,null,null,null,null,null,null,null,null,null,null,null,null,null,null,null,null,null,null,null,null,null,null,null,null,null,null,null,null,null,null,null,null,null,null,null,null,null,null,null,null,null,null,null,null,null,null,null,null,null,null,null,null,null,null,null,null,null,null,null,null,null,null,1]
[123,{"$f":"B145+2","v":"2020-10-09"},"Fri",null,null,null,null,null,0,null,null,null,null,null,null,null,null,null,null,null,null,null,null,null,null,null,null,null,null,null,null,null,null,null,null,null,null,null,null,null,"2020-10-09","Fri",0,0,null,null,null,null,null,null,null,null,null,null,null,null,null,null,null,null,null,null,null,null,null,null,null,null,null,null,null,null,null,null,null,null,null,null,null,null,null,null,null,null,null,null,null,null,null,null,null,null,null,null,null,null,null,null,null,null,null,null,null,null,null,null,null,null,null,null,null,0]
[124,{"$f":"B146+3","v":"2020-10-12"},"Mon",null,null,null,null,null,0,null,null,null,null,null,null,null,null,null,null,null,null,null,null,null,null,null,null,null,null,null,null,null,null,null,null,null,null,null,null,null,"2020-10-12","Mon",0,0,null,null,null,null,null,null,null,null,null,null,null,null,null,null,null,null,null,null,null,null,null,null,null,null,null,null,null,null,null,null,null,null,null,null,null,null,null,null,null,null,null,null,null,null,null,null,null,null,null,null,null,null,null,null,null,null,null,null,null,null,null,null,null,null,null,null,null,0]
[125,{"$f":"B147+2","v":"2020-10-14"},"Wed",null,null,null,null,null,0,null,null,null,null,null,null,null,null,null,null,null,null,null,null,null,null,null,null,null,null,null,null,null,null,null,null,null,null,null,null,null,"2020-10-14","Wed",0,0,null,null,null,null,null,null,null,null,null,null,null,null,null,null,null,null,null,null,null,null,null,null,null,null,null,null,null,null,null,null,null,null,null,null,null,null,null,null,null,null,null,null,null,null,null,null,null,null,null,null,null,null,null,null,null,null,null,null,null,null,null,null,null,null,null,null,null,0]
[126,{"$f":"B148+2","v":"2020-10-16"},"Fri",null,null,null,null,null,0,null,null,null,null,null,null,null,null,null,null,null,null,null,null,null,null,null,null,null,null,null,null,null,null,null,null,null,null,null,null,null,"2020-10-16","Fri",0,0,null,null,null,null,null,null,null,null,null,null,null,null,null,null,null,null,null,null,null,null,null,null,null,null,null,null,null,null,null,null,null,null,null,null,null,null,null,null,null,null,null,null,null,null,null,null,null,null,null,null,null,null,null,null,null,null,null,null,null,null,null,null,null,null,null,null,null,0]
[127,{"$f":"B149+3","v":"2020-10-19"},"Mon",null,null,null,null,null,0,null,null,null,null,null,null,null,null,null,null,null,null,null,null,null,null,null,null,null,null,null,null,null,null,null,null,null,null,null,null,null,"2020-10-19","Mon",0,0,null,null,null,null,null,null,null,null,null,null,null,null,null,null,null,null,null,null,null,null,null,null,null,null,null,null,null,null,null,null,null,null,null,null,null,null,null,null,null,null,null,null,null,null,null,null,null,null,null,null,null,null,null,null,null,null,null,null,null,null,null,null,null,null,null,null,null,0]
[128,{"$f":"B150+2","v":"2020-10-21"},"Wed",null,null,null,null,null,0,null,null,null,null,null,null,null,null,null,null,null,null,null,null,null,null,null,null,null,null,null,null,null,null,null,null,null,null,null,null,null,"2020-10-21","Wed",0,0,null,null,null,null,null,null,null,null,null,null,null,null,null,null,null,null,null,null,null,null,null,null,null,null,null,null,null,null,null,null,null,null,null,null,null,null,null,null,null,null,null,null,null,null,null,null,null,null,null,null,null,null,null,null,null,null,null,null,null,null,null,null,null,null,null,null,null,0]
[129,{"$f":"B151+2","v":"2020-10-23"},"Fri",null,null,null,null,null,{"$f":"SUM(J152:AL152)","v":0},null,null,null,null,null,null,null,null,null,null,null,null,null,null,null,null,null,null,null,null,null,null,null,null,null,null,null,null,null,null,null,{"$f":"B152","v":"2020-10-23"},{"$f":"C152","v":"Fri"},{"$f":"+D152","v":0},0,null,null,null,null,null,null,null,null,null,null,null,null,null,null,null,null,null,null,null,null,null,null,null,null,null,null,null,null,null,null,null,null,null,null,null,null,null,null,null,null,null,null,null,null,null,null,null,null,null,null,null,null,null,null,null,null,null,null,null,null,null,null,null,null,null,null,null,0]
[130,{"$f":"B152+3","v":"2020-10-26"},"Mon",null,null,null,null,null,0,null,null,null,null,null,null,null,null,null,null,null,null,null,null,null,null,null,null,null,null,null,null,null,null,null,null,null,null,null,null,null,"2020-10-26","Mon",0,0,null,null,null,null,null,null,null,null,null,null,null,null,null,null,null,null,null,null,null,null,null,null,null,null,null,null,null,null,null,null,null,null,null,null,null,null,null,null,null,null,null,null,null,null,null,null,null,null,null,null,null,null,null,null,null,null,null,null,null,null,null,null,null,null,null,null,null,1]
[131,{"$f":"B153+2","v":"2020-10-28"},"Wed",null,null,null,null,null,0,null,null,null,null,null,null,null,null,null,null,null,null,null,null,null,null,null,null,null,null,null,null,null,null,null,null,null,null,null,null,null,"2020-10-28","Wed",0,0,null,null,null,null,null,null,null,null,null,null,null,null,null,null,null,null,null,null,null,null,null,null,null,null,null,null,null,null,null,null,null,null,null,null,null,null,null,null,null,null,null,null,null,null,null,null,null,null,null,null,null,null,null,null,null,null,null,null,null,null,null,null,null,null,null,null,null,0]
[132,{"$f":"B154+2","v":"2020-10-30"},"Fri",null,null,null,null,null,0,null,null,null,null,null,null,null,null,null,null,null,null,null,null,null,null,null,null,null,null,null,null,null,null,null,null,null,null,null,null,null,"2020-10-30","Fri",0,0,null,null,null,null,null,null,null,null,null,null,null,null,null,null,null,null,null,null,null,null,null,null,null,null,null,null,null,null,null,null,null,null,null,null,null,null,null,null,null,null,null,null,null,null,null,null,null,null,null,null,null,null,null,null,null,null,null,null,null,null,null,null,null,null,null,null,null,0]
[133,{"$f":"B155+3","v":"2020-11-02"},"Mon",null,null,null,null,null,0,null,null,null,null,null,null,null,null,null,null,null,null,null,null,null,null,null,null,null,null,null,null,null,null,null,null,null,null,null,null,null,"2020-11-02","Mon",0,0,null,null,null,null,null,null,null,null,null,null,null,null,null,null,null,null,null,null,null,null,null,null,null,null,null,null,null,null,null,null,null,null,null,null,null,null,null,null,null,null,null,null,null,null,null,null,null,null,null,null,null,null,null,null,null,null,null,null,null,null,null,null,null,null,null,null,null,0]
[134,{"$f":"B156+2","v":"2020-11-04"},"Wed",null,null,null,null,null,0,null,null,null,null,null,null,null,null,null,null,null,null,null,null,null,null,null,null,null,null,null,null,null,null,null,null,null,null,null,null,null,"2020-11-04","Wed",0,0,null,null,null,null,null,null,null,null,null,null,null,null,null,null,null,null,null,null,null,null,null,null,null,null,null,null,null,null,null,null,null,null,null,null,null,null,null,null,null,null,null,null,null,null,null,null,null,null,null,null,null,null,null,null,null,null,null,null,null,null,null,null,null,null,null,null,null,1]
[135,{"$f":"B157+2","v":"2020-11-06"},"Fri",null,null,null,null,null,0,null,null,null,null,null,null,null,null,null,null,null,null,null,null,null,null,null,null,null,null,null,null,null,null,null,null,null,null,null,null,null,"2020-11-06","Fri",0,0,null,null,null,null,null,null,null,null,null,null,null,null,null,null,null,null,null,null,null,null,null,null,null,null,null,null,null,null,null,null,null,null,null,null,null,null,null,null,null,null,null,null,null,null,null,null,null,null,null,null,null,null,null,null,null,null,null,null,null,null,null,null,null,null,null,null,null,0]
[136,{"$f":"B158+3","v":"2020-11-09"},"Mon",null,null,null,null,null,0,null,null,null,null,null,null,null,null,null,null,null,null,null,null,null,null,null,null,null,null,null,null,null,null,null,null,null,null,null,null,null,"2020-11-09","Mon",0,0,null,null,null,null,null,null,null,null,null,null,null,null,null,null,null,null,null,null,null,null,null,null,null,null,null,null,null,null,null,null,null,null,null,null,null,null,null,null,null,null,null,null,null,null,null,null,null,null,null,null,null,null,null,null,null,null,null,null,null,null,null,null,null,null,null,null,null,0]
[137,{"$f":"B159+2","v":"2020-11-11"},"Wed",null,null,null,null,null,0,null,null,null,null,null,null,null,null,null,null,null,null,null,null,null,null,null,null,null,null,null,null,null,null,null,null,null,null,null,null,null,"2020-11-11","Wed",0,0,null,null,null,null,null,null,null,null,null,null,null,null,null,null,null,null,null,null,null,null,null,null,null,null,null,null,null,null,null,null,null,null,null,null,null,null,null,null,null,null,null,null,null,null,null,null,null,null,null,null,null,null,null,null,null,null,null,null,null,null,null,null,null,null,null,null,null,0]
[138,{"$f":"B160+2","v":"2020-11-13"},"Fri",null,null,null,null,null,0,null,null,null,null,null,null,null,null,null,null,null,null,null,null,null,null,null,null,null,null,null,null,null,null,null,null,null,null,null,null,null,"2020-11-13","Fri",0,0,null,null,null,null,null,null,null,null,null,null,null,null,null,null,null,null,null,null,null,null,null,null,null,null,null,null,null,null,null,null,null,null,null,null,null,null,null,null,null,null,null,null,null,null,null,null,null,null,null,null,null,null,null,null,null,null,null,null,null,null,null,null,null,null,null,null,null,0]
[139,{"$f":"B161+3","v":"2020-11-16"},"Mon",null,null,null,null,null,0,null,null,null,null,null,null,null,null,null,null,null,null,null,null,null,null,null,null,null,null,null,null,null,null,null,null,null,null,null,null,null,"2020-11-16","Mon",0,0,null,null,null,null,null,null,null,null,null,null,null,null,null,null,null,null,null,null,null,null,null,null,null,null,null,null,null,null,null,null,null,null,null,null,null,null,null,null,null,null,null,null,null,null,null,null,null,null,null,null,null,null,null,null,null,null,null,null,null,null,null,null,null,null,null,null,null,0]
[140,{"$f":"B162+2","v":"2020-11-18"},"Wed",null,null,null,null,null,0,null,null,null,null,null,null,null,null,null,null,null,null,null,null,null,null,null,null,null,null,null,null,null,null,null,null,null,null,null,null,null,"2020-11-18","Wed",0,0,null,null,null,null,null,null,null,null,null,null,null,null,null,null,null,null,null,null,null,null,null,null,null,null,null,null,null,null,null,null,null,null,null,null,null,null,null,null,null,null,null,null,null,null,null,null,null,null,null,null,null,null,null,null,null,null,null,null,null,null,null,null,null,null,null,null,null,0]
[141,{"$f":"B163+2","v":"2020-11-20"},"Fri",null,null,null,null,null,0,null,null,null,null,null,null,null,null,null,null,null,null,null,null,null,null,null,null,null,null,null,null,null,null,null,null,null,null,null,null,null,"2020-11-20","Fri",0,0,null,null,null,null,null,null,null,null,null,null,null,null,null,null,null,null,null,null,null,null,null,null,null,null,null,null,null,null,null,null,null,null,null,null,null,null,null,null,null,null,null,null,null,null,null,null,null,null,null,null,null,null,null,null,null,null,null,null,null,null,null,null,null,null,null,null,null,0]
[142,{"$f":"B164+3","v":"2020-11-23"},"Mon",null,null,null,null,null,0,null,null,null,null,null,null,null,null,null,null,null,null,null,null,null,null,null,null,null,null,null,null,null,null,null,null,null,null,null,null,null,"2020-11-23","Mon",0,0,null,null,null,null,null,null,null,null,null,null,null,null,null,null,null,null,null,null,null,null,null,null,null,null,null,null,null,null,null,null,null,null,null,null,null,null,null,null,null,null,null,null,null,null,null,null,null,null,null,null,null,null,null,null,null,null,null,null,null,null,null,null,null,null,null,null,null,0]
[143,{"$f":"B165+2","v":"2020-11-25"},"Wed",null,null,null,null,null,0,null,null,null,null,null,null,null,null,null,null,null,null,null,null,null,null,null,null,null,null,null,null,null,null,null,null,null,null,null,null,null,"2020-11-25","Wed",0,0,null,null,null,null,null,null,null,null,null,null,null,null,null,null,null,null,null,null,null,null,null,null,null,null,null,null,null,null,null,null,null,null,null,null,null,null,null,null,null,null,null,null,null,null,null,null,null,null,null,null,null,null,null,null,null,null,null,null,null,null,null,null,null,null,null,null,null,0]
[144,{"$f":"B166+2","v":"2020-11-27"},"Fri",null,null,null,null,null,0,null,null,null,null,null,null,null,null,null,null,null,null,null,null,null,null,null,null,null,null,null,null,null,null,null,null,null,null,null,null,null,"2020-11-27","Fri",0,0,null,null,null,null,null,null,null,null,null,null,null,null,null,null,null,null,null,null,null,null,null,null,null,null,null,null,null,null,null,null,null,null,null,null,null,null,null,null,null,null,null,null,null,null,null,null,null,null,null,null,null,null,null,null,null,null,null,null,null,null,null,null,null,null,null,null,null,1]
[145,{"$f":"B167+3","v":"2020-11-30"},"Mon",null,null,null,null,null,0,null,null,null,null,null,null,null,null,null,null,null,null,null,null,null,null,null,null,null,null,null,null,null,null,null,null,null,null,null,null,null,"2020-11-30","Mon",0,0,null,null,null,null,null,null,null,null,null,null,null,null,null,null,null,null,null,null,null,null,null,null,null,null,null,null,null,null,null,null,null,null,null,null,null,null,null,null,null,null,null,null,null,null,null,null,null,null,null,null,null,null,null,null,null,null,null,null,null,null,null,null,null,null,null,null,null,0]
[146,{"$f":"B168+2","v":"2020-12-02"},"Wed",null,null,null,null,null,0,null,null,null,null,null,null,null,null,null,null,null,null,null,null,null,null,null,null,null,null,null,null,null,null,null,null,null,null,null,null,null,"2020-12-02","Wed",0,0,null,null,null,null,null,null,null,null,null,null,null,null,null,null,null,null,null,null,null,null,null,null,null,null,null,null,null,null,null,null,null,null,null,null,null,null,null,null,null,null,null,null,null,null,null,null,null,null,null,null,null,null,null,null,null,null,null,null,null,null,null,null,null,null,null,null,null,0]
[147,{"$f":"B169+2","v":"2020-12-04"},"Fri",null,null,null,null,null,0,null,null,null,null,null,null,null,null,null,null,null,null,null,null,null,null,null,null,null,null,null,null,null,null,null,null,null,null,null,null,null,"2020-12-04","Fri",0,0,null,null,null,null,null,null,null,null,null,null,null,null,null,null,null,null,null,null,null,null,null,null,null,null,null,null,null,null,null,null,null,null,null,null,null,null,null,null,null,null,null,null,null,null,null,null,null,null,null,null,null,null,null,null,null,null,null,null,null,null,null,null,null,null,null,null,null,1]
[148,{"$f":"B170+3","v":"2020-12-07"},"Mon",null,null,null,null,null,0,null,null,null,null,null,null,null,null,null,null,null,null,null,null,null,null,null,null,null,null,null,null,null,null,null,null,null,null,null,null,null,"2020-12-07","Mon",0,0,null,null,null,null,null,null,null,null,null,null,null,null,null,null,null,null,null,null,null,null,null,null,null,null,null,null,null,null,null,null,null,null,null,null,null,null,null,null,null,null,null,null,null,null,null,null,null,null,null,null,null,null,null,null,null,null,null,null,null,null,null,null,null,null,null,null,null,0]
[149,{"$f":"B171+2","v":"2020-12-09"},"Wed",null,null,null,null,null,0,null,null,null,null,null,null,null,null,null,null,null,null,null,null,null,null,null,null,null,null,null,null,null,null,null,null,null,null,null,null,null,"2020-12-09","Wed",0,0,null,null,null,null,null,null,null,null,null,null,null,null,null,null,null,null,null,null,null,null,null,null,null,null,null,null,null,null,null,null,null,null,null,null,null,null,null,null,null,null,null,null,null,null,null,null,null,null,null,null,null,null,null,null,null,null,null,null,null,null,null,null,null,null,null,null,null,0]
[150,{"$f":"B172+2","v":"2020-12-11"},"Fri",null,null,null,null,null,0,null,null,null,null,null,null,null,null,null,null,null,null,null,null,null,null,null,null,null,null,null,null,null,null,null,null,null,null,null,null,null,"2020-12-11","Fri",0,0,null,null,null,null,null,null,null,null,null,null,null,null,null,null,null,null,null,null,null,null,null,null,null,null,null,null,null,null,null,null,null,null,null,null,null,null,null,null,null,null,null,null,null,null,null,null,null,null,null,null,null,null,null,null,null,null,null,null,null,null,null,null,null,null,null,null,null,0]
[151,{"$f":"B173+3","v":"2020-12-14"},"Mon",null,null,null,null,null,0,null,null,null,null,null,null,null,null,null,null,null,null,null,null,null,null,null,null,null,null,null,null,null,null,null,null,null,null,null,null,null,"2020-12-14","Mon",0,{"$f":"+I174","v":0},null,null,null,null,null,null,null,null,null,null,null,null,null,null,null,null,null,null,null,null,null,null,null,null,null,null,null,null,null,null,null,null,null,null,null,null,null,null,null,null,null,null,null,null,null,null,null,null,null,null,null,null,null,null,null,null,null,null,null,null,null,null,null,null,null,null,null,0]
[152,{"$f":"B174+2","v":"2020-12-16"},"Wed",null,null,null,null,null,0,null,null,null,null,null,null,null,null,null,null,null,null,null,null,null,null,null,null,null,null,null,null,null,null,null,null,null,null,null,null,null,"2020-12-16","Wed",0,0,null,null,null,null,null,null,null,null,null,null,null,null,null,null,null,null,null,null,null,null,null,null,null,null,null,null,null,null,null,null,null,null,null,null,null,null,null,null,null,null,null,null,null,null,null,null,null,null,null,null,null,null,null,null,null,null,null,null,null,null,null,null,null,null,null,null,null,0]
[153,{"$f":"B175+2","v":"2020-12-18"},"Fri",null,null,null,null,null,0,null,null,null,null,null,null,null,null,null,null,null,null,null,null,null,null,null,null,null,null,null,null,null,null,null,null,null,null,null,null,null,"2020-12-18","Fri",0,0,null,null,null,null,null,null,null,null,null,null,null,null,null,null,null,null,null,null,null,null,null,null,null,null,null,null,null,null,null,null,null,null,null,null,null,null,null,null,null,null,null,null,null,null,null,null,null,null,null,null,null,null,null,null,null,null,null,null,null,null,null,null,null,null,null,null,null,0]
[154,{"$f":"B176+3","v":"2020-12-21"},"Mon",null,null,null,null,null,0,null,null,null,null,null,null,null,null,null,null,null,null,null,null,null,null,null,null,null,null,null,null,null,null,null,null,null,null,null,null,null,"2020-12-21","Mon",0,0]
[155,{"$f":"B177+2","v":"2020-12-23"},"Wed",null,null,null,null,null,0,null,null,null,null,null,null,null,null,null,null,null,null,null,null,null,null,null,null,null,null,null,null,null,null,null,null,null,null,null,null,null,"2020-12-23","Wed",0,0]
[156,{"$f":"B178+2","v":"2020-12-25"},"Fri",null,null,null,null,null,0,null,null,null,null,null,null,null,null,null,null,null,null,null,null,null,null,null,null,null,null,null,null,null,null,null,null,null,null,null,null,null,"2020-12-25","Fri",0,0]
[157,{"$f":"B179+3","v":"2020-12-28"},"Mon",null,null,null,null,null,0,null,null,null,null,null,null,null,null,null,null,null,null,null,null,null,null,null,null,null,null,null,null,null,null,null,null,null,null,null,null,null,"2020-12-28","Mon",0,0]
[158,{"$f":"B180+2","v":"2020-12-30"},"Wed",null,null,null,null,null,0,null,null,null,null,null,null,null,null,null,null,null,null,null,null,null,null,null,null,null,null,null,null,null,null,null,null,null,null,null,null,null,"2020-12-30","Wed",0,0]
[159,{"$f":"B181+2","v":"2021-01-01"},"Fri",null,null,null,null,null,0,null,null,null,null,null,null,null,null,null,null,null,null,null,null,null,null,null,null,null,null,null,null,null,null,null,null,null,null,null,null,null,"2021-01-01","Fri",0,0]
[]
[null,"Hamper ",null,null,null,null,null,null,"Avg"]
[null,"Craig",null,null,45,"Min",{"$f":"MIN(J185:AH185)","v":6.8},null,{"$f":"AVERAGE(J185:AH185)","v":12.079166666666667},{"$f":"MIN(J189:J407)","v":7.7},11.3,18.7,12.4,9.8000000000000007,9.3000000000000007,12,20.9,10.6,15,6.8,10.7,11.1,null,{"$f":"MIN(X189:X407)","v":15.3},11.6,9,12.5,15,16.5,12.8,10.6,8.6,9.9,11.8,7.2,17.100000000000001,{"$f":"MIN(AK189:AK407)","v":0},null,null,null,null,null,null,null,"Bob 16",null,null,null,null,null,null,null,null,null,null,null,null,null,null,null,null,null,null,null,null,null,null,null,null,null,null,null,null,null,null,null,null,null,null,null,null,null,null,null,null,null,null,null,null,null,null,null,null,null,null,null,null,null,null,null,null,null,null,null,null,{"$f":"MIN(DB189:DB414)","v":15.5},16.8,14.3,16.7,6.4,6.9,null,{"$f":"MIN(DI189:DI407)","v":7.2},null,{"$f":"MIN(DK189:DK407)","v":12.5},{"$f":"MIN(DL189:DL407)","v":9.9}]
[null,"BJ ",null,null,160,"Max",{"$f":"MAX(J186:AH186)","v":28.2},null,{"$f":"AVERAGE(J186:AH186)","v":20.958333333333329},{"$f":"MAX(J189:J407)","v":13.9},21.4,23.6,26.7,27.3,15.7,21.2,24.9,17.600000000000001,21.8,13.5,17.600000000000001,22.7,null,{"$f":"MAX(X189:X407)","v":23.5},22.7,16.100000000000001,21.9,19.2,28.2,20.399999999999999,17.7,23.1,20.9,21.4,22.9,21.5,{"$f":"MAX(AK189:AK407)","v":0},null,null,null,null,null,null,null,"Bill 16",null,null,null,null,null,null,null,null,null,null,null,null,null,null,null,null,null,null,null,null,null,null,null,null,null,null,null,null,null,null,null,null,null,null,null,null,null,null,null,null,null,null,null,null,null,null,null,null,null,null,null,null,null,null,null,null,null,null,null,null,{"$f":"MAX(DB189:DB414)","v":18.600000000000001},25.9,17.2,24.4,23.3,16,null,{"$f":"MAX(DI189:DI407)","v":11.4},null,{"$f":"MAX(DK189:DK407)","v":19.2},{"$f":"MAX(DL189:DL407)","v":17.399999999999999}]
[null,null,null,null,{"$f":"SUM(E185:E186)","v":205},"Avg",null,null,{"$f":"AVERAGE(J187:AH187)","v":16.522929838312031},{"$f":"AVERAGE(J189:J407)","v":10.406829268292684},15.229761904761899,21.285483870967749,19.044495412844036,19.112385321100916,12.583944954128439,16.796513761467882,23.152577319587632,14.766483516483518,18.230366492146601,9.733027522935787,13.978378378378387,19.043103448275868,null,{"$f":"AVERAGE(X189:X407)","v":19.677064220183496},17.373853211009177,12.590076335877864,17.081666666666663,17.280519480519473,21.923893805309742,16.744239631336399,13.196385542168684,15.933486238532122,15.988073394495405,15.397706422018343,11.075609756097593,18.000000000000004,{"$f":"AVERAGE(AK189:AK407)","v":{"$error":"#DIV/0!"}},null,null,null,null,null,null,null,"Craig 11",null,null,null,null,null,null,null,null,null,null,null,null,null,null,null,null,null,null,null,null,null,null,null,null,null,null,null,null,null,null,null,null,null,null,null,null,null,null,null,null,null,null,null,null,null,null,null,null,null,null,null,null,null,null,null,null,null,null,null,null,{"$f":"AVERAGE(DB189:DB414)","v":16.80380952380958},20.445360824742256,16.474545454545428,22.667567567567641,8.0567567567567426,14.136619718309829,null,{"$f":"AVERAGE(DI189:DI407)","v":10.138536585365896},null,{"$f":"AVERAGE(DK189:DK407)","v":15.029608938547451},{"$f":"AVERAGE(DL189:DL407)","v":13.544525547445257}]
[null,null,null,null,null,null,null,null,"avg","GerryA","BobE",null,"JJ","JimK","JohnK","BobL",null,"BobLx","WallisM","CraigM","DanM","TimMoore",null,"AlR","TimR","KenR",null,null,"JeffS","LarryS",null,"WW","BillW","MikeW","CarltonS",null,null,null,null,null,null,null,null,null,"Jesse 13 ",null,null,null,null,null,null,null,null,null,null,null,null,null,null,null,null,null,null,null,null,null,null,null,null,null,null,null,null,null,null,null,null,null,null,null,null,null,null,null,null,null,null,null,null,null,null,null,null,null,null,null,null,null,null,null,null,null,null,null,null,"GeneM","JoeC","Charlie","ColinM","JohnF",null,null,"CarltonS",null,"BillWeb","JohnT"]
[null,"HC Index",null,null,"2011-01-01",null,null,null,{"$f":"AVERAGE(J189:AH189)","v":14.754545454545456},null,null,null,15.7,13.2,12.3,18.5,null,null,null,9.9,null,null,null,17.100000000000001,18.899999999999999,null,null,null,null,15.5,null,16.600000000000001,11.5,13.1,null,null,null,null,null,null,null,null,null,null,"John 12",null,null,null,null,null,null,null,null,null,null,null,null,null,null,null,null,null,null,null,null,null,null,null,null,null,null,null,null,null,null,null,null,null,null,null,null,null,null,null,null,null,null,null,null,null,null,null,null,null,null,null,null,null,null,null,null,null,null,null,null,16.600000000000001,21.8]
[null,"HC Index",null,null,"2011-01-15",null,null,null,15.027272727272729,null,null,null,16.399999999999999,13.2,13.1,18.8,null,null,null,9.8000000000000007,null,null,null,17.100000000000001,19.5,null,null,null,null,15.5,null,15.7,12.3,13.9,null,null,null,null,null,null,null,null,null,null,"Jim 7",null,null,null,null,null,null,null,null,null,null,null,null,null,null,null,null,null,null,null,null,null,null,null,null,null,null,null,null,null,null,null,null,null,null,null,null,null,null,null,null,null,null,null,null,null,null,null,null,null,null,null,null,null,null,null,null,null,null,null,null,17.399999999999999,22.2]
[null,"HC Index",null,null,"2011-02-01",null,null,null,15.163636363636362,null,null,null,16.399999999999999,12.4,13.3,19.399999999999999,null,null,null,9.8000000000000007,null,null,null,18.5,18.899999999999999,null,null,null,null,15.5,null,15.6,13,14,null,null,null,null,null,null,null,null,null,null,"Mike 6",null,null,null,null,null,null,null,null,null,null,null,null,null,null,null,null,null,null,null,null,null,null,null,null,null,null,null,null,null,null,null,null,null,null,null,null,null,null,null,null,null,null,null,null,null,null,null,null,null,null,null,null,null,null,null,null,null,null,null,null,17.899999999999999,21.7]
[null,"HC Index",null,null,"2011-02-15",null,null,null,15.200000000000001,null,null,null,16.7,12.5,13.5,19.399999999999999,null,null,null,9.8000000000000007,null,null,null,18.5,18.7,null,null,null,null,15.5,null,15.8,13,13.8,null,null,null,null,null,null,null,null,null,null,"Al 6",null,null,null,null,null,null,null,null,null,null,null,null,null,null,null,null,null,null,null,null,null,null,null,null,null,null,null,null,null,null,null,null,null,null,null,null,null,null,null,null,null,null,null,null,null,null,null,null,null,null,null,null,null,null,null,null,null,null,null,null,17.899999999999999,22.7]
[null,"HC Index",null,null,"2011-03-01",null,null,null,15.036363636363637,null,null,null,17.5,12.7,12.9,18.3,null,null,null,9.6,null,null,null,19.5,18.5,null,null,null,null,15.5,null,14.4,12.7,13.8,null,null,null,null,null,null,null,null,null,null,null,null,null,null,null,null,null,null,null,null,null,null,null,null,null,null,null,null,null,null,null,null,null,null,null,null,null,null,null,null,null,null,null,null,null,null,null,null,null,null,null,null,null,null,null,null,null,null,null,null,null,null,null,null,null,null,null,null,null,null,null,18.600000000000001,21.3]
[null,"HC Index",null,null,"2011-03-15",null,null,null,15.136363636363638,null,null,null,16.5,13.1,13.6,17,null,null,null,9.6999999999999993,null,null,null,20.9,19.5,null,null,null,null,15.5,null,14.4,12.5,13.8,null,null,null,null,null,null,null,null,null,null,null,null,null,null,null,null,null,null,null,null,null,null,null,null,null,null,null,null,null,null,null,null,null,null,null,null,null,null,null,null,null,null,null,null,null,null,null,null,null,null,null,null,null,null,null,null,null,null,null,null,null,null,null,null,null,null,null,null,null,null,null,17.899999999999999,19]
[null,"HC Index",null,null,"2011-04-01",null,null,null,14.536363636363633,null,null,null,14.5,11.1,12.9,17,null,null,null,10.5,null,null,null,19.600000000000001,19.3,null,null,null,null,16.5,null,12.9,10.6,15,null,null,null,null,null,null,null,null,null,null,null,null,null,null,null,null,null,null,null,null,null,null,null,null,null,null,null,null,null,null,null,null,null,null,null,null,null,null,null,null,null,null,null,null,null,null,null,null,null,null,null,null,null,null,null,null,null,null,null,null,null,null,null,null,null,null,null,null,null,null,null,16.3,18.5]
[null,"HC Index",null,null,"2011-04-15",null,null,null,14.209090909090911,null,null,null,13.1,11,12.3,17,null,null,null,9.6,null,null,null,19.8,19.2,null,null,null,null,17.399999999999999,null,12.5,9.9,14.5,null,null,null,null,null,null,null,null,null,null,null,null,null,null,null,null,null,null,null,null,null,null,null,null,null,null,null,null,null,null,null,null,null,null,null,null,null,null,null,null,null,null,null,null,null,null,null,null,null,null,null,null,null,null,null,null,null,null,null,null,null,null,null,null,null,null,null,null,null,null,null,16.3,20.7]
[null,"HC Index",null,null,"2011-05-01",null,null,null,13.972727272727271,null,null,null,12.6,10.5,12.1,17.3,null,null,null,9.1999999999999993,null,null,null,19.600000000000001,19.100000000000001,null,null,null,null,17.3,null,11.9,10.7,13.4,null,null,null,null,null,null,null,null,null,null,null,null,null,null,null,null,null,null,null,null,null,null,null,null,null,null,null,null,null,null,null,null,null,null,null,null,null,null,null,null,null,null,null,null,null,null,null,null,null,null,null,null,null,null,null,null,null,null,null,null,null,null,null,null,null,null,null,null,null,null,null,16.100000000000001,20.5]
[null,"HC Index",null,null,"2011-05-15",null,null,null,13.827272727272726,null,null,null,14,10.9,12,15.9,null,null,null,8.1999999999999993,null,null,null,18.7,18.899999999999999,null,null,null,null,15.8,null,12.1,11.3,14.3,null,null,null,null,null,null,null,null,null,null,null,null,null,null,null,null,null,null,null,null,null,null,null,null,null,null,null,null,null,null,null,null,null,null,null,null,null,null,null,null,null,null,null,null,null,null,null,null,null,null,null,null,null,null,null,null,null,null,null,null,null,null,null,null,null,null,null,null,null,null,null,15.5,19.600000000000001]
[null,"HC Index",null,null,"2011-06-01",null,null,null,14.027272727272729,null,null,null,15,11.1,12.7,15.9,null,null,null,8.1999999999999993,null,null,null,18.8,18.899999999999999,null,null,null,null,15,null,12.2,12.2,14.3,null,null,null,null,null,null,null,null,null,null,null,null,null,null,null,null,null,null,null,null,null,null,null,null,null,null,null,null,null,null,null,null,null,null,null,null,null,null,null,null,null,null,null,null,null,null,null,null,null,null,null,null,null,null,null,null,null,null,null,null,null,null,null,null,null,null,null,null,null,null,null,16.399999999999999,19.8]
[null,"HC Index",null,null,"2011-06-15",null,null,null,13.681818181818182,null,null,null,14.8,10.4,12.3,14.8,null,null,null,8.3000000000000007,null,null,null,18.8,18.600000000000001,null,null,null,null,14.2,null,13.1,11.2,14,null,null,null,null,null,null,null,null,null,null,null,null,null,null,null,null,null,null,null,null,null,null,null,null,null,null,null,null,null,null,null,null,null,null,null,null,null,null,null,null,null,null,null,null,null,null,null,null,null,null,null,null,null,null,null,null,null,null,null,null,null,null,null,null,null,null,null,null,null,null,null,16.8,19.100000000000001]
[null,"HC Index",null,null,"2011-07-01",null,null,null,13.209090909090907,null,null,null,13.9,9.8000000000000007,10.8,14.6,null,null,null,7.5,null,null,null,19.2,18.600000000000001,null,null,null,null,14.1,null,13.2,10.9,12.7,null,null,null,null,null,null,null,null,null,null,null,null,null,null,null,null,null,null,null,null,null,null,null,null,null,null,null,null,null,null,null,null,null,null,null,null,null,null,null,null,null,null,null,null,null,null,null,null,null,null,null,null,null,null,null,null,null,null,null,null,null,null,null,null,null,null,null,null,null,null,null,16.8,17.3]
[null,"HC Index",null,null,"2011-11-01",null,null,null,13.408333333333331,10.8,null,null,15,12.4,9.3000000000000007,12.4,null,null,null,9.1999999999999993,null,null,null,16.399999999999999,18,null,null,null,null,16.100000000000001,null,13,13.1,15.2,7.2,null,null,null,null,null,null,null,null,null,null,null,null,null,null,null,null,null,null,null,null,null,null,null,null,null,null,null,null,null,null,null,null,null,null,null,null,null,null,null,null,null,null,null,null,null,null,null,null,null,null,null,null,null,null,null,null,null,null,null,null,null,null,null,null,null,null,null,null,null,null,16.899999999999999,20,null,null,null,null,null,7.2]
[null,"HC Index",null,null,"2011-11-15",null,null,null,13.616666666666667,10.6,null,null,15.1,11.6,9.6999999999999993,13.9,null,null,null,9.1,null,null,null,16.899999999999999,18,null,null,null,null,16.3,null,14.1,12.9,15.2,7.6,null,null,null,null,null,null,null,null,null,null,null,null,null,null,null,null,null,null,null,null,null,null,null,null,null,null,null,null,null,null,null,null,null,null,null,null,null,null,null,null,null,null,null,null,null,null,null,null,null,null,null,null,null,null,null,null,null,null,null,null,null,null,null,null,null,null,null,null,null,null,16.899999999999999,18.7,null,null,null,null,null,7.6]
[null,"HC Index",null,null,"2011-12-01",null,null,null,13.783333333333331,10.6,null,null,14.9,11.7,9.6999999999999993,15.2,null,null,null,9.5,null,null,null,17.2,17.8,null,null,null,null,16.3,null,15.1,12.7,14.7,7.6,null,null,null,null,null,null,null,null,null,null,null,null,null,null,null,null,null,null,null,null,null,null,null,null,null,null,null,null,null,null,null,null,null,null,null,null,null,null,null,null,null,null,null,null,null,null,null,null,null,null,null,null,null,null,null,null,null,null,null,null,null,null,null,null,null,null,null,null,null,null,16.899999999999999,19.5,null,null,null,null,null,7.6]
[null,"HC Index",null,null,"2011-12-15",null,null,null,13.991666666666665,9.5,null,null,16.3,11.4,10.5,15.7,null,null,null,10,null,null,null,17.600000000000001,16.5,null,null,null,null,16.600000000000001,null,15.2,13.2,15.4,8,null,null,null,null,null,null,null,null,null,null,null,null,null,null,null,null,null,null,null,null,null,null,null,null,null,null,null,null,null,null,null,null,null,null,null,null,null,null,null,null,null,null,null,null,null,null,null,null,null,null,null,null,null,null,null,null,null,null,null,null,null,null,null,null,null,null,null,null,null,null,16.899999999999999,19.899999999999999,null,null,null,null,null,8]
[null,"HC Index",null,null,"2012-01-01",null,null,null,14.141666666666666,9.5,null,null,16.3,12.6,11.3,15.3,null,null,null,10,null,null,null,17.600000000000001,17.100000000000001,null,null,null,null,17,null,15.6,13,14.4,8.3000000000000007,null,null,null,null,null,null,null,null,null,null,null,null,null,null,null,null,null,null,null,null,null,null,null,null,null,null,null,null,null,null,null,null,null,null,null,null,null,null,null,null,null,null,null,null,null,null,null,null,null,null,null,null,null,null,null,null,null,null,null,null,null,null,null,null,null,null,null,null,null,null,16.899999999999999,20.8,null,null,null,null,null,8.3000000000000007]
[null,"HC Index",null,null,"2012-02-01",null,null,null,14.708333333333334,9.9,null,null,16,12.9,12.2,15.3,null,null,null,10,null,null,null,18.8,18,null,null,null,null,17.5,null,18.8,13.4,13.7,9.3000000000000007,null,null,null,null,null,null,null,null,null,null,null,null,null,null,null,null,null,null,null,null,null,null,null,null,null,null,null,null,null,null,null,null,null,null,null,null,null,null,null,null,null,null,null,null,null,null,null,null,null,null,null,null,null,null,null,null,null,null,null,null,null,null,null,null,null,null,null,null,null,null,17.100000000000001,19,null,null,null,null,null,9.3000000000000007]
[null,"HC Index",null,null,"2012-02-15",null,null,null,14.85,10.1,null,null,15.3,13,12.5,15.7,null,null,null,9.9,null,null,null,19.3,18.3,null,null,null,null,17.7,null,18.399999999999999,13.4,14.6,9.4,null,null,null,null,null,null,null,null,null,null,null,null,null,null,null,null,null,null,null,null,null,null,null,null,null,null,null,null,null,null,null,null,null,null,null,null,null,null,null,null,null,null,null,null,null,null,null,null,null,null,null,null,null,null,null,null,null,null,null,null,null,null,null,null,null,null,null,null,null,null,17.100000000000001,18.399999999999999,null,null,null,null,null,9.4]
[null,"HC Index",null,null,"2012-03-01",null,null,null,14.916666666666666,10.199999999999999,null,null,15.4,13.8,12.5,15.2,null,null,null,9.4,null,null,null,19.399999999999999,18.3,null,null,null,null,17.600000000000001,null,18.3,14.2,14.7,10,null,null,null,null,null,null,null,null,null,null,null,null,null,null,null,null,null,null,null,null,null,null,null,null,null,null,null,null,null,null,null,null,null,null,null,null,null,null,null,null,null,null,null,null,null,null,null,null,null,null,null,null,null,null,null,null,null,null,null,null,null,null,null,null,null,null,null,null,null,null,17.100000000000001,18.899999999999999,null,null,null,null,null,10]
[null,"HC Index",null,null,"2012-03-15",null,null,null,14.700000000000003,10.1,null,null,15.4,12.8,12.5,14.7,null,null,null,9.4,null,null,null,19,17.2,null,null,null,null,18,null,18.2,14.8,14.3,10,null,null,null,null,null,null,null,null,null,null,null,null,null,null,null,null,null,null,null,null,null,null,null,null,null,null,null,null,null,null,null,null,null,null,null,null,null,null,null,null,null,null,null,null,null,null,null,null,null,null,null,null,null,null,null,null,null,null,null,null,null,null,null,null,null,null,null,null,null,null,17.100000000000001,19.399999999999999,null,null,null,null,null,10]
[null,"HC Index",null,null,"2012-04-01",null,null,null,13.924999999999997,10.1,null,null,14.4,12.2,12.5,15.1,null,null,null,9.3000000000000007,null,null,null,17.5,15.9,null,null,null,null,17,null,15.2,13.7,14.2,9,null,null,null,null,null,null,null,null,null,null,null,null,null,null,null,null,null,null,null,null,null,null,null,null,null,null,null,null,null,null,null,null,null,null,null,null,null,null,null,null,null,null,null,null,null,null,null,null,null,null,null,null,null,null,null,null,null,null,null,null,null,null,null,null,null,null,null,null,null,null,17.100000000000001,19.2,null,null,null,null,null,9]
[null,"HC Index",null,null,"2012-04-14",null,null,null,13.508333333333333,9.6,null,null,13.7,12.8,12.5,14.6,null,null,null,8.6999999999999993,null,null,null,16.8,15.5,null,null,null,null,17.3,null,13.5,13.7,13.4,8.6,null,null,null,null,null,null,null,null,null,null,null,null,null,null,null,null,null,null,null,null,null,null,null,null,null,null,null,null,null,null,null,null,null,null,null,null,null,null,null,null,null,null,null,null,null,null,null,null,null,null,null,null,null,null,null,null,null,null,null,null,null,null,null,null,null,null,null,null,null,null,17.399999999999999,18,null,null,null,null,null,8.6]
[null,"HC Index",null,null,"2012-05-01",null,null,null,13.666666666666666,9.6,null,null,16.8,12.2,12.8,14.8,null,null,null,8.8000000000000007,null,null,null,16.7,15.4,null,null,null,null,17.399999999999999,null,13.5,13.2,12.8,8.8000000000000007,null,null,null,null,null,null,null,null,null,null,null,null,null,null,null,null,null,null,null,null,null,null,null,null,null,null,null,null,null,null,null,null,null,null,null,null,null,null,null,null,null,null,null,null,null,null,null,null,null,null,null,null,null,null,null,null,null,null,null,null,null,null,null,null,null,null,null,null,null,null,17.5,16.8,null,null,null,null,null,8.8000000000000007]
[null,"HC Index",null,null,"2012-06-01",null,null,null,13.200000000000001,9.6,null,null,12.8,10.9,14.4,14.7,null,null,null,9,null,null,null,15.3,16.7,null,null,null,null,16.399999999999999,null,13,13.3,12.3,8.9,null,null,null,null,null,null,null,null,null,null,null,null,null,null,null,null,null,null,null,null,null,null,null,null,null,null,null,null,null,null,null,null,null,null,null,null,null,null,null,null,null,null,null,null,null,null,null,null,null,null,null,null,null,null,null,null,null,null,null,null,null,null,null,null,null,null,null,null,null,null,16.399999999999999,19.7,null,null,null,null,null,8.9]
[null,"HC Index",null,null,"2012-06-15",null,null,null,13.141666666666667,9.9,null,null,12.4,11.3,14.4,14.7,null,null,null,8.4,null,null,null,15.3,15.9,null,null,null,null,15.6,null,13.5,14,12.3,8.9,null,null,null,null,null,null,null,null,null,null,null,null,null,null,null,null,null,null,null,null,null,null,null,null,null,null,null,null,null,null,null,null,null,null,null,null,null,null,null,null,null,null,null,null,null,null,null,null,null,null,null,null,null,null,null,null,null,null,null,null,null,null,null,null,null,null,null,null,null,null,16.399999999999999,19.899999999999999,null,null,null,null,null,8.9]
[null,"HC Index",null,null,"2012-07-01",null,null,null,13.5,9.9,null,null,13.6,10.7,13.9,14.7,null,null,16.2,8.3000000000000007,null,null,null,15.6,15.6,null,null,null,null,15.3,null,14.3,14.8,12.6,8.6999999999999993,null,null,null,null,null,null,null,null,null,null,null,null,null,null,null,null,null,null,null,null,null,null,null,null,null,null,null,null,null,null,null,null,null,null,null,null,null,null,null,null,null,null,null,null,null,null,null,null,null,null,null,null,null,null,null,null,null,null,null,null,null,null,null,null,null,null,null,null,null,null,16.399999999999999,19,null,null,null,null,null,8.6999999999999993]
[null,"HC Index",null,null,"2012-07-15",null,null,null,13.407692307692308,9.6,null,null,13.3,10.5,13.9,14.7,null,null,16.3,8.3000000000000007,null,null,null,15.6,14.4,null,null,null,null,15.3,null,15.8,14.5,12.1,8.6999999999999993,null,null,null,null,null,null,null,null,null,null,null,null,null,null,null,null,null,null,null,null,null,null,null,null,null,null,null,null,null,null,null,null,null,null,null,null,null,null,null,null,null,null,null,null,null,null,null,null,null,null,null,null,null,null,null,null,null,null,null,null,null,null,null,null,null,null,null,null,null,null,16.399999999999999,19.3,null,null,null,null,null,8.6999999999999993]
[null,"HC Index",null,null,"2012-08-01",null,null,null,13.415384615384616,9.1,null,null,13.6,10.6,13.9,14.7,null,null,16.3,8.3000000000000007,null,null,null,16.100000000000001,14.4,null,null,null,null,15.4,null,15,15,12,8.4,null,null,null,null,null,null,null,null,null,null,null,null,null,null,null,null,null,null,null,null,null,null,null,null,null,null,null,null,null,null,null,null,null,null,null,null,null,null,null,null,null,null,null,null,null,null,null,null,null,null,null,null,null,null,null,null,null,null,null,null,null,null,null,null,null,null,null,null,null,null,16.399999999999999,20.100000000000001,null,null,null,null,null,8.4]
[null,"HC Index",null,null,"2012-08-15",null,null,null,13.600000000000001,9,null,null,14.4,10.1,13.9,14.3,null,null,16.100000000000001,8.6,null,null,null,16.8,14.4,null,null,null,null,15.7,null,15.1,15.6,12.8,8.4,null,null,null,null,null,null,null,null,null,null,null,null,null,null,null,null,null,null,null,null,null,null,null,null,null,null,null,null,null,null,null,null,null,null,null,null,null,null,null,null,null,null,null,null,null,null,null,null,null,null,null,null,null,null,null,null,null,null,null,null,null,null,null,null,null,null,null,null,null,null,16.399999999999999,20.399999999999999,null,null,null,null,null,8.4]
[null,"HC Index",null,null,"2012-09-01",null,null,null,13.807692307692308,9,null,null,14.7,11.1,13.9,14.3,null,null,16.8,7.3,null,null,null,18,14.4,null,null,null,null,15.5,null,17,15,12.5,8.9,null,null,null,null,null,null,null,null,null,null,null,null,null,null,null,null,null,null,null,null,null,null,null,null,null,null,null,null,null,null,null,null,null,null,null,null,null,null,null,null,null,null,null,null,null,null,null,null,null,null,null,null,null,null,null,null,null,null,null,null,null,null,null,null,null,null,null,null,null,null,16.399999999999999,19.100000000000001,null,null,null,null,null,8.9]
[null,"HC Index",null,null,"2012-09-15",null,null,null,14.030769230769231,9,null,null,15.3,11.1,14.4,14.3,null,null,17.3,7.3,null,null,null,17.7,14.6,null,null,null,null,15.5,null,17.8,15.5,12.6,8.9,null,null,null,null,null,null,null,null,null,null,null,null,null,null,null,null,null,null,null,null,null,null,null,null,null,null,null,null,null,null,null,null,null,null,null,null,null,null,null,null,null,null,null,null,null,null,null,null,null,null,null,null,null,null,null,null,null,null,null,null,null,null,null,null,null,null,null,null,null,null,16.399999999999999,18.399999999999999,null,null,null,null,null,8.9]
[null,"HC Index",null,null,"2012-10-01",null,null,null,14.214285714285712,9,null,null,15.9,11.4,14.8,14.3,null,null,17.8,6.8,12.2,null,null,17,15.2,null,null,null,null,15.7,null,19.899999999999999,14.5,14.5,8.9,null,null,null,null,null,null,null,null,null,null,null,null,null,null,null,null,null,null,null,null,null,null,null,null,null,null,null,null,null,null,null,null,null,null,null,null,null,null,null,null,null,null,null,null,null,null,null,null,null,null,null,null,null,null,null,null,null,null,null,null,null,null,null,null,null,null,null,null,null,null,16.399999999999999,18.600000000000001,null,19.600000000000001,null,null,null,8.9]
[null,"HC Index",null,null,"2012-10-15",null,null,null,14.2,8.8000000000000007,null,null,15.8,11.4,15.2,14.3,null,null,18.100000000000001,7.1,11.5,null,null,17.100000000000001,15.9,null,null,null,null,15.9,null,19.7,14,14,8.9,null,null,null,null,null,null,null,null,null,null,null,null,null,null,null,null,null,null,null,null,null,null,null,null,null,null,null,null,null,null,null,null,null,null,null,null,null,null,null,null,null,null,null,null,null,null,null,null,null,null,null,null,null,null,null,null,null,null,null,null,null,null,null,null,null,null,null,null,null,null,16.5,20.6,null,19.600000000000001,null,null,null,8.9]
[null,"HC Index",null,null,"2012-11-01",null,null,null,14.450000000000001,10.1,null,null,16.399999999999999,12.5,14.7,14.5,null,null,18.100000000000001,6.8,11.3,null,null,16.8,15.9,null,null,null,null,15.9,null,19.399999999999999,15.4,14.5,8.9,null,null,null,null,null,null,null,null,null,null,null,null,null,null,null,null,null,null,null,null,null,null,null,null,null,null,null,null,null,null,null,null,null,null,null,null,null,null,null,null,null,null,null,null,null,null,null,null,null,null,null,null,null,null,null,null,null,null,null,null,null,null,null,null,null,null,null,null,null,null,16.600000000000001,21.1,null,19.600000000000001,null,null,null,8.9]
[null,"HC Index",null,null,"2012-11-15",null,null,null,14.273333333333333,10.199999999999999,null,null,15.1,12.5,14.5,16.399999999999999,null,15.1,18.100000000000001,6.8,10.7,null,null,16.100000000000001,14.5,null,null,null,null,15.9,null,19.5,14.4,14.3,8.9,null,null,null,null,null,null,null,null,null,null,null,null,null,null,null,null,null,null,null,null,null,null,null,null,null,null,null,null,null,null,null,null,null,null,null,null,null,null,null,null,null,null,null,null,null,null,null,null,null,null,null,null,null,null,null,null,null,null,null,null,null,null,null,null,null,null,null,null,null,null,16.3,21.4,null,19.600000000000001,null,null,null,8.9]
[null,"HC Index",null,null,"2012-12-01",null,null,null,14.486666666666668,10.199999999999999,null,null,14.6,13.1,14.8,17.3,null,14.9,18.600000000000001,7.8,10.7,null,null,17.5,14.8,null,null,null,null,15.9,null,17.399999999999999,15.1,14.6,8.9,null,null,null,null,null,null,null,null,null,null,null,null,null,null,null,null,null,null,null,null,null,null,null,null,null,null,null,null,null,null,null,null,null,null,null,null,null,null,null,null,null,null,null,null,null,null,null,null,null,null,null,null,null,null,null,null,null,null,null,null,null,null,null,null,null,null,null,null,null,null,16.8,21,null,19.600000000000001,null,null,null,8.9]
[null,"HC Index",null,null,"2012-12-15",null,null,null,14.233333333333333,9.1999999999999993,null,null,13.9,13.8,14.6,16.8,null,15.8,18.5,7,11.4,null,null,17.7,14.7,null,null,null,null,16,null,16,14,14.1,8.6,null,null,null,null,null,null,null,null,null,null,null,null,null,null,null,null,null,null,null,null,null,null,null,null,null,null,null,null,null,null,null,null,null,null,null,null,null,null,null,null,null,null,null,null,null,null,null,null,null,null,null,null,null,null,null,null,null,null,null,null,null,null,null,null,null,null,null,null,null,null,16.8,20.3,null,20.399999999999999,null,null,null,8.6]
[null,"HC Index",null,null,"2013-01-01",null,null,null,14.286666666666669,9.1999999999999993,null,null,13.9,14,14.8,16.399999999999999,null,16,18.600000000000001,7.7,11.4,null,null,17.7,15.3,null,null,null,null,16,null,15.5,13.9,13.9,9,null,null,null,null,null,null,null,null,null,null,null,null,null,null,null,null,null,null,null,null,null,null,null,null,null,null,null,null,null,null,null,null,null,null,null,null,null,null,null,null,null,null,null,null,null,null,null,null,null,null,null,null,null,null,null,null,null,null,null,null,null,null,null,null,null,null,null,null,null,null,16.8,20.8,null,20.399999999999999,null,null,null,9,null,18]
[null,"HC Index",null,null,"2013-01-15",null,null,null,14.360000000000001,9.1999999999999993,null,null,14,14,14.8,15.8,null,16,18.600000000000001,9.1999999999999993,11.9,null,null,17.7,15.2,null,null,null,null,16,null,15.2,13.9,13.9,9,null,null,null,null,null,null,null,null,null,null,null,null,null,null,null,null,null,null,null,null,null,null,null,null,null,null,null,null,null,null,null,null,null,null,null,null,null,null,null,null,null,null,null,null,null,null,null,null,null,null,null,null,null,null,null,null,null,null,null,null,null,null,null,null,null,null,null,null,null,null,16.8,20.6,null,21.9,null,null,null,9,null,15.6]
[null,"HC Index",null,null,"2013-02-01",null,null,null,14.439999999999998,9.1999999999999993,null,null,14.8,14.5,15.4,14.6,null,14.5,18.600000000000001,9.1999999999999993,12.8,null,null,17.7,15.6,null,null,null,null,16.7,null,14.7,13.9,14.4,9,null,null,null,null,null,null,null,null,null,null,null,null,null,null,null,null,null,null,null,null,null,null,null,null,null,null,null,null,null,null,null,null,null,null,null,null,null,null,null,null,null,null,null,null,null,null,null,null,null,null,null,null,null,null,null,null,null,null,null,null,null,null,null,null,null,null,null,null,null,null,16.8,20.2,null,21.9,null,null,null,9,null,17]
[null,"HC Index",null,null,"2013-02-15",null,null,null,14.386666666666667,9.1999999999999993,null,null,14.4,14.6,15.1,14.2,null,13.6,18.600000000000001,8.6999999999999993,13,null,null,17.7,16,null,null,null,null,16.7,null,15.3,14.9,13.8,9,null,null,null,null,null,null,null,null,null,null,null,null,null,null,null,null,null,null,null,null,null,null,null,null,null,null,null,null,null,null,null,null,null,null,null,null,null,null,null,null,null,null,null,null,null,null,null,null,null,null,null,null,null,null,null,null,null,null,null,null,null,null,null,null,null,null,null,null,null,null,16.8,19.8,null,22.5,null,null,null,9,null,18.399999999999999]
[null,"HC Index",null,null,"2013-03-01",null,null,null,14.573333333333331,9.1999999999999993,null,null,14.9,15.2,15.2,15.2,null,13.5,18.600000000000001,8.1,14.1,null,null,17.7,16.100000000000001,null,null,null,null,16.7,null,15.6,14.6,13.9,9,null,null,null,null,null,null,null,null,null,null,null,null,null,null,null,null,null,null,null,null,null,null,null,null,null,null,null,null,null,null,null,null,null,null,null,null,null,null,null,null,null,null,null,null,null,null,null,null,null,null,null,null,null,null,null,null,null,null,null,null,null,null,null,null,null,null,null,null,null,null,16.8,20.100000000000001,null,23,null,null,null,9,null,18.5]
[null,"HC Index",null,null,"2013-03-15",null,null,null,14.893750000000001,9.1999999999999993,null,null,15.4,15.5,15.4,16.5,null,14.4,18.7,9.1,14.9,16,null,17.8,16.399999999999999,null,null,null,null,16.7,null,15.3,14.8,12.2,9,null,null,null,null,null,null,null,null,null,null,null,null,null,null,null,null,null,null,null,null,null,null,null,null,null,null,null,null,null,null,null,null,null,null,null,null,null,null,null,null,null,null,null,null,null,null,null,null,null,null,null,null,null,null,null,null,null,null,null,null,null,null,null,null,null,null,null,null,null,null,16.8,20.6,null,22.5,null,null,null,9,null,18.2]
[null,"HC Index",null,null,"2013-04-01",null,null,null,14.606249999999998,9.1999999999999993,null,null,15.3,14.9,15.4,16.3,null,14.3,18.7,8.4,14.5,13,null,17.7,16.2,null,null,null,null,17.600000000000001,null,14.8,15.2,12.2,9,null,null,null,null,null,null,null,null,null,null,null,null,null,null,null,null,null,null,null,null,null,null,null,null,null,null,null,null,null,null,null,null,null,null,null,null,null,null,null,null,null,null,null,null,null,null,null,null,null,null,null,null,null,null,null,null,null,null,null,null,null,null,null,null,null,null,null,null,null,null,16.8,20.8,16.7,23,null,null,null,9,null,17.3]
[null,"HC Index",null,null,"2013-04-15",null,null,null,14.231250000000001,9.1999999999999993,null,null,14.4,13.4,14.1,15.6,null,13.8,19,7.6,14.4,12.9,null,18.399999999999999,15.8,null,null,null,null,17.600000000000001,null,13.8,15,12.7,9,null,null,null,null,null,null,null,null,null,null,null,null,null,null,null,null,null,null,null,null,null,null,null,null,null,null,null,null,null,null,null,null,null,null,null,null,null,null,null,null,null,null,null,null,null,null,null,null,null,null,null,null,null,null,null,null,null,null,null,null,null,null,null,null,null,null,null,null,null,null,16.8,20.3,16.100000000000001,22.9,null,null,null,9,null,17.2]
[null,"HC Index",null,null,"2013-05-01",null,null,null,13.88125,9.1999999999999993,null,null,14.4,12.3,13.2,15.7,null,14.4,19.3,7.1,14.2,11.1,null,18.3,15.4,null,null,null,null,15.7,null,13.1,14.7,14,9,null,null,null,null,null,null,null,null,null,null,null,null,null,null,null,null,null,null,null,null,null,null,null,null,null,null,null,null,null,null,null,null,null,null,null,null,null,null,null,null,null,null,null,null,null,null,null,null,null,null,null,null,null,null,null,null,null,null,null,null,null,null,null,null,null,null,null,null,null,null,16.8,20.7,15.3,22.9,null,null,null,9,null,16.7]
[null,"HC Index",null,null,"2013-05-15",null,null,null,13.737499999999999,9.1999999999999993,null,null,14.1,11.4,13,15.1,null,14.4,19.3,7.6,14,11.1,null,18.600000000000001,15.7,null,null,null,null,15.4,null,11.5,15.1,14.3,9,null,null,null,null,null,null,null,null,null,null,null,null,null,null,null,null,null,null,null,null,null,null,null,null,null,null,null,null,null,null,null,null,null,null,null,null,null,null,null,null,null,null,null,null,null,null,null,null,null,null,null,null,null,null,null,null,null,null,null,null,null,null,null,null,null,null,null,null,null,null,16.8,20.9,14.8,21.4,null,null,null,9,null,16.100000000000001]
[null,"HC Index",null,null,"2013-06-01",null,null,null,13.3125,8.6999999999999993,null,null,13.8,10.6,11.8,14.1,null,14.5,19.3,7.6,13.8,12.3,null,18.100000000000001,15.1,null,null,null,null,13.4,null,11.7,13.9,14.3,9,null,null,null,null,null,null,null,null,null,null,null,null,null,null,null,null,null,null,null,null,null,null,null,null,null,null,null,null,null,null,null,null,null,null,null,null,null,null,null,null,null,null,null,null,null,null,null,null,null,null,null,null,null,null,null,null,null,null,null,null,null,null,null,null,null,null,null,null,null,null,16.8,20.2,14.8,20.7,null,null,null,9,null,16.100000000000001]
[null,"HC Index",null,null,"2013-06-15",null,null,null,13.288235294117646,8.5,11.7,null,13.8,10.6,11.8,14.1,null,14.5,19.3,7.6,13.8,13.7,null,18.100000000000001,15.1,null,null,null,null,13.4,null,11.7,13.9,14.3,9,null,null,null,null,null,null,null,null,null,null,null,null,null,null,null,null,null,null,null,null,null,null,null,null,null,null,null,null,null,null,null,null,null,null,null,null,null,null,null,null,null,null,null,null,null,null,null,null,null,null,null,null,null,null,null,null,null,null,null,null,null,null,null,null,null,null,null,null,null,null,16.8,20.2,14.8,20.7,null,null,null,9,null,16.100000000000001]
[null,"HC Index",null,null,"2013-07-01",null,null,null,13.076470588235294,8.5,11.7,null,14,10.8,10.8,13.9,null,12.8,20.399999999999999,7.6,14.1,14.1,null,17.100000000000001,15.1,null,null,null,null,12.8,null,10.7,13.1,14.8,9,null,null,null,null,null,null,null,null,null,null,null,null,null,null,null,null,null,null,null,null,null,null,null,null,null,null,null,null,null,null,null,null,null,null,null,null,null,null,null,null,null,null,null,null,null,null,null,null,null,null,null,null,null,null,null,null,null,null,null,null,null,null,null,null,null,null,null,null,null,null,16.8,18.7,14.4,20.9,null,null,null,9,null,15]
[null,"HC Index",null,null,"2013-07-15",null,null,null,13.111764705882351,8.1999999999999993,11.7,null,14.2,11.5,10.9,13.1,null,12.8,20.399999999999999,7.6,13.5,14.1,null,17.100000000000001,15.1,null,null,null,null,12.8,null,12,13.1,14.8,9,null,null,null,null,null,null,null,null,null,null,null,null,null,null,null,null,null,null,null,null,null,null,null,null,null,null,null,null,null,null,null,null,null,null,null,null,null,null,null,null,null,null,null,null,null,null,null,null,null,null,null,null,null,null,null,null,null,null,null,null,null,null,null,null,null,null,null,null,null,null,16.8,18.100000000000001,14.4,21.1,null,null,null,9,null,14.9]
[null,"HC Index",null,null,"2013-08-01",null,null,null,13.317647058823528,8.1999999999999993,12.3,null,14.1,12.7,10.5,12.3,null,14.8,20.399999999999999,7.6,12.3,15.2,null,17.399999999999999,15.3,null,null,null,null,12.9,null,11.6,13.2,15.6,9,null,null,null,null,null,null,null,null,null,null,null,null,null,null,null,null,null,null,null,null,null,null,null,null,null,null,null,null,null,null,null,null,null,null,null,null,null,null,null,null,null,null,null,null,null,null,null,null,null,null,null,null,null,null,null,null,null,null,null,null,null,null,null,null,null,null,null,null,null,null,16.8,18.8,14.3,21,null,null,null,9,null,14.3]
[null,"HC Index",null,null,"2013-08-15",null,null,null,13.411764705882353,7.7,12.2,null,14.3,13.2,10.8,12.3,null,14.3,20.399999999999999,7.8,12.3,15.5,null,18,15.3,null,null,null,null,13.4,null,12.3,13,15.2,9,null,null,null,null,null,null,null,null,null,null,null,null,null,null,null,null,null,null,null,null,null,null,null,null,null,null,null,null,null,null,null,null,null,null,null,null,null,null,null,null,null,null,null,null,null,null,null,null,null,null,null,null,null,null,null,null,null,null,null,null,null,null,null,null,null,null,null,null,null,null,16.8,20.100000000000001,14.3,20.6,null,null,null,9,null,13.9]
[null,"HC Index",null,null,"2013-09-01",null,null,null,13.470588235294116,7.9,12.4,null,13.5,14.2,10.7,12,null,13.9,20.399999999999999,8.3000000000000007,11.1,16.5,null,18,15.7,null,null,null,null,13.4,null,11.9,13.9,15.2,9,null,null,null,null,null,null,null,null,null,null,null,null,null,null,null,null,null,null,null,null,null,null,null,null,null,null,null,null,null,null,null,null,null,null,null,null,null,null,null,null,null,null,null,null,null,null,null,null,null,null,null,null,null,null,null,null,null,null,null,null,null,null,null,null,null,null,null,null,null,null,16.8,21,14.3,20.6,null,null,null,9,null,13.2]
[null,"HC Index",null,null,"2013-09-15",null,null,null,13.447058823529412,8.1999999999999993,12.4,null,14.7,13.1,10.7,12.2,null,13.9,20.399999999999999,8.3000000000000007,11.1,16.5,null,18,15.7,null,null,null,null,13.4,null,11.9,13.9,14.2,9,null,null,null,null,null,null,null,null,null,null,null,null,null,null,null,null,null,null,null,null,null,null,null,null,null,null,null,null,null,null,null,null,null,null,null,null,null,null,null,null,null,null,null,null,null,null,null,null,null,null,null,null,null,null,null,null,null,null,null,null,null,null,null,null,null,null,null,null,null,null,16.8,20.9,14.3,21.2,null,null,null,9,null,13.2]
[null,"HC Index",null,null,"2013-10-01",null,null,null,13.717647058823527,8.1999999999999993,12.8,null,14.8,13.1,10.7,12.7,null,14,20.399999999999999,8.3000000000000007,10.8,17,null,18.5,16.399999999999999,null,null,null,null,13.7,null,12.2,14.9,14.7,9,null,null,null,null,null,null,null,null,null,null,null,null,null,null,null,null,null,null,null,null,null,null,null,null,null,null,null,null,null,null,null,null,null,null,null,null,null,null,null,null,null,null,null,null,null,null,null,null,null,null,null,null,null,null,null,null,null,null,null,null,null,null,null,null,null,null,null,null,null,null,16.8,20.8,14.9,21,null,null,null,9,null,13]
[null,"HC Index",null,null,"2013-10-15",null,null,null,14.047058823529412,8.3000000000000007,12.5,null,15.9,12.9,10.9,14.7,null,14.8,20.399999999999999,8.4,12.1,17,null,18.399999999999999,16.7,null,null,null,null,14,null,12.6,14.7,14.5,9,null,null,null,null,null,null,null,null,null,null,null,null,null,null,null,null,null,"GHIN","Name",null,null,null,null,null,null,null,null,null,null,null,null,null,null,null,null,null,null,null,null,null,null,null,null,null,null,null,null,null,null,null,null,null,null,null,null,null,null,null,null,null,null,null,null,null,null,null,null,null,null,null,16.8,21.9,15.7,21.6,null,null,null,9,null,12.5]
[null,"HC Index",null,null,"2013-11-01",null,null,null,14.129411764705884,8.3000000000000007,12.8,null,15.9,12.6,11.3,14.7,null,15.6,20.399999999999999,8.6,12.4,17.3,null,18.399999999999999,16.899999999999999,null,null,null,null,14,null,12.8,14.2,14,9,null,null,null,null,null,null,null,null,null,null,null,null,null,null,null,null,null,"GHIN","Name",null,null,null,null,null,null,null,null,null,null,null,null,null,null,null,null,null,null,null,null,null,null,null,null,null,null,null,null,null,null,null,null,null,null,null,null,null,null,null,null,null,null,null,null,null,null,null,null,null,null,null,16.8,22.5,15.7,21.6,null,null,null,9,null,12.5]
[null,"HC Index",null,null,"2013-11-15",null,null,null,14.317647058823528,8.3000000000000007,12.9,null,16.8,12.7,11.5,14.7,null,16.2,20.399999999999999,8.8000000000000007,12.9,17.7,null,18.399999999999999,16.3,null,null,null,null,14.2,null,13.1,14.5,14,9,null,null,null,null,null,null,null,null,null,null,null,null,null,null,null,null,null,null,null,null,null,null,null,null,null,null,null,null,null,null,null,null,null,null,null,null,null,null,null,null,null,null,null,null,null,null,null,null,null,null,null,null,null,null,null,null,null,null,null,null,null,null,null,null,null,null,null,null,null,null,16.8,23.1,15.7,22.2,null,null,null,9,null,13.4]
[null,"HC Index",null,null,"2013-12-01",null,null,null,14.641176470588235,8.3000000000000007,12.9,null,17.3,13.5,11.5,17,null,15.6,20.399999999999999,8.9,13.1,18.399999999999999,null,18.600000000000001,15.9,null,null,null,null,14.7,null,13.9,14.8,14.1,9,null,null,null,null,null,null,null,null,null,null,null,null,null,null,null,null,null,"GHIN","Name",null,null,null,null,null,null,null,null,null,null,null,null,null,null,null,null,null,null,null,null,null,null,null,null,null,null,null,null,null,null,null,null,null,null,null,null,null,null,null,null,null,null,null,null,null,null,null,null,null,null,null,16.8,23,15.7,22.7,null,null,null,9,null,14.3]
[null,"HC Index",null,null,"2013-12-15",null,null,null,14.835294117647061,9,12.9,null,17,13.6,12.2,17.8,null,14.9,20.399999999999999,8.9,12.9,19.8,null,18.8,16.399999999999999,null,null,null,null,14.7,null,13.6,14.9,14.4,9,null,null,null,null,null,null,null,null,null,null,null,null,null,null,null,null,null,"GHIN","Name",null,null,null,null,null,null,null,null,null,null,null,null,null,null,null,null,null,null,null,null,null,null,null,null,null,null,null,null,null,null,null,null,null,null,null,null,null,null,null,null,null,null,null,null,null,null,null,null,null,null,null,16.8,22.3,15.9,22.7,null,null,null,9,null,14.2]
[null,"HC Index",null,null,"2014-01-01",null,null,null,14.958823529411765,9,12.4,null,17.8,13.9,12.2,17.8,null,15.7,20.399999999999999,8.9,12.8,20.100000000000001,null,18.600000000000001,15.9,null,null,null,null,14.9,null,13.5,14.9,15.5,9,null,null,null,null,null,null,null,null,null,null,null,null,null,null,null,null,null,"GHIN","Name",null,null,null,null,null,null,null,null,null,null,null,null,null,null,null,null,null,null,null,null,null,null,null,null,null,null,null,null,null,null,null,null,null,null,null,null,null,null,null,null,null,null,null,null,null,null,null,null,null,null,null,16.8,22.3,15.9,23.2,null,null,null,9,null,14.5]
[null,"HC Index",null,null,"2014-01-15",null,null,null,{"$f":"AVERAGE(J253:AH253)","v":15.229411764705882},9.4,12.8,null,18,14.1,13.1,17.3,null,15.7,20.399999999999999,11.2,12.9,20.399999999999999,null,19.2,16.100000000000001,null,null,null,null,14.9,null,13.6,14.9,14.9,9,null,null,null,null,null,null,null,null,null,null,null,null,null,null,null,null,null,"GHIN","Name",null,null,null,null,null,null,null,null,null,null,null,null,null,null,null,null,null,null,null,null,null,null,null,null,null,null,null,null,null,null,null,null,null,null,null,null,null,null,null,null,null,null,null,null,null,null,null,null,null,null,null,16.8,22,15.9,23.1,null,null,null,9,null,14.9]
[null,"HC Index",null,null,"2014-02-01",null,null,null,15.576470588235292,10,12.7,null,17.3,14.7,14.7,17.8,null,16,20.399999999999999,10.5,14.1,20.7,null,20.100000000000001,17.3,null,null,null,null,14.9,null,12.7,15.1,15.8,9,null,null,null,null,null,null,null,null,null,null,null,null,null,null,null,null,null,"GHIN","Name",null,null,null,null,null,null,null,null,null,null,null,null,null,null,null,null,null,null,null,null,null,null,null,null,null,null,null,null,null,null,null,null,null,null,null,null,null,null,null,null,null,null,null,null,null,null,null,null,null,null,null,16.8,22.2,15.9,24.4,null,null,null,9,null,15.6]
[null,"HC Index",null,null,"2014-02-15",null,null,null,15.629411764705882,10.199999999999999,12.6,null,17.8,15.4,14.4,18,null,16,20.399999999999999,10.5,14.1,20.8,null,20.100000000000001,17.100000000000001,null,null,null,null,14.9,null,12.7,14.9,15.8,9,null,null,null,null,null,null,null,null,null,null,null,null,null,null,null,null,null,"GHIN","Name",null,null,null,null,null,null,null,null,null,null,null,null,null,null,null,null,null,null,null,null,null,null,null,null,null,null,null,null,null,null,null,null,null,null,null,null,null,null,null,null,null,null,null,null,null,null,null,null,null,null,null,16.8,22.3,15.9,24.4,null,null,null,9,null,15.3]
[null,"HC Index",null,null,"2014-03-01",null,null,null,15.458823529411765,10.5,12.6,null,17.5,15.4,14.4,17.600000000000001,null,16,21,10.199999999999999,13.7,20.8,null,19.3,16.7,null,null,null,null,14.9,null,12.1,14.3,15.8,9,null,null,null,null,null,null,null,null,null,null,null,null,null,null,null,null,null,"GHIN","Name",null,null,null,null,null,null,null,null,null,null,null,null,null,null,null,null,null,null,null,null,null,null,null,null,null,null,null,null,null,null,null,null,null,null,null,null,null,null,null,null,null,null,null,null,null,null,null,null,null,null,null,16.8,22.3,15.9,24.4,null,null,null,9,null,16.399999999999999]
[null,"HC Index",null,null,"2014-03-15",null,null,null,15.511764705882356,10.6,13.1,null,17,15.7,14.4,17.7,null,16,21,9.6999999999999993,14,20.3,null,19.3,17.399999999999999,null,null,null,null,14.9,null,12.2,15.1,15.3,9,null,null,null,null,null,null,null,null,null,null,null,null,null,null,null,null,null,"GHIN","Name",null,null,null,null,null,null,null,null,null,null,null,null,null,null,null,null,null,null,null,null,null,null,null,null,null,null,null,null,null,null,null,null,null,null,null,null,null,null,null,null,null,null,null,null,null,null,null,null,null,null,null,16.8,22.6,15.9,24.4,null,null,null,9,null,16.399999999999999]
[null,"HC Index",null,null,"2014-04-15",null,null,null,15.229411764705885,10.5,12.8,null,16.7,15.6,14.4,18.2,null,16.2,21.5,9.5,12.5,20.5,null,17.600000000000001,16.899999999999999,null,null,null,null,15.1,null,11.9,14.9,14.1,9,null,null,null,null,null,null,null,null,null,null,null,null,null,null,null,null,null,"GHIN","Name",null,null,null,null,null,null,null,null,null,null,null,null,null,null,null,null,null,null,null,null,null,null,null,null,null,null,null,null,null,null,null,null,null,null,null,null,null,null,null,null,null,null,null,null,null,null,null,null,null,null,null,16.8,21.3,16,24.4,null,null,null,9,null,15.8]
[null,"HC Index",null,null,"2014-04-01",null,null,null,15.511764705882356,11,13.2,null,16.7,16.399999999999999,14.9,18.2,null,16,21.5,9.5,13.5,20.5,null,18.3,17.2,null,null,null,null,14.9,null,12.3,15.5,14.1,9,null,null,null,null,null,null,null,null,null,null,null,null,null,null,null,null,null,"GHIN","Name",null,null,null,null,null,null,null,null,null,null,null,null,null,null,null,null,null,null,null,null,null,null,null,null,null,null,null,null,null,null,null,null,null,null,null,null,null,null,null,null,null,null,null,null,null,null,null,null,null,null,null,16.8,23,15.9,24.4,null,null,null,9,null,16.2]
[null,"HC Index",null,null,"2014-05-01",null,null,null,15.041176470588237,10.5,13.1,null,15.8,13.8,13.9,18.5,null,16.100000000000001,21.5,8.9,12.3,20.5,null,17.399999999999999,16.7,null,null,null,null,16.600000000000001,null,11.3,15.1,13.7,9,null,null,null,null,null,null,null,null,null,null,null,null,null,null,null,null,null,"GHIN","Name",null,null,null,null,null,null,null,null,null,null,null,null,null,null,null,null,null,null,null,null,null,null,null,null,null,null,null,null,null,null,null,null,null,null,null,null,null,null,null,null,null,null,null,null,null,null,null,null,null,null,null,16.8,20.2,16.2,23.3,null,null,null,9,null,14.3]
[null,"HC Index",null,null,"2014-05-15",null,null,null,14.670588235294117,10.1,12.8,null,14.8,13.1,12.4,18.8,null,15.9,21.5,8.8000000000000007,11.7,20,null,17.5,16.3,null,null,null,null,16.100000000000001,null,10.7,15.2,13.7,9,null,null,null,null,null,null,null,null,null,null,null,null,null,null,null,null,null,"GHIN","Name",null,null,null,null,null,null,null,null,null,null,null,null,null,null,null,null,null,null,null,null,null,null,null,null,null,null,null,null,null,null,null,null,null,null,null,null,null,null,null,null,null,null,null,null,null,null,null,null,null,null,null,16.8,18.8,16.399999999999999,23.3,null,null,null,9,null,14.3]
[null,"HC Index",null,null,"2014-06-01",null,null,null,14.429411764705883,10.1,12.5,null,14,12.6,11.7,19.399999999999999,null,16.3,21.5,8.6,12.2,19,null,17.600000000000001,15.4,null,null,null,null,16.399999999999999,null,9.4,14.9,13.7,9,null,null,null,null,null,null,null,null,null,null,null,null,null,null,null,null,null,"GHIN","Name",null,null,null,null,null,null,null,null,null,null,null,null,null,null,null,null,null,null,null,null,null,null,null,null,null,null,null,null,null,null,null,null,null,null,null,null,null,null,null,null,null,null,null,null,null,null,null,null,null,null,null,16.8,18.7,16.399999999999999,23.3,null,null,null,9,null,14.3]
[null,"HC Index",null,null,"2014-06-15",null,null,null,14.170588235294119,10.1,11.7,null,13.6,12.5,10.8,18.399999999999999,null,16.399999999999999,19.7,9.3000000000000007,12.9,18.899999999999999,null,17.600000000000001,15.3,null,null,null,null,15.7,null,9.5,14.8,13.7,9,null,null,null,null,null,null,null,null,null,null,null,null,null,null,null,null,null,"GHIN","Name",null,null,null,null,null,null,null,null,null,null,null,null,null,null,null,null,null,null,null,null,null,null,null,null,null,null,null,null,null,null,null,null,null,null,null,null,null,null,null,null,null,null,null,null,null,null,null,null,null,null,null,16.8,19.600000000000001,16.600000000000001,23,null,null,null,9,null,14.3]
[null,"HC Index",null,null,"2014-07-01",null,null,null,14.029411764705884,9.6,11.5,null,14.5,12.2,10.6,18.2,null,16.399999999999999,19.3,9.3000000000000007,12.9,18.899999999999999,null,17.5,15.3,null,null,null,null,15.4,null,8.6,15,13.3,9,null,null,null,null,null,null,null,null,null,null,null,null,null,null,null,null,null,"GHIN","Name",null,null,null,null,null,null,null,null,null,null,null,null,null,null,null,null,null,null,null,null,null,null,null,null,null,null,null,null,null,null,null,null,"White",137,126,null,null,null,null,null,null,null,null,null,null,null,null,null,null,null,null,16.8,20.8,16.8,22.4,null,null,null,9,null,13.4]
[null,"HC Index",null,null,"2014-07-15",null,null,null,13.994117647058824,9.6,11.3,null,14.6,12.9,10.6,18.5,null,16.7,19.3,8.5,12.9,18.100000000000001,null,16.899999999999999,14.7,null,null,null,null,15.4,null,9.6,15,13.3,9,null,null,null,null,null,null,null,null,null,null,null,null,null,null,null,null,null,"GHIN","Name",null,null,null,null,null,null,null,null,null,null,null,null,null,null,null,null,null,null,null,null,null,null,null,null,null,null,null,null,null,null,null,null,"White",137,126,null,null,null,null,null,null,null,null,null,null,null,null,null,null,null,null,16.8,21.1,16.8,22.2,null,13.8,null,9,null,13.7]
[null,"HC Index",null,null,"2014-08-01",null,null,null,14.335294117647058,9.3000000000000007,11.4,null,15.8,13.8,10.6,19.3,null,16,19.3,9,13.5,18.899999999999999,null,17.2,14.7,null,null,null,null,15.4,null,10.8,15,13.7,9,null,null,null,null,null,null,null,null,null,null,null,null,null,null,null,null,null,"GHIN","Name",null,null,null,null,null,null,null,null,null,null,null,null,null,null,null,null,null,null,null,null,null,null,null,null,null,null,null,null,null,null,null,null,"White",137,126,null,null,null,null,null,null,null,null,null,null,null,null,null,null,null,null,16.8,21.2,16.8,22.2,null,14.8,null,9,null,13.6]
[null,"HC Index",null,null,"2014-08-15",null,null,null,14.452941176470588,8.6999999999999993,12,null,17.7,13.8,10.6,18.899999999999999,null,15.6,19.3,9,13.6,18.7,null,17.2,15.3,null,null,null,null,15.4,null,10.8,15,14.1,9,null,null,null,null,null,null,null,null,null,null,null,null,null,null,null,null,null,"GHIN","Name",null,null,null,null,null,null,null,null,null,null,null,null,null,null,null,null,null,null,null,null,null,null,null,null,null,null,null,null,null,null,null,null,"White",137,126,null,null,null,null,null,null,null,null,null,null,null,null,null,null,null,null,16.8,21.4,17.2,22.2,null,14.1,null,9,null,13.9]
[null,"HC Index",null,null,"2014-09-01",null,null,null,14.452941176470588,8.6999999999999993,12.4,null,18.600000000000001,14.2,10.6,18.399999999999999,null,15,19,9,11.5,18.399999999999999,null,17.2,16,null,null,null,null,15.4,null,12.3,15,14,9,null,null,null,null,null,null,null,null,null,null,null,null,null,null,null,null,null,"GHIN","Name",null,null,null,null,null,null,null,null,null,null,null,null,null,null,null,null,null,null,null,null,null,null,null,null,null,null,null,null,null,null,null,null,"White",137,126,null,null,null,null,null,null,null,null,null,null,null,null,null,null,null,null,16.8,22.6,16.899999999999999,22.2,null,13.4,null,9,null,13.6]
[null,"HC Index",null,null,"2014-09-15",null,null,null,14.505882352941173,8.6999999999999993,12.4,null,18.899999999999999,14.4,10.1,17.600000000000001,null,14.6,19,8.5,11.7,18.5,null,17.2,17.600000000000001,null,null,null,null,15.7,null,12.1,15,14.6,9,null,null,null,null,null,null,null,null,null,null,null,null,null,null,null,null,null,"GHIN","Name",null,null,null,null,null,null,null,null,null,null,null,null,null,null,null,null,null,null,null,null,null,null,null,null,null,null,null,null,null,null,null,null,"White",137,126,null,null,null,null,null,null,null,null,null,null,null,null,null,null,null,null,16.8,22.1,16.899999999999999,22.2,null,13.1,null,9,null,14]
[null,"HC Index",null,null,"2014-10-01",null,null,null,14.511764705882351,8.6999999999999993,12.7,null,18.899999999999999,14.4,10.199999999999999,17.100000000000001,null,14.6,19.2,9,12,18.5,null,17.600000000000001,16.7,null,null,null,null,15.7,null,12.1,15.2,14.1,9,null,null,null,null,null,null,null,null,null,null,null,null,null,null,null,null,null,"GHIN","Name",null,null,null,null,null,null,null,null,null,null,null,null,null,null,null,null,null,null,null,null,null,null,null,null,null,null,null,null,null,null,null,null,"White",137,126,null,null,null,null,null,null,null,null,null,null,null,null,null,null,null,null,16.8,22.6,16.899999999999999,22.2,null,12.2,null,9,null,14.3,17]
[null,"HC Index",null,null,"2014-10-15",null,null,null,14.517647058823529,8.6999999999999993,12.9,null,18.100000000000001,14.8,10,17.399999999999999,null,14.6,19.2,8.4,12.2,19.5,null,18,16.899999999999999,null,null,null,null,15.6,null,11.5,15.1,13.9,9,null,null,null,null,null,null,null,null,null,null,null,null,null,null,null,null,null,"GHIN","Name",null,null,null,null,null,null,null,null,null,null,null,null,null,null,null,null,null,null,null,null,null,null,null,null,null,null,null,null,null,null,null,null,"White",137,126,null,null,null,null,null,null,null,null,null,null,null,null,null,null,null,null,16.8,22,16.899999999999999,22.4,null,12.2,null,9,null,14.3,17.399999999999999]
[null,"HC Index",null,null,"2014-11-01",null,null,null,14.482352941176471,8.8000000000000007,13,null,18.8,15.4,9.3000000000000007,16.3,null,14.7,19.2,8.5,12.2,19.899999999999999,null,18,17.100000000000001,null,null,null,null,15.6,null,10.8,15.9,12.7,9,null,null,null,null,null,null,null,null,null,null,null,null,null,null,null,null,null,"GHIN","Name",null,null,null,null,null,null,null,null,null,null,null,null,null,null,null,null,null,null,null,null,null,null,null,null,null,null,null,null,null,null,null,null,"White",137,126,null,null,null,null,null,null,null,null,null,null,null,null,null,null,null,null,16.8,25.1,16.600000000000001,22.2,null,12.2,null,9,null,14.3,17.399999999999999]
[null,"HC Index",null,null,"2014-11-15",null,null,null,14.405882352941173,8.9,13,null,18.399999999999999,15.4,10.3,16.3,null,14.6,19.2,9.3000000000000007,10.8,19.7,null,18.5,16.2,null,null,null,null,15.6,null,10.5,16.100000000000001,12.1,9,null,null,null,null,null,null,null,null,null,null,null,null,null,null,null,null,null,"GHIN","Name",null,null,null,null,null,null,null,null,null,null,null,null,null,null,null,null,null,null,null,null,null,null,null,null,null,null,null,null,null,null,null,null,null,null,null,null,null,null,null,null,null,null,null,null,null,null,null,null,null,null,null,16.8,25.9,16.600000000000001,22.9,null,12.2,null,9,null,14.9,17.3]
[null,"HC Index",null,null,"2014-12-01",null,null,null,14.6,10.4,13.2,null,18.5,15.4,10.7,15.8,null,14.6,19.2,10.1,10.8,20.100000000000001,null,18.5,15.8,null,null,null,null,15.6,null,10.9,16.2,12.4,9.3000000000000007,null,null,null,null,null,null,null,null,null,null,null,null,null,null,null,null,null,"GHIN","Name",null,null,null,null,null,null,null,null,null,null,null,null,null,null,null,null,null,null,null,null,null,null,null,null,null,null,null,null,null,null,null,null,null,null,null,null,null,null,null,null,null,null,null,null,null,null,null,null,null,null,null,16.8,24.8,16.600000000000001,22.9,null,12.2,null,9.3000000000000007,null,14.5,17]
[null,"HC Index",null,null,"2014-12-15",null,null,null,14.905882352941175,10.6,13.1,null,18.899999999999999,15.4,11.7,15.5,null,14.7,19.2,9.1999999999999993,13.3,20.3,null,18.5,15.8,null,null,null,null,16.2,null,11.2,16.100000000000001,13.7,9.6,null,null,null,null,null,null,null,null,null,null,null,null,null,null,null,null,null,"GHIN","Name",null,null,null,null,null,null,null,null,null,null,null,null,null,null,null,null,null,null,null,null,null,null,null,null,null,null,null,null,null,null,null,null,null,null,null,null,null,null,null,null,null,null,null,null,null,null,null,null,null,null,null,16.8,25.2,16.600000000000001,23,null,12.5,null,9.6,null,15.8,16.8]
[null,"HC Index",null,null,"2015-01-01",null,null,null,14.633333333333335,10.9,12.9,null,18.899999999999999,15.5,11.7,15.4,null,14.9,19.2,9.1999999999999993,12.8,19.8,null,18.5,15.6,9.4,null,null,null,16.2,null,11.2,16.2,15.1,9.6,null,null,null,null,null,null,null,null,null,null,null,null,null,null,null,null,null,"GHIN","Name",null,null,null,null,null,null,null,null,null,null,null,null,null,null,null,null,null,null,null,null,null,null,null,null,null,null,null,null,null,null,null,null,null,null,null,null,null,null,null,null,null,null,null,null,null,null,null,null,null,null,null,16.8,25.2,16.600000000000001,23.3,null,12.5,null,9.6,null,16.100000000000001,16.7]
[null,"HC Index",null,null,"2015-01-15",null,null,null,14.861111111111111,10.9,13,null,19.600000000000001,16.399999999999999,11.7,15.8,null,14.9,19.2,9.9,12.8,19.8,null,18.5,15.8,9,null,null,null,16.2,null,11.7,16.2,16.100000000000001,9.6,null,null,null,null,null,null,null,null,null,null,null,null,null,null,null,null,null,"GHIN","Name",null,null,null,null,null,null,null,null,null,null,null,null,null,null,null,null,null,null,null,null,null,null,null,null,null,null,null,null,null,null,null,null,null,null,null,null,null,null,null,null,null,null,null,null,null,null,null,null,null,null,null,16.8,25.4,16.600000000000001,23.3,null,12.5,null,9.6,null,16.7,16.7]
[null,"HC Index",null,null,"2/1//2015",null,null,null,15.294444444444444,12,13.6,null,20.3,19.7,12.2,17.2,null,14.9,18.899999999999999,9,13.2,18.8,null,18.8,16.2,9.1999999999999993,null,null,null,16.100000000000001,null,12,16.2,17,9.6,null,null,null,null,null,null,null,null,null,null,null,null,null,null,null,null,null,"GHIN","Name",null,null,null,null,null,null,null,null,null,null,null,null,null,null,null,null,null,null,null,null,null,null,null,null,null,null,null,null,null,null,null,null,null,null,null,null,null,null,null,null,null,null,null,null,null,null,null,null,null,null,null,16.8,"25.4/22",16.600000000000001,23.3,null,12.5,null,9.6,null,16.899999999999999,16.2]
[null,"HC Index",null,null,"2/15//2015",null,null,null,15.31111111111111,11.7,13.9,null,19.5,19.7,12.6,17.2,null,14.9,19.100000000000001,8.6999999999999993,13.5,19.5,null,18.8,16.5,9.3000000000000007,null,null,null,16.100000000000001,null,11.5,16.2,16.899999999999999,9.6999999999999993,null,null,null,null,null,null,null,null,null,null,null,null,null,null,null,null,null,"GHIN","Name",null,null,null,null,null,null,null,null,null,null,null,null,null,null,null,null,null,null,null,null,null,null,null,null,null,null,null,null,null,null,null,null,null,null,null,null,null,null,null,null,null,null,null,null,null,null,null,null,null,null,null,16.8,"25.4/22",16.600000000000001,23.3,null,14.2,10.4,9.6999999999999993,null,17.2,16.7]
[null,"HC Index",null,null,"2015-03-01",null,null,null,15.483333333333333,11.6,14,null,19.5,20.7,12.6,17,null,14.9,18.8,8.8000000000000007,13.5,19.600000000000001,null,19.3,17.5,9.5,null,null,null,16.100000000000001,null,12.2,16.2,16.899999999999999,9.6999999999999993,null,null,null,null,null,null,null,null,null,null,null,null,null,null,null,null,null,"GHIN","Name",null,null,null,null,null,null,null,null,null,null,null,null,null,null,null,null,null,null,null,null,null,null,null,null,null,null,null,null,null,null,null,null,null,null,null,null,null,null,null,null,null,null,null,null,null,null,null,null,null,null,null,16.8,"25.4/22",16.600000000000001,23.3,null,14.3,10.7,9.6999999999999993,null,17.600000000000001,16.7]
[null,"HC Index",null,null,"2015-03-15",null,null,null,15.449999999999998,11.2,14,null,18.899999999999999,20.5,12.6,17.600000000000001,null,14.9,18.399999999999999,9.3000000000000007,13.5,19.600000000000001,null,19.3,16.3,9.1999999999999993,null,null,null,16.100000000000001,null,12.5,17.3,16.899999999999999,9.8000000000000007,null,null,null,null,null,null,null,null,null,null,null,null,null,null,null,null,null,"GHIN","Name",null,null,null,null,null,null,null,null,null,null,null,null,null,null,null,null,null,null,null,null,null,null,null,null,null,null,null,null,null,null,null,null,null,null,null,null,null,null,null,null,null,null,null,null,null,null,null,null,null,null,null,16.8,"25.4/22",16.600000000000001,23.3,null,15.2,11.6,9.8000000000000007,null,17.5,16.7]
[null,"HC Index",null,null,"2015-04-01",null,null,null,15.505555555555556,11,14.5,null,18.399999999999999,18.399999999999999,13,18,null,14.8,18.399999999999999,8.5,15.3,19.5,null,19.3,16.5,9.5,null,null,null,16.8,null,13.6,16.3,17.3,10.1,null,null,null,null,null,null,null,null,null,null,null,null,null,null,null,null,null,"GHIN","Name",null,null,null,null,null,null,null,null,null,null,null,null,null,null,null,null,null,null,null,null,null,null,null,null,null,null,null,null,null,null,null,null,null,null,null,null,null,null,null,null,null,null,null,null,null,null,null,null,null,null,null,16.8,"25.4/22",16.600000000000001,23.3,null,16,11.7,10.1,null,15.9,16.7]
[null,"HC Index",null,null,"2015-04-15",null,null,null,15.283333333333331,9.9,15.1,null,19.5,17.3,12.6,17.899999999999999,null,15,17.7,8.5,14.7,19.600000000000001,null,19.3,14.5,9.1,null,null,null,17.5,null,14.3,16.899999999999999,15.7,10.1,null,null,null,null,null,null,null,null,null,null,null,null,null,null,null,null,null,"GHIN","Name",null,null,null,null,null,null,null,null,null,null,null,null,null,null,null,null,null,null,null,null,null,null,null,null,null,null,null,null,null,null,null,null,null,null,null,null,null,null,null,null,null,null,null,null,null,null,null,null,null,null,null,16.8,"25.4/22",16.5,23.3,null,15.3,11.5,10.1,null,14.6,16.7]
[null,"HC Index",null,null,"2015-05-01",null,null,null,15.105555555555554,10.1,14.4,null,19.600000000000001,16.399999999999999,12.6,17.600000000000001,null,15,17.2,8.5,14.2,19.8,null,19.100000000000001,14.5,9.1999999999999993,null,null,null,17.899999999999999,null,13,17.3,15.5,10.1,null,null,null,null,null,null,null,null,null,null,null,null,null,null,null,null,null,"GHIN","Name",null,null,null,null,null,null,null,null,null,null,null,null,null,null,null,null,null,null,null,null,null,null,null,null,null,null,null,null,null,null,null,null,null,null,null,null,null,null,null,null,null,null,null,null,null,null,null,null,null,null,null,16.8,"25.4/22",16.5,23.3,null,14.1,9.9,10.1,null,15.1,16.399999999999999]
[null,"HC Index",null,null,"2015-05-15",null,null,null,14.833333333333334,10.199999999999999,14.5,null,17.399999999999999,16.5,12.4,17.8,null,15,16.600000000000001,7.9,13.6,20.3,null,18.899999999999999,14.7,9.1,null,null,null,17.5,null,12.3,16.8,15.5,10.1,null,null,null,null,null,null,null,null,null,null,null,null,null,null,null,null,null,"GHIN","Name",null,null,null,null,null,null,null,null,null,null,null,null,null,null,null,null,null,null,null,null,null,null,null,null,null,null,null,null,null,null,null,null,null,null,null,null,null,null,null,null,null,null,null,null,null,null,null,null,null,null,null,16.8,"25.4/22",16.600000000000001,23.3,null,13.2,9.5,10.1,null,13.8,16.2]
[null,"HC Index",null,null,"2015-06-01",null,null,null,14.83888888888889,10.199999999999999,14.3,null,17.2,17,12.1,17.7,null,15,16.600000000000001,7.6,13.6,20.3,null,18.899999999999999,15.4,9.1,null,null,null,17.399999999999999,null,12.3,16.7,15.7,10.1,null,null,null,null,null,null,null,null,null,null,null,null,null,null,null,null,null,"GHIN","Name",null,null,null,null,null,null,null,null,null,null,null,null,null,null,null,null,null,null,null,null,null,null,null,null,null,null,null,null,null,null,null,null,null,null,null,null,null,null,null,null,null,null,null,null,null,null,null,null,null,null,null,16.8,"25.4/22",16.600000000000001,23.3,null,13.2,8.6,10.1,null,13.8,15.8]
[null,"HC Index",null,null,"2015-06-15",null,null,null,15.044444444444444,9.8000000000000007,13.4,null,17.100000000000001,17,11.1,17.600000000000001,null,15,16.600000000000001,8.1,13.6,20.8,null,18.899999999999999,16.2,13.3,null,null,null,17.600000000000001,null,12.7,16.899999999999999,15.1,10.4,null,null,null,null,null,null,null,null,null,null,null,null,null,null,null,null,null,"GHIN","Name",null,null,null,null,null,null,null,null,null,null,null,null,null,null,null,null,null,null,null,null,null,null,null,null,null,null,null,null,null,null,null,null,null,null,null,null,null,null,null,null,null,null,null,null,null,null,null,null,null,null,null,16.8,"25.4/22",16.600000000000001,23.3,null,14.1,8.9,10.4,null,13.5,15.5]
[null,"HC Index",null,null,"2015-07-01",null,null,null,15.011111111111111,9.8000000000000007,13.2,null,18.100000000000001,16.7,11.1,17.3,null,15,16.5,8,13.7,20.8,null,18.899999999999999,17,13.7,null,null,null,17.600000000000001,null,12.2,16.399999999999999,14.2,10.6,null,null,null,null,null,null,null,null,null,null,null,null,null,null,null,null,null,"GHIN","Name",null,null,null,null,null,null,null,null,null,null,null,null,null,null,null,null,null,null,null,null,null,null,null,null,null,null,null,null,null,null,null,null,null,null,null,129,null,null,null,null,null,null,null,null,null,null,null,null,null,null,null,16.8,"25.4/22",16.600000000000001,23.3,null,13.9,8.9,10.6,null,13.5,15.3]
[null,"HC Index",null,null,"2015-07-15",null,null,null,15.033333333333331,9.8000000000000007,13.5,null,18.399999999999999,16.600000000000001,10.8,16.5,null,14.6,16.100000000000001,8,13.7,20.399999999999999,null,19.2,18.600000000000001,14.7,null,null,null,17.600000000000001,null,12.6,15.6,13.9,10.6,null,null,null,null,null,null,null,null,null,null,null,null,null,null,null,null,null,"GHIN","Name",null,null,null,null,null,null,null,null,null,null,null,null,null,null,null,null,null,null,null,null,null,null,null,null,null,null,null,null,null,null,null,null,null,null,null,129,null,null,null,null,null,null,null,null,null,null,null,null,null,null,null,16.8,"25.4/22",16.600000000000001,23.3,null,14.6,9.6,10.6,null,13.5,15.3]
[null,"HC Index",null,null,"2015-08-01",null,null,null,15.444444444444445,9.8000000000000007,13.3,null,20.399999999999999,17.600000000000001,10.5,15.7,null,14.6,16.100000000000001,8.8000000000000007,13.5,20.399999999999999,null,19.2,20.100000000000001,15.3,null,null,null,17.600000000000001,null,15.2,15.9,14,10.6,null,null,null,null,null,null,null,null,null,null,null,null,null,null,null,null,null,"GHIN","Name",null,null,null,null,null,null,null,null,null,null,null,null,null,null,null,null,null,null,null,null,null,null,null,null,null,null,null,null,null,null,null,null,null,null,null,129,null,null,null,null,null,null,null,null,null,null,null,null,null,null,null,16.8,"25.4/22",16.600000000000001,23.3,null,14.4,9.8000000000000007,10.6,null,13.5,15.2]
[null,"HC Index",null,null,"2015-08-15",null,null,null,15.594444444444443,9.5,13.5,null,20.3,17.7,10.7,15.5,null,14.6,16.3,8.5,13.5,20.399999999999999,null,19.2,20.100000000000001,15.3,null,null,null,17.600000000000001,null,18.3,15.8,13.9,10.6,null,null,null,null,null,null,null,null,null,null,null,null,null,null,null,null,null,"GHIN","Name",null,null,null,null,null,null,null,null,null,null,null,null,null,null,null,null,null,null,null,null,null,null,null,null,null,null,null,null,null,null,null,null,null,null,null,129,null,null,null,null,null,null,null,null,null,null,null,null,null,null,null,16.8,"25.4/22",16.600000000000001,23.3,null,13.1,9.6999999999999993,10.6,null,13.5,14.5]
[null,"HC Index",null,null,"2015-09-01",null,null,null,15.555555555555555,9.1,13.9,null,19.8,17.600000000000001,11.5,15.3,null,14.6,16.3,7.9,13.6,20.399999999999999,null,19.399999999999999,19.7,14.4,null,null,null,17.600000000000001,null,18.100000000000001,16.3,14.5,10.9,null,null,null,null,null,null,null,null,null,null,null,null,null,null,null,null,null,"GHIN","Name",null,null,null,null,null,null,null,null,null,null,null,null,null,null,null,null,null,null,null,null,null,null,null,null,null,null,null,null,null,null,null,null,null,null,null,129,null,null,null,null,null,null,null,null,null,null,null,null,null,null,null,16.8,"25.4/22",16.600000000000001,23.3,null,11.8,9.4,10.9,null,13.5,14.5]
[null,"HC Index",null,null,"2015-09-15",null,null,null,15.322222222222223,9.1,13.9,null,19.8,18.2,12,14.1,null,14.6,16.399999999999999,8.1999999999999993,13.4,19.8,null,19.399999999999999,17.7,12.9,null,null,"na",17.600000000000001,null,16.600000000000001,17.3,14.8,10.9,null,null,null,null,null,null,null,null,null,null,null,null,null,null,null,null,null,"GHIN","Name",null,null,null,null,null,null,null,null,null,null,null,null,null,null,null,null,null,null,null,null,null,null,null,null,null,null,null,null,null,null,null,null,null,null,null,129,null,null,null,null,null,null,null,null,null,null,null,null,null,null,null,16.8,"25.4/22",16.600000000000001,23.3,null,10.5,9.6999999999999993,10.9,null,13,14.1]
[null,"HC Index",null,null,"2015-10-01",null,null,null,16.089473684210528,9.3000000000000007,13.7,null,20,18.7,13.2,13.3,null,14.6,16,9.4,13.6,20.399999999999999,null,19.100000000000001,17.7,13.6,null,null,27,17.600000000000001,null,16.600000000000001,16.600000000000001,15.3,10.9,null,null,null,null,null,null,null,null,null,null,null,null,null,null,null,null,null,"GHIN","Name",null,null,null,null,null,null,null,null,null,null,null,null,null,null,null,null,null,null,null,null,null,null,null,null,null,null,null,null,null,null,null,null,null,null,null,129,null,"Blue",null,126,118,"Gold",121,null,null,null,null,null,null,null,null,16.8,"25.4/22",16.600000000000001,23.3,null,11.2,11.3,10.9,null,13.9,14.1]
[null,"HC Index",null,null,"2015-10-15",null,null,null,16.147368421052633,8.6,14.4,null,19.899999999999999,19.8,12.4,13.7,null,14.6,15.8,10.7,14.4,20.399999999999999,null,18.899999999999999,17.2,13.2,null,null,27,17.600000000000001,null,15,16.2,17,10.9,null,null,null,null,null,null,null,null,null,null,null,null,null,null,null,null,null,"GHIN","Name",null,null,null,null,null,null,null,null,null,null,null,null,null,null,null,null,null,null,null,null,null,null,null,null,null,null,null,null,null,null,null,null,null,null,null,129,null,"Blue",null,126,118,"Gold",121,null,null,null,null,null,null,null,null,16.8,"25.4/22",16.600000000000001,23.3,null,12.1,10.8,10.9,null,14.5,14.4]
[null,"HC Index",null,null,"2015-11-01",null,null,null,16.089473684210525,8.6,14.4,null,19.899999999999999,19.8,12.4,13.7,null,14.6,15.8,10.7,14.4,20.399999999999999,null,18.899999999999999,17.2,13.2,null,null,25.9,17.600000000000001,null,15,16.2,17,10.9,null,null,null,null,null,null,null,null,null,null,null,null,null,null,null,null,null,"GHIN","Name",null,null,null,null,null,null,null,null,null,null,null,null,null,null,null,null,null,null,null,null,null,null,null,null,null,null,null,null,null,null,null,null,null,null,null,129,null,"Blue",null,126,118,"Gold",121,null,null,null,null,null,null,null,null,16.8,"25.4/22",16.600000000000001,23.3,7,12.1,10.8,10.9,null,14.5,14.4]
[null,"HC Index",null,null,"2015-11-15",null,null,null,16.073684210526316,9.5,13.3,null,20.399999999999999,20.3,11.6,14.5,null,13.2,15.8,10.199999999999999,14.5,20.2,null,20,17.899999999999999,15.6,null,null,25.9,17.600000000000001,null,14,16.8,14.1,10.9,null,null,null,null,null,null,null,null,null,null,null,null,null,null,null,null,null,"GHIN","Name",null,null,null,null,null,null,null,null,null,null,null,null,null,null,null,null,null,null,null,null,null,null,null,null,null,null,null,null,null,null,null,null,null,null,null,null,null,"Blue",null,126,118,"Gold",121,null,null,null,null,null,null,null,null,16.8,"25.4/22",16.600000000000001,23.3,6.4,12.9,10.9,10.9,null,15.4,14.1]
[null,"HC Index",null,null,"2015-11-15",null,null,null,16.473684210526311,10.1,13.3,null,21.3,23.7,10.8,15.6,null,12.6,15.8,10.1,14.8,20.100000000000001,null,20.5,18,16.100000000000001,null,null,26.5,17.600000000000001,null,14.9,16.8,14.4,10.9,null,null,null,null,null,null,null,null,null,null,null,null,null,null,null,null,null,"GHIN","Name",null,null,null,null,null,null,null,null,null,null,null,null,null,null,null,null,null,null,null,null,null,null,null,null,null,null,null,null,null,null,null,null,null,null,null,null,null,"Blue",null,126,118,"Gold",121,null,null,null,null,null,null,null,null,16.8,"25.4/22",16.7,23.3,6.6,12.9,10.9,10.9,null,15.6,14.3]
[null,"HC Index",null,null,"2015-12-01",null,null,null,16.41578947368421,10.1,13.3,null,21.3,22,10.8,15.6,null,13.2,15.8,10.1,14.8,20.100000000000001,null,20.5,18,16.100000000000001,null,null,26.5,17.600000000000001,null,14.9,16.8,14.4,10.9,null,null,null,null,null,null,null,null,null,null,null,null,null,null,null,null,null,"GHIN","Name",null,null,null,null,null,null,null,null,null,null,null,null,null,null,null,null,null,null,null,null,null,null,null,null,null,null,null,null,null,null,null,null,null,null,null,null,null,"Blue",null,126,118,"Gold",121,null,null,null,null,null,null,null,null,16.8,"25.4/22",16.7,23.3,6.6,12.9,10.9,10.9,null,15.6,14.3]
[null,"HC Index",null,null,"2015-12-15",null,null,null,16.7,10.9,13.7,null,20.9,25.4,11.3,17.2,null,13,15.8,10.7,15.2,20.100000000000001,null,20.5,15.9,16,null,null,26.5,17.600000000000001,null,14.6,16.8,15.2,10.9,null,null,null,null,null,null,null,null,null,null,null,null,null,null,null,null,null,"GHIN","Name",null,null,null,null,null,null,null,null,null,null,null,null,null,null,null,null,null,null,null,null,null,null,null,null,null,null,null,null,null,null,null,null,"White",137,126,129,null,"Blue",null,126,118,"Gold",121,null,null,null,null,null,null,null,null,16.8,"25.4/22",16.7,23.3,6.4,14.2,11.1,10.9,null,17,15.4]
[null,"HC Index",null,null,"2016-01-01",null,null,null,16.726315789473684,11.5,13.7,null,21.1,24.8,11.5,17.5,null,13,15.9,10.3,15.4,20.100000000000001,null,20.7,16,15,null,null,26.5,17.600000000000001,null,14.7,16.8,15.7,10.9,null,null,null,null,null,null,null,null,null,null,null,null,null,null,null,null,null,"GHIN","Name",null,null,null,null,null,null,null,null,null,null,null,null,null,null,null,null,null,null,null,null,null,null,null,null,null,null,null,null,null,null,null,null,"White",137,126,129,null,"Blue",null,126,118,"Gold",121,null,null,null,null,null,null,null,null,16.8,"25.4/22",16.7,23.3,6.5,14.4,11.1,10.9,null,17.2,15.4]
[null,"HC Index",null,null,"2016-01-15",null,null,null,16.994736842105269,11.5,13.7,null,22.2,25.7,12.4,18.2,null,13.7,16,10.4,15,19.899999999999999,null,20.8,16.399999999999999,15.3,null,null,26.5,17.600000000000001,null,15,16.8,15.8,10.9,null,null,null,null,null,null,null,null,null,null,null,null,null,null,null,null,null,"GHIN","Name",null,null,null,null,null,null,null,null,null,null,null,null,null,null,null,null,null,null,null,null,null,null,null,null,null,null,null,null,null,null,null,null,"White",137,126,129,null,"Blue",null,126,118,"Gold",121,null,null,null,null,null,null,null,null,16.8,"25.4/22",16.7,23.3,6.4,14.5,11.2,10.9,null,17.2,16.600000000000001]
[null,"HC Index",null,null,"2016-02-01",null,null,null,17.068421052631582,12,14.4,null,22.5,24.6,13.6,17.5,null,12.8,16.2,10.199999999999999,15.3,20.6,null,21.1,16.8,15,null,null,26.5,17.600000000000001,null,15,16.8,15.8,10.9,null,null,null,null,null,null,null,null,null,null,null,null,null,null,null,null,null,"GHIN","Name",null,null,null,null,null,null,null,null,null,null,null,null,null,null,null,null,null,null,null,null,null,null,null,null,null,null,null,null,null,null,null,null,"White",137,126,129,null,"Blue",null,126,118,"Gold",121,null,null,null,null,null,null,null,null,16.8,"25.4/22",16.7,23.3,6.5,14.5,11.1,10.9,null,17.5,16.100000000000001]
[null,"HC Index",null,null,"2016-02-15",null,null,null,16.942105263157895,12.1,14.5,null,20.9,22.1,13.5,17.5,null,13.9,16.5,10.6,14.9,20.6,null,18.899999999999999,18.8,15,null,null,26.4,17.600000000000001,null,15,16.100000000000001,17,10.9,null,null,null,null,null,null,null,null,null,null,null,null,null,null,null,null,null,"GHIN","Name",null,null,null,null,null,null,null,null,null,null,null,null,null,null,null,null,null,null,null,null,null,null,null,null,null,null,null,null,null,null,null,null,"White",137,126,129,null,"Blue",null,126,118,"Gold",121,null,null,null,null,null,null,null,null,16.8,"25.4/22",16.7,23.3,6.9,14.4,12.5,10.9,null,17.399999999999999,16.100000000000001]
[null,"HC Index",null,null,"2016-03-01",null,null,null,16.926315789473687,12.1,14.5,null,20.9,22.1,13.5,17.5,null,13.9,16.5,9.9,15.3,20.100000000000001,null,19.7,18.7,15.1,null,null,28.2,17.600000000000001,null,15,14.8,16.2,10.9,null,null,null,null,null,null,null,null,null,null,null,null,null,null,null,null,null,"GHIN","Name",null,null,null,null,null,null,null,null,null,null,null,null,null,null,null,null,null,null,null,null,null,null,null,null,null,null,null,null,null,null,null,null,"White",137,126,129,null,"Blue",null,126,118,"Gold",121,null,null,null,null,null,null,null,null,16.8,"25.4/22",16.7,23.3,6.9,14.4,12.5,10.9,null,17.399999999999999,16.399999999999999]
[null,"HC Index",null,null,"2016-03-15",null,null,null,16.742105263157896,11.1,15.3,null,21.8,20.399999999999999,13,16.600000000000001,null,14.1,16.8,9.5,15.5,20.2,null,20,18,14.9,null,null,27.5,17.600000000000001,null,15,14.3,16.5,10.9,null,null,null,null,null,null,null,null,null,null,null,null,null,null,null,null,null,"GHIN","Name",null,null,null,null,null,null,null,null,null,null,null,null,null,null,null,null,null,null,null,null,null,null,null,null,null,null,null,null,null,null,null,null,"White",137,126,129,null,"Blue",null,126,118,"Gold",121,null,null,null,null,null,null,null,null,16.8,"25.4/22",16.7,23.3,6.9,14.8,12.7,10.9,null,17.399999999999999,16]
[null,"HC Index",null,null,"2016-04-01",null,null,null,16.405263157894737,11.3,15.3,null,22.5,19.899999999999999,12.3,16,null,13.8,17.600000000000001,9.6999999999999993,15.6,19.399999999999999,null,19.8,16.7,14.4,null,null,26.1,17.600000000000001,null,15,13.9,14.8,10.9,null,null,null,null,null,null,null,null,null,null,null,null,null,null,null,null,null,"GHIN","Name",null,null,null,null,null,null,null,null,null,null,null,null,null,null,null,null,null,null,null,null,null,null,null,null,null,null,null,null,null,null,null,null,"White",137,126,129,null,"Blue",null,126,118,"Gold",121,null,null,null,null,null,null,null,null,16.8,"25.4/22",16.7,23.3,6.9,14.7,10.9,10.9,null,16.8,14.9]
[null,"HC Index",null,null,"2016-04-15",null,null,null,16.399999999999999,11.3,15.6,null,22.3,19.7,12.3,15.5,null,17.2,18,9.4,15.1,20,null,19.899999999999999,15.6,13.2,null,null,26.6,17.600000000000001,null,15,13.9,13.4,10.9,null,null,null,null,null,null,null,null,null,null,null,null,null,null,null,null,null,"GHIN","Name",null,null,null,null,null,null,null,null,null,null,null,null,null,null,null,null,null,null,null,null,null,null,null,null,null,null,null,null,null,null,null,null,"White",137,126,129,null,"Blue",null,126,118,"Gold",121,null,null,null,null,null,null,null,null,16.8,"25.4/22",16.7,23.3,6.9,15.1,9.6999999999999993,10.9,null,15.8,14.9]
[null,"HC Index",null,null,"2016-05-01",null,null,null,16.11578947368421,11.3,15.1,null,22.2,19.8,11.4,15.3,null,13.3,17.899999999999999,9.8000000000000007,15.5,19.5,null,19.899999999999999,16.5,13.2,null,null,26.1,17.600000000000001,null,15,13.5,13.3,10.9,null,null,null,null,null,null,null,null,null,null,null,null,null,null,null,null,null,"GHIN","Name",null,null,null,null,null,null,null,null,null,null,null,null,null,null,null,null,null,null,null,null,null,null,null,null,null,null,null,null,null,null,null,null,"White",137,126,129,null,"Blue",null,126,118,"Gold",121,null,null,null,null,null,null,null,null,16.8,"25.4/22",16.7,23.3,6.9,15.1,9.4,10.9,null,15.4,13.9]
[null,"HC Index",null,null,"2016-05-15",null,null,null,16.074999999999996,11.3,14.6,null,21.7,18.8,11.4,15.6,20.9,12.9,18.8,9.4,15.7,19,null,19.899999999999999,16.3,12.6,null,null,24.1,17.7,null,15,12.9,12.9,10.9,null,null,null,null,null,null,null,null,null,null,null,null,null,null,null,null,null,"GHIN","Name",null,null,null,null,null,null,null,null,null,null,null,null,null,null,null,null,null,null,null,null,null,null,null,null,null,null,null,null,null,null,null,null,"White",137,126,129,null,"Blue",null,126,118,"Gold",121,null,null,null,null,null,null,null,null,16.8,"25.4/22",16.7,23.3,6.9,15.1,8.5,10.9,null,14.3,13.9]
[null,"HC Index",null,null,"2016-06-01",null,null,null,15.878947368421052,11.6,14.1,null,21.1,18.8,11,16.3,20.9,12.6,18.8,9.4,15.7,19,null,19.8,16.100000000000001,12.4,null,null,24.1,"22.4*",null,15,12.1,12.9,10.9,null,null,null,null,null,null,null,null,null,null,null,null,null,null,null,null,null,"GHIN","Name",null,null,null,null,null,null,null,null,null,null,null,null,null,null,null,null,null,null,null,null,null,null,null,null,null,null,null,null,null,null,null,null,"White",137,126,129,null,"Blue",null,126,118,"Gold",121,null,null,null,null,null,null,null,null,16.8,"25.4/22",16.7,23.3,6.9,15.1,8.5,10.9,null,14.3,13.4]
[null,"HC Index",null,null,"2016-06-15",null,null,null,15.895000000000001,11.4,13.6,null,20.3,18.7,11.2,16.100000000000001,20.9,12.5,19.100000000000001,9.4,14.3,18.399999999999999,null,19.8,16.600000000000001,12.5,null,null,23.7,19.3,null,15.4,11.7,13,10.9,null,null,null,null,null,null,null,null,null,null,null,null,null,null,null,null,null,"GHIN","Name",null,null,null,null,null,null,null,null,null,null,null,null,null,null,null,null,null,null,null,null,null,null,null,null,null,null,null,null,null,null,null,null,"White",137,126,129,null,"Blue",null,126,118,"Gold",121,null,null,null,null,null,null,null,null,16.8,"25.4/22",16.7,23.3,6.9,15.1,8.6999999999999993,10.9,null,14.3,13.4]
[null,"HC Index",null,null,"2016-07-01",null,null,null,15.635,10.5,13.6,null,20,19.8,10.3,16.100000000000001,20.9,12.2,18.3,9.1,13.9,17.8,null,19.899999999999999,16.100000000000001,12.3,null,null,22.5,18.600000000000001,null,15.4,12.4,13,10.9,null,null,null,null,null,null,null,null,null,null,null,null,null,null,null,null,null,"GHIN","Name",null,null,null,null,null,null,null,null,null,null,null,null,null,null,null,null,null,null,null,null,null,null,null,null,null,null,null,null,null,null,null,null,"White",137,126,129,null,"Blue",null,126,118,"Gold",121,null,null,null,null,null,null,null,null,16.8,"25.4/22",16.7,23.3,6.9,15.1,8.9,10.9,null,14.3,12.7]
[null,"HC Index",null,null,"2016-07-15",null,null,null,15.73,10.6,13.6,null,19.899999999999999,19.8,10.6,16.600000000000001,21.7,12.5,18.600000000000001,9.1,13.5,17.8,null,19.899999999999999,16,12.4,null,null,22.5,18.600000000000001,null,15.4,12.5,13,10.9,null,null,null,null,null,null,null,null,null,null,null,null,null,null,null,null,null,"GHIN","Name",null,null,null,null,null,null,null,null,null,null,null,null,null,null,null,null,null,null,null,null,null,null,null,null,null,null,null,null,null,null,null,null,"White",137,126,129,null,"Blue",null,126,118,"Gold",121,null,null,null,null,null,null,null,null,16.8,"25.4/22",16.7,23.3,6.9,15.1,9.1999999999999993,10.9,null,14.4,12.7]
[null,"HC Index",null,null,"2016-08-01",null,null,null,15.725000000000003,10.4,13,null,19.5,19.8,9.9,16.100000000000001,21.8,13,19.2,9.3000000000000007,13.4,17.8,null,20.2,15.4,11.8,null,null,22.7,19.3,null,15.8,12.6,13.5,10.9,null,null,null,null,null,null,null,null,null,null,null,null,null,null,null,null,null,"GHIN","Name",null,null,null,null,null,null,null,null,null,null,null,null,null,null,null,null,null,null,null,null,null,null,null,null,null,null,null,null,null,null,null,null,"White",137,126,129,null,"Blue",null,126,118,"Gold",121,null,null,null,null,null,null,null,null,16.8,"25.4/22",16.7,23.3,6.9,15.1,11.3,10.9,null,13.9,12.2]
[null,"HC Index",null,null,"2016-08-15",null,null,null,15.885,10.199999999999999,13.6,null,19.600000000000001,19.8,9.9,15.5,21.8,13.3,19.2,9.4,13.4,17.8,null,21.2,14.7,12.4,null,null,22,19.2,null,17.7,13.4,13.6,10.9,null,null,null,null,null,null,null,null,null,null,null,null,null,null,null,null,null,"GHIN","Name",null,null,null,null,null,null,null,null,null,null,null,null,null,null,null,null,null,null,null,null,null,null,null,null,null,null,null,null,null,null,null,null,"White",137,126,129,null,"Blue",null,126,118,"Gold",121,null,null,null,null,null,null,null,null,16.8,"25.4/22",16.7,23.3,6.9,15.1,11,10.9,null,13.6,11.9]
[null,"HC Index",null,null,"2016-09-01",null,null,null,{"$f":"AVERAGE(J317:AH317)","v":15.99},10.4,14.6,null,20,19.8,10.4,15.4,21.8,13.5,18.7,9.3000000000000007,13.8,18,null,21,14.7,11.9,null,null,22,19.2,null,18.3,13.3,13.7,10.9,null,null,null,null,null,null,null,null,null,null,null,null,null,null,null,null,null,"GHIN","Name",null,null,null,null,null,null,null,null,null,null,null,null,null,null,null,null,null,null,null,null,null,null,null,null,null,null,null,null,null,null,null,null,"White",137,126,129,null,"Blue",null,126,118,"Gold",121,null,null,null,null,null,null,null,null,16.8,"25.4/22",16.7,23.3,6.9,15.1,10.4,10.9,null,12.7,12.1]
[null,"HC Index",null,null,"2016-09-15",null,null,null,16.084999999999997,10.199999999999999,16.5,null,21.6,19.8,10.9,15.4,21.8,13.4,18.2,9.6999999999999993,14.1,17.899999999999999,null,21.1,15.2,12.2,null,null,21.8,19,null,16.600000000000001,13.4,12.9,10.9,null,null,null,null,null,null,null,null,null,null,null,null,null,null,null,null,null,"GHIN","Name",null,null,null,null,null,null,null,null,null,null,null,null,null,null,null,null,null,null,null,null,null,null,null,null,null,null,null,null,null,null,null,null,"White",137,126,129,null,"Blue",null,126,118,"Gold",121,null,null,null,null,null,null,null,null,16.8,"25.4/22",16.7,23.3,6.9,15.1,9.9,10.9,null,15,12.5]
[null,"HC Index",null,null,"2016-10-01",null,null,null,16.229999999999997,10.1,15.5,null,21.3,20.399999999999999,10.6,16.100000000000001,21.8,13.6,17.600000000000001,10.1,13.9,17.899999999999999,null,21.1,17.2,12.7,null,null,21.6,19,null,17.5,13.4,13.2,10.9,null,null,null,null,null,null,null,null,null,null,null,null,null,null,null,null,null,"GHIN","Name",null,null,null,null,null,null,null,null,null,null,null,null,null,null,null,null,null,null,null,null,null,null,null,null,null,null,null,null,null,null,null,null,"White",137,126,129,null,"Blue",null,126,118,"Gold",121,null,null,null,null,null,null,null,null,16.8,"25.4/22",16.7,23.3,6.9,15.1,9.9,10.9,null,13.9,12.5]
[null,"HC Index",null,null,"2016-10-15",null,null,null,16.544999999999998,10.199999999999999,14.7,null,21.2,22.8,11.5,17.100000000000001,21.8,14.7,17.600000000000001,10.4,15.3,17.7,null,20.3,18.100000000000001,13,null,null,21.4,19,null,17.2,14.5,12.4,10.9,null,null,null,null,null,null,null,null,null,null,null,null,null,null,null,null,null,"GHIN","Name",null,null,null,null,null,null,null,null,null,null,null,null,null,null,null,null,null,null,null,null,null,null,null,null,null,null,null,null,null,null,null,null,"White",137,126,129,null,"Blue",null,126,118,"Gold",121,null,null,null,null,null,null,null,null,16.8,"25.4/22",16.7,23.3,6.9,15.1,9.9,10.9,null,13.9,12.8]
[null,"HC Index",null,null,"2016-11-01",null,null,null,16.544999999999998,9.9,13.8,null,20.3,23.6,11.4,17,21.8,15.4,17.600000000000001,10.5,14.5,18,null,20.399999999999999,17.600000000000001,13.6,null,null,20.8,19.8,null,18.2,14.9,11.8,10.9,null,null,null,null,null,null,null,null,null,null,null,null,null,null,null,null,null,"GHIN","Name",null,null,null,null,null,null,null,null,null,null,null,null,null,null,null,null,null,null,null,null,null,null,null,null,null,null,null,null,null,null,null,null,"White",137,126,129,null,"Blue",null,126,118,"Gold",121,null,null,null,null,null,null,null,null,16.8,"25.4/22",16.7,23.3,6.9,15.1,10.9,10.9,null,14.5,13.8]
[null,"HC Index",null,null,"2016-11-15",null,null,null,16.759999999999998,10.1,13.8,null,20.9,24.1,12.6,17,21.8,14.7,17.399999999999999,11.2,14.4,18,null,20.399999999999999,18.2,13.4,null,null,20.8,19.899999999999999,null,18.3,15.4,12.8,10.9,null,null,null,null,null,null,null,null,null,null,null,null,null,null,null,null,null,"GHIN","Name",null,null,null,null,null,null,null,null,null,null,null,null,null,null,null,null,null,null,null,null,null,null,null,null,null,null,null,null,null,null,null,null,"White",137,126,129,null,"Blue",null,126,118,"Gold",121,null,null,null,null,null,null,null,null,16.8,"25.4/22",16.7,23.3,6.9,15.1,11.6,10.9,null,14.3,13.5]
[null,"HC Index",null,null,"2016-12-01",null,null,null,17.035,11.2,13.8,null,21.1,24.1,12.3,17,22.3,14.8,17.5,11.6,14.4,19.399999999999999,null,21.2,18.3,12.9,null,null,19.899999999999999,19.899999999999999,null,18.3,16.5,14.2,10.9,null,null,null,null,null,null,null,null,null,null,null,null,null,null,null,null,null,"GHIN","Name",null,null,null,null,null,null,null,null,null,null,null,null,null,null,null,null,null,null,null,null,null,null,null,null,null,null,null,null,null,null,null,null,"White",137,126,129,null,"Blue",null,126,118,"Gold",121,null,null,null,null,null,null,null,null,16.8,"25.4/22",16.7,23.3,6.9,15.1,12,10.9,null,14.2,12.7]
[null,"HC Index",null,null,"2016-12-15",null,null,null,16.94285714285714,10.9,13.8,null,21.6,22.9,12,17,22.3,14.2,17.399999999999999,11.6,14.5,19.899999999999999,null,21.2,18.2,12.9,null,null,20.2,19.899999999999999,14.4,18.2,17.2,15.5,10.9,null,null,null,null,null,null,null,null,null,null,null,null,null,null,null,null,null,"GHIN","Name",null,null,null,null,null,null,null,null,null,null,null,null,null,null,null,null,null,null,null,null,null,null,null,null,null,null,null,null,null,null,null,null,"White",137,126,129,null,"Blue",null,126,118,"Gold",121,null,null,null,null,null,null,null,null,16.8,"25.4/22",16.7,23.3,6.9,15.1,11.4,10.9,null,13.9,12.2]
[null,"HC Index",null,null,"2017-01-01",null,null,null,17.095238095238098,10.9,14.2,null,22.3,23.1,12.4,18.399999999999999,22.3,13.4,17.399999999999999,10.8,14.5,19.899999999999999,null,21.2,18.600000000000001,13.1,null,null,20.100000000000001,20.399999999999999,15.1,18.100000000000001,17.2,15.6,10.9,null,null,null,null,null,null,null,null,null,null,null,null,null,null,null,null,null,"GHIN","Name",null,null,null,null,null,null,null,null,null,null,null,null,null,null,null,null,null,null,null,null,null,null,null,null,null,null,null,null,null,null,null,null,"White",137,126,129,null,"Blue",null,126,118,"Gold",121,null,null,null,null,null,null,null,null,16.8,"25.4/22",16.7,23.3,6.9,15.1,11.4,10.9,null,13.9,13.4]
[null,"HC Index",null,null,"2017-01-15",null,null,null,17.19047619047619,10.8,14.8,null,21.7,23.7,13.5,17.100000000000001,22.3,13.1,17.399999999999999,10.3,14.8,19.7,null,21.2,18.7,13.2,null,null,20.3,20.100000000000001,16.899999999999999,17.8,17.600000000000001,16,10.9,null,null,null,null,null,null,null,null,null,null,null,null,null,null,null,null,null,"GHIN","Name",null,null,null,null,null,null,null,null,null,null,null,null,null,null,null,null,null,null,null,null,null,null,null,null,null,null,null,null,null,null,null,null,"White",137,126,129,null,"Blue",null,126,118,"Gold",121,null,null,null,null,null,null,null,null,16.8,"25.4/22",16.7,23.3,6.9,15.1,11.4,10.9,null,13.9,13.4]
[null,"HC Index",null,null,"2017-02-01",null,null,null,17.342857142857145,11.1,14.4,null,22.2,23.8,12.1,17.899999999999999,22.7,13.2,17.399999999999999,11,15.3,19.3,null,21.2,19.3,13.2,null,null,20.3,20.100000000000001,16.899999999999999,17.8,18.100000000000001,16.899999999999999,10.9,null,null,null,null,null,null,null,null,null,null,null,null,null,null,null,null,null,"GHIN","Name",null,null,null,null,null,null,null,null,null,null,null,null,null,null,null,null,null,null,null,null,null,null,null,null,null,null,null,null,null,null,null,null,"White",137,126,129,null,"Blue",null,126,118,"Gold",121,null,null,null,null,null,null,null,null,16.8,"25.4/22",16.7,23.3,6.9,15.1,11.4,10.9,null,13.9,14.8]
[null,"HC Index",null,null,"2017-02-15",null,null,null,17.166666666666664,11.5,14.7,null,20.2,23.9,12.1,17.7,23.8,13.2,18,10.7,14.3,19.8,null,21,17.3,12.7,null,null,20.5,19.8,16.899999999999999,15.4,19.399999999999999,17.600000000000001,10.9,null,null,null,null,null,null,null,null,null,null,null,null,null,null,null,null,null,"GHIN","Name",null,null,null,null,null,null,null,null,null,null,null,null,null,null,null,null,null,null,null,null,null,null,null,null,null,null,null,null,null,null,null,null,"White",137,126,129,null,"Blue",null,126,118,"Gold",121,null,null,null,null,null,null,null,null,16.8,"25.4/22",16.7,23.3,6.9,15.1,11.4,10.9,null,13.9,14.1]
[null,"HC Index",null,null,"2017-03-01",null,null,null,17.057142857142853,11.5,15,null,20.9,23.5,12,17.7,23.8,13.6,18,10.4,13.2,19.8,null,20.5,16.399999999999999,12.2,null,null,20.5,19.8,16.899999999999999,15.9,19.399999999999999,17.2,10.9,null,null,null,null,null,null,null,null,null,null,null,null,null,null,null,null,null,"GHIN","Name",null,null,null,null,null,null,null,null,null,null,null,null,null,null,null,null,null,null,null,null,null,null,null,null,null,null,null,null,null,null,null,null,"White",137,126,129,null,"Blue",null,126,118,"Gold",121,null,null,null,null,null,null,null,null,16.8,"25.4/22",16.7,23.3,6.9,15.1,11.4,10.9,null,13.9,13.6]
[null,"HC Index",null,null,"2017-03-15",null,null,null,17.099999999999998,11.1,15,null,20.9,23.5,11.9,18,23.7,13.6,18.100000000000001,10.1,13.3,20.2,null,21.2,16.7,12.9,null,17,21.4,19.8,17.7,15.6,18.100000000000001,16.399999999999999,10.9,null,null,null,null,null,null,null,null,null,null,null,null,null,null,null,null,null,"GHIN","Name",null,null,null,null,null,null,null,null,null,null,null,null,null,null,null,null,null,null,null,null,null,null,null,null,null,null,null,null,null,null,null,null,"White",137,126,129,null,"Blue",null,126,118,"Gold",121,null,null,null,null,null,null,null,null,16.8,"25.4/22",16.7,23.3,6.9,15.1,11.4,10.9,null,13.9,13.4]
[null,"HC Index",null,null,"2017-04-01",null,null,null,16.886363636363637,11.5,14.5,null,19.8,24.3,12.2,19.600000000000001,24.3,12.8,17.8,9.6999999999999993,13.1,20.2,null,21.7,16.399999999999999,12.3,null,17.600000000000001,19.2,19.600000000000001,17.7,15.1,16.899999999999999,15.2,10.9,null,null,null,null,null,null,null,null,null,null,null,null,null,null,null,null,null,"GHIN","Name",null,null,null,null,null,null,null,null,null,null,null,null,null,null,null,null,null,null,null,null,null,null,null,null,null,null,null,null,null,null,null,null,"White",137,126,129,null,"Blue",null,126,118,"Gold",121,null,null,null,null,null,null,null,null,16.8,"25.4/22",16.7,23.3,6.9,15.1,11.4,10.9,null,13.9,12.4]
[null,"HC Index",null,null,"2017-04-15",null,null,null,16.68181818181818,11.5,13.8,null,20.6,23.6,11.6,18.600000000000001,24.5,11,18.2,10.7,13.4,19.8,null,21.7,16.5,12,null,17.5,18.8,18.399999999999999,17.2,15.7,17.2,14.7,10.9,null,null,null,null,null,null,null,null,null,null,null,null,null,null,null,null,null,"GHIN","Name",null,null,null,null,null,null,null,null,null,null,null,null,null,null,null,null,null,null,null,null,null,null,null,null,null,null,null,null,null,null,null,null,"White",137,126,129,null,"Blue",null,126,118,"Gold",121,null,null,null,null,null,null,null,null,16.8,"25.4/22",16.7,23.3,6.9,15.1,11.4,10.9,null,13.9,11.6]
[null,"HC Index",null,null,"2017-05-01",null,null,null,16.740909090909096,11.5,13.6,null,20.7,23.6,11.9,18.899999999999999,24.5,10.6,18.2,10.7,14.4,19.8,null,21.7,17.5,11.9,null,18.600000000000001,18.8,18.8,17.100000000000001,14.8,16.3,14.4,10.9,null,null,null,null,null,null,null,null,null,null,null,null,null,null,null,null,null,"GHIN","Name",null,null,null,null,null,null,null,null,null,null,null,null,null,null,null,null,null,null,null,null,null,null,null,null,null,null,null,null,null,null,null,null,"White",137,126,129,null,"Blue",null,126,118,"Gold",121,null,null,null,null,null,null,null,null,16.8,"25.4/22",16.7,23.3,6.9,15.1,11.4,10.9,null,13.9,11.6]
[null,"HC Index",null,null,"2017-05-15",null,null,null,16.659090909090907,11.5,14,null,20.8,23.4,11.9,18.600000000000001,24.5,10.9,18.2,10.5,14.7,19.5,null,21.7,17.5,11.8,null,17.8,18.8,18.3,17.100000000000001,14.2,16.399999999999999,14.4,10.9,null,null,null,null,null,null,null,null,null,null,null,null,null,null,null,null,null,"GHIN","Name",null,null,null,null,null,null,null,null,null,null,null,null,null,null,null,null,null,null,null,null,null,null,null,null,null,null,null,null,null,null,null,null,"White",137,126,129,null,"Blue",null,126,118,"Gold",121,null,null,null,null,null,null,null,null,16.8,"25.4/22",16.7,23.3,6.9,15.1,11.4,10.9,null,13.9,11.8]
[null,"HC Index",null,null,"2017-06-01",null,null,null,16.009090909090908,11.5,13.6,null,19.8,22.7,11.7,16.5,24.5,10.9,18.2,10.5,13.9,18.100000000000001,null,21.1,17.3,11.2,null,15,18.7,16.100000000000001,17.3,13.4,15.8,14.4,10.9,null,null,null,null,null,null,null,null,null,null,null,null,null,null,null,null,null,"GHIN","Name",null,null,null,null,null,null,null,null,null,null,null,null,null,null,null,null,null,null,null,null,null,null,null,null,null,null,null,null,null,null,null,null,"White",137,126,129,null,"Blue",null,126,118,"Gold",121,null,null,null,null,null,null,null,null,16.8,"25.4/22",16.7,23.3,6.9,15.1,11.4,10.9,null,13.9,11.7]
[null,"HC Index",null,null,"2017-06-15",null,null,null,15.945454545454545,12.6,13.6,null,19.5,22.7,11.9,15.9,24.5,10.9,18.2,10.5,13.1,17.899999999999999,null,21.1,18.100000000000001,11.1,null,15.9,18.8,16.100000000000001,15.6,12.7,15.7,14.4,10.9,null,null,null,null,null,null,null,null,null,null,null,null,null,null,null,null,null,"GHIN","Name",null,null,null,null,null,null,null,null,null,null,null,null,null,null,null,null,null,null,null,null,null,null,null,null,null,null,null,null,null,null,null,null,"White",137,126,129,null,"Blue",null,126,118,"Gold",121,null,null,null,null,null,null,null,null,16.8,"25.4/22",16.7,23.3,6.9,15.1,11.4,10.9,null,13.9,12.2]
[null,"HC Index",null,null,"2017-07-01",null,null,null,15.813636363636363,11.7,13.6,null,19.5,23.8,11.9,14.9,24.5,11.1,18.2,10.5,11.6,17.399999999999999,null,21.4,18.100000000000001,10.1,null,17.2,19.899999999999999,15.2,15.1,13.4,15.7,13.1,10.9,null,null,null,null,null,null,null,null,null,null,null,null,null,null,null,null,null,"GHIN","Name",null,null,null,null,null,null,null,null,null,null,null,null,null,null,null,null,null,null,null,null,null,null,null,null,null,null,null,null,null,null,null,null,"White",137,126,129,null,"Blue",null,126,118,"Gold",121,null,null,null,null,null,null,null,null,16.8,"25.4/22",16.7,23.3,6.9,15.1,11.4,10.9,null,13.9,11.7]
[null,"HC Index",null,null,"2017-07-15",null,null,null,15.85,11.7,13.3,null,19.399999999999999,24.6,11.6,14.9,24.1,10.7,18.399999999999999,10.3,11.2,16.899999999999999,null,21.4,18.100000000000001,9.6999999999999993,null,19.2,21,15.1,15.4,13,15.4,13.3,10.9,null,null,null,null,null,null,null,null,null,null,null,null,null,null,null,null,null,"GHIN","Name",null,null,null,null,null,null,null,null,null,null,null,null,null,null,null,null,null,null,null,null,null,null,null,null,null,null,null,null,null,null,null,null,"White",137,126,129,null,"Blue",null,126,118,"Gold",121,null,null,null,null,null,null,null,null,16.8,"25.4/22",16.7,23.3,6.9,15.1,11.4,10.9,null,15.7,11.7]
[null,"HC Index",null,null,"2017-08-01",null,null,null,16.009090909090911,11.7,13.5,null,19.8,24.6,11.7,15.5,24.1,13.2,18.399999999999999,10.4,11.2,16.7,null,21.4,18.100000000000001,10.199999999999999,null,18.3,21.8,15.1,14.1,13,15.6,13.8,10.9,null,null,null,null,null,null,null,null,null,null,null,null,null,null,null,null,null,"GHIN","Name",null,null,null,null,null,null,null,null,null,null,null,null,null,null,null,null,null,null,null,null,null,null,null,null,null,null,null,null,null,null,null,null,"White",137,126,129,null,"Blue",null,126,118,"Gold",121,null,null,null,null,null,null,null,null,16.8,"25.4/22",16.7,23.3,6.9,15.1,11.4,10.9,null,15.5,11.6]
[null,"HC Index",null,null,"2017-08-15",null,null,null,16.059090909090912,12.5,13.6,null,20.100000000000001,25,12,15.5,24.1,12.8,18.399999999999999,10.4,11.1,16.899999999999999,null,21.4,18.100000000000001,10.9,null,17.100000000000001,21.9,15.1,14.1,13,15.5,13.8,10.9,null,null,null,null,null,null,null,null,null,null,null,null,null,null,null,null,null,"GHIN","Name",null,null,null,null,null,null,null,null,null,null,null,null,null,null,null,null,null,null,null,null,null,null,null,null,null,null,null,null,null,null,null,null,"White",137,126,129,null,"Blue",null,126,118,"Gold",121,null,null,null,null,null,null,null,null,16.8,"25.4/22",16.7,23.3,6.9,15.1,11.4,10.9,null,15.8,11.9]
[null,"HC Index",null,null,"2017-09-01",null,null,null,15.813636363636364,12.1,13.6,null,20.100000000000001,24.8,12,16.399999999999999,24.1,12.9,18.399999999999999,11,11,16.899999999999999,null,21.4,11.6,11.6,null,17.100000000000001,21,15.1,14.1,13,15.4,14.3,10.9,null,null,null,null,null,null,null,null,null,null,null,null,null,null,null,null,null,"GHIN","Name",null,null,null,null,null,null,null,null,null,null,null,null,null,null,null,null,null,null,null,null,null,null,null,null,null,null,null,null,null,null,null,null,"White",137,126,129,null,"Blue",null,126,118,"Gold",121,null,null,null,null,null,null,null,null,16.8,"25.4/22",16.7,23.3,6.9,15.1,11.4,10.9,null,14.9,11.9]
[null,"HC Index",null,null,"2017-09-15",null,null,null,16.240909090909096,11.6,15,null,20.100000000000001,24.8,11.5,16.2,24.1,13.1,18.399999999999999,10.9,11.5,16.8,null,21.4,18.100000000000001,12.8,null,18.3,21,14.8,13.8,13.1,14.9,15.1,10.9,null,null,null,null,null,null,null,null,null,null,null,null,null,null,null,null,null,"GHIN","Name",null,null,null,null,null,null,null,null,null,null,null,null,null,null,null,null,null,null,null,null,null,null,null,null,null,null,null,null,null,null,null,null,"White",137,126,129,null,"Blue",null,126,118,"Gold",121,null,null,null,null,null,null,null,null,16.8,"25.4/22",16.7,23.3,6.9,15.1,11.4,10.9,null,14.7,11.6]
[null,"HC Index",null,null,"2017-10-01",null,null,null,16.468181818181819,12.5,15,null,20.100000000000001,24.3,11.7,15.5,24.8,13.1,18.2,11.2,11.6,16.8,null,22.3,18.899999999999999,12.9,null,18.3,20.3,15,13.7,15.1,15.1,15.9,10.9,null,null,null,null,null,null,null,null,null,null,null,null,null,null,null,null,null,"GHIN","Name",null,null,null,null,null,null,null,null,null,null,null,null,null,null,null,null,null,null,null,null,null,null,null,null,null,null,null,null,null,null,null,null,"White",137,126,129,null,"Blue",null,126,118,"Gold",121,null,null,null,null,null,null,null,null,16.8,"25.4/22",16.7,23.3,6.9,15.1,11.4,10.9,null,14.4,13.1]
[null,"HC Index",null,null,"2017-10-15",null,null,null,16.509090909090908,12.5,14.4,null,20.5,24.4,11.9,14.3,24.6,13.1,18.2,11.6,12.5,16.8,null,21.9,18.399999999999999,11.9,null,18.5,20.7,15,13.5,16.600000000000001,15.4,16.5,10.9,null,null,null,null,null,null,null,null,null,null,null,null,null,null,null,null,null,"GHIN","Name",null,null,null,null,null,null,null,null,null,null,null,null,null,null,null,null,null,null,null,null,null,null,null,null,null,null,null,null,null,null,null,null,"White",137,126,129,null,"Blue",null,126,118,"Gold",121,null,null,null,null,null,null,null,null,16.8,"25.4/22",16.7,23.3,6.9,15.1,11.4,10.9,null,14.4,13.1]
[null,"HC Index",null,null,"2017-11-01",null,null,null,16.647826086956524,11.8,14.6,18.899999999999999,21.2,24.2,12,14.4,24.6,13.8,17.7,12.5,13.5,18,null,22.8,16.7,11.5,null,18.5,19.8,15.2,13.1,16.600000000000001,15.9,15.6,10.9,null,null,null,null,null,null,null,null,null,null,null,null,null,null,null,null,null,"GHIN","Name",null,null,null,null,null,null,null,null,null,null,null,null,null,null,null,null,null,null,null,null,null,null,null,null,null,null,null,null,null,null,null,null,"White",137,126,129,null,"Blue",null,126,118,"Gold",121,null,null,null,null,null,null,null,null,16.8,"25.4/22",16.7,23.3,6.9,15.1,11.4,10.9,null,14.6,13.4]
[null,"HC Index",null,null,"2017-11-15",null,null,null,16.700000000000003,10.7,14.8,18.7,21.4,23.9,12,14.9,24.6,13.9,17.8,12.4,13.5,18,null,22.7,16.399999999999999,11.6,null,18.8,19.8,16.7,13,16.8,15.6,16.100000000000001,10.9,null,null,null,null,null,null,null,null,null,null,null,null,null,null,null,null,null,"GHIN","Name",null,null,null,null,null,null,null,null,null,null,null,null,null,null,null,null,null,null,null,null,null,null,null,null,null,null,null,null,null,null,null,null,"White",137,126,129,null,"Blue",null,126,118,"Gold",121,null,null,null,null,null,null,null,null,16.8,"25.4/22",16.7,23.3,6.9,15.1,11.4,10.9,null,14.6,13.3]
[null,"HC Index",null,null,"2017-12-01",null,null,null,16.616666666666667,11,15.4,19.399999999999999,21.4,24,12.4,14.3,24.6,13.9,18.2,11.9,13.5,18.2,null,22.9,15.9,12.8,12.5,17.899999999999999,19.8,16.8,13.3,16.7,15.9,16.100000000000001,10.9,null,null,null,null,null,null,null,null,null,null,null,null,null,null,null,null,null,"GHIN","Name",null,null,null,null,null,null,null,null,null,null,null,null,null,null,null,null,null,null,null,null,null,null,null,null,null,null,null,null,null,null,null,null,"White",137,126,129,null,"Blue",null,126,118,"Gold",121,null,null,null,null,null,null,null,null,16.8,"25.4/22",16.7,23.3,6.9,15.1,11.4,10.9,null,14.7,13.3]
[null,"HC Index",null,null,"2018-01-01",null,null,null,17.112500000000001,10.9,15.5,19.399999999999999,21.7,23.9,12.5,15.4,24.6,14.2,19.3,12.4,12.9,19.399999999999999,null,23.5,16.8,13,14.2,17.899999999999999,20.100000000000001,17.2,13.8,17.7,16.7,17.7,10.9,null,null,null,null,null,null,null,null,null,null,null,null,null,null,null,null,null,"GHIN","Name",null,null,null,null,null,null,null,null,null,null,null,null,null,null,null,null,null,null,null,null,null,null,null,null,null,null,null,null,null,null,null,null,"White",137,126,129,null,"Blue",null,126,118,"Gold",121,null,null,null,null,null,null,null,null,16.8,"25.4/22",16.7,23.3,6.9,15.1,11.4,10.9,null,14.6,13.3]
[null,"HC Index",null,null,"2017-12-15",null,null,null,17.016666666666666,11,15.5,19.399999999999999,21.3,23.6,12.5,15.2,24.6,13.9,19.100000000000001,11.8,12.9,18.8,null,23.5,16.8,13.1,14.2,17.899999999999999,20.2,17.399999999999999,13.5,17.899999999999999,16.600000000000001,17.7,10.9,null,null,null,null,null,null,null,null,null,null,null,null,null,null,null,null,null,"GHIN","Name",null,null,null,null,null,null,null,null,null,null,null,null,null,null,null,null,null,null,null,null,null,null,null,null,null,null,null,null,null,null,null,null,"White",137,126,129,null,"Blue",null,126,118,"Gold",121,null,null,null,null,null,null,null,null,16.8,"25.4/22",16.7,23.3,6.9,15.1,11.4,10.9,null,14.6,13.3]
[null,"HC Index",null,null,"2018-01-01",null,null,null,17.129166666666666,10.9,15.5,19.399999999999999,21.7,24.1,12.5,15.4,24.8,14.2,19.3,12.4,12.9,19.399999999999999,null,23.5,16.8,13,14.2,17.899999999999999,20.100000000000001,17.2,13.8,17.7,16.7,17.7,10.9,null,null,null,null,null,null,null,null,null,null,null,null,null,null,null,null,null,"GHIN","Name",null,null,null,null,null,null,null,null,null,null,null,null,null,null,null,null,null,null,null,null,null,null,null,null,null,null,null,null,null,null,null,null,"White",137,126,129,null,"Blue",null,126,118,"Gold",121,null,null,null,null,null,null,null,null,16.8,"25.4/22",16.7,23.3,6.9,15.1,11.4,10.9,null,14.6,13.3]
[null,"HC Index",null,null,"2018-01-15",null,null,null,17.220833333333331,11.1,15.9,19.600000000000001,22.3,24.1,12.6,15.4,24.8,14.3,19.3,12.4,12.9,19.399999999999999,null,23.5,16.8,13.5,14.2,17.7,20.5,17.2,13.4,17.399999999999999,17.3,17.7,10.9,null,null,null,null,null,null,null,null,null,null,null,null,null,null,null,null,null,"GHIN","Name",null,null,null,null,null,null,null,null,null,null,null,null,null,null,null,null,null,null,null,null,null,null,null,null,null,null,null,null,null,null,null,null,"White",137,126,129,null,"Blue",null,126,118,"Gold",121,null,null,null,null,null,null,null,null,16.8,"25.4/22",16.7,23.3,6.9,15.1,11.4,10.9,null,14.6,14]
[null,"HC Index",null,null,"2018-02-01",null,null,null,17.749999999999996,12,16.3,20.6,24.2,24.7,13.5,15.8,24.8,15.8,18.8,12.4,13.1,20.7,null,23.5,18.7,13.9,14.5,17.7,21.3,17.2,12.5,17.899999999999999,18.399999999999999,17.7,10.9,null,null,null,null,null,null,null,null,null,null,null,null,null,null,null,null,null,"GHIN","Name",null,null,null,null,null,null,null,null,null,null,null,null,null,null,null,null,null,null,null,null,null,null,null,null,null,null,null,null,null,null,null,null,"White",137,126,129,null,"Blue",null,126,118,"Gold",121,null,null,null,null,null,null,null,null,16.8,"25.4/22",16.7,23.3,6.9,15.1,11.4,10.9,null,14.8,14.4]
[null,"HC Index",null,null,"2018-02-15",null,null,null,18.05,12.6,16.2,21.8,25.6,24.6,13.8,15.5,24.8,15.5,19.100000000000001,12.9,14,20.6,null,23.5,18.8,14.2,15.4,18.100000000000001,21,17.2,13.5,18.2,19.100000000000001,17.2,10.9,null,null,null,null,null,null,null,null,null,null,null,null,null,null,null,null,null,"GHIN","Name",null,null,null,null,null,null,null,null,null,null,null,null,null,null,null,null,null,null,null,null,null,null,null,null,null,null,null,null,null,null,null,null,"White",137,126,129,null,"Blue",null,126,118,"Gold",121,null,null,null,null,null,null,null,null,16.8,"25.4/22",16.7,23.3,6.9,15.1,11.4,10.9,null,15,14.4]
[null,"HC Index",null,null,"2018-03-01",null,null,null,18.216666666666665,12.6,16.2,21.8,25.6,24.6,13.8,16.5,24.8,15.7,19.100000000000001,12.5,15.5,21,null,23.5,19.100000000000001,14.1,16.7,18.399999999999999,22,17.2,13.3,17,19.100000000000001,17.100000000000001,10.9,null,null,null,null,null,null,null,null,null,null,null,null,null,null,null,null,null,"GHIN","Name",null,null,null,null,null,null,null,null,null,null,null,null,null,null,null,null,null,null,null,null,null,null,null,null,null,null,null,null,null,null,null,null,"White",137,126,129,null,"Blue",null,126,118,"Gold",121,null,null,null,null,null,null,null,null,16.8,"25.4/22",16.7,23.3,6.9,15.1,11.4,10.9,null,15.8,13.8]
[null,"HC Index",null,null,"2018-03-15",null,null,null,18.208333333333336,12.6,16.7,21.7,25.2,24.7,14.1,16.7,24.6,14.4,20.100000000000001,12.2,14.9,20.5,null,23.5,19,13.3,16.8,19.100000000000001,22,17.899999999999999,13.3,17,19.100000000000001,17.600000000000001,10.9,null,null,null,null,null,null,null,null,null,null,null,null,null,null,null,null,null,"GHIN","Name",null,null,null,null,null,null,null,null,null,null,null,null,null,null,null,null,null,null,null,null,null,null,null,null,null,null,null,null,null,null,null,null,"White",137,126,129,null,"Blue",null,126,118,"Gold",121,null,null,null,null,null,null,null,null,16.8,"25.4/22",16.7,23.3,6.9,15.1,11.4,10.9,null,16,13.8]
[null,"HC Index",null,null,"2018-04-01",null,null,null,18.033333333333335,13.2,17.2,21.8,22.9,25.2,13.6,17,24.9,14.3,19.3,11.5,14.9,22.4,null,23.5,19.100000000000001,12.9,14.7,19.100000000000001,21.7,16.7,13.7,17.100000000000001,17.899999999999999,18.2,10.9,null,null,null,null,null,null,null,null,null,null,null,null,null,null,null,null,null,"GHIN","Name",null,null,null,null,null,null,null,null,null,null,null,null,null,null,null,null,null,null,null,null,null,null,null,null,null,null,null,null,null,null,null,null,"White",137,126,129,null,"Blue",null,126,118,"Gold",121,null,null,null,null,null,null,null,null,16.8,"25.4/22",16.7,23.3,6.9,15.1,11.4,10.9,null,16.899999999999999,13.8]
[null,"HC Index",null,null,"2018-04-15",null,null,null,17.683333333333326,13.5,17,21.8,22.9,24.8,13.1,17,23.8,13.1,17.899999999999999,12.5,14.9,22.4,null,23.2,17.399999999999999,13.2,14.2,18.5,21.7,15.9,13.7,17.3,16.899999999999999,17.7,10.9,null,null,null,null,null,null,null,null,null,null,null,null,null,null,null,null,null,"GHIN","Name",null,null,null,null,null,null,null,null,null,null,null,null,null,null,null,null,null,null,null,null,null,null,null,null,null,null,null,null,null,null,null,null,"White",137,126,129,null,"Blue",null,126,118,"Gold",121,null,null,null,null,null,null,null,null,16.8,"25.4/22",16.7,23.3,6.9,15.1,11.4,10.9,null,17.100000000000001,13.9]
[null,"HC Index",null,null,"2018-05-01",null,null,null,17.520833333333332,13.5,16.899999999999999,22.2,19.899999999999999,25.7,12.4,17.399999999999999,23.9,13.2,17.899999999999999,12.2,15,22.7,null,22.7,17.100000000000001,14.3,14.8,17.7,21.7,15.9,13.7,17.399999999999999,15.6,16.7,10.9,null,null,null,null,null,null,null,null,null,null,null,null,null,null,null,null,null,"GHIN","Name",null,null,null,null,null,null,null,null,null,null,null,null,null,null,null,null,null,null,null,null,null,null,null,null,null,null,null,null,null,null,null,null,"White",137,126,129,null,"Blue",null,126,118,"Gold",121,null,null,null,null,null,null,null,null,16.8,"25.4/22",16.7,23.3,6.9,15.1,11.4,10.9,null,15.6,14.5]
[null,"HC Index",null,null,"2018-05-15",null,null,null,17.204166666666669,12.5,16.899999999999999,22.2,18.899999999999999,24.5,12.7,17.100000000000001,23.7,12.9,17.399999999999999,12,15.4,22.1,null,22.4,17.100000000000001,12.8,13.5,17.399999999999999,22.1,15.8,14.2,17.3,15.9,16.100000000000001,10.9,null,null,null,null,null,null,null,null,null,null,null,null,null,null,null,null,null,"GHIN","Name",null,null,null,null,null,null,null,null,null,null,null,null,null,null,null,null,null,null,null,null,null,null,null,null,null,null,null,null,null,null,null,null,"White",137,126,129,null,"Blue",null,126,118,"Gold",121,null,null,null,null,null,null,null,null,16.8,"25.4/22",16.7,23.3,6.9,15.1,11.4,10.9,null,15.6,13.8]
[null,"HC Index",null,null,"2018-06-01",null,null,null,17.091666666666669,12.3,16.600000000000001,21.7,19,24.5,12.3,18.100000000000001,23.7,14,17.7,12,15.7,21.6,null,20.7,18.2,12.3,12.6,17.5,22.5,15.8,12.5,17.3,15.8,15.8,10.9,null,null,null,null,null,null,null,null,null,null,null,null,null,null,null,null,null,"GHIN","Name",null,null,null,null,null,null,null,null,null,null,null,null,null,null,null,null,null,null,null,null,null,null,null,null,null,null,null,null,null,null,null,null,"White",137,126,129,null,"Blue",null,126,118,"Gold",121,null,null,null,null,null,null,null,null,16.8,"25.4/22",16.7,23.3,6.9,15.1,11.4,10.9,null,15.2,13.6]
[null,"HC Index",null,null,"2018-06-15",null,null,null,17.166666666666664,12.2,16.899999999999999,22.3,19.899999999999999,24.5,11.9,18.5,23.7,14.8,15.8,12,15.7,22,null,20.2,18.3,13.1,12.5,17.399999999999999,22.8,15.9,12.7,17.5,15.5,15.9,10.9,null,null,null,null,null,null,null,null,null,null,null,null,null,null,null,null,null,"GHIN","Name",null,null,null,null,null,null,null,null,null,null,null,null,null,null,null,null,null,null,null,null,null,null,null,null,null,null,null,null,null,null,null,null,"White",137,126,129,null,"Blue",null,126,118,"Gold",121,null,null,null,null,null,null,null,null,16.8,"25.4/22",16.7,23.3,6.9,15.1,11.4,10.9,null,15.3,13.6]
[null,"HC Index",null,null,"2018-07-01",null,null,null,17.304166666666667,12.9,16.399999999999999,23.6,20.6,24.4,11.9,18.5,23.7,13.8,15,12.6,16,22.3,null,20.2,18.3,13.5,12.5,17.2,22.9,15.8,12.7,18.100000000000001,16.600000000000001,15.8,10.9,null,null,null,null,null,null,null,null,null,null,null,null,null,null,null,null,null,"GHIN","Name",null,null,null,null,null,null,null,null,null,null,null,null,null,null,null,null,null,null,null,null,null,null,null,null,null,null,null,null,null,null,null,null,"White",137,126,129,null,"Blue",null,126,118,"Gold",121,null,null,null,null,null,null,null,null,16.8,"25.4/22",16.7,23.3,6.9,15.1,11.4,10.9,null,15.3,12.9]
[null,"HC Index",null,null,"2018-07-15",null,null,null,17.333333333333336,12.9,15.9,23.4,22,24.4,11.8,18.5,23.7,13.8,15.3,12.6,17,21.3,null,20.2,18.7,13.5,13,16.5,22.3,15.8,12.6,18.2,16.600000000000001,16,10.9,null,null,null,null,null,null,null,null,null,null,null,null,null,null,null,null,null,"GHIN","Name",null,null,null,null,null,null,null,null,null,null,null,null,null,null,null,null,null,null,null,null,null,null,null,null,null,null,null,null,null,null,null,null,"White",137,126,129,null,"Blue",null,126,118,"Gold",121,null,null,null,null,null,null,null,null,16.8,"25.4/22",16.7,23.3,6.9,15.1,11.4,10.9,null,15.7,12.5]
[null,"HC Index",null,null,"2018-08-01",null,null,null,17.462499999999999,12.2,15.7,23.1,23.2,24.7,12,18.5,23.7,14.1,15.3,13.2,17.600000000000001,21.1,null,20.100000000000001,20.5,13,14.5,17,21.2,15.8,11.9,18,16.7,16,10.9,null,null,null,null,null,null,null,null,null,null,null,null,null,null,null,null,null,"GHIN","Name",null,null,null,null,null,null,null,null,null,null,null,null,null,null,null,null,null,null,null,null,null,null,null,null,null,null,null,null,null,null,null,null,"White",137,126,129,null,"Blue",null,126,118,"Gold",121,null,null,null,null,null,null,null,null,16.8,"25.4/22",16.7,23.3,6.9,15.1,11.4,10.9,null,14.9,12.9]
[null,"HC Index",null,null,"2018-08-15",null,null,null,17.645833333333339,11.6,15.4,23.1,22.3,24.5,12.4,18.5,23.7,14.1,15.3,13.4,16.8,20.9,null,20.6,21.5,12.6,15.1,16.899999999999999,21.1,15.8,12.5,19.600000000000001,16.7,19.100000000000001,10.9,null,null,null,null,null,null,null,null,null,null,null,null,null,null,null,null,null,"GHIN","Name",null,null,null,null,null,null,null,null,null,null,null,null,null,null,null,null,null,null,null,null,null,null,null,null,null,null,null,null,null,null,null,null,"White",137,126,129,null,"Blue",null,126,118,"Gold",121,null,null,null,null,null,null,null,null,16.8,"25.4/22",16.7,23.3,6.9,15.1,11.4,10.9,null,15.1,13.3]
[null,"HC Index",null,null,"2018-09-01",null,null,null,17.675000000000001,11.6,15.8,23.1,22.5,25,12.5,19.7,23.7,14.6,15.8,13.5,16,21.1,null,21.3,20.100000000000001,12.8,15.3,16.5,20.8,15.8,11.8,20.8,16.399999999999999,17.7,10.9,null,null,null,null,null,null,null,null,null,null,null,null,null,null,null,null,null,"GHIN","Name",null,null,null,null,null,null,null,null,null,null,null,null,null,null,null,null,null,null,null,null,null,null,null,null,null,null,null,null,null,null,null,null,"White",137,126,129,null,"Blue",null,126,118,"Gold",121,null,null,null,null,null,null,null,null,16.8,"25.4/22",16.7,23.3,6.9,15.1,11.4,10.9,null,14,12.2]
[null,"HC Index",null,null,"2018-09-15",null,null,null,17.69166666666667,11.6,15.7,23.1,22.5,25,12.5,20.2,23.7,15.4,15.8,13.5,14.8,20.3,null,21.3,20.3,13.2,15.8,16.3,21.1,15.8,11.8,20.8,16.399999999999999,17.7,10.9,null,null,null,null,null,null,null,null,null,null,null,null,null,null,null,null,null,"GHIN","Name",null,null,null,null,null,null,null,null,null,null,null,null,null,null,null,null,null,null,null,null,null,null,null,null,null,null,null,null,null,null,null,null,"White",137,126,129,null,"Blue",null,126,118,"Gold",121,null,null,null,null,null,null,null,null,16.8,"25.4/22",16.7,23.3,6.9,15.1,11.4,10.9,null,14.3,12.2]
[null,"HC Index",null,null,"2018-10-01",null,null,null,17.874999999999996,11.6,15.6,23.1,22.6,26,12.5,20.2,23.7,16.2,16.3,13.5,13.9,20.100000000000001,null,21.3,20.3,13.2,17.399999999999999,16.3,21.7,15.8,12,20.8,17.2,17.7,10.9,null,null,null,null,null,null,null,null,null,null,null,null,null,null,null,null,null,"GHIN","Name",null,null,null,null,null,null,null,null,null,null,null,null,null,null,null,null,null,null,null,null,null,null,null,null,null,null,null,null,null,null,null,null,"White",137,126,129,null,"Blue",null,126,118,"Gold",121,null,null,null,null,null,null,null,null,16.8,"25.4/22",16.7,23.3,6.9,15.1,11.4,10.9,null,14.2,12.6]
[null,"HC Index",null,null,"2018-10-15",null,null,null,17.866666666666667,11.7,15.6,23.1,22.6,26.2,13,20.2,23.7,16.899999999999999,16.5,13.5,13.9,19.600000000000001,null,21.3,20.3,12.2,17.3,16.5,20.399999999999999,16.5,12,20.8,17.2,17.8,10.9,null,null,null,null,null,null,null,null,null,null,null,null,null,null,null,null,null,"GHIN","Name",null,null,null,null,null,null,null,null,null,null,null,null,null,null,null,null,null,null,null,null,null,null,null,null,null,null,null,null,null,null,null,null,"White",137,126,129,null,"Blue",null,126,118,"Gold",121,null,null,null,null,null,null,null,null,16.8,"25.4/22",16.7,23.3,6.9,15.1,11.4,10.9,null,14.2,12.6]
[null,"HC Index",null,null,"2018-11-01",null,null,null,18.025000000000002,11.7,15.6,23.1,23,26.2,13.2,20.2,23.7,16.8,16.600000000000001,12.9,14.2,19.600000000000001,null,21,20.3,12,17.600000000000001,17,21.5,17.100000000000001,11.8,20.8,18,18.7,10.9,null,null,null,null,null,null,null,null,null,null,null,null,null,null,null,null,null,"GHIN","Name",null,null,null,null,null,null,null,null,null,null,null,null,null,null,null,null,null,null,null,null,null,null,null,null,null,null,null,null,null,null,null,null,"White",137,126,129,null,"Blue",null,126,118,"Gold",121,null,null,null,null,null,null,null,null,16.8,"25.4/22",16.7,23.3,6.9,15.1,11.4,10.9,null,14.2,12.4]
[null,"HC Index",null,null,"2018-11-15",null,null,null,17.950000000000006,11.7,16.600000000000001,23.1,23.1,26.2,13.6,19.399999999999999,23.7,16.8,16.100000000000001,12.8,14.2,19.3,null,21,20.100000000000001,11.6,16.7,17,21.5,17.100000000000001,12,20.8,17.8,18.600000000000001,10.9,null,null,null,null,null,null,null,null,null,null,null,null,null,null,null,null,null,"GHIN","Name",null,null,null,null,null,null,null,null,null,null,null,null,null,null,null,null,null,null,null,null,null,null,null,null,null,null,null,null,null,null,null,null,"White",137,126,129,null,"Blue",null,126,118,"Gold",121,null,null,null,null,null,null,null,null,16.8,"25.4/22",16.7,23.3,6.9,15.1,11.4,10.9,null,14.2,12.4]
[null,"HC Index",null,null,"2018-12-01",null,null,null,18.383333333333336,12.1,18.100000000000001,22.9,24.8,26.9,14.4,20.9,23.7,16.899999999999999,16.100000000000001,12.7,14.7,19,null,21,19.600000000000001,11.8,17.100000000000001,17.8,21.5,18.2,11.7,20.8,18.100000000000001,20.399999999999999,10.9,null,null,null,null,null,null,null,null,null,null,null,null,null,null,null,null,null,"GHIN","Name",null,null,null,null,null,null,null,null,null,null,null,null,null,null,null,null,null,null,null,null,null,null,null,null,null,null,null,null,null,null,null,null,"White",137,126,129,null,"Blue",null,126,118,"Gold",121,null,null,null,null,null,null,null,null,16.8,"25.4/22",16.7,23.3,6.9,15.1,11.4,10.9,null,14.2,12.4]
[null,"HC Index",null,null,"2018-12-15",null,null,null,18.537499999999994,12.1,18.100000000000001,22.3,25.8,26.9,14.9,21.2,23.4,16.7,16.100000000000001,12.2,14.7,19.2,null,21,19.399999999999999,12.5,17.3,17.5,22,18.399999999999999,12,20.8,19,21.4,10.9,null,null,null,null,null,null,null,null,null,null,null,null,null,null,null,null,null,"GHIN","Name",null,null,null,null,null,null,null,null,null,null,null,null,null,null,null,null,null,null,null,null,null,null,null,null,null,null,null,null,null,null,null,null,"White",137,126,129,null,"Blue",null,126,118,"Gold",121,null,null,null,null,null,null,null,null,16.8,"25.4/22",16.7,23.3,6.9,15.1,11.4,10.9,null,14.2,12.8]
[null,"HC Index",null,null,"2019-01-01",null,null,null,18.521666666666665,11.9,18.399999999999999,22.1,25.9,26.9,14.9,21.12,23.4,16.7,16.100000000000001,12.2,14.7,19.2,null,21,18.899999999999999,12.3,17.399999999999999,17.5,22,18.399999999999999,12,20.8,19.5,21.2,10.9,null,null,null,null,null,null,null,null,null,null,null,null,null,null,null,null,null,"GHIN","Name",null,null,null,null,null,null,null,null,null,null,null,null,null,null,null,null,null,null,null,null,null,null,null,null,null,null,null,null,null,null,null,null,"White",137,126,129,null,"Blue",null,126,118,"Gold",121,null,null,null,null,null,null,null,null,16.8,"25.4/22",16.7,23.3,6.9,15.1,11.4,10.9,null,14.2,12.5]
[null,"HC Index",null,null,"2019-01-15",null,null,null,18.525833333333328,11.9,19.100000000000001,22,26.5,26.9,14.9,21.12,23.3,16.7,16.100000000000001,12.2,14.7,19.2,null,21,18.399999999999999,12.4,17.399999999999999,17.399999999999999,21.3,18.399999999999999,12,20.8,19.5,21.4,10.9,null,null,null,null,null,null,null,null,null,null,null,null,null,null,null,null,null,"GHIN","Name",null,null,null,null,null,null,null,null,null,null,null,null,null,null,null,null,null,null,null,null,null,null,null,null,null,null,null,null,null,null,null,null,"White",137,126,129,null,"Blue",null,126,118,"Gold",121,null,null,null,null,null,null,null,null,16.8,"25.4/22",16.7,23.3,6.9,15.1,11.4,10.9,null,14.2,12.6]
[null,"HC Index",null,null,"2019-02-01",null,null,null,18.612500000000001,11.9,19.100000000000001,22,26.1,27.3,14.9,20.9,23.5,16.600000000000001,16.100000000000001,12.2,15.3,19,null,21,19.8,12.1,17.399999999999999,17.8,21.3,18.399999999999999,12,20.8,20.2,21,10.9,null,null,null,null,null,null,null,null,null,null,null,null,null,null,null,null,null,"GHIN","Name",null,null,null,null,null,null,null,null,null,null,null,null,null,null,null,null,null,null,null,null,null,null,null,null,null,null,null,null,null,null,null,null,"White",137,126,129,null,"Blue",null,126,118,"Gold",121,null,null,null,null,null,null,null,null,16.8,"25.4/22",16.7,23.3,6.9,15.1,11.4,10.9,null,14.2,13.6]
[null,"HC Index",null,null,"2019-02-15",null,null,null,18.524999999999999,13.9,19.3,21.7,22.6,27.3,14.9,19.899999999999999,23.5,16.899999999999999,16.2,12.8,15.1,19.899999999999999,null,21,19.7,12,16.5,18.3,21.3,18.399999999999999,12,20.8,20.399999999999999,20.2,10.9,null,null,null,null,null,null,null,null,null,null,null,null,null,null,null,null,null,"GHIN","Name",null,null,null,null,null,null,null,null,null,null,null,null,null,null,null,null,null,null,null,null,null,null,null,null,null,null,null,null,null,null,null,null,"White",137,126,129,null,"Blue",null,126,118,"Gold",121,null,null,null,null,null,null,null,null,16.8,"25.4/22",16.7,23.3,6.9,15.1,11.4,10.9,null,14.2,13.6]
[null,"HC Index",null,null,"2019-03-01",null,null,null,18.545833333333331,13.7,19.5,21,22.6,26.4,15.7,19.899999999999999,23.5,17.399999999999999,16.5,12.5,15.2,19.899999999999999,null,21,19.7,12,17.399999999999999,18.7,20.8,18.399999999999999,12,20.8,20.6,19.899999999999999,10.9,null,null,null,null,null,null,null,null,null,null,null,null,null,null,null,null,null,"GHIN","Name",null,null,null,null,null,null,null,null,null,null,null,null,null,null,null,null,null,null,null,null,null,null,null,null,null,null,null,null,null,null,null,null,"White",137,126,129,null,"Blue",null,126,118,"Gold",121,null,null,null,null,null,null,null,null,16.8,"25.4/22",16.7,23.3,6.9,15.1,11.4,10.9,null,14.2,14]
[null,"HC Index",null,null,"2019-03-15",null,null,null,18.495833333333337,13.8,19.5,20.100000000000001,22.3,26,14.9,20.6,23.5,17.399999999999999,16.899999999999999,11.5,15.8,19.8,null,21,19.600000000000001,11.8,17.3,18.7,21,19.100000000000001,12,20.8,20.6,19.899999999999999,10.9,null,null,null,null,null,null,null,null,null,null,null,null,null,null,null,null,null,"GHIN","Name",null,null,null,null,null,null,null,null,null,null,null,null,null,null,null,null,null,null,null,null,null,null,null,null,null,null,null,null,null,null,null,null,"White",137,126,129,null,"Blue",null,126,118,"Gold",121,null,null,null,null,null,null,null,null,16.8,"25.4/22",16.7,23.3,6.9,15.1,11.4,10.9,null,14.2,14]
[null,"HC Index",null,null,"2019-04-15",null,null,null,17.95,11.6,19.2,19.600000000000001,20.7,26,14.4,18.899999999999999,22.3,16.7,17.5,9,14.8,18.100000000000001,null,21,19.100000000000001,13.4,18.100000000000001,18.399999999999999,20.7,19,12,21.4,20.6,18.3,10.9,null,null,null,null,null,null,null,null,null,null,null,null,null,null,null,null,null,"GHIN","Name",null,null,null,null,null,null,null,null,null,null,null,null,null,null,null,null,null,null,null,null,null,null,null,null,null,null,null,null,null,null,null,null,"White",137,126,129,null,"Blue",null,126,118,"Gold",121,null,null,null,null,null,null,null,null,16.8,"25.4/22",16.7,23.3,6.9,15.1,11.4,10.9,null,14.2,13.4]
[null,"HC Index",null,null,"2019-04-01",null,null,null,{"$f":"AVERAGE(J381:AH381)","v":18.037499999999998},10.1,19.2,20.9,20.8,25.3,15,19.100000000000001,22.7,16.5,17.5,9.5,14.8,18.5,null,21,19.600000000000001,13,17.399999999999999,18.2,22.1,19.899999999999999,12,20.8,20.6,18.399999999999999,10.9,null,null,null,null,null,null,null,null,null,null,null,null,null,null,null,null,null,"GHIN","Name",null,null,null,null,null,null,null,null,null,null,null,null,null,null,null,null,null,null,null,null,null,null,null,null,null,null,null,null,null,null,null,null,"White",137,126,129,null,"Blue",null,126,118,"Gold",121,null,null,null,null,null,null,null,null,16.8,"25.4/22",16.7,23.3,6.9,15.1,11.4,10.9,null,14.2,13.9]
[null,"HC Index",null,null,"2019-04-15",null,null,null,17.470833333333335,10.1,19.2,19.600000000000001,15.7,21,14.4,18.899999999999999,22.3,16.7,17.5,9,14.8,18.100000000000001,null,21,19.100000000000001,13.4,18.100000000000001,18.399999999999999,20.7,19,12,21.4,20.6,18.3,10.9,null,null,null,null,null,null,null,null,null,null,null,null,null,null,null,null,null,"GHIN","Name",null,null,null,null,null,null,null,null,null,null,null,null,null,null,null,null,null,null,null,null,null,null,null,null,null,null,null,null,null,null,null,null,"White",137,126,129,null,"Blue",null,126,118,"Gold",121,null,null,null,null,null,null,null,null,16.8,"25.4/22",16.7,23.3,6.9,15.1,11.4,10.9,null,14.2,13.4]
[null,"HC Index",null,null,"2019-05-01",null,null,null,17.554166666666671,8.1999999999999993,19.7,19.7,19.5,25.6,14.2,18.2,22.3,16.3,17.7,8.4,16,17.100000000000001,null,21,18.100000000000001,13.2,18.100000000000001,17.600000000000001,20.100000000000001,18,13.1,21.4,20.6,17.2,10.9,null,null,null,null,null,null,null,null,null,null,null,null,null,null,null,null,null,"GHIN","Name",null,null,null,null,null,null,null,null,null,null,null,null,null,null,null,null,null,null,null,null,null,null,null,null,null,null,null,null,null,null,null,null,"White",137,126,129,null,"Blue",null,126,118,"Gold",121,null,null,null,null,null,null,null,null,16.8,"25.4/22",16.7,23.3,6.9,15.1,11.4,10.9,null,14.2,12.9]
[null,"HC Index",null,null,"5/15/52019",null,null,null,17.533333333333331,8.1999999999999993,19.899999999999999,20,19.3,25.6,14,18.2,22.3,16.3,17.7,8.4,15.7,17.100000000000001,null,21,17.899999999999999,13.2,18.5,17.399999999999999,20.399999999999999,18,13.1,21.4,20.6,16.600000000000001,10.9,null,null,null,null,null,null,null,null,null,null,null,null,null,null,null,null,null,"GHIN","Name",null,null,null,null,null,null,null,null,null,null,null,null,null,null,null,null,null,null,null,null,null,null,null,null,null,null,null,null,null,null,null,null,"White",137,126,129,null,"Blue",null,126,118,"Gold",121,null,null,null,null,null,null,null,null,16.8,"25.4/22",16.7,23.3,6.9,15.1,11.4,10.9,null,14.2,13.3]
[null,"HC Index",null,null,"2019-06-01",null,null,null,17.412499999999994,8.1999999999999993,19.899999999999999,20.5,19.8,24.5,13.9,18.2,22.2,16.3,17.7,8.1,16.100000000000001,16.899999999999999,null,21,17.100000000000001,13.2,17.899999999999999,16.2,20.399999999999999,17.5,13.9,21.4,20.6,16.399999999999999,10.9,null,null,null,null,null,null,null,null,null,null,null,null,null,null,null,null,null,"GHIN","Name",null,null,null,null,null,null,null,null,null,null,null,null,null,null,null,null,null,null,null,null,null,null,null,null,null,null,null,null,null,null,null,null,"White",137,126,129,null,"Blue",null,126,118,"Gold",121,null,null,null,null,null,null,null,null,16.8,"25.4/22",16.7,23.3,6.9,15.1,11.4,10.9,null,14.2,12.9]
[null,"HC Index",null,null,"2019-06-15",null,null,null,17.204166666666666,9.1,19.7,20.5,19.100000000000001,24.2,13.5,18.2,22.2,16.3,17.399999999999999,8.1,16.399999999999999,17.3,null,21,17.3,11.9,17.899999999999999,15.9,16.5,17.5,14.3,21.4,20.6,16.600000000000001,10.9,null,null,null,null,null,null,null,null,null,null,null,null,null,null,null,null,null,"GHIN","Name",null,null,null,null,null,null,null,null,null,null,null,null,null,null,null,null,null,null,null,null,null,null,null,null,null,null,null,null,null,null,null,null,"White",137,126,129,null,"Blue",null,126,118,"Gold",121,null,null,null,null,null,null,null,null,16.8,"25.4/22",16.7,23.3,6.9,15.1,11.4,10.9,null,14.2,11.7]
[null,"HC Index",null,null,"2019-07-01",null,null,null,16.804000000000002,9.1,19.8,20.5,19.100000000000001,24.3,13.5,18.2,22.2,16.3,17.3,8.1,15.5,17.2,7,21,17.3,11.9,18,15.5,19.8,16.100000000000001,14.3,21.4,20.6,16.100000000000001,19.600000000000001,null,null,null,null,null,null,null,null,null,null,null,null,null,null,null,null,null,"GHIN","Name",null,null,null,null,null,null,null,null,null,null,null,null,null,null,null,null,null,null,null,null,null,null,null,null,null,null,null,null,null,null,null,null,"White",137,126,129,null,"Blue",null,126,118,"Gold",121,null,null,null,null,null,null,null,null,16.8,"25.4/22",16.7,23.3,6.9,15.1,11.4,10.9,null,14.2,11]
[null,"HC Index",null,null,"2019-07-15",null,null,null,16.700000000000003,9.1,19.2,20.5,19.399999999999999,25,13.1,17.7,22.1,16.3,17.3,8.5,15.3,17.7,6.1,21,17.5,11.6,17.3,15.5,19.8,16.100000000000001,12.7,21.4,20.6,16.7,19.600000000000001,null,null,null,null,null,null,null,null,null,null,null,null,null,null,null,null,null,"GHIN","Name",null,null,null,null,null,null,null,null,null,null,null,null,null,null,null,null,null,null,null,null,null,null,null,null,null,null,null,null,null,null,null,null,"White",137,126,129,null,"Blue",null,126,118,"Gold",121,null,null,null,null,null,null,null,null,16.8,"25.4/22",16.7,23.3,6.9,15.1,11.4,10.9,null,14.2,11]
[null,"HC Index",null,null,"2019-08-01",null,null,null,16.772000000000002,9.1,19.100000000000001,20.5,19.3,25.6,12.9,18,22.1,16.3,17.3,8.1999999999999993,15.7,17.7,4.3,21,18.399999999999999,11.6,17.899999999999999,16.600000000000001,19.8,16.100000000000001,13.2,21.4,20.6,16.600000000000001,19.2,null,null,null,null,null,null,null,null,null,null,null,null,null,null,null,null,null,"GHIN","Name",null,null,null,null,null,null,null,null,null,null,null,null,null,null,null,null,null,null,null,null,null,null,null,null,null,null,null,null,null,null,null,null,"White",137,126,129,null,"Blue",null,126,118,"Gold",121,null,null,null,null,null,null,null,null,16.8,"25.4/22",16.7,23.3,6.9,15.1,11.4,10.9,19.2,14.2,11.5]
[null,"HC Index",null,null,"2019-08-15",null,null,null,16.891999999999999,9.1,19.100000000000001,20.5,20.3,26.7,12.9,16.899999999999999,22.1,16.5,17.3,9.4,15.3,17.7,7.1,21,18.5,11.6,17.8,15,19.8,16.100000000000001,11.7,21.9,20.6,17.399999999999999,19.2,null,null,null,null,null,null,null,null,null,null,null,null,null,null,null,null,null,"GHIN","Name",null,null,null,null,null,null,null,null,null,null,null,null,null,null,null,null,null,null,null,null,null,null,null,null,null,null,null,null,null,null,null,null,"White",137,126,129,null,"Blue",null,126,118,"Gold",121,null,null,null,null,null,null,null,null,16.8,"25.4/22",16.7,23.3,6.9,15.1,11.4,10.9,19.2,14.2,9.9]
[null,"HC Index",null,null,"2019-09-01",null,null,null,17.071999999999999,9.1,19.2,20.5,20.8,26.7,12.5,16.3,22.1,16.399999999999999,17.600000000000001,8.6,15.3,18.399999999999999,7.8,21,18.5,12,18.2,16.899999999999999,21.2,16.100000000000001,11.6,22,20.6,17.399999999999999,20,null,null,null,null,null,null,null,null,null,null,null,null,null,null,null,null,null,"GHIN","Name",null,null,null,null,null,null,null,null,null,null,null,null,null,null,null,null,null,null,null,null,null,null,null,null,null,null,null,null,null,null,null,null,"White",137,126,129,null,"Blue",null,126,118,"Gold",121,null,null,null,null,null,null,null,null,16.8,"25.4/22",16.7,23.3,6.9,15.1,11.4,10.9,19.2,14.2,10.1]
[null,"HC Index",null,null,"9/15/52019",null,null,null,17.252000000000002,9.4,19.399999999999999,20.5,20.8,26.7,12.8,17.600000000000001,22.1,17,17.899999999999999,8.5,15.3,19.399999999999999,8.1,21,19.100000000000001,12.5,18.5,15.7,22.3,16.100000000000001,11,21.5,20.6,17.5,19.899999999999999,null,null,null,null,null,null,null,null,null,null,null,null,null,null,null,null,null,"GHIN","Name",null,null,null,null,null,null,null,null,null,null,null,null,null,null,null,null,null,null,null,null,null,null,null,null,null,null,null,null,null,null,null,null,"White",137,126,129,null,"Blue",null,126,118,"Gold",121,null,null,null,null,null,null,null,null,16.8,"25.4/22",16.7,23.3,6.9,15.1,11.4,10.9,19.2,14.2,10.1]
[null,"HC Index",null,null,"2019-10-01",null,null,null,17.268000000000001,9.4,20,20.5,20.8,26.7,13.4,16.899999999999999,22.1,17,17.899999999999999,8.5,15.3,19.5,8.8000000000000007,21,19.399999999999999,12.5,18.5,15.3,21.9,16.100000000000001,10.7,21.5,20.6,17.399999999999999,20.399999999999999,null,null,null,null,null,null,null,null,null,null,null,null,null,null,null,null,null,"GHIN","Name",null,null,null,null,null,null,null,null,null,null,null,null,null,null,null,null,null,null,null,null,null,null,null,null,null,null,null,null,null,null,null,null,"White",137,126,129,null,"Blue",null,126,118,"Gold",121,null,null,null,null,null,null,null,null,16.8,"25.4/22",16.7,23.3,6.9,15.1,11.4,10.9,19.2,14.2,10.1]
[null,"HC Index",null,null,"2019-10-15",null,null,null,17.420000000000002,9.6,19.600000000000001,20.5,21.8,26.7,13.2,17.100000000000001,22.1,16.8,17.899999999999999,8.8000000000000007,15.3,19.899999999999999,8.6,21,20.5,12.2,18.5,16.399999999999999,21.9,16.899999999999999,10.6,21.6,20.6,17.399999999999999,20.100000000000001,null,null,null,null,null,null,null,null,null,null,null,null,null,null,null,null,null,"GHIN","Name",null,null,null,null,null,null,null,null,null,null,null,null,null,null,null,null,null,null,null,null,null,null,null,null,null,null,null,null,null,null,null,null,"White",137,126,129,null,"Blue",null,126,118,"Gold",121,null,null,null,null,null,null,null,null,16.8,"25.4/22",16.7,23.3,6.9,15.1,11.4,10.9,19.2,14.2,10.1]
[null,"HC Index",null,null,"2019-11-01",null,null,null,17.684000000000001,9.6,20.2,20.5,23.6,26.7,13.1,17.5,22.1,16.8,19.3,8.6,15.3,20.3,9.1999999999999993,21,21.3,12.2,19.399999999999999,15.6,21.7,16.899999999999999,10.7,21.6,20.6,18.3,20.100000000000001,17.100000000000001,null,null,null,null,null,null,null,null,null,null,null,null,null,null,null,null,"GHIN","Name",null,null,null,null,null,null,null,null,null,null,null,null,null,null,null,null,null,null,null,null,null,null,null,null,null,null,null,null,null,null,null,null,"White",137,126,129,null,"Blue",null,126,118,"Gold",121,null,null,null,null,null,null,null,null,16.8,"25.4/22",16.7,23.3,6.9,15.1,11.4,10.9,19.2,14.2,10.199999999999999]
[null,"HC Index",null,null,"2019-11-15",null,null,null,17.820000000000004,10.1,20.3,20.5,24.1,26.7,13.6,17.5,22.1,17,19.3,9.1999999999999993,15.3,20.3,8.9,21,21.8,12.5,19.5,15.6,21.9,16.899999999999999,10.7,22,20.6,18.100000000000001,20,17.600000000000001,null,null,null,null,null,null,null,null,null,null,null,null,null,null,null,null,"GHIN","Name",null,null,null,null,null,null,null,null,null,null,null,null,null,null,null,null,null,null,null,null,null,null,null,null,null,null,null,null,null,null,null,null,"White",137,126,129,null,"Blue",null,126,118,"Gold",121,null,null,null,null,null,null,null,null,16.8,"25.4/22",16.7,23.3,6.9,15.1,11.4,10.9,19.2,14.2,10.199999999999999]
[null,"HC Index",null,null,"12/1//2019",null,null,null,18.167999999999999,10,20.6,20.5,25,26.7,14,17.8,22.1,17.399999999999999,19.600000000000001,9.1999999999999993,15.4,20.6,9.1,21,22.7,13.5,20.3,16.2,22.4,17.2,11.2,22.3,20.6,18.8,20,17.600000000000001,null,null,null,null,null,null,null,null,null,null,null,null,null,null,null,null,"GHIN","Name",null,null,null,null,null,null,null,null,null,null,null,null,null,null,null,null,null,null,null,null,null,null,null,null,null,null,null,null,null,null,null,null,"White",137,126,129,null,"Blue",null,126,118,"Gold",121,null,null,null,null,null,null,null,null,16.8,"25.4/22",16.7,23.3,6.9,15.1,11.4,10.9,19.2,14.2,11.8]
[null,"HC Index",null,null,"2019-12-15",null,null,null,18.399999999999999,10.3,20,20.5,25.7,26.7,14,17.899999999999999,22.1,17.100000000000001,20.2,9.9,16.600000000000001,20.8,9.4,21,21.9,13.9,20.7,16.2,22.3,18.7,11.2,23.1,20.6,19.2,20.5,17.600000000000001,null,null,null,null,null,null,null,null,null,null,null,null,null,null,null,null,"GHIN","Name",null,null,null,null,null,null,null,null,null,null,null,null,null,null,null,null,null,null,null,null,null,null,null,null,null,null,null,null,null,null,null,null,"White",137,126,129,null,"Blue",null,126,118,"Gold",121,null,null,null,null,null,null,null,null,16.8,"25.4/22",16.7,23.3,6.9,15.1,11.4,10.9,19.2,14.2,12.2]
[null,"Index",null,null,"2020-01-01",null,null,null,18.491999999999997,10.199999999999999,20.6,20.6,25.6,26.8,14.1,18.7,22.5,17.600000000000001,20,9.5,17.399999999999999,21,9.8000000000000007,21.1,20.3,13.5,20.9,17.3,22.8,18.600000000000001,10.9,22.4,20.9,19.2,20.8,17.8,null,null,null,null,null,null,null,null,null,null,null,null,null,null,null,null,"GHIN","Name",null,null,null,null,null,null,null,null,null,null,null,null,null,null,null,null,null,null,null,null,null,null,null,null,null,null,null,null,null,null,null,null,null,"White",137,126,129,null,"Blue",null,126,118,"Gold",121,null,null,null,null,null,null,null,null,16.8,"25.4/22",16.7,23.3,6.9,15.1,11.4,10.9,19.2,12.7,14.2]
[null,"Index",null,null,"2020-01-15",null,null,null,18.448,10.199999999999999,20.7,20.5,26.6,26.8,14.1,19.5,22.5,17.100000000000001,20,10.4,16.899999999999999,20.9,10,21.1,19.600000000000001,13.2,20.3,16.100000000000001,22.8,18.600000000000001,10.9,22.2,20.9,19.3,21.6,17.8,null,null,null,null,null,null,null,null,null,null,null,null,null,null,null,null,"GHIN","Name",null,null,null,null,null,null,null,null,null,null,null,null,null,null,null,null,null,null,null,null,null,null,null,null,null,null,null,null,null,null,null,null,null,"White",137,126,129,null,"Blue",null,126,118,"Gold",121,null,null,null,null,null,null,null,null,16.8,"25.4/22",16.7,23.3,6.9,15.1,11.4,10.9,19.2,12.7,14.2]
[null,"Index",null,null,"2020-02-01",null,null,null,18.527999999999999,10.4,20.8,21.2,26.6,26.8,14.1,20.2,22.5,17.100000000000001,20.5,10.1,17.100000000000001,21.6,9.4,21.1,19.399999999999999,12.8,20.399999999999999,16.8,22.5,18.600000000000001,11.5,22.2,20.9,18.600000000000001,21.6,17.8,null,null,null,null,null,null,null,null,null,null,null,null,null,null,null,null,"GHIN","Name",null,null,null,null,null,null,null,null,null,null,null,null,null,null,null,null,null,null,null,null,null,null,null,null,null,null,null,null,null,null,null,null,null,"White",137,126,129,null,"Blue",null,126,118,"Gold",121,null,null,null,null,null,null,null,null,16.8,"25.4/22",16.7,23.3,6.9,15.1,11.4,10.9,19.2,11.5,14.2]
[null,"Index",null,null,"2020-02-15",null,null,null,18.623999999999999,10.4,20.9,22.4,26.7,26.8,14.1,20.2,22.5,17.100000000000001,20.5,10,17.399999999999999,21.6,9.1,21.1,18.899999999999999,12.6,20.399999999999999,18.100000000000001,22.5,18.899999999999999,11.2,22.2,20.9,19.100000000000001,21.6,17.8,null,null,null,null,null,null,null,null,null,null,null,null,null,null,null,null,"GHIN","Name",null,null,null,null,null,null,null,null,null,null,null,null,null,null,null,null,null,null,null,null,null,null,null,null,null,null,null,null,null,null,null,null,null,"White",137,126,129,null,"Blue",null,126,118,"Gold",121,null,null,null,null,null,null,null,null,16.8,"25.4/22",16.7,23.3,6.9,15.1,11.4,10.9,19.2,12.2,14.2]
[null,"Index",null,null,"2020-03-01",null,null,null,18.679999999999996,10.8,20.8,22.4,26.7,26.8,14.6,20.3,22.5,17.100000000000001,20.5,10,17.5,20.9,9.1999999999999993,21.1,18.899999999999999,12.4,20.9,18.2,22.5,19.600000000000001,10.7,22.5,20.9,19.2,21.6,21.5,null,null,null,null,null,null,null,null,null,null,null,null,null,null,null,null,"GHIN","Name",null,null,null,null,null,null,null,null,null,null,null,null,null,null,null,null,null,null,null,null,null,null,null,null,null,null,null,null,null,null,null,null,null,"White",137,126,129,null,"Blue",null,126,118,"Gold",121,null,null,null,null,null,null,null,null,16.8,"25.4/22",16.7,23.3,6.9,15.1,11.4,10.9,19.2,12.2,14.2]
[null,"Index",null,null,"2020-03-15",null,null,null,18.579999999999998,10.8,20.3,22.4,26,26.8,14.6,20.3,22.5,16.600000000000001,20.9,10,17.2,21.4,8.1,21.1,20.3,12,20.9,16.7,21.4,19.600000000000001,11.9,22.8,20.9,19,22.9,17.8,null,null,null,null,null,null,null,null,null,null,null,null,null,null,null,null,"GHIN","Name",null,null,null,null,null,null,null,null,null,null,null,null,null,null,null,null,null,null,null,null,null,null,null,null,null,null,null,null,null,null,null,null,null,"White",137,126,129,null,"Blue",null,126,118,"Gold",121,null,null,null,null,null,null,null,null,16.8,"25.4/22",16.7,23.3,6.9,15.1,11.4,10.9,19.2,12.2,14.2]
[null,"Index",null,null,"2020-04-01",null,null,null,18.375999999999998,10.8,21,22.4,26,26.8,14.6,20.3,22.5,16.2,20.9,9.6999999999999993,15.2,20.100000000000001,7.7,21.1,20.2,11.7,20.6,16.100000000000001,21.4,19.600000000000001,11.9,22.4,20.9,19.3,22.9,17.8,null,null,null,null,null,null,null,null,null,null,null,null,null,null,null,null,"GHIN","Name",null,null,null,null,null,null,null,null,null,null,null,null,null,null,null,null,null,null,null,null,null,null,null,null,null,null,null,null,null,null,null,null,null,"White",137,126,129,null,"Blue",null,126,118,"Gold",121,null,null,null,null,null,null,null,null,16.8,"25.4/22",16.7,23.3,6.9,15.1,11.4,10.9,19.2,12.2,14.2]
[null,"Index",null,null,"2020-04-15",null,null,null,18.451999999999995,10.8,21.4,22.4,26,26.8,14.6,20.3,22.5,16.100000000000001,21.8,9.9,14.5,18.899999999999999,7.7,21.1,20.5,11.9,21.9,16.899999999999999,21.4,19.600000000000001,11.9,22.4,20.9,19.100000000000001,22.5,17.8,null,null,null,null,null,null,null,null,null,null,null,null,null,null,null,null,"GHIN","Name",null,null,null,null,null,null,null,null,null,null,null,null,null,null,null,null,null,null,null,null,null,null,null,null,null,null,null,null,null,null,null,null,null,"White",137,126,129,null,"Blue",null,126,118,"Gold",121,null,null,null,null,null,null,null,null,16.8,"25.4/22",16.7,23.3,6.9,15.1,11.4,10.9,19.2,12.2,14.2]
[null,null,null,null,null,null,null,null,null,null,null,null,null,null,null,null,null,null,null,null,null,null,null,null,null,null,null,null,null,null,null,null,null,null,null,null,null,null,null,null,null,null,null,null,null,null,null,null,null,null,null,null,null,null,null,null,null,null,null,null,null,null,null,null,null,null,null,null,null,null,null,null,null,null,null,null,null,null,null,null,null,null,null,null,null,null,"White",137,126,129,null,"Blue",null,126,118,"Gold",121]
[null,null,null,null,null,null,null,null,null,null,null,null,null,null,null,null,null,null,null,null,null,null,null,null,null,null,null,null,null,null,null,null,null,null,null,null,null,null,null,null,null,null,null,null,null,null,null,null,null,null,null,null,null,null,null,null,null,null,null,null,null,null,null,null,null,null,null,null,null,null,null,null,null,null,null,null,null,null,null,null,null,null,null,null,null,null,null,null,null,null,null,"Blue",null,126,118,"Gold",121]
[null,null,null,null,"Player",null,null,null,null,null,null,null,null,null,null,null,null,null,null,null,null,null,null,null,null,null,null,null,null,null,null,null,null,null,null,null,null,null,null,null,null,null,null,null,null,null,null,null,null,null,null,null,null,null,null,null,null,null,null,null,null,null,null,null,null,null,null,null,null,null,null,null,null,null,null,null,null,null,null,null,null,null,null,null,null,null,null,null,null,null,null,"Blue",null,126,118,"Gold",121]
[null,null,null,null,"BillW","GerryA",65,null,null,"GerryA","BobE","JohnH","JesseJ","JimK","JohnK","BobL","BobLx","WallisM","CraigM","DanM","TimM","AlR",null,"TimR","KenR","LarryS","RoyS","JohnT","BillWeb","WaylanW","MikeW","BobW","MurrayS","CarltonS","JeffS","WaltL","BillW",null,null,null,null,null,null,null,null,null,null,null,null,null,null,null,null,null,null,null,null,null,null,null,null,null,null,null,null,null,null,null,null,null,null,null,null,null,null,null,null,null,null,null,null,null,null,null,null,null,null,null,null,null,null,"Blue",null,126,118,"Gold",121,null,null,null,null,null,null,null,null,null,null,null,null,null,null,null,"JeffS",null,"WaltL","BillW"]
[null,null,null,null,"KenR","BobE",37,null,null,65,36,9,85,40,91,76,44,39,57,39,37,49,null,62,100,38,5,67,37,59,95,32,28,0,56,23,104,null,null,null,null,null,null,null,null,null,null,null,null,null,null,null,null,null,null,null,null,null,null,null,null,null,null,null,null,null,null,null,null,null,null,null,null,null,null,null,null,null,null,null,null,null,null,null,null,null,null,null,null,null,null,null,null,null,null,null,null,null,null,null,null,null,null,null,null,null,null,null,null,null,null,null,56,null,23,104]
[null,null,null,null,"MikeW","JesseJ",85]
[null,null,null,null,"JohnK","JimK",40]
[null,null,null,null,"JesseJ","JohnK",91,null,null,"GerryA","BobE","JohnH","JesseJ","JimK","JohnK","BobL","BobLx","WallisM","CraigM","DanM","TimM","AlR",null,"TimR","KenR","LarryS","RoyS","JohnT","BillWeb","WaylanW","MikeW","BobW","MurrayS","CarltonS","JeffS","WaltL","BillW",null,null,null,null,null,null,null,null,null,null,null,null,null,null,null,null,null,null,null,null,null,null,null,null,null,null,null,null,null,null,null,null,null,null,null,null,null,null,null,null,null,null,null,null,null,null,null,null,null,null,null,null,null,null,null,null,null,null,null,null,null,null,null,null,null,null,null,null,null,null,null,null,null,null,null,"JeffS",null,"WaltL","BillW"]
[null,null,null,null,"BobL","BobL",76,null,null,65,37,8,85,40,91,76,44,39,57,39,37,49,0,62,100,38,5,67,37,59,95,32,28,0,56,23,104,0,null,null,null,null,null,null,null,null,null,null,null,null,null,null,null,null,null,null,null,null,null,null,null,null,null,null,null,null,null,null,null,null,null,null,null,null,null,null,null,null,null,null,null,null,null,null,null,null,null,null,null,null,null,null,null,null,null,null,null,null,null,null,null,null,null,null,null,null,null,null,null,null,null,null,56,null,23,104]
[null,null,null,null,"JohnT","BobLx",44]
[null,null,null,null,"GerryA","WallisM",39]
[null,null,null,null,"TimR","CraigM",57]
[null,null,null,null,"WaylanW","DanM",39]
[null,null,null,null,"CraigM","TimM",37]
[null,null,null,null,"JeffS","AlR",49]
[null,null,null,null,"AlR","TimR",62]
[null,null,null,null,"BobLx","KenR",100]
[null,null,null,null,"JimK","LarryS",38]
[null,null,null,null,"WallisM","JeffS",56]
[null,null,null,null,"DanM","JohnT",67]
[null,null,null,null,"LarryS","BillWeb",37]
[null,null,null,null,"TimM","WaylanW",59]
[null,null,null,null,"BillWeb","BillW",104]
[null,null,null,null,"BobE","MikeW",95]
[null,null,null,null,"BobW","WaltL",23]
[null,null,null,null,"MurrayS","BobW",32]
[null,null,null,null,"WaltL","MurrayS",28]
[null,null,null,null,"JohnH","CarltonS",0]
[null,null,null,null,"RoyS","JohnH",8]
[null,null,null,null,null,"RoyS",5]
[null,null,null,null,null,null,0]
[]
[null,null,null,null,null,null,null,null,10,20.6,20.5,25,26.7,14,17.8,22.1,17.399999999999999,19.600000000000001,9.1999999999999993,15.4,20.6,9.1,21,22.7,13.5,20.3,16.2,22.4,17.2,11.8,22.3,20.6,18.8,20,17.600000000000001,null,11.2,null,null,null,null,null,null,null,null,null,null,null,null,null,null,null,null,null,null,null,null,null,null,null,null,null,null,null,null,null,null,null,null,null,null,null,null,null,null,null,null,null,null,null,null,null,null,null,null,null,null,null,null,null,null,null,null,null,null,null,null,null,null,null,null,null,null,null,null,null,null,null,null,null,null,null,null,null,null,11.2]
[null,null,null,null,null,null,null,null,{"$f":"I439/0.96","v":10.416666666666668},{"$f":"J439/0.96","v":21.458333333333336},21.354166666666668,26.041666666666668,27.8125,14.583333333333334,18.541666666666668,23.020833333333336,18.125,20.416666666666668,9.5833333333333321,16.041666666666668,21.458333333333336,9.4791666666666661,21.875,23.645833333333332,14.0625,21.145833333333336,16.875,23.333333333333332,17.916666666666668,12.291666666666668,23.229166666666668,21.458333333333336,19.583333333333336,20.833333333333336,18.333333333333336,null,{"$f":"AK439/0.96","v":11.666666666666666},null,null,null,null,null,null,null,null,null,null,null,null,null,null,null,null,null,null,null,null,null,null,null,null,null,null,null,null,null,null,null,null,null,null,null,null,null,null,null,null,null,null,null,null,null,null,null,null,null,null,null,null,null,null,null,null,null,null,null,null,null,null,null,null,null,null,null,null,null,null,null,null,null,null,null,null,null,null,{"$f":"DL439/0.96","v":11.666666666666666}]

{"sheet":"Wk Summary","index":1,"n_rows":109,"n_cols":39,"rows_kept":109,"cut":false,"hidden":false,"merged":[[47,0,49,0],[82,41,82,43],[82,44,82,47],[36,41,36,43],[36,44,36,47],[37,41,37,43],[37,44,37,47],[38,41,38,43],[38,44,38,47],[79,41,79,43],[79,44,79,47],[80,41,80,43],[80,44,80,47],[81,41,81,43],[81,44,81,47],[40,5,40,7],[3,8,4,8],[3,18,4,18],[45,33,45,35],[3,54,4,54],[35,41,35,43],[35,44,35,47],[45,36,45,38],[40,8,40,11]]}
[null,"WkLastNameC",null,"NameC",null,"MonIndexC","WedIndexC","FriIndexC","IndexC","FirstCourseIndexC",null,null,null,null,null,null,"LastCourseIndexC"]
[null,null,null,null,null,{"$f":"Details!B6","v":"2020-05-04"},{"$f":"+Details!B7","v":"2020-05-06"},{"$f":"+Details!B8","v":"2020-05-08"},"Avg",null,null,null,null,null,null,null,null,null,null,null,null,{"$f":"F2+7","v":"2020-05-11"},{"$f":"G2+7","v":"2020-05-13"},{"$f":"H2+7","v":"2020-05-15"},{"$f":"+V2+7","v":"2020-05-18"},{"$f":"+W2+7","v":"2020-05-20"},"2020-05-22"]
[null,null,null,null,null,{"$f":"Details!C6","v":"Mon"},{"$f":"Details!C7","v":"Wed"},{"$f":"+Details!C8","v":"Fri"},{"$f":"AVERAGE(I7:I31)","v":18.167999999999999},null,null,null,null,null,null,null,null,null,null,null,null,{"$f":"F3","v":"Mon"},{"$f":"G3","v":"Wed"},{"$f":"H3","v":"Fri"},{"$f":"+Details!C16","v":"Mon"},{"$f":"+Details!C17","v":"Wed"},{"$f":"+Details!C18","v":"Fri"},{"$f":"+Details!C19","v":0}]
[null,null,null,null,null,{"$f":"+Details!D6","v":"Player"},{"$f":"+Details!D7","v":"Tourney"},{"$f":"+Details!D8","v":"Palmer"},{"$f":"+Details!E4","v":"2020-05-01"},"HC","HC","HC","HC","HC","HC","HC","HC","SF","HC",null,null,{"$f":"IF(Details!$D10=0,\"\",+Details!$D10)","v":"Player"},{"$f":"IF(Details!$D11=0,\"\",+Details!$D11)","v":"Palmer"},{"$f":"IF(Details!$D12=0,\"\",+Details!$D12)","v":"Tourney"}]
[null,null,null,null,null,{"$f":"+Details!E6","v":"10:39:00"},{"$f":"+Details!E7","v":"10:21:00"},{"$f":"+Details!E8","v":"10:21:00"},null,"22max ","22max ","22max ","22max ","22max ","22max ","22max ","22max ","TPC",null,null,null,{"$f":"+Details!E10","v":"10:21:00"},{"$f":"+Details!E11","v":"10:21:00"},{"$f":"+Details!E12","v":"10:21:00"}]
[null,null,null,null,null,{"$f":"SUM(F7:F35)","v":11},{"$f":"SUM(G7:G35)","v":12},{"$f":"SUM(H7:H35)","v":13},{"$f":"+Details!B4","v":"Index"},"Player","P K/G","TPC","P D/K","P G/D","Oaks","LW","PT","7/8HC","AVG",null,null,{"$f":"SUM(V7:V31)","v":0},0,0,0,0,0,0]
[7,"Anderson","Gerry",{"$f":"C7&B7","v":"GerryAnderson"},{"$f":"+Details!J5","v":"GerryA"},{"$f":"+Details!J6","v":0},{"$f":"+Details!J7","v":0},{"$f":"+Details!J8","v":0},{"$f":"+Details!J$4","v":10.8},{"$f":"ROUND(+$I7*($AI$48/113)+($AL$48-72),0)","v":10},{"$f":"ROUND(+$I7*($AI$49/113)+($AL$49-72),0)","v":9},{"$f":"ROUND(+$I7*($AI$50/113)+($AL$50-72),0)","v":10},{"$f":"ROUND(+$I7*($AI$51/113)+($AL$51-72),0)","v":8},{"$f":"ROUND(+$I7*($AI$52/113)+($AL$52-72),0)","v":9},{"$f":"ROUND(+$I7*($AI$55/113)+($AL$55-72),0)","v":9},{"$f":"ROUND(+$I7*($AI$56/113)+($AL$56-72),0)","v":6},{"$f":"ROUND(+$I7*($AI$57/113)+($AL$57-72),0)","v":8},{"$f":"ROUND(L7*0.875, 0)","v":9},{"$f":"AVERAGE(J7:L7)","v":9.6666666666666661},null,{"$f":"E7","v":"GerryA"},{"$f":"IF(+Details!$J$10=0,\"\",Details!$J$10)","v":"0"},{"$f":"IF(+Details!$J$11=0,\"\",Details!$J$11)","v":"0"},{"$f":"IF(+Details!$J$12=0,\"\",Details!$J$12)","v":"0"},{"$f":"IF(+Details!$J$16=0,\"\",Details!$J$16)","v":""},{"$f":"IF(+Details!$J$17=0,\"\",Details!$J$17)","v":""},{"$f":"IF(+Details!$J$18=0,\"\",Details!$J$18)","v":""},{"$f":"IF(+Details!$J$19=0,\"\",Details!$J$19)","v":""}]
[8,"Edwards","Bob",{"$f":"C8&B8","v":"BobEdwards"},{"$f":"+Details!K5","v":"BobE"},{"$f":"+Details!K$6","v":0},{"$f":"+Details!K$7","v":0},{"$f":"+Details!K$8","v":0},{"$f":"+Details!K$4","v":21},{"$f":"ROUND(+$I8*($AI$48/113)+($AL$48-72),0)","v":21},{"$f":"ROUND(+$I8*($AI$49/113)+($AL$49-72),0)","v":21},{"$f":"ROUND(+$I8*($AI$50/113)+($AL$50-72),0)","v":21},{"$f":"ROUND(+$I8*($AI$51/113)+($AL$51-72),0)","v":19},{"$f":"ROUND(+$I8*($AI$52/113)+($AL$52-72),0)","v":20},{"$f":"ROUND(+$I8*($AI$55/113)+($AL$55-72),0)","v":20},{"$f":"ROUND(+$I8*($AI$56/113)+($AL$56-72),0)","v":17},{"$f":"ROUND(+$I8*($AI$57/113)+($AL$57-72),0)","v":19},18,21,null,{"$f":"+E8","v":"BobE"},{"$f":"IF(+Details!K$10=0,\"\",Details!K$10)","v":""},{"$f":"IF(+Details!$K$11=0,\"\",Details!$K$11)","v":""},{"$f":"IF(+Details!$K$12=0,\"\",Details!$K$12)","v":""},{"$f":"IF(+Details!$K$16=0,\"\",Details!$K$16)","v":""},{"$f":"IF(+Details!$K$17=0,\"\",Details!$K$17)","v":""},{"$f":"IF(+Details!$K$18=0,\"\",Details!$K$18)","v":""},{"$f":"IF(+Details!$K$19=0,\"\",Details!$K$19)","v":""}]
[9,"Heg","John","JohnHeg",{"$f":"+Details!L5","v":"JohnH"},{"$f":"+Details!L$6","v":0},{"$f":"+Details!L$7","v":0},{"$f":"+Details!L$8","v":0},{"$f":"IF(+Details!L$4=0, \"\", +Details!L$4)","v":22.4},{"$f":"ROUND(+$I9*($AI$48/113)+($AL$48-72),0)","v":23},{"$f":"ROUND(+$I9*($AI$49/113)+($AL$49-72),0)","v":22},{"$f":"ROUND(+$I9*($AI$50/113)+($AL$50-72),0)","v":23},{"$f":"ROUND(+$I9*($AI$51/113)+($AL$51-72),0)","v":21},{"$f":"ROUND(+$I9*($AI$52/113)+($AL$52-72),0)","v":22},{"$f":"ROUND(+$I9*($AI$55/113)+($AL$55-72),0)","v":21},{"$f":"ROUND(+$I9*($AI$56/113)+($AL$56-72),0)","v":18},{"$f":"ROUND(+$I9*($AI$57/113)+($AL$57-72),0)","v":21},20,22.666666666666668,null,{"$f":"+E9","v":"JohnH"},{"$f":"IF(+Details!L$10=0,\"\",Details!L$10)","v":"0"},{"$f":"IF(+Details!L$11=0,\"\",Details!L$11)","v":"0"},{"$f":"IF(+Details!L$12=0,\"\",Details!L$12)","v":"0"},{"$f":"IF(+Details!L$16=0,\"\",Details!L$16)","v":""},{"$f":"IF(+Details!$L$17=0,\"\",Details!$L$17)","v":""},{"$f":"IF(+Details!L$18=0,\"\",Details!L$18)","v":""},{"$f":"IF(+Details!L$19=0,\"\",Details!L$19)","v":""}]
[10,"Johnson","Jesse","JesseJohnson",{"$f":"+Details!M5","v":"JesseJ g"},{"$f":"+Details!M$6","v":1},{"$f":"+Details!M$7","v":1},{"$f":"+Details!M$8","v":1},{"$f":"+Details!M$4","v":25.4},{"$f":"ROUND(+$I10*($AH$48/113)+($AK$48-72),0)","v":20},{"$f":"ROUND(+$I10*($AH$49/113)+($AK$49-72),0)","v":22},{"$f":"ROUND(+$I10*($AH$50/113)+($AK$50-72),0)","v":21},{"$f":"ROUND(+$I10*($AH$51/113)+($AK$51-72),0)","v":19},{"$f":"ROUND(+$I10*($AH$52/113)+($AK$52-72),0)","v":21},{"$f":"ROUND(+$I10*($AH$55/113)+($AK$55-72),0)","v":20},{"$f":"ROUND(+$I10*($AH$56/113)+($AK$56-72),0)","v":17},{"$f":"ROUND(+$I10*($AH$57/113)+($AK$57-72),0)","v":19},18,21,null,"JesseJ g",{"$f":"IF(+Details!M$10=0,\"\",Details!M$10)","v":""},{"$f":"IF(+Details!$M$11=0,\"\",Details!$M$11)","v":""},{"$f":"IF(+Details!$M$12=0,\"\",Details!$M$12)","v":""},{"$f":"IF(+Details!$M$16=0,\"\",Details!$M$16)","v":""},{"$f":"IF(+Details!$M$17=0,\"\",Details!$M$17)","v":""},{"$f":"IF(+Details!$M$18=0,\"\",Details!$M$18)","v":""},{"$f":"IF(+Details!$M$19=0,\"\",Details!$M$19)","v":""}]
[11,"Kinney","Jim","JimKinney",{"$f":"+Details!N5","v":"JimK g"},{"$f":"+Details!N$6","v":0},{"$f":"+Details!N$7","v":0},{"$f":"+Details!N$8","v":0},{"$f":"+Details!N$4","v":26.8},{"$f":"ROUND(+$I11*($AH$48/113)+($AK$48-72),0)","v":22},{"$f":"ROUND(+$I11*($AH$49/113)+($AK$49-72),0)","v":24},{"$f":"ROUND(+$I11*($AH$50/113)+($AK$50-72),0)","v":22},{"$f":"ROUND(+$I11*($AH$51/113)+($AK$51-72),0)","v":21},{"$f":"ROUND(+$I11*($AH$52/113)+($AK$52-72),0)","v":22},{"$f":"ROUND(+$I11*($AH$55/113)+($AK$55-72),0)","v":21},{"$f":"ROUND(+$I11*($AH$56/113)+($AK$56-72),0)","v":18},{"$f":"ROUND(+$I11*($AH$57/113)+($AK$57-72),0)","v":20},19,22.666666666666668,null,"JimK g",{"$f":"IF(+Details!N$10=0,\"\",Details!N$10)","v":"0"},{"$f":"IF(+Details!$N$11=0,\"\",Details!$N$11)","v":"0"},{"$f":"IF(+Details!$N$12=0,\"\",Details!$N$12)","v":"0"},{"$f":"IF(+Details!$N$16=0,\"\",Details!$N$16)","v":""},{"$f":"IF(+Details!$N$17=0,\"\",Details!$N$17)","v":""},{"$f":"IF(+Details!$N$18=0,\"\",Details!$N$18)","v":""},{"$f":"IF(+Details!$N$19=0,\"\",Details!$N$19)","v":""}]
[12,"Keyes","John","JohnKeyes",{"$f":"+Details!O5","v":"JohnK"},{"$f":"+Details!O$6","v":1},{"$f":"+Details!O$7","v":1},{"$f":"+Details!O$8","v":1},{"$f":"+Details!O$4","v":14.4},{"$f":"ROUND(+$I12*($AI$48/113)+($AL$48-72),0)","v":14},{"$f":"ROUND(+$I12*($AI$49/113)+($AL$49-72),0)","v":13},{"$f":"ROUND(+$I12*($AI$50/113)+($AL$50-72),0)","v":14},{"$f":"ROUND(+$I12*($AI$51/113)+($AL$51-72),0)","v":12},{"$f":"ROUND(+$I12*($AI$52/113)+($AL$52-72),0)","v":13},{"$f":"ROUND(+$I12*($AI$55/113)+($AL$55-72),0)","v":12},{"$f":"ROUND(+$I12*($AI$56/113)+($AL$56-72),0)","v":10},{"$f":"ROUND(+$I12*($AI$57/113)+($AL$57-72),0)","v":12},12,13.666666666666666,null,"JohnK",{"$f":"IF(+Details!O$10=0,\"\",Details!O$10)","v":""},{"$f":"IF(+Details!$O$11=0,\"\",Details!$O$11)","v":""},{"$f":"IF(+Details!$O$12=0,\"\",Details!$O$12)","v":""},{"$f":"IF(+Details!$O$16=0,\"\",Details!$O$16)","v":""},{"$f":"IF(+Details!$O$17=0,\"\",Details!$O$17)","v":""},{"$f":"IF(+Details!$O$18=0,\"\",Details!$O$18)","v":""},{"$f":"IF(+Details!$O$19=0,\"\",Details!$O$19)","v":""}]
[13,"Lewis","Bob","BobLewis",{"$f":"+Details!P5","v":"BobL"},{"$f":"+Details!P$6","v":1},{"$f":"Details!P7","v":1},{"$f":"+Details!P$8","v":1},{"$f":"+Details!P$4","v":19.5},20,19,19,18,18,18,15,17,17,19.333333333333332,null,"BobL",{"$f":"IF(+Details!P$10=0,\"\",Details!P$10)","v":""},{"$f":"IF(+Details!$P$11=0,\"\",Details!$P$11)","v":""},{"$f":"IF(+Details!$P$12=0,\"\",Details!$P$12)","v":""},{"$f":"IF(+Details!$P$16=0,\"\",Details!$P$16)","v":""},{"$f":"IF(+Details!$P$17=0,\"\",Details!$P$17)","v":""},{"$f":"IF(+Details!$P$18=0,\"\",Details!$P$18)","v":""},{"$f":"IF(+Details!$P$19=0,\"\",Details!$P$19)","v":""}]
[14,"Lisiewski","Walt","WaltLisiewski",{"$f":"+Details!Q5","v":"WaltL"},{"$f":"+Details!Q$6","v":0},{"$f":"+Details!Q$7","v":0},{"$f":"+Details!Q$8","v":0},{"$f":"+Details!Q$4","v":22.5},23,22,23,21,22,21,18,21,20,22.666666666666668,null,"WaltL",{"$f":"IF(+Details!Q$10=0,\"\",Details!Q$10)","v":"0"},{"$f":"IF(+Details!$Q$11=0,\"\",Details!$Q$11)","v":"0"},{"$f":"IF(+Details!$Q$12=0,\"\",Details!$Q$12)","v":"0"},{"$f":"IF(+Details!$Q$16=0,\"\",Details!$Q$16)","v":""},{"$f":"IF(+Details!$Q$17=0,\"\",Details!$Q$17)","v":""},{"$f":"IF(+Details!$Q$18=0,\"\",Details!$Q$18)","v":""},{"$f":"IF(+Details!$Q$19=0,\"\",Details!$Q$19)","v":""}]
[15,"Lux","Bob","BobLux",{"$f":"+Details!R5","v":"BobLx"},{"$f":"+Details!R$6","v":0},{"$f":"+Details!R$7","v":1},{"$f":"+Details!R$8","v":1},{"$f":"+Details!R$4","v":17},17,16,17,15,16,15,13,15,15,16.666666666666668,null,"BobLx",{"$f":"IF(+Details!R$10=0,\"\",Details!R$10)","v":""},{"$f":"IF(+Details!$R$11=0,\"\",Details!$R$11)","v":""},{"$f":"IF(+Details!$R$12=0,\"\",Details!$R$12)","v":""},{"$f":"IF(+Details!$R$16=0,\"\",Details!$R$16)","v":""},{"$f":"IF(+Details!$R$17=0,\"\",Details!$R$17)","v":""},{"$f":"IF(+Details!$R$18=0,\"\",Details!$R$18)","v":""},{"$f":"IF(+Details!$R$19=0,\"\",Details!$R$19)","v":""}]
[16,"McMath","Wallis","WallisMcMath",{"$f":"+Details!S5","v":"WallisM"},{"$f":"+Details!S$6","v":1},{"$f":"+Details!S$7","v":1},{"$f":"+Details!S$8","v":1},{"$f":"+Details!S$4","v":19.399999999999999},19,19,19,18,18,18,15,17,17,19,null,"WallisM",{"$f":"IF(+Details!S$10=0,\"\",Details!S$10)","v":""},{"$f":"IF(+Details!$S$11=0,\"\",Details!$S$11)","v":""},{"$f":"IF(+Details!$S$12=0,\"\",Details!$S$12)","v":""},{"$f":"IF(+Details!$S$16=0,\"\",Details!$S$16)","v":""},{"$f":"IF(+Details!$S$17=0,\"\",Details!$S$17)","v":""},{"$f":"IF(+Details!$S$18=0,\"\",Details!$S$18)","v":""},{"$f":"IF(+Details!$S$19=0,\"\",Details!$S$19)","v":""}]
[17,"Mellington","Craig","CraigMellington",{"$f":"+Details!T5","v":"CraigM"},{"$f":"+Details!T$6","v":1},{"$f":"+Details!T$7","v":1},{"$f":"+Details!T$8","v":1},{"$f":"+Details!T$4","v":10.1},9,9,9,8,8,8,6,7,8,9,null,"CraigM",{"$f":"IF(+Details!T$10=0,\"\",Details!T$10)","v":""},{"$f":"IF(+Details!$T$11=0,\"\",Details!$T$11)","v":""},{"$f":"IF(+Details!$T$12=0,\"\",Details!$T$12)","v":""},{"$f":"IF(+Details!$T$16=0,\"\",Details!$T$16)","v":""},{"$f":"IF(+Details!$T$17=0,\"\",Details!$T$17)","v":""},{"$f":"IF(+Details!$T$18=0,\"\",Details!$T$18)","v":""},{"$f":"IF(+Details!$T$19=0,\"\",Details!$T$19)","v":""}]
[18,"Miracle","Dan","DanMiracle",{"$f":"+Details!U5","v":"DanM"},{"$f":"+Details!U$6","v":1},{"$f":"+Details!U$7","v":1},{"$f":"+Details!U$8","v":1},{"$f":"+Details!U$4","v":14.5},14,14,14,12,13,13,10,12,12,14,null,"DanM",{"$f":"IF(+Details!U$10=0,\"\",Details!U$10)","v":""},{"$f":"IF(+Details!$U$11=0,\"\",Details!$U$11)","v":""},{"$f":"IF(+Details!$U$12=0,\"\",Details!$U$12)","v":""},{"$f":"IF(+Details!$U$16=0,\"\",Details!$U$16)","v":""},{"$f":"IF(+Details!$U$17=0,\"\",Details!$U$17)","v":""},{"$f":"IF(+Details!$U$18=0,\"\",Details!$U$18)","v":""},{"$f":"IF(+Details!$U$19=0,\"\",Details!$U$19)","v":""}]
[19,"Moore","Tim","TimMoore",{"$f":"+Details!V5","v":"TimM"},{"$f":"+Details!V6","v":0},{"$f":"+Details!V7","v":0},{"$f":"+Details!V$8","v":1},{"$f":"+Details!V4","v":19},19,19,19,17,18,17,15,17,17,19,null,"TimM",{"$f":"IF(+Details!V$10=0,\"\",Details!V$10)","v":""},{"$f":"IF(+Details!V$11=0,\"\",Details!V$11)","v":""},{"$f":"IF(+Details!V$12=0,\"\",Details!V$12)","v":""},{"$f":"IF(+Details!V$16=0,\"\",Details!V$16)","v":""},{"$f":"IF(+Details!$V$17=0,\"\",Details!$V$17)","v":""},{"$f":"IF(+Details!V$18=0,\"\",Details!V$18)","v":""},{"$f":"IF(+Details!V$19=0,\"\",Details!V$19)","v":""}]
[20,"Peterson","Gary","GaryPeterson",{"$f":"+Details!W5","v":"GaryP"},{"$f":"+Details!W6","v":1},{"$f":"+Details!W7","v":1},{"$f":"+Details!W$8","v":0},{"$f":"+Details!W4","v":8.1},7,6,7,5,6,6,4,5,6,6.666666666666667,null,"GaryP",{"$f":"IF(+Details!W$10=0,\"\",Details!W$10)","v":""},{"$f":"IF(+Details!W$11=0,\"\",Details!W$11)","v":""},{"$f":"IF(+Details!W$12=0,\"\",Details!W$12)","v":""},{"$f":"IF(+Details!W$16=0,\"\",Details!W$16)","v":""},{"$f":"IF(+Details!$W$17=0,\"\",Details!$W$17)","v":""},{"$f":"IF(+Details!W$18=0,\"\",Details!W$18)","v":""},{"$f":"IF(+Details!W$19=0,\"\",Details!W$19)","v":""}]
[21,"Roesler","Al","AlRoesler",{"$f":"+Details!X5","v":"AlR"},{"$f":"+Details!X$6","v":0},{"$f":"+Details!X$7","v":0},{"$f":"+Details!X$8","v":0},{"$f":"+Details!X$4","v":21.1},21,21,21,19,20,20,17,19,18,21,null,"AlR",{"$f":"IF(+Details!X$10=0,\"\",Details!X$10)","v":"0"},{"$f":"IF(+Details!$X$11=0,\"\",Details!$X$11)","v":"0"},{"$f":"IF(+Details!$X$12=0,\"\",Details!$X$12)","v":"0"},{"$f":"IF(+Details!$X$16=0,\"\",Details!$X$16)","v":""},{"$f":"IF(+Details!$X$17=0,\"\",Details!$X$17)","v":""},{"$f":"IF(+Details!$X$18=0,\"\",Details!$X$18)","v":""},{"$f":"IF(+Details!$X$19=0,\"\",Details!$X$19)","v":""}]
[22,"Roesler","Tim","TimRoesler",{"$f":"+Details!Y5","v":"TimR"},{"$f":"+Details!Y$6","v":1},{"$f":"+Details!Y$7","v":1},{"$f":"+Details!Y$8","v":1},{"$f":"+Details!Y$4","v":17.5},17,17,17,15,16,16,13,15,15,17,null,"TimR",{"$f":"IF(+Details!Y$10=0,\"\",Details!Y$10)","v":""},{"$f":"IF(+Details!$Y$11=0,\"\",Details!$Y$11)","v":""},{"$f":"IF(+Details!$Y$12=0,\"\",Details!$Y$12)","v":""},{"$f":"IF(+Details!$Y$16=0,\"\",Details!$Y$16)","v":""},{"$f":"IF(+Details!$Y$17=0,\"\",Details!$Y$17)","v":""},{"$f":"IF(+Details!$Y$18=0,\"\",Details!$Y$18)","v":""},{"$f":"IF(+Details!$Y$19=0,\"\",Details!$Y$19)","v":""}]
[23,"Rowland","Ken","KenRowland",{"$f":"+Details!Z5","v":"KenR"},{"$f":"+Details!Z$6","v":0},{"$f":"+Details!Z$7","v":0},{"$f":"+Details!Z$8","v":0},{"$f":"+Details!Z$4","v":11.1},10,10,10,9,9,9,7,8,9,10,null,"KenR",{"$f":"IF(+Details!Z$10=0,\"\",Details!Z$10)","v":"0"},{"$f":"IF(+Details!$Z$11=0,\"\",Details!$Z$11)","v":"0"},{"$f":"IF(+Details!$Z$12=0,\"\",Details!$Z$12)","v":"0"},{"$f":"IF(+Details!$Z$16=0,\"\",Details!$Z$16)","v":""},{"$f":"IF(+Details!$Z$17=0,\"\",Details!$Z$17)","v":""},{"$f":"IF(+Details!$Z$18=0,\"\",Details!$Z$18)","v":""},{"$f":"IF(+Details!$Z$19=0,\"\",Details!$Z$19)","v":""}]
[24,"Simmons","Roy","RoySimmons",{"$f":"+Details!AA5","v":"RoyS g"},{"$f":"+Details!AA$6","v":1},{"$f":"+Details!AA$7","v":1},{"$f":"+Details!AA$8","v":1},{"$f":"+Details!AA$4","v":21.5},{"$f":"ROUND(+$I24*($AH$48/113)+($AK$48-72),0)","v":16},{"$f":"ROUND(+$I24*($AH$49/113)+($AK$49-72),0)","v":18},{"$f":"ROUND(+$I24*($AH$50/113)+($AK$50-72),0)","v":17},{"$f":"ROUND(+$I24*($AH$51/113)+($AK$51-72),0)","v":15},{"$f":"ROUND(+$I24*($AH$52/113)+($AK$52-72),0)","v":17},{"$f":"ROUND(+$I24*($AH$55/113)+($AK$55-72),0)","v":16},{"$f":"ROUND(+$I24*($AH$56/113)+($AK$56-72),0)","v":13},{"$f":"ROUND(+$I24*($AH$57/113)+($AK$57-72),0)","v":15},{"$f":"ROUND(L24*0.875, 0)","v":15},{"$f":"AVERAGE(J24:L24)","v":17},null,"RoyS g",{"$f":"IF(+Details!AA$10=0,\"\",Details!AA$10)","v":""},{"$f":"IF(+Details!AA$11=0,\"\",Details!AA$11)","v":""},{"$f":"IF(+Details!AA$12=0,\"\",Details!AA$12)","v":""},{"$f":"IF(+Details!AA$16=0,\"\",Details!AA$16)","v":""},{"$f":"IF(+Details!$AA$17=0,\"\",Details!$AA$17)","v":""},{"$f":"IF(+Details!AA$18=0,\"\",Details!AA$18)","v":""},{"$f":"IF(+Details!AA$19=0,\"\",Details!AA$19)","v":""}]
[25,"Smith","Murray","MurraySmith",{"$f":"+Details!AB5","v":"MurrayS"},{"$f":"+Details!AB$6","v":0},{"$f":"+Details!AB$7","v":0},{"$f":"+Details!AB$8","v":0},{"$f":"IF(+Details!AB$4=0, \"\", +Details!AB$4)","v":16.5},{"$f":"ROUND(+$I25*($AI$48/113)+($AL$48-72),0)","v":16},{"$f":"ROUND(+$I25*($AI$49/113)+($AL$49-72),0)","v":16},{"$f":"ROUND(+$I25*($AI$50/113)+($AL$50-72),0)","v":16},{"$f":"ROUND(+$I25*($AI$51/113)+($AL$51-72),0)","v":14},{"$f":"ROUND(+$I25*($AI$52/113)+($AL$52-72),0)","v":15},{"$f":"ROUND(+$I25*($AI$55/113)+($AL$55-72),0)","v":15},{"$f":"ROUND(+$I25*($AI$56/113)+($AL$56-72),0)","v":12},{"$f":"ROUND(+$I25*($AI$57/113)+($AL$57-72),0)","v":14},14,16,null,"MurrayS",{"$f":"IF(+Details!AB$10=0,\"\",Details!AB$10)","v":""},{"$f":"IF(+Details!$AB$11=0,\"\",Details!$AB$11)","v":""},{"$f":"IF(+Details!$AB$12=0,\"\",Details!$AB$12)","v":""},{"$f":"IF(+Details!$AB$16=0,\"\",Details!$AB$16)","v":""},{"$f":"IF(+Details!$AB$17=0,\"\",Details!$AB$17)","v":""},{"$f":"IF(+Details!$AB$18=0,\"\",Details!$AB$18)","v":""},{"$f":"IF(+Details!$AB$19=0,\"\",Details!$AB$19)","v":""}]
[26,"Steimer","Jeff","JeffSteimer",{"$f":"+Details!AC5","v":"JeffS"},{"$f":"+Details!AC$6","v":0},{"$f":"+Details!AC$7","v":0},{"$f":"+Details!AC$8","v":0},{"$f":"+Details!AC$4","v":22},{"$f":"ROUND(+$I26*($AI$48/113)+($AL$48-72),0)","v":22},{"$f":"ROUND(+$I26*($AI$49/113)+($AL$49-72),0)","v":22},{"$f":"ROUND(+$I26*($AI$50/113)+($AL$50-72),0)","v":22},{"$f":"ROUND(+$I26*($AI$51/113)+($AL$51-72),0)","v":20},{"$f":"ROUND(+$I26*($AI$52/113)+($AL$52-72),0)","v":21},{"$f":"ROUND(+$I26*($AI$55/113)+($AL$55-72),0)","v":21},{"$f":"ROUND(+$I26*($AI$56/113)+($AL$56-72),0)","v":18},{"$f":"ROUND(+$I26*($AI$57/113)+($AL$57-72),0)","v":20},19,22,null,"JeffS",{"$f":"IF(+Details!AC$10=0,\"\",Details!AC$10)","v":""},{"$f":"IF(+Details!$AC$11=0,\"\",Details!$AC$11)","v":""},{"$f":"IF(+Details!$AC$12=0,\"\",Details!$AC$12)","v":""},{"$f":"IF(+Details!AC$16=0,\"\",Details!AC$16)","v":""},{"$f":"IF(+Details!$AC$17=0,\"\",Details!$AC$17)","v":""},{"$f":"IF(+Details!AC$18=0,\"\",Details!AC$18)","v":""},{"$f":"IF(+Details!AC$19=0,\"\",Details!AC$19)","v":""}]
[27,"Stick","Larry","LarryStick",{"$f":"+Details!AD5","v":"LarryS"},{"$f":"+Details!AD$6","v":0},{"$f":"+Details!AD7","v":1},{"$f":"+Details!AD$8","v":1},{"$f":"+Details!AD$4","v":19.600000000000001},{"$f":"ROUND(+$I27*($AI$48/113)+($AL$48-72),0)","v":20},{"$f":"ROUND(+$I27*($AI$49/113)+($AL$49-72),0)","v":19},{"$f":"ROUND(+$I27*($AI$50/113)+($AL$50-72),0)","v":20},{"$f":"ROUND(+$I27*($AI$51/113)+($AL$51-72),0)","v":18},{"$f":"ROUND(+$I27*($AI$52/113)+($AL$52-72),0)","v":19},{"$f":"ROUND(+$I27*($AI$55/113)+($AL$55-72),0)","v":18},{"$f":"ROUND(+$I27*($AI$56/113)+($AL$56-72),0)","v":15},{"$f":"ROUND(+$I27*($AI$57/113)+($AL$57-72),0)","v":17},18,19.666666666666668,null,"LarryS",{"$f":"IF(+Details!AD$10=0,\"\",Details!AD$10)","v":""},{"$f":"IF(+Details!$AD$11=0,\"\",Details!$AD$11)","v":""},{"$f":"IF(+Details!$AD$12=0,\"\",Details!$AD$12)","v":""},{"$f":"IF(+Details!$AD$16=0,\"\",Details!$AD$16)","v":""},{"$f":"IF(+Details!AD$17=0,\"\",Details!AD$17)","v":""},{"$f":"IF(+Details!$AD$18=0,\"\",Details!$AD$18)","v":""},{"$f":"IF(+Details!$AD$19=0,\"\",Details!$AD$19)","v":""}]
[28,"Watkins","Bob","BobWatkins",{"$f":"+Details!AE5","v":"BobW w"},{"$f":"+Details!AE$6","v":0},{"$f":"+Details!AE$7","v":0},{"$f":"+Details!AE$8","v":0},{"$f":"+Details!AE$4","v":11.9},{"$f":"ROUND(+$I28*($AJ$48/113)+($AM$48-72),0)","v":14},{"$f":"ROUND(+$I28*($AJ$49/113)+($AM$49-72),0)","v":12},{"$f":"ROUND(+$I28*($AJ$50/113)+($AM$50-72),0)","v":12},{"$f":"ROUND(+$I28*($AJ$51/113)+($AM$51-72),0)","v":12},{"$f":"ROUND(+$I28*($AJ$52/113)+($AM$52-72),0)","v":12},{"$f":"ROUND(+$I28*($AJ$55/113)+($AM$55-72),0)","v":12},{"$f":"ROUND(+$I28*($AJ$56/113)+($AM$56-72),0)","v":10},{"$f":"ROUND(+$I28*($AJ$57/113)+($AM$57-72),0)","v":12},11,12.666666666666666,null,"BobW w",{"$f":"IF(+Details!AE$10=0,\"\",Details!AE$10)","v":"0"},{"$f":"IF(+Details!$AE$11=0,\"\",Details!$AE$11)","v":"0"},{"$f":"IF(+Details!$AE$12=0,\"\",Details!$AE$12)","v":"0"},{"$f":"IF(+Details!$AE$16=0,\"\",Details!$AE$16)","v":""},{"$f":"IF(+Details!$AE$17=0,\"\",Details!$AE$17)","v":""},{"$f":"IF(+Details!$AE$18=0,\"\",Details!$AE$18)","v":""},{"$f":"IF(+Details!$AE$19=0,\"\",Details!$AE$19)","v":""}]
[29,"West","Waylan","WaylanWest",{"$f":"+Details!AF5","v":"Waylan g"},{"$f":"+Details!AF$6","v":0},{"$f":"+Details!AF$7","v":0},{"$f":"+Details!AF$8","v":0},{"$f":"+Details!AF$4","v":22.4},{"$f":"ROUND(+$I29*($AH$48/113)+($AK$48-72),0)","v":17},{"$f":"ROUND(+$I29*($AH$49/113)+($AK$49-72),0)","v":19},{"$f":"ROUND(+$I29*($AH$50/113)+($AK$50-72),0)","v":17},{"$f":"ROUND(+$I29*($AH$51/113)+($AK$51-72),0)","v":16},{"$f":"ROUND(+$I29*($AH$52/113)+($AK$52-72),0)","v":17},{"$f":"ROUND(+$I29*($AH$55/113)+($AK$55-72),0)","v":17},{"$f":"ROUND(+$I29*($AH$56/113)+($AK$56-72),0)","v":14},{"$f":"ROUND(+$I29*($AH$57/113)+($AK$57-72),0)","v":16},15,17.666666666666668,null,"Waylan g",{"$f":"IF(+Details!AF$10=0,\"\",Details!AF$10)","v":"0"},{"$f":"IF(+Details!$AF$11=0,\"\",Details!$AF$11)","v":"0"},{"$f":"IF(+Details!$AF$12=0,\"\",Details!$AF$12)","v":"0"},{"$f":"IF(+Details!$AF$16=0,\"\",Details!$AF$16)","v":""},{"$f":"IF(+Details!$AF$17=0,\"\",Details!$AF$17)","v":""},{"$f":"IF(+Details!$AF$18=0,\"\",Details!$AF$18)","v":""},{"$f":"IF(+Details!$AF$19=0,\"\",Details!$AF$19)","v":""}]
[30,"White","Bill","BillWhite",{"$f":"+Details!AG5","v":"BillW"},{"$f":"+Details!AG$6","v":1},{"$f":"+Details!AG$7","v":0},{"$f":"+Details!AG$8","v":0},{"$f":"+Details!AG$4","v":20.9},{"$f":"ROUND(+$I30*($AI$48/113)+($AL$48-72),0)","v":21},{"$f":"ROUND(+$I30*($AI$49/113)+($AL$49-72),0)","v":21},{"$f":"ROUND(+$I30*($AI$50/113)+($AL$50-72),0)","v":21},{"$f":"ROUND(+$I30*($AI$51/113)+($AL$51-72),0)","v":19},{"$f":"ROUND(+$I30*($AI$52/113)+($AL$52-72),0)","v":20},{"$f":"ROUND(+$I30*($AI$55/113)+($AL$55-72),0)","v":19},{"$f":"ROUND(+$I30*($AI$56/113)+($AL$56-72),0)","v":17},{"$f":"ROUND(+$I30*($AI$57/113)+($AL$57-72),0)","v":19},18,21,null,"BillW",{"$f":"IF(+Details!AG$10=0,\"\",Details!AG$10)","v":""},{"$f":"IF(+Details!$AG$11=0,\"\",Details!$AG$11)","v":""},{"$f":"IF(+Details!$AG$12=0,\"\",Details!$AG$12)","v":""},null,{"$f":"IF(+Details!$AG$17=0,\"\",Details!$AG$17)","v":""},{"$f":"IF(+Details!$AG$18=0,\"\",Details!$AG$18)","v":""},{"$f":"IF(+Details!$AG$19=0,\"\",Details!$AG$19)","v":""}]
[31,"Whyte","Mike","MikeWhyte",{"$f":"+Details!AH5","v":"MikeW"},{"$f":"+Details!AH$6","v":1},{"$f":"+Details!AH$7","v":1},{"$f":"+Details!AH$8","v":1},{"$f":"+Details!AH$4","v":18.8},{"$f":"ROUND(+$I31*($AI$48/113)+($AL$48-72),0)","v":19},{"$f":"ROUND(+$I31*($AI$49/113)+($AL$49-72),0)","v":18},{"$f":"ROUND(+$I31*($AI$50/113)+($AL$50-72),0)","v":19},{"$f":"ROUND(+$I31*($AI$51/113)+($AL$51-72),0)","v":17},{"$f":"ROUND(+$I31*($AI$52/113)+($AL$52-72),0)","v":18},{"$f":"ROUND(+$I31*($AI$55/113)+($AL$55-72),0)","v":17},{"$f":"ROUND(+$I31*($AI$56/113)+($AL$56-72),0)","v":15},{"$f":"ROUND(+$I31*($AI$57/113)+($AL$57-72),0)","v":17},17,18.666666666666668,null,"MikeW",{"$f":"IF(+Details!AH$10=0,\"\",Details!AH$10)","v":""},{"$f":"IF(+Details!$AH$11=0,\"\",Details!$AH$11)","v":""},{"$f":"IF(+Details!$AH$12=0,\"\",Details!$AH$12)","v":""},{"$f":"IF(+Details!$AH$16=0,\"\",Details!$AH$16)","v":""},{"$f":"IF(+Details!$AH$17=0,\"\",Details!$AH$17)","v":""},{"$f":"IF(+Details!$AH$18=0,\"\",Details!$AH$18)","v":""},{"$f":"IF(+Details!$AH$19=0,\"\",Details!$AH$19)","v":""}]
[32,"Williams","Jim","JimWilliams",{"$f":"+Details!AI5","v":"JimW g "},{"$f":"+Details!AI$6","v":0},{"$f":"+Details!AI$7","v":0},{"$f":"+Details!AI$8","v":1},{"$f":"+Details!AI$4","v":21.9},{"$f":"ROUND(+$I32*($AH$48/113)+($AK$48-72),0)","v":16},{"$f":"ROUND(+$I32*($AH$49/113)+($AK$49-72),0)","v":18},{"$f":"ROUND(+$I32*($AH$50/113)+($AK$50-72),0)","v":17},{"$f":"ROUND(+$I32*($AH$51/113)+($AK$51-72),0)","v":16},{"$f":"ROUND(+$I32*($AH$52/113)+($AK$52-72),0)","v":17},{"$f":"ROUND(+$I32*($AH$55/113)+($AK$55-72),0)","v":16},{"$f":"ROUND(+$I32*($AH$56/113)+($AK$56-72),0)","v":14},{"$f":"ROUND(+$I32*($AH$57/113)+($AK$57-72),0)","v":15},15,17,null,"JimW g ",{"$f":"IF(+Details!AI$10=0,\"\",Details!AI$10)","v":""},{"$f":"IF(+Details!$AI$11=0,\"\",Details!$AI$11)","v":""},{"$f":"IF(+Details!$AI$12=0,\"\",Details!$AI$12)","v":""},{"$f":"IF(+Details!$AI$16=0,\"\",Details!$AI$16)","v":""},{"$f":"IF(+Details!$AI$17=0,\"\",Details!$AI$17)","v":""},{"$f":"IF(+Details!$AI$18=0,\"\",Details!$AI$18)","v":""},{"$f":"IF(+Details!$AI$19=0,\"\",Details!$AI$19)","v":""}]
[33,"Duncan","Robert","RobertDuncan",{"$f":"+Details!AJ5","v":"RobertD"},{"$f":"+Details!AJ$6","v":0},{"$f":"+Details!AJ$7","v":0},{"$f":"+Details!AJ$8","v":0},{"$f":"+Details!AJ$4","v":17.8},{"$f":"ROUND(+$I33*($AI$48/113)+($AL$48-72),0)","v":18},{"$f":"ROUND(+$I33*($AI$49/113)+($AL$49-72),0)","v":17},{"$f":"ROUND(+$I33*($AI$50/113)+($AL$50-72),0)","v":18},{"$f":"ROUND(+$I33*($AI$51/113)+($AL$51-72),0)","v":16},{"$f":"ROUND(+$I33*($AI$52/113)+($AL$52-72),0)","v":17},{"$f":"ROUND(+$I33*($AI$55/113)+($AL$55-72),0)","v":16},{"$f":"ROUND(+$I33*($AI$56/113)+($AL$56-72),0)","v":14},{"$f":"ROUND(+$I33*($AI$57/113)+($AL$57-72),0)","v":15},16,17.666666666666668,null,"RobertD",{"$f":"IF(+Details!AJ$10=0,\"\",Details!AJ$10)","v":"0"},{"$f":"IF(+Details!AJ$11=0,\"\",Details!AJ$11)","v":"0"},{"$f":"IF(+Details!AJ$12=0,\"\",Details!AJ$12)","v":"0"},{"$f":"IF(+Details!AJ$16=0,\"\",Details!AJ$16)","v":""},{"$f":"IF(+Details!$AJ$17=0,\"\",Details!$AJ$17)","v":""},{"$f":"IF(+Details!AJ$18=0,\"\",Details!AJ$18)","v":""},{"$f":"IF(+Details!AJ$19=0,\"\",Details!AJ$19)","v":""}]
[16,{"$f":"IF(+Details!AK3=0,\"\",+Details!AK3)","v":"Rice"},{"$f":"IF(+Details!AK2=0,\"\",+Details!AK2)","v":"Britt"},"BrittRice",{"$f":"C34&LEFT(B34,1)","v":"BrittR"},{"$f":"+Details!AK$6","v":0},{"$f":"+Details!AK$7","v":0},{"$f":"+Details!AK$8","v":0},{"$f":"+Details!AK$4","v":0},{"$f":"ROUND(+$I34*($AI$48/113)+($AL$48-72),0)","v":-3},{"$f":"ROUND(+$I34*($AI$49/113)+($AL$49-72),0)","v":-3},{"$f":"ROUND(+$I34*($AI$50/113)+($AL$50-72),0)","v":-2},{"$f":"ROUND(+$I34*($AI$51/113)+($AL$51-72),0)","v":-3},{"$f":"ROUND(+$I34*($AI$52/113)+($AL$52-72),0)","v":-3},{"$f":"ROUND(+$I34*($AI$55/113)+($AL$55-72),0)","v":-3},{"$f":"ROUND(+$I34*($AI$56/113)+($AL$56-72),0)","v":-5},{"$f":"ROUND(+$I34*($AI$57/113)+($AL$57-72),0)","v":-4},{"$f":"ROUND(L34*0.875, 0)","v":-2},{"$f":"AVERAGE(J34:L34)","v":-2.6666666666666665},null,{"$f":"+E34","v":"BrittR"},{"$f":"IF(+Details!AK$10=0,\"\",Details!AK$10)","v":""},{"$f":"IF(+Details!$AK$11=0,\"\",Details!$AK$11)","v":""},{"$f":"IF(+Details!$AK$12=0,\"\",Details!$AK$12)","v":""},{"$f":"IF(+Details!$AK$16=0,\"\",Details!$AK$16)","v":""},{"$f":"IF(+Details!$AK$17=0,\"\",Details!$AK$17)","v":""},{"$f":"IF(+Details!$AK$18=0,\"\",Details!$AK$18)","v":""},{"$f":"IF(+Details!$AK$19=0,\"\",Details!$AK$19)","v":""}]
[null,{"$f":"IF(+Details!AL3=0,\"\",+Details!AL3)","v":""},{"$f":"IF(+Details!AL2=0,\"\",+Details!AL2)","v":""},"","",{"$f":"+Details!AL$6","v":0},{"$f":"+Details!AL$7","v":0},{"$f":"+Details!AL$8","v":0},{"$f":"+Details!$AL4","v":0},{"$f":"ROUND(+$I35*($AI$48/113)+($AL$48-72),0)","v":-3},{"$f":"ROUND(+$I35*($AI$49/113)+($AL$49-72),0)","v":-3},{"$f":"ROUND(+$I35*($AI$50/113)+($AL$50-72),0)","v":-2},{"$f":"ROUND(+$I35*($AI$51/113)+($AL$51-72),0)","v":-3},{"$f":"ROUND(+$I35*($AI$52/113)+($AL$52-72),0)","v":-3},{"$f":"ROUND(+$I35*($AI$55/113)+($AL$55-72),0)","v":-3},{"$f":"ROUND(+$I35*($AI$56/113)+($AL$56-72),0)","v":-5},{"$f":"ROUND(+$I35*($AI$57/113)+($AL$57-72),0)","v":-4},-2,-2.6666666666666665,null,"",{"$f":"IF(+Details!AL$10=0,\"\",Details!AL$10)","v":""},{"$f":"IF(+Details!$AL$11=0,\"\",Details!$AL$11)","v":""},{"$f":"IF(+Details!$AL$12=0,\"\",Details!$AL$12)","v":""},{"$f":"IF(+Details!$AL$12=0,\"\",Details!$AL$12)","v":""},null,{"$f":"IF(+Details!$AL$12=0,\"\",Details!$AL$12)","v":""},{"$f":"IF(+Details!$AL$12=0,\"\",Details!$AL$12)","v":""}]
[null,null,null,""]
[null,null,null,""]
[null,null,null,""]
[null,null,null,""]
[null,null,null,""]
[null,null,null,null,null,"Medal",null,null,"Team"]
[null,null,null,null,"Monday Win:",{"$f":"IF(+Details!AS6=0,\"\",Details!AS6)","v":""},null,null,{"$f":"IF(+Details!AT6=0,\"\",Details!AT6)","v":""}]
[null,null,null,null,"Wednesday Win:",{"$f":"IF(+Details!AS7=0,\"\",Details!AS7)","v":""},null,null,{"$f":"IF(+Details!AT7=0,\"\",Details!AT7)","v":""}]
[null,null,null,null,"Friday Win:",{"$f":"IF(+Details!AS8=0,\"\",Details!AS8)","v":""},null,null,{"$f":"IF(+Details!AT8=0,\"\",Details!AT8)","v":""}]
[null,"CourseIndexR",null,null,null,"Monday Course ","Wednesday Course ","Friday Course ",null,"Player","Palmer","Tourney","Palmer D/K","Palmer G/D","Oaks","Windcrest","Panther"]
[null,null,null,null,null,null,null,null,null,null,null,null,null,null,null,null,null,null,null,null,null,null,null,null,null,null,null,null,null,null,null,null,null,"Slope",null,null,"Rating"]
[null,"(PUT THE ROW NUMBER OF THE REGULAR PLAYER IN COLUMN A FOR EACH GUEST)",null,null,null,null,null,null,null,null,null,null,null,null,null,null,null,null,null,null,null,null,null,null,null,null,null,null,null,null,null,null,"WCC Courses","Green","Gold","White","Green","Gold","White"]
["PartnerC",null,null,null,null,null,null,null,null,null,null,null,null,null,null,null,null,null,null,null,"GerryA","0284389",null,null,null,null,null,null,null,null,null,null,"Player",119,128,137,65.400000000000006,69.5,71.2]
[null,null,null,null,null,null,null,null,null,null,null,null,null,null,null,null,null,null,null,null,"BobE","6433451",null,null,null,null,null,null,null,null,null,null,"Palmer King-Gen",123,126,128,66.599999999999994,69.400000000000006,70.900000000000006]
[null,null,null,null,null,null,null,null,null,null,null,null,null,null,null,null,null,null,null,null,"JohnH",1952705,null,null,null,null,null,null,null,null,null,null,"Tournament",119,126,129,65.900000000000006,69.7,70.5]
[null,null,null,null,null,null,null,null,null,null,null,null,null,null,null,null,null,null,null,null,"JesseJ g","8505540",null,null,null,null,null,null,null,null,null,null,"Palmer Dea-King",117,122,128,65.099999999999994,68.599999999999994,70.2]
[null,null,null,null,null,null,null,null,null,null,null,null,null,null,null,null,null,null,null,null,"JimK g",8505583,null,null,null,null,null,null,null,null,null,null,"Palmer Gen - Dea",119,123,129,65.900000000000006,69.2,70.7]
[null,null,null,null,null,null,null,null,null,null,null,null,null,null,null,null,null,null,null,null,"JohnK",8505613]
[null,null,null,null,null,null,null,null,null,null,null,null,null,null,null,null,null,null,null,null,"BobL",8505649,null,null,null,null,null,null,null,null,null,null,"Golf Trails Courses","Green","White","Blue","Green","White","Blue"]
[null,null,null,null,null,null,null,null,null,null,null,null,null,null,null,null,null,null,null,null,"WaltL",8505667,null,null,null,null,null,null,null,null,null,null,"Oaks",112,122,129,66.5,68.900000000000006,70.099999999999994]
[null,null,null,null,null,null,null,null,null,null,null,null,null,null,null,null,null,null,null,null,"BobLx",8505653,null,null,null,null,null,null,null,null,null,null,"Lake Windcreast",109,115,120,64.599999999999994,67.5,69.2]
[null,null,null,null,null,null,null,null,null,null,null,null,null,null,null,null,null,null,null,null,"WallisM","2102801",null,null,null,null,null,null,null,null,null,null,"Panther",113,125,129,65.2,67.8,70.5]
[null,null,null,null,null,null,null,null,null,null,null,null,null,null,null,null,null,null,null,null,"CraigM","6353615",null,null,null,null,null,null,null,null,null,null,null,"HC= HI*(slope/113+(Course Rating -72))"]
[null,null,null,null,null,null,null,null,null,null,null,null,null,null,null,null,null,null,null,null,"DanM","0003188"]
[null,null,null,null,null,null,null,null,null,null,null,null,null,null,null,null,null,null,null,null,"TimM","1484835"]
[null,null,null,null,null,null,null,null,null,null,null,null,null,null,null,null,null,null,null,null,"GaryP","3088085"]
[null,null,null,null,null,null,null,null,null,null,null,null,null,null,null,null,null,null,null,null,"AlR",8505970]
[null,null,null,null,null,null,null,null,null,null,null,null,null,null,null,null,null,null,null,null,"TimR","1078775"]
[null,null,null,null,null,null,null,null,null,null,null,null,null,null,null,null,null,null,null,null,"KenR","2020045"]
[null,null,null,null,null,null,null,null,null,null,null,null,null,null,null,null,null,null,null,null,"RoyS",8506106]
[null,null,null,null,null,null,null,null,null,null,null,null,null,null,null,null,null,null,null,null,"MurrayS",7967386]
[null,null,null,null,null,null,null,null,null,null,null,null,null,null,null,null,null,null,null,null,"JeffS","0153649"]
[null,null,null,null,null,null,null,null,null,null,null,null,null,null,null,null,null,null,null,null,"LarryS",8506052]
[null,null,null,null,null,null,null,null,null,null,null,null,null,null,null,null,null,null,null,null,"JohnT","2565906"]
[null,null,null,null,null,null,null,null,null,null,null,null,null,null,null,null,null,null,null,null,"BobW",1635148]
[null,null,null,null,null,null,null,null,null,null,null,null,null,null,null,null,null,null,null,null,"Waylan g","6462888"]
[null,null,null,null,null,null,null,null,null,null,null,null,null,null,null,null,null,null,null,null,"BillW",8506290]
[null,null,null,null,null,null,null,null,null,null,null,null,null,null,null,null,null,null,null,null,"MikeW",8506225]
[null,null,null,null,null,null,null,null,null,null,null,null,null,null,null,null,null,null,null,null,"JimW ",8506279]
[null,null,null,null,null,null,null,null,null,null,null,null,null,null,null,null,null,null,null,null,"RobertD",8505225]
[]
[null,null,null,null,null,null,null,null,null,null,null,null,null,null,null,null,{"$f":"F4","v":"Player"},null,{"$f":"+G4","v":"Tourney"},null,{"$f":"+H4","v":"Palmer"}]
[null,null,null,null,null,null,null,null,null,null,null,null,null,null,null,null,"HC",null,"HC",null,"HC"]
[null,null,null,null,null,{"$f":"+I4","v":"2020-05-01"},null,null,null,null,null,null,null,null,null,null,"Gld/Gr","Stableford","Gld","Stableford","Gld","Stableford"]
[null,null,null,null,null,"Index",null,null,null,null,null,null,null,null,null,null,null,{"$f":"7/8","v":0.875},null,{"$f":"7/8","v":0.875},null,{"$f":"7/8","v":0.875},"Count","Avg"]
[null,null,null,null,{"$f":"E7","v":"GerryA"},{"$f":"+I7","v":10.8},null,null,null,null,null,null,null,null,null,null,{"$f":"+J7","v":10},{"$f":"ROUND(Q81*R$80,0)","v":9},{"$f":"+K7","v":9},{"$f":"ROUND(S81*T$80,0)","v":8},{"$f":"+L7","v":10},{"$f":"ROUND(U81*V$80,0)","v":9},1,{"$f":"ROUND(AVERAGE(R81,T81,V81),0)","v":9}]
[null,null,null,null,"BobE",21,null,null,null,null,null,null,null,null,null,null,21,18,21,18,21,18,2,18]
[null,null,null,null,"JohnH",22.4,null,null,null,null,null,null,null,null,null,null,23,20,22,19,23,20,25,{"$f":"ROUND(AVERAGE(R98,T98,V98),0)","v":15}]
[null,null,null,null,"JesseJ g",25.4,null,null,null,null,null,null,null,null,null,null,20,18,22,19,21,18,3,18]
[null,null,null,null,"JimK g",26.8,null,null,null,null,null,null,null,null,null,null,22,19,24,21,22,19,4,20]
[null,null,null,null,"JohnK",14.4,null,null,null,null,null,null,null,null,null,null,14,12,13,11,14,12,5,12]
[null,null,null,null,"BobL",19.5,null,null,null,null,null,null,null,null,null,null,20,18,19,17,19,17,6,17]
[null,null,null,null,"WaltL",22.5,null,null,null,null,null,null,null,null,null,null,23,20,22,19,23,20,7,{"$f":"ROUND(AVERAGE(R88,T88,V88),0)","v":20}]
[null,null,null,null,"BobLx",17,null,null,null,null,null,null,null,null,null,null,17,15,16,14,17,15,8,15]
[null,null,null,null,"WallisM",19.399999999999999,null,null,null,null,null,null,null,null,null,null,19,17,19,17,19,17,9,17]
[null,null,null,null,"CraigM",10.1,null,null,null,null,null,null,null,null,null,null,9,8,9,8,9,8,10,8]
[null,null,null,null,"DanM",14.5,null,null,null,null,null,null,null,null,null,null,14,12,14,12,14,12,11,12]
[null,null,null,null,"TimM",19,null,null,null,null,null,null,null,null,null,null,19,17,19,17,19,17,12,17]
[null,null,null,null,"GaryP",8.1,null,null,null,null,null,null,null,null,null,null,7,6,6,5,7,6,12,{"$f":"ROUND(AVERAGE(R94,T94,V94),0)","v":6}]
[null,null,null,null,"AlR",21.1,null,null,null,null,null,null,null,null,null,null,21,18,21,18,21,18,13,18]
[null,null,null,null,"TimR",17.5,null,null,null,null,null,null,null,null,null,null,17,15,17,15,17,15,14,15]
[null,null,null,null,"KenR",11.1,null,null,null,null,null,null,null,null,null,null,10,9,10,9,10,9,15,9]
[null,null,null,null,"RoyS g",21.5,null,null,null,null,null,null,null,null,null,null,16,14,18,16,17,15,26,{"$f":"ROUND(AVERAGE(R83,T83,V83),0)","v":20}]
[null,null,null,null,"MurrayS",16.5,null,null,null,null,null,null,null,null,null,null,16,14,16,14,16,14,16,{"$f":"ROUND(AVERAGE(R84,T84,V84),0)","v":18}]
[null,null,null,null,"JeffS",22,null,null,null,null,null,null,null,null,null,null,22,19,22,19,22,19,17,{"$f":"ROUND(AVERAGE(R100,T100,V100),0)","v":19}]
[null,null,null,null,"LarryS",19.600000000000001,null,null,null,null,null,null,null,null,null,null,20,18,19,17,20,18,18,18]
[null,null,null,null,{"$f":"E34","v":"BrittR"},{"$f":"+I34","v":0},null,null,null,null,null,null,null,null,null,null,{"$f":"+J34","v":-3},-3,{"$f":"+K34","v":-3},-3,{"$f":"+L34","v":-2},-2,19,-3]
[null,null,null,null,{"$f":"E28","v":"BobW w"},{"$f":"+I28","v":11.9},null,null,null,null,null,null,null,null,null,null,{"$f":"+J28","v":14},12,{"$f":"+K28","v":12},11,{"$f":"+L28","v":12},11,20,{"$f":"ROUND(AVERAGE(R103,T103,V103),0)","v":11}]
[null,null,null,null,"Waylan g",22.4,null,null,null,null,null,null,null,null,null,null,17,15,19,17,17,15,22,16]
[null,null,null,null,"BillW",20.9,null,null,null,null,null,null,null,null,null,null,21,18,21,18,21,18,23,18]
[null,null,null,null,"MikeW",18.8,null,null,null,null,null,null,null,null,null,null,19,17,18,16,19,17,24,17]
[null,null,null,null,"JimW g ",21.9,null,null,null,null,null,null,null,null,null,null,16,14,18,16,17,15,27,15]
[null,null,null,null,"RobertD",17.8,null,null,null,null,null,null,null,null,null,null,18,16,17,15,18,16,21,16]
[null,null,null,null,{"$f":"+U36","v":0},{"$f":"+W36","v":0},null,null,null,null,null,null,null,null,null,null,{"$f":"+J35","v":-3},-3,{"$f":"+K35","v":-3},-3,{"$f":"+L35","v":-2},-2,null,-3]

{"sheet":"Groups","index":2,"n_rows":95,"n_cols":62,"rows_kept":95,"cut":false,"hidden":false,"merged":[[8,17,8,18],[17,17,17,18],[26,17,26,18],[40,5,40,7],[41,5,41,7],[40,8,40,11],[42,5,42,7],[43,5,43,7],[41,8,41,11],[42,8,42,11],[43,8,43,11],[43,15,43,16],[43,17,43,18],[40,15,40,16],[41,15,41,16],[42,15,42,16],[40,17,40,18],[41,17,41,18],[42,17,42,18],[93,48,93,50],[93,51,93,54],[91,5,91,7],[91,8,91,11],[92,5,92,7],[92,8,92,11],[93,5,93,7],[93,8,93,11],[94,48,94,50],[94,51,94,54],[94,5,94,7],[94,8,94,11],[40,48,40,50],[40,51,40,54],[41,48,41,50],[41,51,41,54],[42,48,42,50],[42,51,42,54],[43,48,43,50],[43,51,43,54],[91,48,91,50],[91,51,91,54],[92,48,92,50],[92,51,92,54]]}
["   Call Initialize","LastNameC","FirstNameC","NameC","FirstNameLC","MonC","WedC","FriC","GindexC","GMonIndexC","GWedIndexC","GFriIndexC","GuestPartnerC",null,null,"16\nGRegularPlayerC",17,"PrioritizeC\n18",19,"GroupEndC\n20",21,"MonPC","MonRndC","MGC\n24","WedPC","WedRndC","WGC\n27","FriPC","FriRndC","FGC\n30","GroupsC\n31","Tee1C\n32","Tee2C\n33","Tee3C\n34","Tee4C\n35","Tee5C\n36",null,null,"MonCombinedNamesC\n39","WedCombinedNamesC\n40","FriCombinedNamesC\n41"]
["DateR",null,null,null,"Date","2020-05-04","2020-05-06","2020-05-08",null,null,null,null,null,null,null,null,null,"                      Priority Player(s)",null,null,null,null,null,null,null,null,null,null,null,null,"Players","Tee 1","Tee 2","Tee 3","Tee 4","Tee 5",null,null,null,null,null,null,null,null,null,null,null,"Date","2020-04-27","2020-04-29","2020-05-01",null,null,null,null,null,"Monday Groups"]
[null,null,null,null,null,"Mon","Wed","Fri",null,null,null,null,null,null,null,null,null,"    (Use First and Last Name no space)",null,null,null,null,null,null,null,null,null,null,null,"TeeR",0,0,0,0,0,0,null,null,null,null,null,null,null,null,null,null,null,null,"Mon","Wed","Fri",null,null,null,null,null,"Start Time",{"$f":"#REF!","v":{"$error":"#REF!"}}]
["CourseNameR",null,null,null,null,"Player","Tourney","Palmer",null,"HC","HC","HC",null,null,null,null,null,"Monday","Wednesday","Friday",null,null,null,null,null,null,null,null,null,null,1,1,0,0,0,0,null,null,null,null,null,null,null,null,null,null,null,null,"Oaks","Tourney","Tourney",null,"HC","HC","HC",null,"Time Incr.",{"$f":"$P$5","v":9},{"$f":"AV$3&\" - \"&AV$4","v":" - "}]
["Increment &PrioritizeR",null,null,null,null,"10:39:00","10:21:00","10:21:00",{"$f":"+Details!E4","v":"2020-05-01"},"22 Max","22 Max","22 Max",null,null,"Increment",9,"Player 1",null,null,null,null,null,null,null,null,null,null,null,null,null,2,2,0,0,0,0,null,null,null,null,null,null,null,null,null,null,null,null,"10:08:00","10:21:00","10:21:00",{"$f":"+Details!AV4","v":"00:00:00"},"22 Max","22 Max","22 Max",null,"Group 1",{"$f":"$F$5","v":"10:39:00"},"BobLux","JesseJohnson","DanMiracle"]
[null,"Last Name","First Name",null,null,{"$f":"SUM(F7:F35)","v":11},{"$f":"SUM(G7:G35)","v":12},{"$f":"SUM(H7:H35)","v":13},"Index","Player","Tourney","Palmer",null,null,null,null,"Player 2",null,null,null,null,null,null,null,null,null,null,null,null,null,3,3,0,0,0,0,null,null,null,null,null,null,null,null,"Last Name","First Name",null,null,{"$f":"SUM(AW7:AW35)","v":12},{"$f":"SUM(AX7:AX35)","v":8},{"$f":"SUM(AY7:AY35)","v":12},"Index","Oaks","TPC","TPC",null,"Group 2",{"$f":"$F$5+1*$P$5/1440","v":"10:48:00"},"RoySimmons","TimRoesler","WallisMcMath"]
["StartNameR","Anderson","Gerry","GerryAnderson","GerryA",0,0,0,10.8,10,10,9,null,"MonR","Monday Groups",null,null,null,null,null,null,"Monday Players",null,null,"Wednesday Players",null,null,"Friday Players",null,null,4,4,0,0,0,0,null,null,null,null,null,null,null,null,"Anderson","Gerry","GerryAnderson","GerryA",0,0,0,10.8,null,null,null,null,"Group 3",{"$f":"$F$5+2*$P$5/1440","v":"10:57:00"},"JohnKeyes","MikeWhyte","GaryPeterson"]
["CntR","Edwards","Bob","BobEdwards","BobE",0,0,0,21,21,21,21,null,null,"Start Time","10:39:00",null,null,null,null,null,{"$f":"F6","v":11},null,null,{"$f":"G6","v":12},null,null,{"$f":"H6","v":13},null,null,5,2,3,0,0,0,null,null,null,null,null,null,null,null,"Edwards","Bob","BobEdwards","BobE",0,0,1,21,null,null,null,null,"Group 4",{"$f":"$F$5+3*$P$5/1440","v":"11:06:00"},"CraigMellington","JeffSteimer","GerryAnderson","JerryCardillo"]
[null,"Heg","John","JohnHeg","JohnH",0,0,0,22.4,23,23,22,null,null,"Time Incr.",{"$f":"$P$5","v":9},{"$f":"F$4 &\" Course on \"","v":"Player Course on "},{"$f":"F2","v":"2020-05-04"},null,null,null,null,null,null,null,null,null,null,null,null,6,3,3,0,0,0,null,null,null,null,null,null,null,null,"Heg","John","JohnHeg","JohnH",0,0,0,22.4,null,null,null,null,"Group 5",{"$f":"$F$5+4*$P$5/1440","v":"11:15:00"}]
["MWFPlayerR","Johnson","Jesse","JesseJohnson","JesseJ g",1,1,1,25.4,20,21,22,null,"GroupMonR","Group 1","10:39:00","GaryPeterson","MikeWhyte","WallisMcMath",null,null,"GaryPeterson",1.4017641544342041E-2,null,"MikeWhyte",5.3504526615142822E-2,null,"JimWilliams",0.22686600685119629,null,7,3,4,0,0,0,null,null,"JesseJohnson","JesseJohnson","JesseJohnson",null,null,null,"Johnson","Jesse","JesseJohnson","JesseJ g",1,0,1,25.4]
[null,"Kinney","Jim","JimKinney","JimK g",0,0,0,26.8,22,22,24,null,null,"Group 2","10:48:00","CraigMellington","JohnKeyes","BobLewis","JesseJohnson",null,"MikeWhyte",4.5352756977081299E-2,null,"DanMiracle",5.6236863136291504E-2,null,"CraigMellington",0.26379293203353882,null,8,4,4,0,0,0,null,null,"JohnKeyes","JohnKeyes","JohnKeyes",null,null,null,"Kinney","Jim","JimKinney","JimK g",0,0,0,26.8,null,null,null,null,"Wednesday Groups"]
[null,"Keyes","John","JohnKeyes","JohnK",1,1,1,14.4,14,14,13,null,null,"Group 3","10:57:00","BillWhite","TimRoesler","DanMiracle","RoySimmons",null,"WallisMcMath",0.28956246376037598,null,"TimRoesler",0.36401867866516113,null,"DanMiracle",0.27934205532073975,null,9,3,3,3,0,0,null,null,"BobLewis","BobLewis","BobLewis",null,null,null,"Keyes","John","JohnKeyes","JohnK",1,0,1,14.4,null,null,null,null,"Start Time",{"$f":"#REF!","v":{"$error":"#REF!"}}]
[null,"Lewis","Bob","BobLewis","BobL",1,1,1,19.5,20,19,19,null,null,"Group 4",null,null,null,null,null,null,"CraigMellington",0.30194801092147827,null,"BobLux",0.37353616952896118,null,"BobLewis",0.29816544055938721,null,10,3,3,4,0,0,null,null,"WallisMcMath","BobLux","BobLux",null,null,null,"Lewis","Bob","BobLewis","BobL",0,1,1,19.5,null,null,null,null,"Time Incr.",{"$f":"$P$5","v":9},{"$f":"AW$3&\" - \"&AW$4","v":"Mon - Oaks"}]
["LastMonR","Lisiewski","Walt","WaltLisiewski","WaltL",0,0,0,22.5,23,23,22,null,null,"Group 5",null,null,null,null,null,null,"JohnKeyes",0.5334240198135376,null,"JesseJohnson",0.4140326976776123,null,"JohnKeyes",0.468700110912323,null,11,3,4,4,0,0,null,null,"CraigMellington","WallisMcMath","WallisMcMath",null,null,null,"Lisiewski","Walt","WaltLisiewski","WaltL",0,0,0,22.5,null,null,null,null,"Group 1",{"$f":"$G$5","v":"10:21:00"},"JeffSteimer","BobLewis","MikeWhyte"]
[null,"Lux","Bob","BobLux","BobLx",0,1,1,17,17,17,16,null,null,null,null,null,null,null,null,null,"BobLewis",0.57951861619949341,null,"RoySimmons",0.5248684287071228,null,"RoySimmons",0.58916300535202026,null,12,4,4,4,0,0,null,null,"DanMiracle","CraigMellington","CraigMellington",null,null,null,"Lux","Bob","BobLux","BobLx",1,0,1,17,null,null,null,null,"Group 2",{"$f":"$G$5+$P$5/1440","v":"10:30:00"},"WallisMcMath","CraigMellington","GaryPeterson"]
["WedR","McMath","Wallis","WallisMcMath","WallisM",1,1,1,19.399999999999999,19,19,19,null,"WedR","Wednesday Groups",null,null,null,null,null,null,"JesseJohnson",0.7055475115776062,null,"LarryStick",0.76711165904998779,null,"JesseJohnson",0.59245824813842773,null,13,3,3,3,4,0,null,null,"GaryPeterson","DanMiracle","DanMiracle",null,null,null,"McMath","Wallis","WallisMcMath","WallisM",1,1,1,19.399999999999999,null,null,null,null,"Group 3",{"$f":"$G$5+2*$P$5/1440","v":"10:39:00"},"DanMiracle","GerryAnderson","JerryCardillo"]
[null,"Mellington","Craig","CraigMellington","CraigM",1,1,1,10.1,9,9,9,null,null,"Start Time",{"$f":"G5","v":"10:21:00"},null,null,null,null,null,"BillWhite",0.7090378999710083,null,"BobLewis",0.79048001766204834,null,"BobLux",0.62269669771194458,null,14,3,3,4,4,0,null,null,"TimRoesler","GaryPeterson","TimMoore",null,null,null,"Mellington","Craig","CraigMellington","CraigM",1,1,1,10.1,null,null,null,null,"Group 4",{"$f":"$G$5+3*$P$5/1440","v":"10:48:00"}]
[null,"Miracle","Dan","DanMiracle","DanM",1,1,1,14.5,14,14,14,null,null,"Time Incr.",{"$f":"$P$5","v":9},{"$f":"G$4 &\" Course on \"","v":"Tourney Course on "},{"$f":"G2","v":"2020-05-06"},null,null,null,"TimRoesler",0.76072359085083008,null,"JohnKeyes",0.86261934041976929,null,"WallisMcMath",0.64782118797302246,null,15,3,4,4,4,0,null,null,"RoySimmons","TimRoesler","TimRoesler",null,null,null,"Miracle","Dan","DanMiracle","DanM",1,1,1,14.5,null,null,null,null,"Group 5",{"$f":"$G$5+4*$P$5/1440","v":"10:57:00"}]
["GroupWedR","Moore","Tim","TimMoore","TimM",0,0,1,19,19,19,19,null,"GroupWedR","Group 1",{"$f":"$G$5","v":"10:21:00"},"MikeWhyte","DanMiracle","TimRoesler","BobLux",null,"DanMiracle",0.77474009990692139,null,"CraigMellington",0.87144583463668823,null,"TimRoesler",0.82460212707519531,null,16,4,4,4,4,0,null,null,"BillWhite","RoySimmons","RoySimmons",null,null,null,"Moore","Tim","TimMoore","TimM",0,0,0,19]
[null,"Peterson","Gary","GaryPeterson","GaryP",1,1,0,8.1,7,7,6,null,null,"Group 2",{"$f":"$G$5+$P$5/1440","v":"10:30:00"},"JesseJohnson","RoySimmons","LarryStick","BobLewis",null,"RoySimmons",0.81449002027511597,null,"GaryPeterson",0.94955664873123169,null,"TimMoore",0.82980161905288696,null,17,3,3,3,4,4,null,null,"MikeWhyte","LarryStick","LarryStick",null,null,null,"Peterson","Gary","GaryPeterson","GaryP",1,1,0,8.1,null,null,null,null,"Friday Groups"]
[null,"Roesler","Al","AlRoesler","AlR",0,0,0,21.1,21,21,21,null,null,"Group 3",{"$f":"$G$5+2*$P$5/1440","v":"10:39:00"},"JohnKeyes","CraigMellington","GaryPeterson","WallisMcMath",null,null,null,null,"WallisMcMath",0.96195316314697266,null,"MikeWhyte",0.91096431016921997,null,18,3,3,4,4,4,null,null,null,"MikeWhyte","MikeWhyte",null,null,null,"Roesler","Al","AlRoesler","AlR",0,0,0,21.1,null,null,null,null,"Start Time",{"$f":"#REF!","v":{"$error":"#REF!"}}]
[null,"Roesler","Tim","TimRoesler","TimR",1,1,1,17.5,17,17,17,null,null,"Group 4",{"$f":"$G$5+3*$P$5/1440","v":"10:48:00"},null,null,null,null,null,null,null,null,null,null,null,"LarryStick",0.98609316349029541,null,19,3,4,4,4,4,null,null,null,null,"JimWilliams",null,null,null,"Roesler","Tim","TimRoesler","TimR",1,0,1,17.5,null,null,null,null,"Time Incr.",{"$f":"$P$5","v":9},{"$f":"AX$3&\" - \"&AX$4","v":"Wed - Tourney"}]
["LastWedyR","Rowland","Ken","KenRowland","KenR",0,0,0,11.1,10,10,10,null,null,"Group 5",{"$f":"$G$5+4*$P$5/1440","v":"10:57:00"},null,null,null,null,null,null,null,null,null,null,null,null,null,null,20,4,4,4,4,4,null,null,null,null,null,null,null,null,"Rowland","Ken","KenRowland","KenR",0,0,0,11.1,null,null,null,null,"Group 1",{"$f":"$H$5","v":"10:21:00"},"TimRoesler","JimWilliams","LarryStick","DanMiracle"]
[null,"Simmons","Roy","RoySimmons","RoyS g",1,1,1,21.5,16,17,18,null,null,null,null,null,null,null,null,null,null,null,null,null,null,null,null,null,null,null,null,null,null,null,null,null,null,null,null,null,null,null,null,"Simmons","Roy","RoySimmons","RoyS g",1,0,0,21.5,null,null,null,null,"Group 2",{"$f":"$H$5+$P$5/1440","v":"10:30:00"},"WallisMcMath","CraigMellington","BobEdwards","BobLux"]
[null,"Smith","Murray","MurraySmith","MurrayS",0,0,0,16.5,16,16,16,null,"FriR","Friday Groups",null,null,null,null,null,null,null,null,null,null,null,null,null,null,null,null,null,null,null,null,null,null,null,null,null,null,null,null,null,"Smith","Murray","MurraySmith","MurrayS",0,0,0,16.5,null,null,null,null,"Group 3",{"$f":"$H$5+2*$P$5/1440","v":"10:39:00"},"JohnKeyes","BobLewis","JesseJohnson","MikeWhyte"]
[null,"Steimer","Jeff","JeffSteimer","JeffS",0,0,0,22,22,22,22,null,null,"Start Time",{"$f":"H5","v":"10:21:00"},null,null,null,null,null,null,null,null,null,null,null,null,null,null,null,null,null,null,null,null,null,null,null,null,null,null,null,null,"Steimer","Jeff","JeffSteimer","JeffS",1,1,0,22,null,null,null,null,"Group 4",{"$f":"$H$5+3*$P$5/1440","v":"10:48:00"}]
[null,"Stick","Larry","LarryStick","LarryS",0,1,1,19.600000000000001,20,20,19,null,null,"Time Incr.",{"$f":"$P$5","v":9},{"$f":"H$4 &\" Course on \"","v":"Palmer Course on "},{"$f":"H2","v":"2020-05-08"},null,null,null,null,null,null,null,null,null,null,null,null,null,null,null,null,null,null,null,null,null,null,null,null,null,null,"Stick","Larry","LarryStick","LarryS",0,0,1,19.600000000000001,null,null,null,null,"Group 5",{"$f":"#REF!+4*$P$5/1440","v":{"$error":"#REF!"}}]
[null,"Watkins","Bob","BobWatkins","BobW w",0,0,0,11.9,14,12,12,null,"GroupFriR","Group 1",{"$f":"$H$5","v":"10:21:00"},"JimWilliams","CraigMellington","DanMiracle",null,null,null,null,null,null,null,null,null,null,null,null,null,null,null,null,null,null,null,null,null,null,null,null,null,"Watkins","Bob","BobWatkins","BobW w",0,0,0,11.9]
[null,"West","Waylan","WaylanWest","Waylan g",0,0,0,22.4,17,17,19,null,null,"Group 2",{"$f":"$H$5+$P$5/1440","v":"10:30:00"},"BobLewis","JohnKeyes","RoySimmons",null,null,null,null,null,null,null,null,null,null,null,null,null,null,null,null,null,null,null,null,null,null,null,null,null,"West","Waylan","WaylanWest","Waylan g",0,0,0,22.4]
[null,"White","Bill","BillWhite","BillW",1,0,0,20.9,21,21,21,null,null,"Group 3",{"$f":"$H$5+2*$P$5/1440","v":"10:39:00"},"JesseJohnson","BobLux","WallisMcMath",null,null,null,null,null,null,null,null,null,null,null,null,null,null,null,null,null,null,null,null,null,null,null,null,null,"White","Bill","BillWhite","BillW",0,0,0,20.9]
[null,"Whyte","Mike","MikeWhyte","MikeW",1,1,1,18.8,19,19,18,null,null,"Group 4",{"$f":"$H$5+3*$P$5/1440","v":"10:48:00"},"TimRoesler","TimMoore","MikeWhyte","LarryStick",null,null,null,null,null,null,null,null,null,null,null,null,null,null,null,null,null,null,null,null,null,null,null,null,"Whyte","Mike","MikeWhyte","MikeW",1,1,1,18.8]
["LastFriR","Williams","Jim","JimWilliams","JimW g ",0,0,1,21.9,16,17,18,null,null,"Group 5",{"$f":"$H5+4*$P$5/1440","v":"10:57:00"},null,null,null,null,null,null,null,null,null,null,null,null,null,null,null,null,null,null,null,null,null,null,null,null,null,null,null,null,"Williams","Jim","JimWilliams","JimW g ",0,0,1,21.9]
[null,"Duncan","Robert","RobertDuncan","RobertD",0,0,0,17.8,18,18,17,null,null,null,null,null,null,null,null,null,null,null,null,null,null,null,null,null,null,null,null,null,null,null,null,null,null,null,null,null,null,null,null,"Duncan","Robert","RobertDuncan","RobertD",0,0,0,17.8]
[null,"Rice","Britt","BrittRice","BrittR",0,0,0,0,-3,-2,-3,null,null,null,null,null,null,null,null,null,null,null,null,null,null,null,null,null,null,null,null,null,null,null,null,null,null,null,null,null,null,null,null,"Cardillo","Jerry","JerryCardillo","JerryC",1,1,0,17.8]
[null,"","","","",null,null,null,null,null,null,null,"Click to Alternate between First",null,null,null,null,null,null,null,null,null,null,null,null,null,null,null,null,null,null,null,null,null,null,null,null,null,null,null,null,null,null,null,"","","","",0,0,0,0]
[null,"","","","",null,null,null,null,null,null,null," and Last Group"]
[null,"","","",""]
[null,"","","",""]
[null,"","","",""]
[null,"","","",""]
["MedalTeamR",null,null,null,null,"Medal",null,null,"Win",null,null,null,null,"GRegularAndGuestR",null,"Regular Player",null,"   Regular Player Guest",null,null,null,null,null,null,null,null,null,null,null,null,null,null,null,null,null,null,null,null,null,null,null,null,null,null,null,null,null,null,"Medal",null,null,"Win"]
[null,null,null,null,"Monday","",null,null,null,null,null,null,null,"Player/Guest Pair 1",null,"WallisMcMath",null,"BrittRice",null,null,null,null,null,null,null,null,null,null,null,null,null,null,null,null,null,null,null,null,null,null,null,null,null,null,null,null,null,"Monday",""]
[null,"",null,null,"Wednesday","",null,null,null,null,null,null,null,"Player/Guest Pair 2",null,null,null,null,null,null,null,null,null,null,null,null,null,null,null,null,null,null,null,null,null,null,null,null,null,null,null,null,null,null,"",null,null,"Wednesday",""]
["TableEndR","",null,null,"Friday","",null,null,null,null,null,null,null,"Player/Guest Pair 3",null,"",null,null,null,null,null,null,null,null,null,null,null,null,null,null,null,null,null,null,null,null,null,null,null,null,null,null,null,null,"",null,null,"Friday",""]
[]
[]
[]
[null,"LastNameC","GRegular PlayerC",null,"FirstNameLC",null,"GGuestPlayerC",null,"GindexC","GMonIndexC","GWedIndexC","GFriIndexC"]
[]
[]
[]
[]
[null,null,null,null,"Date","2020-04-27","2020-04-29","2020-05-01",null,null,null,null,null,null,null,null,null,null,null,null,null,null,null,null,null,null,null,null,null,null,null,null,null,null,null,null,null,null,null,null,null,null,null,null,null,null,null,"Date","2020-04-27","2020-04-29","2020-05-01",null,null,null,null,null,"Monday Groups"]
[null,null,null,null,null,"Mon","Wed","Fri",null,null,null,null,null,null,null,null,null,null,null,null,null,null,null,null,null,null,null,null,null,null,null,null,null,null,null,null,null,null,null,null,null,null,null,null,null,null,null,null,"Mon","Wed","Fri",null,null,null,null,null,"Start Time",{"$f":"#REF!","v":{"$error":"#REF!"}}]
[null,null,null,null,null,"Oaks","Tourney","Tourney",null,"HC","HC","HC",null,null,null,null,null,null,null,null,null,null,null,null,null,null,null,null,null,null,null,null,null,null,null,null,null,null,null,null,null,null,null,null,null,null,null,null,"Oaks","Tourney","Tourney",null,"HC","HC","HC",null,"Time Incr.",{"$f":"$P$5","v":9},{"$f":"AV$3&\" - \"&AV$4","v":" - "}]
[null,null,null,null,null,"10:08:00","10:21:00","10:21:00",{"$f":"+Details!E55","v":"10:21:00"},"22 Max","22 Max","22 Max",null,null,null,null,null,null,null,null,null,null,null,null,null,null,null,null,null,null,null,null,null,null,null,null,null,null,null,null,null,null,null,null,null,null,null,null,"10:08:00","10:21:00","10:21:00",{"$f":"+Details!AV55","v":"00:00:00"},"22 Max","22 Max","22 Max",null,"Group 1",{"$f":"$F$5","v":"10:39:00"},"BobLux","JesseJohnson","DanMiracle"]
[null,"Last Name","First Name",null,null,{"$f":"SUM(F58:F86)","v":12},{"$f":"SUM(G58:G86)","v":8},{"$f":"SUM(H58:H86)","v":12},"Index","Oaks","TPC","TPC",null,null,null,null,null,null,null,null,null,null,null,null,null,null,null,null,null,null,null,null,null,null,null,null,null,null,null,null,null,null,null,null,"Last Name","First Name",null,null,{"$f":"SUM(AW58:AW86)","v":12},{"$f":"SUM(AX58:AX86)","v":8},{"$f":"SUM(AY58:AY86)","v":12},"Index","Oaks","TPC","TPC",null,"Group 2",{"$f":"$F$5+1*$P$5/1440","v":"10:48:00"},"RoySimmons","TimRoesler","WallisMcMath"]
[null,"Anderson","Gerry","GerryAnderson","GerryA",0,0,0,10.8,null,null,null,null,null,null,null,null,null,null,null,null,null,null,null,null,null,null,null,null,null,null,null,null,null,null,null,null,null,null,null,null,null,null,null,"Anderson","Gerry","GerryAnderson","GerryA",0,0,0,10.8,null,null,null,null,"Group 3",{"$f":"$F$5+2*$P$5/1440","v":"10:57:00"},"JohnKeyes","MikeWhyte","GaryPeterson"]
[null,"Edwards","Bob","BobEdwards","BobE",0,0,1,21,null,null,null,null,null,null,null,null,null,null,null,null,null,null,null,null,null,null,null,null,null,null,null,null,null,null,null,null,null,null,null,null,null,null,null,"Edwards","Bob","BobEdwards","BobE",0,0,1,21,null,null,null,null,"Group 4",{"$f":"$F$5+3*$P$5/1440","v":"11:06:00"},"CraigMellington","JeffSteimer","GerryAnderson","JerryCardillo"]
[null,"Heg","John","JohnHeg","JohnH",0,0,0,22.4,null,null,null,null,null,null,null,null,null,null,null,null,null,null,null,null,null,null,null,null,null,null,null,null,null,null,null,null,null,null,null,null,null,null,null,"Heg","John","JohnHeg","JohnH",0,0,0,22.4,null,null,null,null,"Group 5",{"$f":"$F$5+4*$P$5/1440","v":"11:15:00"}]
[null,"Johnson","Jesse","JesseJohnson","JesseJ g",1,0,1,25.4,null,null,null,null,null,null,null,null,null,null,null,null,null,null,null,null,null,null,null,null,null,null,null,null,null,null,null,null,null,null,null,null,null,null,null,"Johnson","Jesse","JesseJohnson","JesseJ g",1,0,1,25.4]
[null,"Kinney","Jim","JimKinney","JimK g",0,0,0,26.8,null,null,null,null,null,null,null,null,null,null,null,null,null,null,null,null,null,null,null,null,null,null,null,null,null,null,null,null,null,null,null,null,null,null,null,"Kinney","Jim","JimKinney","JimK g",0,0,0,26.8,null,null,null,null,"Wednesday Groups"]
[null,"Keyes","John","JohnKeyes","JohnK",1,0,1,14.4,null,null,null,null,null,null,null,null,null,null,null,null,null,null,null,null,null,null,null,null,null,null,null,null,null,null,null,null,null,null,null,null,null,null,null,"Keyes","John","JohnKeyes","JohnK",1,0,1,14.4,null,null,null,null,"Start Time",{"$f":"#REF!","v":{"$error":"#REF!"}}]
[null,"Lewis","Bob","BobLewis","BobL",0,1,1,19.5,null,null,null,null,null,null,null,null,null,null,null,null,null,null,null,null,null,null,null,null,null,null,null,null,null,null,null,null,null,null,null,null,null,null,null,"Lewis","Bob","BobLewis","BobL",0,1,1,19.5,null,null,null,null,"Time Incr.",{"$f":"$P$5","v":9},{"$f":"AW$3&\" - \"&AW$4","v":"Mon - Oaks"}]
[null,"Lisiewski","Walt","WaltLisiewski","WaltL",0,0,0,22.5,null,null,null,null,null,null,null,null,null,null,null,null,null,null,null,null,null,null,null,null,null,null,null,null,null,null,null,null,null,null,null,null,null,null,null,"Lisiewski","Walt","WaltLisiewski","WaltL",0,0,0,22.5,null,null,null,null,"Group 1",{"$f":"$G$5","v":"10:21:00"},"JeffSteimer","BobLewis","MikeWhyte"]
[null,"Lux","Bob","BobLux","BobLx",1,0,1,17,null,null,null,null,null,null,null,null,null,null,null,null,null,null,null,null,null,null,null,null,null,null,null,null,null,null,null,null,null,null,null,null,null,null,null,"Lux","Bob","BobLux","BobLx",1,0,1,17,null,null,null,null,"Group 2",{"$f":"$G$5+$P$5/1440","v":"10:30:00"},"WallisMcMath","CraigMellington","GaryPeterson"]
[null,"McMath","Wallis","WallisMcMath","WallisM",1,1,1,19.399999999999999,null,null,null,null,null,null,null,null,null,null,null,null,null,null,null,null,null,null,null,null,null,null,null,null,null,null,null,null,null,null,null,null,null,null,null,"McMath","Wallis","WallisMcMath","WallisM",1,1,1,19.399999999999999,null,null,null,null,"Group 3",{"$f":"$G$5+2*$P$5/1440","v":"10:39:00"},"DanMiracle","GerryAnderson","JerryCardillo"]
[null,"Mellington","Craig","CraigMellington","CraigM",1,1,1,10.1,null,null,null,null,null,null,null,null,null,null,null,null,null,null,null,null,null,null,null,null,null,null,null,null,null,null,null,null,null,null,null,null,null,null,null,"Mellington","Craig","CraigMellington","CraigM",1,1,1,10.1,null,null,null,null,"Group 4",{"$f":"$G$5+3*$P$5/1440","v":"10:48:00"}]
[null,"Miracle","Dan","DanMiracle","DanM",1,1,1,14.5,null,null,null,null,null,null,null,null,null,null,null,null,null,null,null,null,null,null,null,null,null,null,null,null,null,null,null,null,null,null,null,null,null,null,null,"Miracle","Dan","DanMiracle","DanM",1,1,1,14.5,null,null,null,null,"Group 5",{"$f":"$G$5+4*$P$5/1440","v":"10:57:00"}]
[null,"Moore","Tim","TimMoore","TimM",0,0,0,19,null,null,null,null,null,null,null,null,null,null,null,null,null,null,null,null,null,null,null,null,null,null,null,null,null,null,null,null,null,null,null,null,null,null,null,"Moore","Tim","TimMoore","TimM",0,0,0,19]
[null,"Peterson","Gary","GaryPeterson","GaryP",1,1,0,8.1,null,null,null,null,null,null,null,null,null,null,null,null,null,null,null,null,null,null,null,null,null,null,null,null,null,null,null,null,null,null,null,null,null,null,null,"Peterson","Gary","GaryPeterson","GaryP",1,1,0,8.1,null,null,null,null,"Friday Groups"]
[null,"Roesler","Al","AlRoesler","AlR",0,0,0,21.1,null,null,null,null,null,null,null,null,null,null,null,null,null,null,null,null,null,null,null,null,null,null,null,null,null,null,null,null,null,null,null,null,null,null,null,"Roesler","Al","AlRoesler","AlR",0,0,0,21.1,null,null,null,null,"Start Time",{"$f":"#REF!","v":{"$error":"#REF!"}}]
[null,"Roesler","Tim","TimRoesler","TimR",1,0,1,17.5,null,null,null,null,null,null,null,null,null,null,null,null,null,null,null,null,null,null,null,null,null,null,null,null,null,null,null,null,null,null,null,null,null,null,null,"Roesler","Tim","TimRoesler","TimR",1,0,1,17.5,null,null,null,null,"Time Incr.",{"$f":"$P$5","v":9},{"$f":"AX$3&\" - \"&AX$4","v":"Wed - Tourney"}]
[null,"Rowland","Ken","KenRowland","KenR",0,0,0,11.1,null,null,null,null,null,null,null,null,null,null,null,null,null,null,null,null,null,null,null,null,null,null,null,null,null,null,null,null,null,null,null,null,null,null,null,"Rowland","Ken","KenRowland","KenR",0,0,0,11.1,null,null,null,null,"Group 1",{"$f":"$H$5","v":"10:21:00"},"TimRoesler","JimWilliams","LarryStick","DanMiracle"]
[0,"Simmons","Roy","RoySimmons","RoyS g",1,0,0,21.5,null,null,null,null,null,null,null,null,null,null,null,null,null,null,null,null,null,null,null,null,null,null,null,null,null,null,null,null,null,null,null,null,null,null,null,"Simmons","Roy","RoySimmons","RoyS g",1,0,0,21.5,null,null,null,null,"Group 2",{"$f":"$H$5+$P$5/1440","v":"10:30:00"},"WallisMcMath","CraigMellington","BobEdwards","BobLux"]
[null,"Smith","Murray","MurraySmith","MurrayS",0,0,0,16.5,null,null,null,null,null,null,null,null,null,null,null,null,null,null,null,null,null,null,null,null,null,null,null,null,null,null,null,null,null,null,null,null,null,null,null,"Smith","Murray","MurraySmith","MurrayS",0,0,0,16.5,null,null,null,null,"Group 3",{"$f":"$H$5+2*$P$5/1440","v":"10:39:00"},"JohnKeyes","BobLewis","JesseJohnson","MikeWhyte"]
[null,"Steimer","Jeff","JeffSteimer","JeffS",1,1,0,22,null,null,null,null,null,null,null,null,null,null,null,null,null,null,null,null,null,null,null,null,null,null,null,null,null,null,null,null,null,null,null,null,null,null,null,"Steimer","Jeff","JeffSteimer","JeffS",1,1,0,22,null,null,null,null,"Group 4",{"$f":"$H$5+3*$P$5/1440","v":"10:48:00"}]
[null,"Stick","Larry","LarryStick","LarryS",0,0,1,19.600000000000001,null,null,null,null,null,null,null,null,null,null,null,null,null,null,null,null,null,null,null,null,null,null,null,null,null,null,null,null,null,null,null,null,null,null,null,"Stick","Larry","LarryStick","LarryS",0,0,1,19.600000000000001,null,null,null,null,"Group 5",{"$f":"#REF!+4*$P$5/1440","v":{"$error":"#REF!"}}]
[null,"Watkins","Bob","BobWatkins","BobW w",0,0,0,11.9,null,null,null,null,null,null,null,null,null,null,null,null,null,null,null,null,null,null,null,null,null,null,null,null,null,null,null,null,null,null,null,null,null,null,null,"Watkins","Bob","BobWatkins","BobW w",0,0,0,11.9]
[null,"West","Waylan","WaylanWest","Waylan g",0,0,0,22.4,null,null,null,null,null,null,null,null,null,null,null,null,null,null,null,null,null,null,null,null,null,null,null,null,null,null,null,null,null,null,null,null,null,null,null,"West","Waylan","WaylanWest","Waylan g",0,0,0,22.4]
[null,"White","Bill","BillWhite","BillW",0,0,0,20.9,null,null,null,null,null,null,null,null,null,null,null,null,null,null,null,null,null,null,null,null,null,null,null,null,null,null,null,null,null,null,null,null,null,null,null,"White","Bill","BillWhite","BillW",0,0,0,20.9]
[null,"Whyte","Mike","MikeWhyte","MikeW",1,1,1,18.8,null,null,null,null,null,null,null,null,null,null,null,null,null,null,null,null,null,null,null,null,null,null,null,null,null,null,null,null,null,null,null,null,null,null,null,"Whyte","Mike","MikeWhyte","MikeW",1,1,1,18.8]
[null,"Williams","Jim","JimWilliams","JimW g ",0,0,1,21.9,null,null,null,null,null,null,null,null,null,null,null,null,null,null,null,null,null,null,null,null,null,null,null,null,null,null,null,null,null,null,null,null,null,null,null,"Williams","Jim","JimWilliams","JimW g ",0,0,1,21.9]
[null,"Duncan","Robert","RobertDuncan","RobertD",0,0,0,17.8,null,null,null,null,null,null,null,null,null,null,null,null,null,null,null,null,null,null,null,null,null,null,null,null,null,null,null,null,null,null,null,null,null,null,null,"Duncan","Robert","RobertDuncan","RobertD",0,0,0,17.8]
[null,"Cardillo","Jerry","JerryCardillo","JerryC",1,1,0,17.8,null,null,null,null,null,null,null,null,null,null,null,null,null,null,null,null,null,null,null,null,null,null,null,null,null,null,null,null,null,null,null,null,null,null,null,"Cardillo","Jerry","JerryCardillo","JerryC",1,1,0,17.8]
[null,"","","","",0,0,0,0,null,null,null,null,null,null,null,null,null,null,null,null,null,null,null,null,null,null,null,null,null,null,null,null,null,null,null,null,null,null,null,null,null,null,null,"","","","",0,0,0,0]
[]
[]
[]
[]
[]
[null,null,null,null,null,"Medal",null,null,"Win",null,null,null,null,null,null,null,null,null,null,null,null,null,null,null,null,null,null,null,null,null,null,null,null,null,null,null,null,null,null,null,null,null,null,null,null,null,null,null,"Medal",null,null,"Win"]
[null,null,null,null,"Monday","",null,null,null,null,null,null,null,null,null,null,null,null,null,null,null,null,null,null,null,null,null,null,null,null,null,null,null,null,null,null,null,null,null,null,null,null,null,null,null,null,null,"Monday",""]
[null,"",null,null,"Wednesday","",null,null,null,null,null,null,null,null,null,null,null,null,null,null,null,null,null,null,null,null,null,null,null,null,null,null,null,null,null,null,null,null,null,null,null,null,null,null,"",null,null,"Wednesday",""]
[null,"",null,null,"Friday","",null,null,null,null,null,null,null,null,null,null,null,null,null,null,null,null,null,null,null,null,null,null,null,null,null,null,null,null,null,null,null,null,null,null,null,null,null,null,"",null,null,"Friday",""]

{"sheet":"Weekly","index":3,"n_rows":53,"n_cols":27,"rows_kept":53,"cut":false,"hidden":false,"merged":[[45,22,45,23],[46,22,46,23]]}
[]
[]
[]
[]
[]
[]
[]
[]
[]
[]
[]
[]
[]
[]
[]
[]
[]
[]
[]
[]
[]
[]
[]
[]
[]
[]
[]
[]
[]
[]
[]
[]
[]
[]
[]
[]
[]
[]
[]
[]
[]
[]
[]
[]
[]
[null,null,null,null,null,null,null,null,null,null,null,null,null,null,null,null,null,null,null,null,null,"Course","Players"]
[null,null,null,null,null,null,null,null,null,null,null,null,null,null,null,null,null,null,null,null,null,"Date","Wednesday May 6, 2020"]
[null,null,null,null,null,null,null,null,null,null,null,null,null,null,null,null,null,null,null,null,null,"First Tee Time ","10:21am"]
[null,null,null,null,null,null,null,null,null,null,null,null,null,null,null,null,null,null,null,null,null,"Group 1 Tee Time","10:21am","Player A","Player B","Player C"]
[null,null,null,null,null,null,null,null,null,null,null,null,null,null,null,null,null,null,null,null,null,"Group 2 Tee Time","10:30am","Player A","Player B","Player C"]
[null,null,null,null,null,null,null,null,null,null,null,null,null,null,null,null,null,null,null,null,null,"Group 3 Tee Time","10:39am","Player A","Player B","Player C","Player D"]
[null,null,null,null,null,null,null,null,null,null,null,null,null,null,null,null,null,null,null,null,null,"Group 4 Tee Time"]
[null,null,null,null,null,null,null,null,null,null,null,null,null,null,null,null,null,null,null,null,null,"Group 5 Tee Time"]

{"sheet":"Tee Times","index":4,"n_rows":310,"n_cols":17,"rows_kept":310,"cut":false,"hidden":false,"merged":[]}
[null,null,null,null,null,null,null,null,null,null,null,null,null,null,{"$f":"SUM(O4:O32)","v":12},{"$f":"SUM(P4:P32)","v":12},14]
[null,null,null,null,null,null,"Monday Groups"]
["Ran #","name",null,null,null,null," ",{"$f":"+Details!E6","v":"10:39:00"},null,null,null,null,null,"Name ","Monday","Wed","Friday"]
[{"$f":"IF(ISTEXT(B4),RAND(),0)","v":0.64644718257831446},"TimM",null,1,1,null,"Time incr","00:09:00","Monday - Oaks",null,null,null,null,"GerryA",0,0,0]
[0.12683424016194877,"JimW g ",null,2,2,null,"Group 1",{"$f":"+$H$3","v":"10:39:00"},"GaryP","JohnK","WallisM","RoyS g",null,"JohnH",0,0,0]
[0.28736285326243804,"JesseJ g",null,3,"3",null,"Group 2",{"$f":"+H5+$H$4","v":"10:48:00"},"BobLx","JeffS","Jerry Cardillo","DanM",null,"JimK g",0,0,0]
[0.71029385261165257,"BobLx",null,4,"4",null,"Group 3",{"$f":"+H6+$H$4","v":"10:57:00"},"TimR","MikeW","CraigM","JesseJ g",null,"WaltL",0,0,0]
[0.42012738931717286,"BobE",null,5,"5",null,"Group 4","11:06:00",null,null,null,null,null,"AlR",0,0,0]
[0.84124885384610992,"BobL",null,6,"3, 3 ",null,"Group 5","11:15:00",null,null,null,null,null,"KenR",0,0,0]
[0.26025342744813285,"LarryS",null,7,"3, 4",null,null,null,null,null,null,null,null,"MurrayS",0,0,0]
[0.7920897251861827,"JohnK",null,8,"4, 4",null,"Wednesday Groups",null,null,null,null,null,null,"JohnT",0,0,0]
[0.5486012811054608,"WallisM",null,9,"3, 3, 3 ",null,"Start time",{"$f":"+Details!E7","v":"10:21:00"},null,null,null,null,null,"BobW w",0,0,0]
[0.71378543400775751,"CraigM",null,10,"3, 3, 4",null,"Time incr","00:09:00","Wednesday - Palmer",null,null,null,null,"Waylan g",0,0,0]
[0.62940111356383743,"DanM",null,11,"3, 4, 4",null,"Group 1",{"$f":"+H12","v":"10:21:00"},"DanM","JeffS","BobL","GaryP",null,"BillW",0,0,0]
[9.9419799383960505E-2,"TimR",null,12,"4, 4, 4",null,"Group 2",{"$f":"+H14+$H$4","v":"10:30:00"},"TimR","BobE","CraigM","JohnK",null,"RobertD",0,0,0]
[0.8548117361031683,"RoyS g",null,13,"3, 3, 3, 4",null,"Group 3",{"$f":"+H15+$H$4","v":"10:39:00"},"RoyS g","LarryS","WallisM","MikeW",null,"Jerry Cardillo",1,0,0]
[0.60549593675304025,"MikeW",null,14,"3, 3, 4, 4",null,"Group 4","10:48:00",null,null,null,null,null,"GaryP",1,1,0]
[0,null,null,15,"3, 4, 4, 4",null,"Group 5","10:57:00",null,null,null,null,null,"JeffS",1,1,0]
[0,null,null,16,"4, 4, 4, 4",null,null,null,null,null,null,null,null,"TimM",0,0,1]
[0,null,null,17,"3, 3, 3, 4, 4",null,"Friday Groups",null,null,null,null,null,null,"JimW g ",0,0,1]
[0,null,null,18,"3, 3, 4, 4, 4",null,"Start time",{"$f":"+Details!E8","v":"10:21:00"},null,null,null,null,null,"JesseJ g",1,0,1]
[0,null,null,19,"3, 4, 4, 4, 4",null,"Time incr","00:09:00","Friday - Tournament",null,null,null,null,"BobLx",1,0,1]
[0,null,null,20,"4, 4, 4, 4, 4",null,"Group 1",{"$f":"+H21","v":"10:21:00"},"WallisM","TimR","JohnK","BobL",null,"BobE",0,1,1]
[null,null,null,null,null,null,"Group 2",{"$f":"+H23+$H$4","v":"10:30:00"},"BobLx","JimW g ","BobE","LarryS",null,"BobL",0,1,1]
[null,null,null,null,null,null,"Group 3",{"$f":"+H24+$H$4","v":"10:39:00"},"MikeW","CraigM","DanM","JesseJ g",null,"LarryS",0,1,1]
[null,null,null,null,null,null,"Group 4","10:48:00",null,null,null,null,null,"JohnK",1,1,1]
[null,null,null,null,null,null,"Group 5","10:57:00",null,null,null,null,null,"WallisM",1,1,1]
[null,null,null,null,null,null,null,null,null,null,null,null,null,"CraigM",1,1,1]
[null,null,null,null,null,null,null,null,null,null,null,null,null,"DanM",1,1,1]
[null,null,null,null,null,null,null,null,null,null,null,null,null,"TimR",1,1,1]
[null,"WallisM",null,null,null,null,null,null,null,null,null,null,null,"RoyS g",1,1,1]
[null,null,null,null,null,null,"Monday",null,null,null,null,null,null,"MikeW",1,1,1]
[null,null,null,null,null,null,"Group 1",{"$f":"+$H$3","v":"10:39:00"},"JohnK","JesseJ g","WallisM"]
["Ran #","name",null,null,null,null,"Group 2",{"$f":"+H33+$H$4","v":"10:48:00"},"TimM ( Holes)","CraigM","TimR","RoyS g"]
[3.4328370692785826E-2,"WallisM",null,1,null,null,"Group 3",{"$f":"+H34+$H$4","v":"10:57:00"},"BobL","GaryP(?)","DanM","MikeW"]
[8.9438425747841444E-2,"TimR",null,2,null,null,"Group 4","11:06:00"]
[0.1204335938662674,"JohnK",null,3,"3",null,"Group 5","11:15:00"]
[0.31954808065143558,"BobLx",null,4,"4"]
[0.35887720513467536,"JimW g ",null,5,"5"]
[0.4091248918786563,"BobL",null,6,"3, 3 ",null,"Wednesday"]
[0.42674423842344389,"MikeW",null,7,"3, 4",null,"Group 1",{"$f":"+$H$3","v":"10:39:00"},"CraigM","GaryP","DanM","MikeW"]
[0.4544502829925211,"CraigM",null,8,"4, 4",null,"Group 2",{"$f":"+H41+$H$4","v":"10:48:00"},"JohnK","BobL","TimR","BobE"]
[0.50991215028327574,"DanM",null,9,"3, 3, 3 ",null,"Group 3",{"$f":"+H42+$H$4","v":"10:57:00"},"JesseJ g","RoyS g","BobLx","JeffS"]
[0.64062744804558003,"JesseJ g",null,10,"3, 3, 4",null,"Group 4","11:06:00"]
[0.68453400602829373,"TimM",null,11,"3, 4, 4",null,"Group 5","11:15:00"]
[0.71042135264351713,"RoyS g",null,12,"4, 4, 4"]
[0.82549953365873208,"BobE",null,13,"3, 3, 3, 4",null,"Friday"]
[0.9223929198622508,"LarryS",null,14,"3, 3, 4, 4",null,"Group 1",{"$f":"+$H$3","v":"10:39:00"},"TimR","CraigM","MurrayS","MikeW"]
[null,null,null,15,"3, 4, 4, 4",null,"Group 2",{"$f":"+H48+$H$4","v":"10:48:00"},"JeffS","JesseJ g","BobLx","LarryS"]
[null,null,null,16,"4, 4, 4, 4",null,"Group 3",{"$f":"+H49+$H$4","v":"10:57:00"},"BobE","DanM","BobL","TimM"]
[null,"RoyS g",null,17,null,null,"Group 4","11:06:00","RoyS g","JohnK","WallisM","JimW g "]
[null,null,null,18,null,null,"Group 5","11:15:00"]
[null,null,null,19]
[null,null,null,20]
[null,null,null,21]
[null,null,null,22]
[null,null,null,23]
[null,null,null,24]
[null,null,null,25]
[null,null,null,26]
[null,null,null,27]
[null,null,null,28]
[]
[]
[]
[]
[]
[]
[]
[]
[]
[]
[]
[]
[]
[]
[]
[]
[]
[]
[]
[]
[]
[]
[]
[]
[]
[]
[]
[]
[]
[]
[]
[]
[]
[]
[]
[]
[]
[]
[]
[]
[]
[]
[]
[]
[]
[]
[]
[]
[]
[]
[]
[]
[]
[]
[]
[]
[]
[]
[]
[]
[]
[]
[]
[]
[]
[]
[]
[]
[]
[]
[]
[]
[]
[]
[]
[]
[]
[]
[]
[]
[]
[]
[]
[]
[]
[]
[]
[]
[]
[]
[]
[]
[]
[]
[]
[]
[]
[]
[]
[]
[]
[]
[]
[]
[]
[]
[]
[]
[]
[]
[]
[]
[]
[]
[]
[]
[]
[]
[]
[]
[]
[]
[]
[]
[]
[]
[]
[]
[]
[]
[]
[]
[]
[]
[]
[]
[]
[]
[]
[]
[]
[]
[]
[]
[]
[]
[]
[]
[]
[]
[]
[]
[]
[]
[]
[]
[]
[]
[]
[]
[]
[]
[]
[]
[]
[]
[]
[]
[]
[]
[]
[]
[]
[]
[]
[]
[]
[]
[]
[]
[]
[]
[]
[]
[]
[]
[]
[]
[]
[]
[]
[]
[]
[]
[]
[]
[]
[]
[]
[]
[]
[]
[]
[]
[]
[]
[]
[]
[]
[]
[]
[]
[]
[]
[]
[]
[]
[]
[]
[]
[]
[]
[]
[]
[]
[]
[]
[]
[]
[]
[]
[]
[]
[]
[]
[]
[]
[]
[]
[]
[]
[]
[]
[]
[]
[null,null,null,null,null,null,"5) Type starting tee time in HH:MM:SS AM format ","Tee Time"]
[null,null,null,null,null,null,"Starting Hole 1","10:21:00"]
[null,null,null,null,null,null,{"$f":"IF($AI$10=\"Y\",\"Starting Hole 1\", \"Start on Hole 10\")","v":"Start on Hole 10"},{"$f":"IF($AI$10=\"Y\",H309+$AI$11,H309)","v":"10:21:00"}]

{"sheet":"Bday","index":5,"n_rows":99,"n_cols":17,"rows_kept":99,"cut":false,"hidden":false,"merged":[[2,6,2,7]]}
[{"$f":"TODAY()","v":"2020-05-07"},null,null,"Thomas - Lewis Group"]
[]
[{"$f":"AVERAGE(A4:A28)","v":75.362266500622667},"Average",null,"Name","Home Phone","Mobile","Address",null,"Email ","B'Day","Spouse",null,null,"Name","Mon"]
[{"$f":"($A$1-J4)/365","v":73.115068493150687},null,1,"Anderson, Gerry","no","713.419.4730","8900 Research Park Dr Apt1708","TW, TX  77381","gerryjanderson@gmail.com","1947-04-14",null,null,null,"Miracle, Marsha",1,null,1]
[{"$f":"($A$1-J5)/365","v":73.975342465753428},null,2,"Edwards, Bob & Mary","no","703.867.3828","128 S Copperknoll Cir","TW, TX 77381","rae1putt@aol.com","1946-06-04","1995-08-28",null,null,"Stick, Larry",1,null,2]
[null,null,3,"Heg, John ","281.296.0539","832.247.3814","99 E Fairbranch Cir","TW, TX 77382","john.heg@hotmail.com","1953-04-08",null,null,null,"Johnson,  Pat",2,null,3]
[84.704109589041096,null,4,"Johnson, Jesse & Pat","281.364.9858","281.389.2698","2 Windledge Pl","TW, TX 77381","jesseljohnson@msn.com","1935-09-14","2011-02-25",null,null,"Rowland, Ken",2,null,4]
[76.109589041095887,null,5,"Kenney, Jim & Jackie","936.273.3851","936.499.2158","66 Lyric Arbor Cir","TW, TX 77381","jasperjim@comcast.net","1944-04-16","2010-04-29",null,null,"MacRae, Colin",2,null,5]
[76.772602739726025,null,6,"Keyes, John & Marilyn","281.298.2347","281.384.2340","10 Windhaven Dr.","TW, TX 77381","johnkeyes@comcast.net","1943-08-18","2011-03-02",null,null,"White, Bill",2,null,6]
[75.523287671232879,null,7,"Lewis, Bob & Carol","832.764.0855","832.671.0267","55 S Castlegreen Circle","TW, TX 77381","BobJLewis@att.net","1944-11-16","2011-04-25",null,null,"White, Neysa",2,null,7]
[{"$f":"($A$1-J12)/365","v":72.898630136986299},null,8,"Lisiewski, Walt & ",null,null,null,null,"wlisiewski@aol.com",null,null,null,null,"Keyes, Marilyn",3,null,8]
[81.400000000000006,null,9,"Lux, Bob & Judy","281.292.6262","832.622.3503","66 W Palmer Bend","TW, TX 77381","robertlux@comcast.net","1947-07-02","2011-07-04",null,null,"Roeder, Jane",3,null,9]
[79.120547945205473,null,10,"MacRae, Colin","281.363.3274","281.795.3439","10707 E Timberwagon Cir","TW, TX 77380","macraecolsal@aol.com","1939-01-02",null,null,null,"Stick, Connie",3,null,10]
[68.424657534246577,null,11,"McMath, Wallis & Jean","281.298.5515","713.470.7653","27 N Castlegreen Cir.","TW, TX 77381","wallis@mcmathmail.com","1941-04-13","2000-08-30",null,null,"Truhe, Sharon",3,null,11]
[77.575342465753423,null,12,"Mellington, Craig & Terry","no","281.798.5201","6 E. Racing Cloud Court","TW, TX 77381","cmellington@comcsat.net","1951-12-21","2011-08-12",null,null,"Anderson, Gerry",4,null,12]
[70.487671232876707,null,13,"Miracle, Dan & Marsha","281.465.4589","281.793.9101","11 Feather Branch Ct","TW, TX 77381","dbmiracle@outlook.com","1942-10-29","1943-01-08",null,null,"Kenney, Jackie",4,null,13]
[{"$f":"($A$1-J19)/365","v":81.547945205479451},null,14,"Moore, Tim & Charlotte","281.465.8375",null,"11 Crested Pines Court","TW, TX 77381","tjmandcsm@sbcglobal.net","1949-11-28","2010-08-01",null,null,"Kenney, Jim",4,null,14]
[{"$f":"($A$1-J20)/365","v":74.975342465753428},null,15,null,null,null,null,null,null,null,null,null,null,"Lewis, Carol",4,null,15]
[{"$f":"($A$1-J21)/365","v":63.246575342465754},null,16,"Roeder, Al & Jane","281.367.2763","832.998.6372","10 Doe Run Dr.","TW, TX 77380","east16@comcast.net","1938-11-09","2011-03-15",null,null,"McMath, Wallis",4,null,16]
[{"$f":"($A$1-J22)/365","v":76.728767123287668},null,17,"Roesler, Tim & Toni","281.645.6194","713.447.4600 ","55 Tapestry Forest Place","TW, TX 77381","timothyroesler@comcast.net ","1945-06-04","2011-05-29",null,null,"Truhe, John",4,null,17]
[{"$f":"($A$1-J26)/365","v":73.37534246575342},null,18,"Rowland, Ken & Nancy","281.651.2957","571.814.8053","3 Dorset Square","TW, TX 77381","rowland.ken@gmail.com","1957-02-22",null,null,null,"Roesler,Toni",5,null,18]
[{"$f":"($A$1-J27)/365","v":67.136986301369859},null,19,"Sheffield, Carlton & Patricia","281.252.3670","281.380.8622","39518 Lago Dr","Magnolia, 77354","F_Sheffield@sbcglobal.net","1943-09-03","2015-10-30",null,null,"West, Waylan ",5,null,19]
[{"$f":"($A$1-J29)/365","v":74.528767123287665},null,20,"Simmons, Roy","no","713.248.9635","34 N. Horizon Ridge Ct.","TW, TX  77381","roy2414@gmail.com","1937-01-27","na",null,null,"Edwards, Bob",6,null,20]
[{"$f":"($A$1-J30)/365","v":79.041095890410958},null,21,"Steimer, Jeff & Lee Ann","no","936.333.1641","19 North Morning Cloud Circle","TW, TX 77381","jgsteimer@yahoo.com","1954-06-15","2000-09-01",null,null,"Roesler, Tim ",6,null,21]
[{"$f":"($A$1-J31)/365","v":74.301369863013704},null,22,"Smith, Murray & Margaret","no","832.381.6292","1849 Lake Terrace Court","TW, TX 77380","murraysmithllc@outlook.com","1950-08-11","2000-10-15",null,null,"Weber, Mary Jo",6,null,22]
[{"$f":"($A$1-J32)/365","v":82.980821917808214},null,23,"Stick, Larry & Connie","281.397.0838","281.330.7433","7 E Bay Blvd","TW, TX 77380","larrystick1@comcast.net ","1947-01-09","2011-03-20",null,null,"Whyte, Mike",6,null,23]
[null,null,24,"Truhe, John & Sharon","no","281.825.2362","7 Rolling Stone Place","TW, TX 77381","jtruhe@comcast.net","1953-04-04","2015-03-15",null,null,"Geis, Art",7,null,24]
[null,null,25,"Watkins, Bob & Gwen","no","832.540.6890","2 Passive Alcove Ct.","TW, TX 77375","bobwatkins16@gmail.com","1957-02-15","2000-07-15",null,null,"Lux, Bob",7,null,25]
[null,null,26,"Weber, Bill & Mary Jo","281.419.6448","832.205.4275","15 Highland Green Pl","TW, TX 77381","billw14@att.net","1945-11-14","2011-06-22",null,null,"Lux, Judy",7,null,26]
[null,null,27,"West, Waylan & Karen","281.362.9659",null,"42 W Palmer Bend","TW, TX 77381","waylan_west@comcast.net  ","1941-05-12","2010-10-29",null,null,"Miller, Mary",7,null,27]
[null,null,28,"White, Bill & Neysa","281.367.5991","713.294.7340","15 Empire Forest Pl.","TW, TX 77382","billwhite46@comcast.net","1946-02-05","2011-02-11",null,null,"Edwards, Mary",8,null,28]
[null,null,null,"Whyte, Mike & Sandy","281.292.3649","936.697.4580","8 Glory Bower Ct. ","TW, TX 77380","its4mcw@aol.com ","1937-06-04","2011-12-05",null,null,"Geis, Sharon",8,null,29]
[null,null,null,null,null,null,null,null,null,null,null,null,null,"Keyes, John",8,null,30]
[null,null,null,null,null,null,null,null,null,null,null,null,null,"McMath, Jean",8,null,31]
[null,null,null,null,null,null,null,null,null,null,null,null,null,"Mellington, Terry",8,null,32]
[null,null,null,null,null,null,null,null,null,null,null,null,null,"Moore, Charlotte",8,null,33]
[null,null,null,null,null,null,null,null,null,null,null,null,null,"Johnson, Jesse",9,null,34]
[null,null,null,null,null,null,null,null,null,null,null,null,null,"Sheffield, Carlton",9,null,35]
[null,null,null,null,null,null,null,null,null,null,null,null,null,"Miracle, Dan",10,null,36]
[null,null,null,null,null,null,null,null,null,null,null,null,null,"Sheffield, Patricia",10,null,37]
[null,null,null,null,null,null,null,null,null,null,null,null,null,"West, Karen",10,null,38]
[null,null,null,null,null,null,null,null,null,null,null,null,null,"Lewis, Bob",11,null,39]
[null,null,null,null,null,null,null,null,null,null,null,null,null,"Moore, Tim",11,null,40]
[null,null,null,null,null,null,null,null,null,null,null,null,null,"Roeder, Al",11,null,41]
[null,null,null,null,null,null,null,null,null,null,null,null,null,"Weber, Bill",11,null,42]
[null,null,null,null,null,null,null,null,null,null,null,null,null,"Mellington, Craig",12,null,43]
[null,null,null,null,null,null,null,null,null,null,null,null,null,"Whyte, Sandy",12,null,44]
[null,null,null,null,null,null,null,null,null,null,null,null,null,null,null,null,45]
[null,null,null,null,null,null,null,null,null,null,null,null,null,null,null,null,46]
[null,null,null,null,null,null,null,null,null,null,null,null,null,"Birdsong, Charlie",10,null,47]
[null,null,null,null,null,null,null,null,null,null,null,null,null,"Birdsong, Lynda",4]
[null,null,null,null,null,null,null,null,null,null,null,null,null,"Copeland, Charlie",11]
[null,null,null,null,null,null,null,null,null,null,null,null,null,"Copeland, Nancy",1]
[{"$f":"($A$1-J70)/365","v":8.8958904109589039},null,null,null,null,null,null,null,null,null,null,null,null,"McCracken, Charlie",6]
[null,null,null,null,null,null,null,null,null,null,null,null,null,"McCracken, Dick",6]
[null,null,null,null,null,null,null,null,null,null,null,null,null,"Miller, Gene",6]
[null,null,null,null,null,null,null,null,null,null,null,null,null,"Socher, Don",8]
[null,null,null,null,null,null,null,null,null,null,null,null,null,"Socher, Mary Lou",1]
[null,null,null,null,null,null,null,null,null,null,null,null,null,"Strasburger, Chuck",4]
[null,null,null,null,null,null,null,null,null,null,null,null,null,"Strasburger, Frankie",7]
[null,null,null,null,null,null,null,null,null,null,null,null,null,"Swenson, Millie",8]
[null,null,2,null,null,null,null,null,null,null,null,null,null,"Swenson, Ron",8]
[]
[null,null,null,"Miller, Gene & Mary","281.292.7652","281.468.8777","47 N Castlegreen Cir.","TW, TX 77381","emiller455@comcast.net ","1926-06-18","2011-07-30"]
[]
[null,{"$f":"($A$1-J74)/365","v":97.715068493150682},null,"Birdsong, Charlie & Lynda","281.298.5686","972.567.1764","42 N. Brokenfern ","TW, TX 77380","c.birdsong@att.net","1946-10-18","2015-04-16"]
[null,null,22,"Geis, Art & Sharon",null,"415.516.4791","42 Spotted Lily Way","TW, TX 77354","artgeis@msn.com","1952-07-09","2015-08-22"]
[null,null,null,"Copeland, Charlie & Nancy","281.296.6676","832.978.1687","43 Dresden Place","TW, TX 77381","ccj1502@sbcglobal.net","1949-11-18","2000-01-18"]
[]
[null,null,null,"McCracken, Dick & Charlie","281.363.1732",null,"30 W Eden Elm Cir.","TW, TX 77381","dickmcc@comcast.net","2011-06-17","2011-06-19"]
[null,null,null,"Socher, Don & Mary Lou","280.292.9035",null,"44 Dunlin Meadow","TW, TX 77381","dsocher_houston1@comcast.net","1930-08-05","2011-01-05"]
[null,null,null,"Swenson, Ron & Millie","281.298.1610",null,"39 Silk Bay Pl.","TW, TX 77382","rfs39@sbcglobal.net","1933-08-25","2011-08-08"]
[null,null,null,"Strasburger, Chuck & Frankie","281.292.0687","281.440.5573","26 E Honey Grove Pl.","TW, TX 77382","cbs5861@aol.com","1934-04-20","1935-07-25"]
[null,null,1,"Thomas, Quinton","281.367.2166",null,"14 Huntsman Horn Cir.","TW, TX 77380","jqt91322@webtv.net","1922-09-13"]
[null,null,2]
[null,null,2]
[null,null,1]
[null,null,2]
[null,null,2,"Bithday/ Q Memorial dinner 3/15"]
[null,null,2]
[null,null,1,"Andrson, Gerry"]
[null,null,2,"Edwards, Bob & Mary"]
[null,null,2,"Geis, Art & Sharon"]
[null,null,3,"Johnson, Jesse"]
[null,null,2,"Kenney, Jim & Jackie"]
[null,null,2,"Keyes, John & Marilyn(Birthday)"]
[null,null,2,"Lewis, Bob & Carol"]
[null,null,2,"MacRae, Colin"]
[null,null,2,"Mellington, Craig & Terry"]
[null,null,2,"Moore, Tim & Charlotte"]
[null,null,null,"Roeder, Al & Jane(Birthday) & Guest Jane Clover"]
[null,null,{"$f":"SUM(C74:C91)","v":32},"Roeder Guest Chuck & Frankie Strasburger"]
[null,null,null,"Roesler, Tim & Toni"]
[null,null,null,"Stick, Larry & Connie(Birthday)"]
[null,null,null,"Weber, Bill & Mary Jo"]
[null,null,null,"West, Waylan & Karen"]
[null,null,null,"White, Bill & Neysa"]
[]
[null,null,null,"Total"]

{"sheet":"Rules","index":6,"n_rows":25,"n_cols":1,"rows_kept":25,"cut":false,"hidden":false,"merged":[]}
["Golf Group  Rules  "]
["Our golf group Purpose is to promote serious golf but make it fun for all. "]
[]
["1. Group plays from the gold  tees. We do not take mulligans off the first tee unless the driving range is closed. If it is closed you can hit a second shot if you have a bad first drive but you have to use the second shot even if it is worse thatn the first."]
["2. When we play with traps in a \"Ground under repair\" as we are now the rule is neareast point of relief no closer to the hole. There is no one club or 2 club relief. You get a \"stance\" and that is the point to drop the ball. In most cases you will be dropping in the rough or with the trap in front of you."]
["3. Individual 4 ball matches get played if 3 of 4 player want to play. Game can be what 3/4 want to play"]
["4. General rules for a  putting  \"good\" is the physical length a  standard grip. Players can decide but should protect the field"]
["5. Always play it down unless it is cart path only which would allow pick, clean and place in fairway only"]
["6. A free \"drop\" (not place) is allowed if ball ends in a fairway divot."]
["7.   We do not take mulligans off the first tee unless the driving range is closed. If it is closed you can hit a second shotif you have a bad first drive but you have to use the second shot even if it is worse thatn the first.…………….."]
["8. It takes 7 \"competing\" members to have a competitive round. "]
["9. To play social the fee is $4  to cover the drink cost. Less than 7 players can also contribute $3 each"]
["10. When playing less than 7 players one option is to have each player put $5 in the pot and the low net individual wins the pot and then pays the bar bill."]
[]
["Pace of play is critical to the group"]
[]
["A key to keeping our pace of play up is for each of us to be aware of slow play from our fellow players and we encourage your communicating slow play to the slow player. We ask that all players be tolerate  receiving comments from other players that will help us improve our pace of play. \n\nSugggestions on pace of play:"]
["1. Play ready golf. If someone else is out but you are ready, announce you intent to play and then make the shot or putt"]
["2.      If sharing a cart get dropped off at your ball, select your club and let your cart partner go to his ball and get ready to play"]
["3.      When in the fairway or tee box make sure you get your club out, gloves on and be ready to play your shot as soon as possible while the other players are playing their shots. "]
["4.      Work on your putt or iron routine to not spend too much time just standing over the ball."]
["5.      Try to line up your putt before it is your turn so you can address the ball and execute when it is your turn."]
["6.      Putt out if possible. If it gives a competitor a read it is OK to not finish but otherwise continue to the hole."]
["7.      If you are falling behind the group in front of you be deliberate to try to catch up but keep your swings smooth and true."]
["8.      Walkers should make sure your walking pace is not slowing up the group. If the group is falling behind consider jumping on a cart (if availble) for the tee shot and between holes"]

{"sheet":"New GHIN","index":7,"n_rows":81,"n_cols":30,"rows_kept":81,"cut":false,"hidden":false,"merged":[[0,19,0,24],[5,26,5,29]]}
["USGA Section 3 Handicapping",null,null,"Gold Tee's are the base",null,null,null,null,null,null,null,null,null,null,null,null,null,null,null,"2020-12-15",null,null,null,null,null,null,null,"Max for holes with strokes"]
["Select the course for week in cell A1","Slope",null,"Rating",null,"Hdc Adj",null,null,null,null,null,null,null,null,null,"GerryA","0284389",null,null,null,null,"HC","HC","HC","HC",null,"PAR",0,1,2]
["Select Course","Green","Gold","Green","Gold","Gld to Grn",null,null,"White",null,null,"White",null,null,null,"BobE","6433451",null,null,null,null,18.161538461538459,"22max ","22max ","22max ",null,3,5,6,"na*"]
["Player",119,128,65.400000000000006,69.5,-4,null,null,71.2,null,null,137,null,null,null,"JohnH",1952705,null,null,null,"Index","AvHC","Player","P K/G","TPC",null,4,6,7,"na*"]
["Palmer King-Gen",118,124,66.8,69.599999999999994,-3,null,null,70.8,null,null,126,null,null,null,"JesseJ g","8505540",null,null,"GerryA",10.3,9,9,9,9,null,5,7,8,9]
["Tournament",119,126,65.900000000000006,69.7,-4,null,null,70.5,null,null,129,null,null,null,"JimK g",8505583,null,null,"BobE",20,20,20,20,20,null,"na* - with 22 max no one gets 2 strokes on par 3 or 4 "]
["Palmer Dea-King",116,123,65.900000000000006,69.3,70.8,null,null,-3,2,null,125,null,null,null,"JohnK",8505613,null,null,"JohnH",20.5,20.666666666666668,21,20,21]
["Palmer Gen - Dea",117,125,66.5,69.7,71.2,null,null,-3,2,null,128,null,null,null,"BobL",8505649,null,null,"JesseJ g",25.7,21.333333333333332,20,23,21]
["Other Course",0,115,null,67.5,69.2,null,null,0,2,null,120,null,null,null,"WaltL",8505667,null,null,"JimK g",26.7,22.666666666666668,22,24,22]
["Todays Course - Player",null,null,null,null,null,null,null,null,null,null,"*Note",null,null,null,"BobLx",8505653,null,null,"JohnK",14,13,13,13,13]
["Todays Slopes and Tee Adjustment are",119,128,65.400000000000006,"Gold to Wht HC Adj",null,null,null,-4,2,null,137,null,null,null,"WallisM","2102801",null,null,"BobL",17.899999999999999,17.666666666666668,18,17,18]
[null,null,null,null,null,null,null,null,null,null,null,null,null,null,null,"CraigM","6353615",null,null,"WaltL",22.1,22.333333333333332,23,22,22]
["Green HC = Slope difference plus Course rating delta",null,null,null,null,null,null,null,null,null,null,null,null,null,null,"DanM","0003188",null,null,"BobLx",17.100000000000001,16.666666666666668,17,16,17]
["Player Index",null,"Gold HC","Green HC","Gr Adjust",null,null,null,null,null,null,"White",null,null,null,"TimM","1484835",null,null,"WallisM",20.2,20,20,20,20]
[10,null,{"$f":"ROUND(A15*(C$4/113),0)","v":11},{"$f":"ROUND(A15*(B$4/113)+F$4,0)","v":7},{"$f":"+D15-$C15","v":-4},null,null,{"$f":"+L15-$C15","v":1.123893805309736},null,4,null,{"$f":"A15*(L$4/113)+J$4","v":12.123893805309736},{"$f":"ROUND(C15,0)","v":11},null,null,"GaryP","3088085",null,null,"CraigM",9.9,8.6666666666666661,9,8,9]
[11,null,{"$f":"ROUND(A16*(C$4/113),0)","v":12},8,-4,null,null,{"$f":"+L16-C16","v":1.3362831858407098},null,4,null,13.33628318584071,null,null,null,"AlR",8505970,null,null,"DanM",16.600000000000001,16,16,16,16]
[12,null,14,9,-5,null,null,0.54867256637168182,null,5,null,14.548672566371682,null,null,null,"TimR","1078775",null,null,"TimM",20.8,21,21,21,21]
[13,null,15,10,-5,null,null,0.76106194690265561,null,5,null,15.761061946902656,null,null,null,"KenR","2020045",null,null,"GaryP",9.4,8,8,8,8]
[14,null,16,11,-5,null,null,0.97345132743362939,null,5,null,16.973451327433629,null,null,null,"RoyS",8506106,null,null,"AlR",21,21,21,21,21]
[15,null,17,12,-5,null,null,1.1858407079646049,null,5,null,18.185840707964605,null,null,null,"MurrayS",7967386,null,null,"TimR",21.9,22,22,22,22]
[16,null,18,13,-5,null,null,1.398230088495577,null,5,null,19.398230088495577,null,null,null,"JeffS","0153649",null,null,"KenR",13.9,13,13,13,13]
[17,null,19,14,-5,null,null,1.610619469026549,null,5,null,20.610619469026549,null,null,null,"LarryS",8506052,null,null,"RoyS",20.7,20.666666666666668,21,20,21]
[18,null,20,15,-5,null,null,1.8230088495575245,null,5,null,21.823008849557525,null,null,null,"JohnT","2565906",null,null,"MurrayS",16.2,15.666666666666666,16,15,16]
[19,null,22,16,-6,null,null,1.0353982300884965,null,6,null,23.035398230088497,null,null,null,"BobW",1635148,null,null,"JeffS",22.3,22.666666666666668,23,22,23]
[20,null,23,17,-6,null,null,1.2477876106194721,null,null,null,24.247787610619472,null,null,null,"Waylan g","6462888",null,null,"LarryS",18.7,18.666666666666668,19,18,19]
[21,null,24,18,-6,null,null,1.4601769911504441,null,null,null,25.460176991150444,null,null,null,"BillW",8506290,null,null,"JohnT",12.2,11,11,11,11]
[22,null,25,19,-6,null,null,1.6725663716814196,null,null,null,26.67256637168142,null,null,null,"MikeW",8506225,null,null,"BobW",11.2,10,10,10,10]
[23,null,26,20,-6,null,null,1.8849557522123916,null,null,null,27.884955752212392,null,null,null,"JimW ",8506279,null,null,"Waylan g",23.1,18.666666666666668,18,20,18]
[24,null,27,21,-6,null,null,null,null,null,null,29.097345132743364,null,null,null,"RobertD",null,null,null,"BillW",20.6,20.666666666666668,21,20,21]
[25,null,28,22,-6,null,null,{"$f":"+L30-C30","v":2.3097345132743392},null,null,null,30.309734513274339,null,null,null,null,null,null,null,"MikeW",19.2,19,19,19,19]
[26,null,29,23,-6,null,null,{"$f":"+L31-C31","v":2.5221238938053112},null,null,null,31.522123893805311,null,null,null,null,null,null,null,"JimW ",20.5,20.666666666666668,21,20,21]
[null,null,null,null,null,null,null,null,null,null,null,null,null,null,null,null,null,null,null,"RobertD",17.600000000000001,17,17,17,17]
[]
["Tournament",null," Gold HC","Green HC","Gr Adjust",null,null,null,null,null,null,"White"]
[10,null,{"$f":"ROUND(A35*(C$6/113),0)","v":11},{"$f":"ROUND(A35*(B$6/113)+F$6,0)","v":7},{"$f":"+D35-$C35","v":-4},null,null,{"$f":"+L35-$C35","v":0.41592920353982343},null,null,null,{"$f":"A35*(L$6/113)+J$6","v":11.415929203539823}]
[11,null,{"$f":"ROUND(A36*(C$6/113),0)","v":12},8,-4,null,null,{"$f":"+L36-C36","v":0.55752212389380595},null,null,null,12.557522123893806]
[12,null,13,9,-4,null,null,0.6991150442477867,null,null,null,13.699115044247787,null,null,null,"PAR","Max if no Strokes"]
[13,null,14,10,-4,null,null,0.84070796460176922,null,null,null,14.840707964601769]
[14,null,16,11,-5,null,null,-1.7699115044248259E-2,null,null,null,15.982300884955752]
[15,null,17,12,-5,null,null,0.12389380530973426,null,null,null,17.123893805309734]
[16,null,18,13,-5,null,null,0.26548672566371678,null,null,null,18.265486725663717]
[17,null,19,14,-5,null,null,0.4070796460176993,null,null,null,19.407079646017699]
[18,null,20,15,-5,null,null,0.54867256637168182,null,null,null,20.548672566371682]
[19,null,21,16,-5,null,null,0.69026548672566435,null,null,null,21.690265486725664]
[20,null,22,17,-5,null,null,0.83185840707964687,null,null,null,22.831858407079647]
[21,null,23,18,-5,null,null,0.97345132743362939,null,null,null,23.973451327433629]
[22,null,25,19,-6,null,null,0.11504424778761191,null,null,null,25.115044247787612]
[23,null,26,20,-6,null,null,0.25663716814159443,null,null,null,26.256637168141594]
[24,null,27,21,-6,null,null,0.3982300884955734,null,null,null,27.398230088495573]
[25,null,28,22,-6,null,null,0.53982300884955592,null,null,null,28.539823008849556]
[26,null,29,23,-6,null,null,0.68141592920353844,null,null,null,29.681415929203538]
[]
[]
["Palmer K/G",null," Gold HC","Green HC","Gr Adjust",null,null,null,null,null,null,"White"]
[10,null,{"$f":"ROUND(A55*(C$5/113),0)","v":11},{"$f":"ROUND(A55*(B$5/113)+F$5,0)","v":7},{"$f":"+D55-$C55","v":-4},null,null,{"$f":"+L55-$C55","v":0.15044247787610487},null,null,null,{"$f":"A55*(L$5/113)+J$5","v":11.150442477876105}]
[11,null,{"$f":"ROUND(A56*(C$5/113),0)","v":12},{"$f":"ROUND(A56*(B$5/113)+F$5,0)","v":8},-4,null,null,{"$f":"+L56-C56","v":0.26548672566371678},null,null,null,12.265486725663717]
[12,null,13,10,-3,null,null,0.38053097345132691,null,null,null,13.380530973451327]
[13,null,14,11,-3,null,null,0.49557522123893705,null,null,null,14.495575221238937]
[14,null,15,12,-3,null,null,0.61061946902654896,null,null,null,15.610619469026549]
[15,null,16,13,-3,null,null,0.72566371681415731,null,null,null,16.725663716814157]
[16,null,18,14,-4,null,null,-0.15929203539823078,null,null,null,17.840707964601769]
[17,null,19,15,-4,null,null,-4.4247787610618872E-2,null,null,null,18.955752212389381]
[18,null,20,16,-4,null,null,7.0796460176989484E-2,null,null,null,20.070796460176989]
[19,null,21,17,-4,null,null,0.18584070796460139,null,null,null,21.185840707964601]
[20,null,22,18,-4,null,null,0.30088495575220975,null,null,null,22.30088495575221]
[21,null,23,19,-4,null,null,0.41592920353982166,null,null,null,23.415929203539822]
[22,null,24,20,-4,null,null,0.53097345132743357,null,null,null,24.530973451327434]
[23,null,25,21,-4,null,null,0.64601769911504192,null,null,null,25.646017699115042]
[24,null,26,22,-4,null,null,0.76106194690265383,null,null,null,26.761061946902654]
[25,null,27,23,-4,null,null,0.87610619469026574,null,null,null,27.876106194690266]
[26,null,29,24,-5,null,null,-8.849557522125906E-3,null,null,null,28.991150442477874]
[27,null,30,25,-5,null,null,0.106194690265486,null,null,null,30.106194690265486]
[]
[]
["Jesse @ 26 Index avg 6, 6, 5  = 5.7 or -6 Avg"]
["Jesse @ 22 Index avg 6, 6, 4  = - 5.3 or -5 Avg"]
[]
[]
[]
[]
[12]

{"sheet":"email list","index":8,"n_rows":30,"n_cols":11,"rows_kept":30,"cut":false,"hidden":false,"merged":[[0,9,0,10]]}
["First Name","Last Name","email","Count","Full Name",null,null,null,null," Matteson/Thomas/Lewis\nGolf Group\n  The Woodlands Country Club \n1981 - 2018"]
["Gerry","Anderson","<gerryjanderson@gmail.com>",1,{"$f":"CONCATENATE(A2,\" \",B2)","v":"Gerry Anderson"},null,null,null,null,"Gerry Anderson","Tim Roesler"]
["Bob","Edwards","<rae1putt@aol.com>",2,{"$f":"CONCATENATE(A3,\" \",B3)","v":"Bob Edwards"},null,null,null,null,"Bob Edwards","Ken Rowland"]
["John","Heg","<john.heg@hotmail.com>",3,"John Heg",null,null,null,null,"John Heg","Carlton Sheffield"]
["Jesse","Johnson","<jesseljohnson@msn.com>",4,"Jesse Johnson",null,null,null,null,"Jesse Johnson","Roy Simmons"]
["Jim","Kenney","<jasperjim@comcast.net>",5,"Jim Kenney",null,null,null,null,"Jim Kenney","Murray Smith"]
["John","Keyes","<Johnkeyes@comcast.net>",6,"John Keyes",null,null,null,null,"John Keyes","Jeff' Steimer"]
["Walt","Lisiewski","<wlisiewski@aol.com>",7,"Walt Lisiewski",null,null,null,null,"Walt Lisiewski","Larry Stick"]
["Robert","Lux","<robertlux@comcast.net>",8,"Robert Lux",null,null,null,null,"Robert Lux","John Truhe"]
["Colin","MacRae","<macraecolsal@aol.com>",9,"Colin MacRae",null,null,null,null,"Colin MacRae","McMath Wallis"]
["Craig","Mellington","<cmellington6@gmail.com>",10,"Craig Mellington",null,null,null,null,"Craig Mellington","Bob Watkins"]
["Gene","Miller","<emiller455@icloud.com>",11,"Gene Miller",null,null,null,null,"Gene Miller","Bill Weber"]
["Dan","Miracle","<dbmiracle@outlook.com>",12,"Dan Miracle",null,null,null,null,"Dan Miracle","Waylan West"]
["Tim","Moore","<tjmuga3.72@gmail.com>",13,"Tim Moore",null,null,null,null,"Tim Moore","Bill White"]
["Al","Roeder","<East16@comcast.net>",14,"Al Roeder",null,null,null,null,"Al Roeder","Mike Whyte"]
["Tim","Roesler","<timothyroesler@comcast.net>",15,"Tim Roesler"]
["Ken","Rowland","<rowland.ken@gmail.com>",16,"Ken Rowland"]
["Carlton","Sheffield","<F_Sheffield@sbcglobal.net>",17,"Carlton Sheffield"]
["Roy","Simmons","<roy2414@gmail.com>",18,"Roy Simmons",null,null,null,null,"MATTESON "]
["Murray","Smith","<murraysmithllc@outlook.com>",19,"Murray Smith"]
["Jeff'","Steimer","<jgsteimer@yahoo.com>",20,"Jeff' Steimer"]
["Larry","Stick","<larrystick1@comcast.net>",21,"Larry Stick"]
["John","Truhe","<JTRUHE@comcast.net>",22,"John Truhe"]
["McMath","Wallis","<wallis@mcmathmail.com>",23,"McMath Wallis"]
["Bob","Watkins","<Bobwatkins16@gmail.com>",24,"Bob Watkins"]
["Bill","Weber","<billw14@att.net>",25,"Bill Weber"]
["Waylan","West","<wayrwest@aol.com>",26,"Waylan West"]
["Bill","White","<billwhite46@comcast.net>",27,"Bill White"]
["Mike","Whyte","<its4mcw@aol.com>",28,"Mike Whyte"]
[null,null,null,null," "]